Workbook

Sheet Table
A1: Financial Dt: 3/31/2020 | F1: BANKS | P1: HOLDING COMPANIES
A4: Asset Size | F4: SMBs | G4: Dist | H4: SMB % | I4: Dist % | J4: MI | K4: MN | L4: MT | M4: ND | N4: SD | O4: WI | Q4: TopTier | S4: > $1B | T4: Complex
A5: < $50m | F5: 3 | G5: 57 | H5: =F5/F$10 -> 0.0625 | I5: 0.124726477 | J5: 0 | K5: 34 | L5: 5 | M5: 8 | N5: 9 | O5: 1 | P5: MI | Q5: 17 | R5: =Q5/Q$12 -> 0.04292929293 | S5: 0 | T5: 0
A6: $50m - $100m | F6: 8 | G6: 108 | H6: 0.1666666667 | I6: 0.2363238512 | J6: 2 | K6: 60 | L6: 10 | M6: 19 | N6: 11 | O6: 6 | P6: MN | Q6: 208 | R6: 0.5252525253 | S6: 5 | T6: 1
A7: $100m - $200m | F7: 9 | G7: 117 | H7: 0.1875 | I7: 0.2560175055 | J7: 6 | K7: 63 | L7: 12 | M7: 16 | N7: 8 | O7: 12 | P7: MT | Q7: 37 | R7: 0.09343434343 | S7: 3 | T7: 0
A8: > $200m | F8: 28 | G8: 175 | H8: 0.5833333333 | I8: 0.3829321663 | J8: 7 | K8: 83 | L8: 13 | M8: 24 | N8: 27 | O8: 20 | P8: ND | Q8: 56 | R8: 0.1414141414 | S8: 3 | T8: 0
P9: SD | Q9: 43 | R9: 0.1085858586 | S9: 3 | T9: 1
A10: Total | F10: =SUM(F5:F8) -> 48 | G10: =SUM(G5:G8) -> 457 | J10: =SUM(J5:J8) -> 15 | K10: 240 | L10: 40 | M10: 67 | N10: 55 | O10: 39 | P10: WI | Q10: 35 | R10: 0.08838383838 | S10: 0 | T10: 0
J11: =J10/$G10 -> 0.03282275711 | K11: 0.5251641138 | L11: 0.0875273523 | M11: 0.1466083151 | N11: 0.1203501094 | O11: 0.08533916849
P12: Total | Q12: =SUM(Q5:Q10) -> 396 | S12: =SUM(S5:S10) -> 14 | T12: =SUM(T5:T10) -> 2
A13: SMBs by State | J13: 3 | K13: 18 | L13: 14 | M13: 3 | N13: 4 | O13: 6
J14: =J13/$F$10 -> 0.0625 | K14: 0.375 | L14: 0.2916666667 | M14: 0.0625 | N14: 0.08333333333 | O14: 0.125
A16: Business Category (>25% loans) | F16: SMBs | G16: Dist | H16: SMB % | I16: Dist % | J16: MI | K16: MN | L16: MT | M16: ND | N16: SD | O16: WI
A17: Agricultural | F17: 21 | G17: 217 | H17: =F17/F$10 -> 0.4375 | I17: =G17/G$10 -> 0.4748358862 | J17: 0 | K17: 95 | L17: 17 | M17: 52 | N17: 43 | O17: 10
A18: Commerical Real Estate (BOG) | F18: 11 | G18: 142 | H18: =F18/F$10 -> 0.2291666667 | I18: 0.3107221007 | J18: 2 | K18: 71 | L18: 16 | M18: 19 | N18: 20 | O18: 14
A19: Residential Mortgage | F19: 9 | G19: 106 | H19: 0.1875 | I19: 0.2319474836 | J19: 7 | K19: 70 | L19: 9 | M19: 3 | N19: 2 | O19: 14
A20: C&I | F20: 2 | G20: 53 | H20: 0.04166666667 | I20: 0.1159737418 | J20: 2 | K20: 34 | L20: 3 | M20: 7 | N20: 4 | O20: 3
A21: Other | F21: 8 | G21: 47 | H21: 0.1666666667 | I21: 0.1028446389 | J21: 5 | K21: 25 | L21: 5 | M21: 2 | N21: 4 | O21: 6
A22: FINANCIAL INDICATORS | F22: SMBs | J22: District | N22: MI | P22: MN | R22: MT | T22: ND | V22: SD | X22: WI | Z22: AG | AB22: CRE | AD22: RES RE | AF22: C&I | AH22: OTHER
A23: [%, unless indicated] | F23: 25th | G23: Med | H23: 75th | I23: Avg | J23: 25th | K23: Med | L23: 75th | M23: Avg | N23: Med | O23: Avg | P23: Med | Q23: Avg | R23: Med | S23: Avg | T23: Med | U23: Avg | V23: Med | W23: Avg | X23: Med | Y23: Avg | Z23: Med | AA23: Avg | AB23: Med | AC23: Avg | AD23: Med | AE23: Avg | AF23: Med | AG23: Avg | AH23: Med | AI23: Avg
A24: Capital Ratios
A25: Equity / Assets | F25: 10.89434031 | G25: 11.64686228 | H25: 12.89297527 | I25: 11.9621007 | J25: 9.917304445 | K25: 11.08034136 | L25: 12.77417362 | M25: 11.61352883 | N25: 11.46744778 | O25: 11.70040891 | P25: 10.82097089 | Q25: 11.37513212 | R25: 11.04685273 | S25: 12.00721935 | T25: 10.79406261 | U25: 11.00107594 | V25: 12.05588241 | W25: 12.56949535 | X25: 11.77170541 | Y25: 13.46538882 | Z25: 11.32774201 | AA25: 11.71274357 | AB25: 10.62940188 | AC25: 11.01184682 | AD25: 11.10338767 | AE25: 11.4303808 | AF25: 10.63180296 | AG25: 11.85881695 | AH25: 11.36176278 | AI25: 12.52899343
A26: Total Risk Based Capital Ratio | F26: 14.3906 | G26: 15.6111 | H26: 18.166875 | I26: 16.87370667 | J26: 13.2114 | K26: 15.168 | L26: 18.64315 | M26: 16.4931 | N26: 14.70595 | O26: 14.564075 | P26: 14.9731 | Q26: 16.29158286 | R26: 16.1613 | S26: 18.95395185 | T26: 14.2694 | U26: 14.86336471 | V26: 17.1237 | W26: 18.81395366 | X26: 14.7499 | Y26: 17.70174516 | Z26: 15.74495 | AA26: 16.84537603 | AB26: 13.4887 | AC26: 14.27101102 | AD26: 15.6041 | AE26: 17.18739577 | AF26: 14.5501 | AG26: 17.50553636 | AH26: 16.64635 | AI26: 19.72720714
A27: Tier 1 Leverage Ratio | F27: 9.6975 | G27: 10.77 | H27: 12.1475 | I27: 11.13479167 | J27: 9.5 | K27: 10.6 | L27: 12.08 | M27: 11.09505568 | N27: 10.61 | O27: 11.13133333 | P27: 10.41 | Q27: 10.89144068 | R27: 10.765 | S27: 11.42825 | T27: 10.29 | U27: 10.58208955 | V27: 11.71 | W27: 12.02636364 | X27: 10.94 | Y27: 12.60641026 | Z27: 10.71 | AA27: 11.21403756 | AB27: 9.885 | AC27: 10.34564286 | AD27: 10.655 | AE27: 10.85394231 | AF27: 10.61 | AG27: 11.4390566 | AH27: 10.48 | AI27: 11.96659574
A28: Asset Quality
A29: ALLL / Nonaccrual Loans | F29: 108.0088247 | G29: 193.7684256 | H29: 399.1603345 | I29: 2143.528729 | J29: 94.38085328 | K29: 225.8164852 | L29: 571.1904762 | M29: 1056.0791 | N29: 192.0529801 | O29: 336.2223782 | P29: 271.6230202 | Q29: 1174.088064 | R29: 186.1356932 | S29: 1202.65955 | T29: 294.4395383 | U29: 3546.544187 | V29: 195.6523973 | W29: 472.3405067 | X29: 129.4356643 | Y29: 583.0587779 | Z29: 182.0320169 | AA29: 1625.146856 | AB29: 255.2568493 | AC29: 841.6566454 | AD29: 254.9015721 | AE29: 792.3537789 | AF29: 295.8632233 | AG29: 872.2026798 | AH29: 286.9640748 | AI29: 570.9091671
A30: [NCL + OREO] / Total Loans | F30: 0.4045625035 | G30: 0.8257980021 | H30: 1.631839081 | I30: 1.650114095 | J30: 0.2449537285 | K30: 0.808632738 | L30: 1.669195751 | M30: 1.221584057 | N30: 1.677568094 | O30: 1.782103883 | P30: 0.7181918147 | Q30: 1.099715713 | R30: 0.834603249 | S30: 2.179336697 | T30: 0.7131514364 | U30: 1.135971539 | V30: 0.8137315176 | W30: 1.53592822 | X30: 1.195635686 | Y30: 1.572710455 | Z30: 0.9690195526 | AA30: 1.510483787 | AB30: 0.8198989534 | AC30: 1.074344972 | AD30: 0.624156454 | AE30: 1.082494641 | AF30: 0.808632738 | AG30: 1.157598421 | AH30: 0.6798127729 | AI30: 0.9276365764
A31: [NCL+Delinquent Loans] / [Capital + ALLL] | F31: 3.443050374 | G31: 8.979087597 | H31: 13.79085023 | I31: 11.88940369 | J31: 3.225655813 | K31: 8.72967568 | L31: 16.57454657 | M31: 11.52695438 | N31: 9.119844692 | O31: 12.33318005 | P31: 7.235555351 | Q31: 10.34133718 | R31: 12.18763684 | S31: 16.24905378 | T31: 10.38398274 | U31: 13.00800224 | V31: 8.153321762 | W31: 12.75087646 | X31: 11.83624801 | Y31: 13.44973504 | Z31: 11.98435277 | AA31: 14.82834933 | AB31: 7.621257155 | AC31: 10.4295304 | AD31: 8.342798922 | AE31: 10.43891908 | AF31: 7.80730897 | AG31: 10.92033081 | AH31: 5.057502368 | AI31: 7.648397806
A32: Ag [NCL+DQ] / [Capital + ALLL] | F32: 0 | G32: 0.5989802855 | H32: 5.181226393 | I32: 4.879255913 | J32: 0 | K32: 0.1481164776 | L32: 4.457274827 | M32: 3.754195936 | N32: 0 | O32: 0 | P32: 0 | Q32: 3.12609928 | R32: 0.4737115655 | S32: 6.516843351 | T32: 1.420250921 | U32: 5.201845549 | V32: 1.560979285 | W32: 7.228804013 | X32: 0.1429264872 | Y32: 3.252971 | Z32: 4 | AA32: 7.450395619 | AB32: 0.07751583119 | AC32: 3.56586693 | AD32: 0 | AE32: 1.164136549 | AF32: 0 | AG32: 1.016111135 | AH32: 0 | AI32: 0.6186894006
A33: CLD [NCL+DQ] / [Capital + ALLL] | F33: 0 | G33: 0 | H33: 0.2689286522 | I33: 0.5202824901 | J33: 0 | K33: 0 | L33: 0.07816163827 | M33: 0.2914941002 | N33: 0 | O33: 0.5656981946 | P33: 0 | Q33: 0.2469797116 | R33: 0 | S33: 0.4054821584 | T33: 0 | U33: 0.3269710077 | V33: 0 | W33: 0.293962065 | X33: 0.002696726174 | Y33: 0.5151150659 | Z33: 0 | AA33: 0.1619748592 | AB33: 0 | AC33: 0.2315463407 | AD33: 0 | AE33: 0.4984802274 | AF33: 0 | AG33: 0.3670166888 | AH33: 0 | AI33: 0.405006317
A34: CRE [NCL+DQ] / [Capital + ALLL] | F34: 0.09654085483 | G34: 1.378343853 | H34: 2.874072415 | I34: 2.599934461 | J34: 0 | K34: 0.8502538071 | L34: 3.183556405 | M34: 2.426086706 | N34: 2.602419437 | O34: 5.799263277 | P34: 0.6247853492 | Q34: 2.087374618 | R34: 1.514932417 | S34: 3.413023897 | T34: 1.077784029 | U34: 2.55567952 | V34: 0 | W34: 1.062532236 | X34: 1.770842783 | Y34: 4.993526425 | Z34: 0.3720177922 | AA34: 1.910267301 | AB34: 1.032398688 | AC34: 2.250527224 | AD34: 0.8471030194 | AE34: 2.588399725 | AF34: 1.027348732 | AG34: 3.130331635 | AH34: 1.063322624 | AI34: 3.211018966
A35: Res RE [NCL+DQ] / [Capital + ALLL] | F35: 0.1177258933 | G35: 1.014273691 | H35: 1.971414606 | I35: 1.529961703 | J35: 0 | K35: 0.715537618 | L35: 2.34878086 | M35: 1.686647131 | N35: 3.612417686 | O35: 3.808029829 | P35: 0.9897987725 | Q35: 1.916084014 | R35: 0.8917863455 | S35: 2.223577067 | T35: 0.1807682651 | U35: 0.8706755756 | V35: 0.01182760089 | W35: 0.3725390344 | X35: 1.887676837 | Y35: 2.823311757 | Z35: 0.4353932584 | AA35: 1.234444133 | AB35: 0.6984210366 | AC35: 1.488837754 | AD35: 2.698181518 | AE35: 3.707106294 | AF35: 0.5729564553 | AG35: 1.745338255 | AH35: 0.7214414543 | AI35: 1.3564554
A36: C&I [NCL+DQ] / [Capital + ALLL] | F36: 0.07248510114 | G36: 0.7688374996 | H36: 1.743714923 | I36: 1.625282639 | J36: 0.09171156712 | K36: 0.7947019868 | L36: 2.184332938 | M36: 1.789513124 | N36: 0.8873413456 | O36: 1.621652247 | P36: 0.8091381453 | Q36: 1.797671155 | R36: 0.8027698197 | S36: 2.571571672 | T36: 0.6302441247 | U36: 2.067507654 | V36: 0.7638572814 | W36: 1.664384271 | X36: 0.8213298114 | Y36: 1.628617868 | Z36: 0.7036144578 | AA36: 1.653565223 | AB36: 0.931709617 | AC36: 1.690432334 | AD36: 0.646139044 | AE36: 1.551915846 | AF36: 2.038593215 | AG36: 4.208025781 | AH36: 0.4010815683 | AI36: 1.328586991
A37: Ind [NCL+DQ] / [Capital + ALLL] | F37: 0.01909998383 | G37: 0.1413369988 | H37: 0.3412715384 | I37: 0.2924675498 | J37: 0.002841662562 | K37: 0.09654373431 | L37: 0.3953614634 | M37: 0.336269664 | N37: 0.401694822 | O37: 0.8264695331 | P37: 0.06336682084 | Q37: 0.2840957832 | R37: 0.2086213884 | S37: 0.3848512633 | T37: 0.08275425637 | U37: 0.2560102173 | V37: 0.1341032482 | W37: 0.9079276289 | X37: 0.09768350544 | Y37: 0.2180567601 | Z37: 0.1222222222 | AA37: 0.3484968882 | AB37: 0.0662974665 | AC37: 0.3474149357 | AD37: 0.1868017794 | AE37: 0.4679283125 | AF37: 0.007786949073 | AG37: 0.2844667588 | AH37: 0.1109775271 | AI37: 0.3487186213
A38: OREO / [Capital + ALLL] | F38: 0 | G38: 0 | H38: 0.8092264132 | I38: 0.6333020168 | J38: 0 | K38: 0 | L38: 1.05204112 | M38: 0.8990343357 | N38: 1.799326871 | O38: 1.79278931 | P38: 0 | Q38: 1.187150058 | R38: 0 | S38: 0.4145674112 | T38: 0 | U38: 0.7587014633 | V38: 0 | W38: 0.2645261195 | X38: 0.03995525012 | Y38: 0.896039421 | Z38: 0 | AA38: 0.7808719194 | AB38: 0.1081447484 | AC38: 1.290083382 | AD38: 0 | AE38: 0.8042523472 | AF38: 0 | AG38: 0.6768308328 | AH38: 0.2676346118 | AI38: 0.8070851669
A39: Earnings
A40: ROAA | F40: 0.7325 | G40: 1.065 | H40: 1.6325 | I40: 1.196041667 | J40: 0.74 | K40: 1.12 | L40: 1.51 | M40: 1.138374165 | N40: 0.94 | O40: 0.9473333333 | P40: 1.14 | Q40: 1.126355932 | R40: 1.135 | S40: 1.24625 | T40: 1.16 | U40: 1.163134328 | V40: 1.03 | W40: 0.7041818182 | X40: 1.15 | Y40: 1.231282051 | Z40: 1.18 | AA40: 1.198685446 | AB40: 1.14 | AC40: 1.172 | AD40: 1.105 | AE40: 1.054134615 | AF40: 1.07 | AG40: 1.050377358 | AH40: 0.91 | AI40: 1.018510638
A41: NIM | F41: 3.5975 | G41: 3.91 | H41: 4.2825 | I41: 3.908333333 | J41: 3.57 | K41: 3.9 | L41: 4.27 | M41: 3.939888641 | N41: 4.13 | O41: 3.966 | P41: 3.94 | Q41: 3.950762712 | R41: 4.275 | S41: 4.2175 | T41: 3.82 | U41: 3.804179104 | V41: 3.75 | W41: 4.288545455 | X41: 3.72 | Y41: 3.742820513 | Z41: 3.84 | AA41: 3.899624413 | AB41: 3.935 | AC41: 4.085642857 | AD41: 3.975 | AE41: 3.944038462 | AF41: 3.97 | AG41: 4.044716981 | AH41: 3.89 | AI41: 3.888723404
A42: Provisions / Avg Assets | F42: 0 | G42: 0.085 | H42: 0.175 | I42: 0.105 | J42: 0 | K42: 0.07 | L42: 0.18 | M42: 0.1627839644 | N42: 0.11 | O42: 0.1106666667 | P42: 0.07 | Q42: 0.1490254237 | R42: 0.115 | S42: 0.04775 | T42: 0.03 | U42: 0.09223880597 | V42: 0.09 | W42: 0.4370909091 | X42: 0.08 | Y42: 0.1341025641 | Z42: 0.03 | AA42: 0.1217370892 | AB42: 0.1 | AC42: 0.2397142857 | AD42: 0.065 | AE42: 0.09894230769 | AF42: 0.14 | AG42: 0.3186792453 | AH42: 0.06 | AI42: 0.1574468085
A43: Negative Earners (last 4 qtrs) [%, #] | G43: 2.083333333 | I43: 1 | K43: 1.531728665 | M43: 7 | N43: 0 | O43: 0 | P43: 1.666666667 | Q43: 4 | R43: 5 | S43: 2 | T43: 0 | U43: 0 | V43: 1.818181818 | W43: 1 | X43: 0 | Y43: 0 | Z43: 0.4608294931 | AA43: 1 | AB43: 2.112676056 | AC43: 3 | AD43: 1.886792453 | AE43: 2 | AF43: 5.660377358 | AG43: 3 | AH43: 2.127659574 | AI43: 1
A44: Liquidity
A45: Noncore Funding / Liab | F45: 7.522143572 | G45: 13.82293186 | H45: 18.36476482 | I45: 14.22854553 | J45: 10.048672 | K45: 16.83476759 | L45: 24.83892015 | M45: 18.68707352 | N45: 15.82025337 | O45: 15.8385204 | P45: 16.29141271 | Q45: 18.45936034 | R45: 13.82293186 | S45: 16.47174998 | T45: 17.13736095 | U45: 17.1157424 | V45: 21.38740894 | W45: 24.20555074 | X45: 17.81963057 | Y45: 21.69418484 | Z45: 17.35006348 | AA45: 19.01920689 | AB45: 19.57508974 | AC45: 22.00768819 | AD45: 13.20166253 | AE45: 14.96760549 | AF45: 17.19065954 | AG45: 23.06266197 | AH45: 10.37436933 | AI45: 15.63254644
A46: Brokered Dep / Liab | F46: 0 | G46: 0 | H46: 1.873933902 | I46: 1.64667815 | J46: 0 | K46: 0 | L46: 2.147070769 | M46: 2.173651537 | N46: 0 | O46: 1.209773133 | P46: 0 | Q46: 2.26438684 | R46: 0 | S46: 1.50813833 | T46: 0 | U46: 1.45799157 | V46: 0 | W46: 3.755526182 | X46: 0.002381065765 | Y46: 3.464518841 | Z46: 0 | AA46: 1.931310693 | AB46: 0.06217517825 | AC46: 3.430380763 | AD46: 0 | AE46: 0.8830057669 | AF46: 0 | AG46: 4.428965407 | AH46: 0 | AI46: 1.713369623
A47: Liquid Assets / Assets | F47: 12.84402811 | G47: 21.42086329 | H47: 30.34106098 | I47: 23.22941962 | J47: 12.17039307 | K47: 19.41044183 | L47: 29.31934995 | M47: 22.04140634 | N47: 26.15796995 | O47: 32.31764842 | P47: 19.89733089 | Q47: 21.58343707 | R47: 21.49378652 | S47: 23.83234353 | T47: 17.05953498 | U47: 22.30493363 | V47: 15.6337509 | W47: 22.97342359 | X47: 17.673744 | Y47: 19.15386801 | Z47: 19.75141396 | AA47: 22.65245821 | AB47: 15.19705227 | AC47: 17.36416416 | AD47: 20.98586618 | AE47: 23.3484911 | AF47: 18.75536325 | AG47: 22.91830102 | AH47: 22.14042917 | AI47: 24.69925749
A48: Miscellaneous
A49: Net Loan Growth (last 4 qtrs) | F49: 0.855 | G49: 3.285 | H49: 6.84 | I49: 3.442083333 | J49: -0.92 | K49: 3.38 | L49: 8 | M49: 4.224276169 | N49: 2.73 | O49: 2.396 | P49: 3.77 | Q49: 4.520805085 | R49: 4.875 | S49: 5.892 | T49: 1.89 | U49: 4.314477612 | V49: 2.59 | W49: 3.933272727 | X49: 1.02 | Y49: 4.720512821 | Z49: 1.64 | AA49: 2.311361502 | AB49: 4.785 | AC49: 8.162357143 | AD49: 3.73 | AE49: 4.500769231 | AF49: 6.31 | AG49: 9.646981132 | AH49: 3.12 | AI49: 3.407446809
A50: Banks w/ Positive Loan Growth (last 4 qtrs) | G50: 79.16666667 | K50: 69.58424508 | N50: 66.66666667 | P50: 73.33333333 | R50: 85 | T50: 64.17910448 | V50: 56.36363636 | X50: 58.97435897 | Z50: 61.29032258 | AB50: 78.87323944 | AD50: 73.58490566 | AF50: 79.24528302 | AH50: 74.46808511

Sheet Charts
Y11: Use the individual spinner buttons within each
Y12: chart to flip through different series
Y14: Use the spinner button in the box below to
Y15: change the bank category used to create
Y16: the statistics
Y26: ="Bank Category: " & INDEX(wksp!$A$2:$A$31,wksp!$A$1) -> Bank Category: SMB
Z28: ="(n="&INDEX(wksp!$B$2:$B$31,wksp!$A$1)&")" -> (n=48)

Sheet Definitions
A1: Business Category | B1: Definition
A2: Agricultural | B2: at least 25% of the loan portfolio is composed of agriculture loans
A3: Commerical Real Estate (BOG) | B3: one of the following three conditions applies:
B4: --construction & land development loans are greater than total capital
B5: --total commerical real estate loans are greater than 3 times total capital,
B6: --the growth rate of commercial real estate loans over the past three years was greater than 150%
A7: Residential Mortgage | B7: at least 25% of the loan portfolio is composed of residential mortgage loans
A8: C&I | B8: at least 25% of the loan portfolio is composed of commerical & industrial loans
A9: Other | B9: banks that do not fall into any of the above categories
A11: Capital Ratios | B11: Capital ratios are a key measure of a bank’s financial stability. There are a variety of capital ratios, but they generally measure certain types of bank capital against certain types of assets. As a rule of thumb, the higher the ratio, the more sound the bank.
A12: Equity / Assets | B12: total bank equity / total assets, the simplest and most basic capital measure
A13: Total Risk Based Capital Ratio | B13: total risk-based capital / total risk-weighted assets, which adjusts both capital and assets for their underlying risk and allows lower capital charges for less risky assets.
A14: Tier 1 Leverage Ratio | B14: tier 1 capital / adjusted average assets, another adjusted capital ratio focuses on a bank's "core" capital (it typically consists of common & preferred equity, surplus, and undivided profits).
A15: Tangible Common Equity Capital | B15: tangible common equity capital is total equity capital less any preferred stock, goodwill, or other intangible assets
A17: Asset Quality | B17: Asset quality refers to the amount of risk or probable loss in a bank's assets and the ability of the bank's capital stock and other reserve accounts to absorb any losses. Asset quality measures usually focus on a bank's loan portfolio since (i) loans typically constitute a majority of a bank's assets, and (ii) most bank failures occur because of loan portfolio problems.
A18: ALLL / Nonaccrual Loans | B18: allowances / nonaccrual loans, allowances are the cumulative capital the bank has set aside in the past to cover losses on loans and other bad debts and nonaccrual loans (a subset of noncurrent loans) are loans on which interest is overdue & no longer accruing and collection of full principal is unlikely.
A19: [NCL + OREO] / [Total Loans + OREO] | B19: [noncurrent loans + other real estate owned] / [total loans + OREO], a more comprehensive measure of problem assets that includes noncurrent loans (which are loans past due 90 days or more plus loans that are no longer accuring interest) and other real estate owned by the bank, divided by the sum of total loans and OREO.
A20: [NCL+Delinquent Loans] / Capital + ALLL | B20: [noncurrent loans + delinquent loans] / [capital + allowances], a broader measure of asset quality which combines noncurrent loans with delinquent loans (these are loans which are still accruing interest but are past due 30-89 days). The denominator consists of total bank capital (equity) plus allowances, which represents the maximum loss the bank could suffer while still remaining solvent.
A21: Ag [NCL+DQ] / [Capital + ALLL] | B21: Ag [NCL + DQ] / [capital + allowances], a subset of the prior measure, this ratio focuses on problematic loans that are secured by farmland, used to finance agriculture production, and other loans to farmers.
A22: CLD [NCL+DQ] / [Capital + ALLL] | B22: CLD [NCL + DQ] / [capital + allowances], this ratio focuses on problematic construction & land development loans.
A23: CRE [NCL+DQ] / [Capital + ALLL] | B23: CRE [NCL + DQ] / [capital + allowances], this ratio focuses on problematic commercial real estate loans.
A24: Res RE [NCL+DQ] / [Capital + ALLL] | B24: Res RE [NCL + DQ] / [capital + allowances], this ratio focuses on problematic residential real estate loans.
A25: C&I [NCL+DQ] / [Capital + ALLL] | B25: C&I [NCL + DQ] / [capital + allowances], this ratio focuses on commercial & industrial loans.
A26: Ind [NCL+DQ] / [Capital + ALLL] | B26: Ind [NCL + DQ] / [capital + allowances], this ratio focuses on problematic consumer loans to individuals.
A28: Earnings | B28: Earnings are the difference between revenues and expenses, taking into account various gains, losses, and taxes. An especially important item is the ""provision for loan and lease losses"", which is an amount set aside by a bank to maintain its allowances at a level sufficient to absorb estimated loan losses.
A29: ROAA | B29: "return on average assets" is a standard measure of bank earnings. It is the ratio of net income to annual average assets
A30: NIM | B30: "net interest margin", the difference between interest income and interest expense. It represents the spread or gross margin on a bank's loans and investement (what it earns from its assets minus what it pays to buy those assets)
A31: Provisions / Avg Assets | B31: provison expense / average assets, as mentioned above, provisions are the amounts set aside by a bank to absorb future loan losses
A32: Negative Earners (last 4 qtrs) | B32: A count of the number of banks with negative earnings over the past 4 quarters.
A34: Liquidity | B34: Bank liquidity refers to the ability of bank to raise cash quickly and easily at a reasonable cost. Banks must have adequate liquidity in order to serve their customers and operate efficiently.
A35: Noncore Funding / Liab | B35: noncore funding / total liabilities, noncore funding sources include federal funds purchased, Federal Home Loan Bank (FHLB) advances, subordinated notes and debentures, CDs of more than $100,000 (jumbo CDs) and brokered deposits. Banks which make extensive use of the sort of financing may find themselves subjetct to potential liquidity stress if the funding sources are no longer available.
A36: Brokered Dep / Liab | B36: brokered deposits / total liabilities, brokered deposits are acquired from brokers and dealers for the account of others. Banks which make extensive use of this sort of financing may find themselves subject to potential liquidity stress if the brokers suddenly withdraw their deposits.
A37: Liquid Assets / Assets | B37: liquid assets / total assets, liquid assets consist of cash and other assets that can be converted easily into cash, including fed funds (which are reserve funds of commercial banks held at Federal Reserve banks) and securities (which are any negotiated instrument that has underlying financial value).
A39: Miscellaneous
A40: Net Loan Growth (last 4 qtrs) | B40: The percentage change in total loans and leases, net of allowances, over the past four quarters.

Sheet wksp
A1: 1 | C1: 2 | E1: 1 | G1: 2 | I1: 1 | L1: 1 | M1: Equity / Assets | O1: OLD | P1: NEW | Q1: NAME | R1: NAME2 | V1: ="Capital: " &V2 -> Capital: Total Risk Based Capital Ratio | W1: ="Capital: " &W2 -> Capital: Total Risk Based Capital Ratio | X1: ="Capital: " &X2 -> Capital: Total Risk Based Capital Ratio | Y1: ="Asset Quality: " &Y2 -> Asset Quality: ALLL / Nonaccrual Loans | Z1: ="Asset Quality: " &Z2 -> Asset Quality: ALLL / Nonaccrual Loans | AA1: ="Asset Quality: " &AA2 -> Asset Quality: ALLL / Nonaccrual Loans | AB1: ="Earnings: " &AB2 -> Earnings: NIM | AC1: ="Earnings: " &AC2 -> Earnings: NIM | AD1: ="Earnings: " &AD2 -> Earnings: NIM | AE1: ="Liquidity & Misc: " &AE2 -> Liquidity & Misc: Noncore Funding / Liab | AF1: ="Liquidity & Misc: " &AF2 -> Liquidity & Misc: Noncore Funding / Liab | AG1: ="Liquidity & Misc: " &AG2 -> Liquidity & Misc: Noncore Funding / Liab
A2: SMB | B2: 48 | C2: Equity / Assets | E2: ALLL / Nonaccrual Loans | G2: ROAA | I2: Noncore Funding / Liab | L2: 2 | M2: Total Risk Based Capital Ratio | O2: 880 | P2: 13740 | Q2: Billings, MT | R2: Billings | V2: =INDEX($C2:$C4,$C$1) -> Total Risk Based Capital Ratio | W2: =INDEX($C2:$C4,$C$1) -> Total Risk Based Capital Ratio | X2: =INDEX($C2:$C4,$C$1) -> Total Risk Based Capital Ratio | Y2: =INDEX($E2:$E11,$E$1) -> ALLL / Nonaccrual Loans | Z2: =INDEX($E2:$E11,$E$1) -> ALLL / Nonaccrual Loans | AA2: =INDEX($E2:$E11,$E$1) -> ALLL / Nonaccrual Loans | AB2: =INDEX($G2:$G5,$G$1) -> NIM | AC2: =INDEX($G2:$G5,$G$1) -> NIM | AD2: =INDEX($G2:$G5,$G$1) -> NIM | AE2: =INDEX($I2:$I6,$I$1) -> Noncore Funding / Liab | AF2: =INDEX($I2:$I6,$I$1) -> Noncore Funding / Liab | AG2: =INDEX($I2:$I6,$I$1) -> Noncore Funding / Liab
A3: District | B3: 457 | C3: Total Risk Based Capital Ratio | E3: [NCL + OREO] / [Total Loans + OREO] | G3: NIM | I3: Brokered Dep / Liab | L3: 3 | M3: Tier 1 Leverage Ratio | O3: 5140 | P3: 33540 | Q3: Missoula, MT | R3: Missoula | V3: =INDEX($A$2:$A$31,$A$1)&" Med" -> SMB Med | W3: =INDEX($A$2:$A$31,$A$1)&" 25th" -> SMB 25th | X3: =INDEX($A$2:$A$31,$A$1)&" 75th" -> SMB 75th | Y3: =INDEX($A$2:$A$31,$A$1)&" Med" -> SMB Med | Z3: =INDEX($A$2:$A$31,$A$1)&" 25th" -> SMB 25th | AA3: =INDEX($A$2:$A$31,$A$1)&" 75th" -> SMB 75th | AB3: =INDEX($A$2:$A$31,$A$1)&" Med" -> SMB Med | AC3: =INDEX($A$2:$A$31,$A$1)&" 25th" -> SMB 25th | AD3: =INDEX($A$2:$A$31,$A$1)&" 75th" -> SMB 75th | AE3: =INDEX($A$2:$A$31,$A$1)&" Med" -> SMB Med | AF3: =INDEX($A$2:$A$31,$A$1)&" 25th" -> SMB 25th | AG3: =INDEX($A$2:$A$31,$A$1)&" 75th" -> SMB 75th
A4: Nation | B4: 4145 | C4: Tier 1 Leverage Ratio | E4: [Noncurrent + Delinquent Loans] / [Capital + ALLL] | G4: Provisions / Avg Assets | I4: Liquid Assets / Assets | L4: 4 | M4: ALLL / Nonaccrual Loans | O4: 3040 | P4: 24500 | Q4: Great Falls, MT | R4: Great Falls | V4: =HLOOKUP(V3,tsdata!$A:$DT,2,FALSE) -> 6 | W4: =HLOOKUP(W3,tsdata!$A:$DT,2,FALSE) -> 5 | X4: =HLOOKUP(X3,tsdata!$A:$DT,2,FALSE) -> 7 | Y4: =HLOOKUP(Y3,tsdata!$A:$DT,2,FALSE) -> 6 | Z4: =HLOOKUP(Z3,tsdata!$A:$DT,2,FALSE) -> 5 | AA4: =HLOOKUP(AA3,tsdata!$A:$DT,2,FALSE) -> 7 | AB4: =HLOOKUP(AB3,tsdata!$A:$DT,2,FALSE) -> 6 | AC4: =HLOOKUP(AC3,tsdata!$A:$DT,2,FALSE) -> 5 | AD4: =HLOOKUP(AD3,tsdata!$A:$DT,2,FALSE) -> 7 | AE4: =HLOOKUP(AE3,tsdata!$A:$DT,2,FALSE) -> 6 | AF4: =HLOOKUP(AF3,tsdata!$A:$DT,2,FALSE) -> 5 | AG4: =HLOOKUP(AG3,tsdata!$A:$DT,2,FALSE) -> 7
A5: MI | B5: 15 | E5: Ag [NCL+DQ] / [Capital + ALLL] | G5: Negative Earners (last 4 qtrs) | I5: Net Loan Growth (last 4 qtrs) | L5: 5 | M5: [NCL + OREO] / [Total Loans + OREO] | O5: 2240 | P5: 20260 | Q5: Duluth, MN-WI | R5: Duluth | U5: 1990-03-31 | V5: =VLOOKUP(V$2&"--"&$U5,tsdata!$A:$DT,V$4,FALSE) -> 0 | W5: =VLOOKUP(W$2&"--"&$U5,tsdata!$A:$DT,W$4,FALSE) -> 0 | X5: =VLOOKUP(X$2&"--"&$U5,tsdata!$A:$DT,X$4,FALSE) -> 0 | Y5: =VLOOKUP(Y$2&"--"&$U5,tsdata!$A:$DT,Y$4,FALSE) -> 105.6697481 | Z5: =VLOOKUP(Z$2&"--"&$U5,tsdata!$A:$DT,Z$4,FALSE) -> 62.27548798 | AA5: =VLOOKUP(AA$2&"--"&$U5,tsdata!$A:$DT,AA$4,FALSE) -> 341.7702327 | AB5: =VLOOKUP(AB$2&"--"&$U5,tsdata!$A:$DT,AB$4,FALSE) -> 4.74 | AC5: =VLOOKUP(AC$2&"--"&$U5,tsdata!$A:$DT,AC$4,FALSE) -> 4.02 | AD5: =VLOOKUP(AD$2&"--"&$U5,tsdata!$A:$DT,AD$4,FALSE) -> 5.36 | AE5: =VLOOKUP(AE$2&"--"&$U5,tsdata!$A:$DT,AE$4,FALSE) -> 7.337874509 | AF5: =VLOOKUP(AF$2&"--"&$U5,tsdata!$A:$DT,AF$4,FALSE) -> 4.801385283 | AG5: =VLOOKUP(AG$2&"--"&$U5,tsdata!$A:$DT,AG$4,FALSE) -> 12.72545483
A6: MN | B6: 240 | E6: CLD [NCL+DQ] / [Capital + ALLL] | I6: Banks w/ Loan Growth (last 4 qtrs) | L6: 6 | M6: [Noncurrent + Delinquent Loans] / [Capital + ALLL] | O6: 99999 | P6: 31860 | Q6: Mankato-North Mankato, MN | R6: Mankato | U6: 1990-06-30 | V6: =VLOOKUP(V$2&"--"&$U6,tsdata!$A:$DT,V$4,FALSE) -> 0 | W6: =VLOOKUP(W$2&"--"&$U6,tsdata!$A:$DT,W$4,FALSE) -> 0 | X6: =VLOOKUP(X$2&"--"&$U6,tsdata!$A:$DT,X$4,FALSE) -> 0 | Y6: =VLOOKUP(Y$2&"--"&$U6,tsdata!$A:$DT,Y$4,FALSE) -> 129.3940571 | Z6: =VLOOKUP(Z$2&"--"&$U6,tsdata!$A:$DT,Z$4,FALSE) -> 64.46636699 | AA6: =VLOOKUP(AA$2&"--"&$U6,tsdata!$A:$DT,AA$4,FALSE) -> 309.0702948 | AB6: =VLOOKUP(AB$2&"--"&$U6,tsdata!$A:$DT,AB$4,FALSE) -> 4.72 | AC6: =VLOOKUP(AC$2&"--"&$U6,tsdata!$A:$DT,AC$4,FALSE) -> 4.0975 | AD6: =VLOOKUP(AD$2&"--"&$U6,tsdata!$A:$DT,AD$4,FALSE) -> 5.4125 | AE6: =VLOOKUP(AE$2&"--"&$U6,tsdata!$A:$DT,AE$4,FALSE) -> 7.659126978 | AF6: =VLOOKUP(AF$2&"--"&$U6,tsdata!$A:$DT,AF$4,FALSE) -> 5.398414404 | AG6: =VLOOKUP(AG$2&"--"&$U6,tsdata!$A:$DT,AG$4,FALSE) -> 12.48449481
A7: MT | B7: 40 | E7: CRE [NCL+DQ] / [Capital + ALLL] | L7: 7 | M7: Ag [NCL+DQ] / [Capital + ALLL] | O7: 5120 | P7: 33460 | Q7: Minneapolis-St. Paul-Bloomingto | R7: Mpls-StPaul | U7: 1990-09-30 | V7: =VLOOKUP(V$2&"--"&$U7,tsdata!$A:$DT,V$4,FALSE) -> 0 | W7: =VLOOKUP(W$2&"--"&$U7,tsdata!$A:$DT,W$4,FALSE) -> 0 | X7: =VLOOKUP(X$2&"--"&$U7,tsdata!$A:$DT,X$4,FALSE) -> 0 | Y7: =VLOOKUP(Y$2&"--"&$U7,tsdata!$A:$DT,Y$4,FALSE) -> 133.2038835 | Z7: =VLOOKUP(Z$2&"--"&$U7,tsdata!$A:$DT,Z$4,FALSE) -> 81.28033367 | AA7: =VLOOKUP(AA$2&"--"&$U7,tsdata!$A:$DT,AA$4,FALSE) -> 236.1231582 | AB7: =VLOOKUP(AB$2&"--"&$U7,tsdata!$A:$DT,AB$4,FALSE) -> 4.71 | AC7: =VLOOKUP(AC$2&"--"&$U7,tsdata!$A:$DT,AC$4,FALSE) -> 4.03 | AD7: =VLOOKUP(AD$2&"--"&$U7,tsdata!$A:$DT,AD$4,FALSE) -> 5.38 | AE7: =VLOOKUP(AE$2&"--"&$U7,tsdata!$A:$DT,AE$4,FALSE) -> 7.751788131 | AF7: =VLOOKUP(AF$2&"--"&$U7,tsdata!$A:$DT,AF$4,FALSE) -> 4.810011377 | AG7: =VLOOKUP(AG$2&"--"&$U7,tsdata!$A:$DT,AG$4,FALSE) -> 12.25369458
A8: ND | B8: 67 | E8: Res RE [NCL+DQ] / [Capital + ALLL] | L8: 8 | M8: CLD [NCL+DQ] / [Capital + ALLL] | O8: 6820 | P8: 40340 | Q8: Rochester, MN | R8: Rochester | U8: 1990-12-31 | V8: =VLOOKUP(V$2&"--"&$U8,tsdata!$A:$DT,V$4,FALSE) -> 0 | W8: =VLOOKUP(W$2&"--"&$U8,tsdata!$A:$DT,W$4,FALSE) -> 0 | X8: =VLOOKUP(X$2&"--"&$U8,tsdata!$A:$DT,X$4,FALSE) -> 0 | Y8: =VLOOKUP(Y$2&"--"&$U8,tsdata!$A:$DT,Y$4,FALSE) -> 148.2916667 | Z8: =VLOOKUP(Z$2&"--"&$U8,tsdata!$A:$DT,Z$4,FALSE) -> 83.93419925 | AA8: =VLOOKUP(AA$2&"--"&$U8,tsdata!$A:$DT,AA$4,FALSE) -> 378.2133719 | AB8: =VLOOKUP(AB$2&"--"&$U8,tsdata!$A:$DT,AB$4,FALSE) -> 4.62 | AC8: =VLOOKUP(AC$2&"--"&$U8,tsdata!$A:$DT,AC$4,FALSE) -> 4.12 | AD8: =VLOOKUP(AD$2&"--"&$U8,tsdata!$A:$DT,AD$4,FALSE) -> 5.41 | AE8: =VLOOKUP(AE$2&"--"&$U8,tsdata!$A:$DT,AE$4,FALSE) -> 7.281119714 | AF8: =VLOOKUP(AF$2&"--"&$U8,tsdata!$A:$DT,AF$4,FALSE) -> 4.623932002 | AG8: =VLOOKUP(AG$2&"--"&$U8,tsdata!$A:$DT,AG$4,FALSE) -> 11.78074177
A9: SD | B9: 55 | E9: C&I [NCL+DQ] / [Capital + ALLL] | L9: 9 | M9: CRE [NCL+DQ] / [Capital + ALLL] | O9: 6980 | P9: 41060 | Q9: St. Cloud, MN | R9: St Cloud | U9: 1991-03-31 | V9: =VLOOKUP(V$2&"--"&$U9,tsdata!$A:$DT,V$4,FALSE) -> 0 | W9: =VLOOKUP(W$2&"--"&$U9,tsdata!$A:$DT,W$4,FALSE) -> 0 | X9: =VLOOKUP(X$2&"--"&$U9,tsdata!$A:$DT,X$4,FALSE) -> 0 | Y9: =VLOOKUP(Y$2&"--"&$U9,tsdata!$A:$DT,Y$4,FALSE) -> 131.586706 | Z9: =VLOOKUP(Z$2&"--"&$U9,tsdata!$A:$DT,Z$4,FALSE) -> 73.15472779 | AA9: =VLOOKUP(AA$2&"--"&$U9,tsdata!$A:$DT,AA$4,FALSE) -> 262.1334586 | AB9: =VLOOKUP(AB$2&"--"&$U9,tsdata!$A:$DT,AB$4,FALSE) -> 4.58 | AC9: =VLOOKUP(AC$2&"--"&$U9,tsdata!$A:$DT,AC$4,FALSE) -> 3.98 | AD9: =VLOOKUP(AD$2&"--"&$U9,tsdata!$A:$DT,AD$4,FALSE) -> 5.1525 | AE9: =VLOOKUP(AE$2&"--"&$U9,tsdata!$A:$DT,AE$4,FALSE) -> 7.474970428 | AF9: =VLOOKUP(AF$2&"--"&$U9,tsdata!$A:$DT,AF$4,FALSE) -> 4.841809159 | AG9: =VLOOKUP(AG$2&"--"&$U9,tsdata!$A:$DT,AG$4,FALSE) -> 11.79252424
A10: WI | B10: 39 | E10: Ind [NCL+DQ] / [Capital + ALLL] | L10: 10 | M10: Res RE [NCL+DQ] / [Capital + ALLL] | O10: 1010 | P10: 13900 | Q10: Bismarck, ND | R10: Bismarck | U10: 1991-06-30 | V10: =VLOOKUP(V$2&"--"&$U10,tsdata!$A:$DT,V$4,FALSE) -> 0 | W10: =VLOOKUP(W$2&"--"&$U10,tsdata!$A:$DT,W$4,FALSE) -> 0 | X10: =VLOOKUP(X$2&"--"&$U10,tsdata!$A:$DT,X$4,FALSE) -> 0 | Y10: =VLOOKUP(Y$2&"--"&$U10,tsdata!$A:$DT,Y$4,FALSE) -> 142.5377369 | Z10: =VLOOKUP(Z$2&"--"&$U10,tsdata!$A:$DT,Z$4,FALSE) -> 87.921797 | AA10: =VLOOKUP(AA$2&"--"&$U10,tsdata!$A:$DT,AA$4,FALSE) -> 355.1016949 | AB10: =VLOOKUP(AB$2&"--"&$U10,tsdata!$A:$DT,AB$4,FALSE) -> 4.715 | AC10: =VLOOKUP(AC$2&"--"&$U10,tsdata!$A:$DT,AC$4,FALSE) -> 4.1625 | AD10: =VLOOKUP(AD$2&"--"&$U10,tsdata!$A:$DT,AD$4,FALSE) -> 5.23 | AE10: =VLOOKUP(AE$2&"--"&$U10,tsdata!$A:$DT,AE$4,FALSE) -> 7.3998781 | AF10: =VLOOKUP(AF$2&"--"&$U10,tsdata!$A:$DT,AF$4,FALSE) -> 4.579800126 | AG10: =VLOOKUP(AG$2&"--"&$U10,tsdata!$A:$DT,AG$4,FALSE) -> 11.24513497
A11: Ag Banks | B11: 217 | E11: OREO / [Capital + ALLL] | L11: 11 | M11: C&I [NCL+DQ] / [Capital + ALLL] | O11: 2985 | P11: 24220 | Q11: Grand Forks, ND-MN | R11: Grand Forks | U11: 1991-09-30 | V11: =VLOOKUP(V$2&"--"&$U11,tsdata!$A:$DT,V$4,FALSE) -> 0 | W11: =VLOOKUP(W$2&"--"&$U11,tsdata!$A:$DT,W$4,FALSE) -> 0 | X11: =VLOOKUP(X$2&"--"&$U11,tsdata!$A:$DT,X$4,FALSE) -> 0 | Y11: =VLOOKUP(Y$2&"--"&$U11,tsdata!$A:$DT,Y$4,FALSE) -> 200.5464481 | Z11: =VLOOKUP(Z$2&"--"&$U11,tsdata!$A:$DT,Z$4,FALSE) -> 101.0142648 | AA11: =VLOOKUP(AA$2&"--"&$U11,tsdata!$A:$DT,AA$4,FALSE) -> 435.597723 | AB11: =VLOOKUP(AB$2&"--"&$U11,tsdata!$A:$DT,AB$4,FALSE) -> 4.75 | AC11: =VLOOKUP(AC$2&"--"&$U11,tsdata!$A:$DT,AC$4,FALSE) -> 4.25 | AD11: =VLOOKUP(AD$2&"--"&$U11,tsdata!$A:$DT,AD$4,FALSE) -> 5.24 | AE11: =VLOOKUP(AE$2&"--"&$U11,tsdata!$A:$DT,AE$4,FALSE) -> 7.295436349 | AF11: =VLOOKUP(AF$2&"--"&$U11,tsdata!$A:$DT,AF$4,FALSE) -> 4.668240718 | AG11: =VLOOKUP(AG$2&"--"&$U11,tsdata!$A:$DT,AG$4,FALSE) -> 10.7456446
A12: CRE Banks | B12: 142 | L12: 12 | M12: Ind [NCL+DQ] / [Capital + ALLL] | O12: 2520 | P12: 22020 | Q12: Fargo, ND-MN | R12: Fargo | U12: 1991-12-31 | V12: =VLOOKUP(V$2&"--"&$U12,tsdata!$A:$DT,V$4,FALSE) -> 0 | W12: =VLOOKUP(W$2&"--"&$U12,tsdata!$A:$DT,W$4,FALSE) -> 0 | X12: =VLOOKUP(X$2&"--"&$U12,tsdata!$A:$DT,X$4,FALSE) -> 0 | Y12: =VLOOKUP(Y$2&"--"&$U12,tsdata!$A:$DT,Y$4,FALSE) -> 286.4583333 | Z12: =VLOOKUP(Z$2&"--"&$U12,tsdata!$A:$DT,Z$4,FALSE) -> 112.8414849 | AA12: =VLOOKUP(AA$2&"--"&$U12,tsdata!$A:$DT,AA$4,FALSE) -> 580.3571429 | AB12: =VLOOKUP(AB$2&"--"&$U12,tsdata!$A:$DT,AB$4,FALSE) -> 4.76 | AC12: =VLOOKUP(AC$2&"--"&$U12,tsdata!$A:$DT,AC$4,FALSE) -> 4.23 | AD12: =VLOOKUP(AD$2&"--"&$U12,tsdata!$A:$DT,AD$4,FALSE) -> 5.2 | AE12: =VLOOKUP(AE$2&"--"&$U12,tsdata!$A:$DT,AE$4,FALSE) -> 7.326761248 | AF12: =VLOOKUP(AF$2&"--"&$U12,tsdata!$A:$DT,AF$4,FALSE) -> 4.344039752 | AG12: =VLOOKUP(AG$2&"--"&$U12,tsdata!$A:$DT,AG$4,FALSE) -> 10.16388245
A13: RES RE Banks | B13: 106 | L13: 13 | M13: OREO / [Capital + ALLL] | O13: 6660 | P13: 39660 | Q13: Rapid City, SD | R13: Rapid City | U13: 1992-03-31 | V13: =VLOOKUP(V$2&"--"&$U13,tsdata!$A:$DT,V$4,FALSE) -> 0 | W13: =VLOOKUP(W$2&"--"&$U13,tsdata!$A:$DT,W$4,FALSE) -> 0 | X13: =VLOOKUP(X$2&"--"&$U13,tsdata!$A:$DT,X$4,FALSE) -> 0 | Y13: =VLOOKUP(Y$2&"--"&$U13,tsdata!$A:$DT,Y$4,FALSE) -> 184.5712277 | Z13: =VLOOKUP(Z$2&"--"&$U13,tsdata!$A:$DT,Z$4,FALSE) -> 105.7359307 | AA13: =VLOOKUP(AA$2&"--"&$U13,tsdata!$A:$DT,AA$4,FALSE) -> 441.4024555 | AB13: =VLOOKUP(AB$2&"--"&$U13,tsdata!$A:$DT,AB$4,FALSE) -> 4.735 | AC13: =VLOOKUP(AC$2&"--"&$U13,tsdata!$A:$DT,AC$4,FALSE) -> 4.14 | AD13: =VLOOKUP(AD$2&"--"&$U13,tsdata!$A:$DT,AD$4,FALSE) -> 5.145 | AE13: =VLOOKUP(AE$2&"--"&$U13,tsdata!$A:$DT,AE$4,FALSE) -> 6.862730383 | AF13: =VLOOKUP(AF$2&"--"&$U13,tsdata!$A:$DT,AF$4,FALSE) -> 4.330816305 | AG13: =VLOOKUP(AG$2&"--"&$U13,tsdata!$A:$DT,AG$4,FALSE) -> 9.942176758
A14: C&I Banks | B14: 53 | L14: 14 | M14: ROAA | O14: 7720 | P14: 43580 | Q14: Sioux City, IA-NE-SD | R14: Sioux City | U14: 1992-06-30 | V14: =VLOOKUP(V$2&"--"&$U14,tsdata!$A:$DT,V$4,FALSE) -> 0 | W14: =VLOOKUP(W$2&"--"&$U14,tsdata!$A:$DT,W$4,FALSE) -> 0 | X14: =VLOOKUP(X$2&"--"&$U14,tsdata!$A:$DT,X$4,FALSE) -> 0 | Y14: =VLOOKUP(Y$2&"--"&$U14,tsdata!$A:$DT,Y$4,FALSE) -> 199.4556091 | Z14: =VLOOKUP(Z$2&"--"&$U14,tsdata!$A:$DT,Z$4,FALSE) -> 110.8653626 | AA14: =VLOOKUP(AA$2&"--"&$U14,tsdata!$A:$DT,AA$4,FALSE) -> 435.0420115 | AB14: =VLOOKUP(AB$2&"--"&$U14,tsdata!$A:$DT,AB$4,FALSE) -> 4.85 | AC14: =VLOOKUP(AC$2&"--"&$U14,tsdata!$A:$DT,AC$4,FALSE) -> 4.305 | AD14: =VLOOKUP(AD$2&"--"&$U14,tsdata!$A:$DT,AD$4,FALSE) -> 5.28 | AE14: =VLOOKUP(AE$2&"--"&$U14,tsdata!$A:$DT,AE$4,FALSE) -> 6.377661966 | AF14: =VLOOKUP(AF$2&"--"&$U14,tsdata!$A:$DT,AF$4,FALSE) -> 4.287863267 | AG14: =VLOOKUP(AG$2&"--"&$U14,tsdata!$A:$DT,AG$4,FALSE) -> 10.94035478
A15: Other Banks | B15: 47 | L15: 15 | M15: NIM | O15: 7760 | P15: 43620 | Q15: Sioux Falls, SD | R15: Sioux Falls | U15: 1992-09-30 | V15: =VLOOKUP(V$2&"--"&$U15,tsdata!$A:$DT,V$4,FALSE) -> 0 | W15: =VLOOKUP(W$2&"--"&$U15,tsdata!$A:$DT,W$4,FALSE) -> 0 | X15: =VLOOKUP(X$2&"--"&$U15,tsdata!$A:$DT,X$4,FALSE) -> 0 | Y15: =VLOOKUP(Y$2&"--"&$U15,tsdata!$A:$DT,Y$4,FALSE) -> 233.0660489 | Z15: =VLOOKUP(Z$2&"--"&$U15,tsdata!$A:$DT,Z$4,FALSE) -> 134.1253497 | AA15: =VLOOKUP(AA$2&"--"&$U15,tsdata!$A:$DT,AA$4,FALSE) -> 577.1049896 | AB15: =VLOOKUP(AB$2&"--"&$U15,tsdata!$A:$DT,AB$4,FALSE) -> 4.915 | AC15: =VLOOKUP(AC$2&"--"&$U15,tsdata!$A:$DT,AC$4,FALSE) -> 4.325 | AD15: =VLOOKUP(AD$2&"--"&$U15,tsdata!$A:$DT,AD$4,FALSE) -> 5.44 | AE15: =VLOOKUP(AE$2&"--"&$U15,tsdata!$A:$DT,AE$4,FALSE) -> 7.114267095 | AF15: =VLOOKUP(AF$2&"--"&$U15,tsdata!$A:$DT,AF$4,FALSE) -> 4.309603374 | AG15: =VLOOKUP(AG$2&"--"&$U15,tsdata!$A:$DT,AG$4,FALSE) -> 10.75188304
A16: Billings | B16: 5 | L16: 16 | M16: Provisions / Avg Assets | O16: 3870 | P16: 29100 | Q16: La Crosse, WI-MN | R16: La Crosse | U16: 1992-12-31 | V16: =VLOOKUP(V$2&"--"&$U16,tsdata!$A:$DT,V$4,FALSE) -> 0 | W16: =VLOOKUP(W$2&"--"&$U16,tsdata!$A:$DT,W$4,FALSE) -> 0 | X16: =VLOOKUP(X$2&"--"&$U16,tsdata!$A:$DT,X$4,FALSE) -> 0 | Y16: =VLOOKUP(Y$2&"--"&$U16,tsdata!$A:$DT,Y$4,FALSE) -> 267.3758865 | Z16: =VLOOKUP(Z$2&"--"&$U16,tsdata!$A:$DT,Z$4,FALSE) -> 118.3206107 | AA16: =VLOOKUP(AA$2&"--"&$U16,tsdata!$A:$DT,AA$4,FALSE) -> 726.7716535 | AB16: =VLOOKUP(AB$2&"--"&$U16,tsdata!$A:$DT,AB$4,FALSE) -> 4.98 | AC16: =VLOOKUP(AC$2&"--"&$U16,tsdata!$A:$DT,AC$4,FALSE) -> 4.36 | AD16: =VLOOKUP(AD$2&"--"&$U16,tsdata!$A:$DT,AD$4,FALSE) -> 5.48 | AE16: =VLOOKUP(AE$2&"--"&$U16,tsdata!$A:$DT,AE$4,FALSE) -> 6.774675002 | AF16: =VLOOKUP(AF$2&"--"&$U16,tsdata!$A:$DT,AF$4,FALSE) -> 4.359781315 | AG16: =VLOOKUP(AG$2&"--"&$U16,tsdata!$A:$DT,AG$4,FALSE) -> 11.01414077
A17: Missoula | B17: 3 | L17: 17 | M17: Negative Earners (last 4 qtrs) | O17: 2290 | P17: 20740 | Q17: Eau Claire, WI | R17: Eau Claire | U17: 1993-03-31 | V17: =VLOOKUP(V$2&"--"&$U17,tsdata!$A:$DT,V$4,FALSE) -> 0 | W17: =VLOOKUP(W$2&"--"&$U17,tsdata!$A:$DT,W$4,FALSE) -> 0 | X17: =VLOOKUP(X$2&"--"&$U17,tsdata!$A:$DT,X$4,FALSE) -> 0 | Y17: =VLOOKUP(Y$2&"--"&$U17,tsdata!$A:$DT,Y$4,FALSE) -> 251.4705882 | Z17: =VLOOKUP(Z$2&"--"&$U17,tsdata!$A:$DT,Z$4,FALSE) -> 115.9259259 | AA17: =VLOOKUP(AA$2&"--"&$U17,tsdata!$A:$DT,AA$4,FALSE) -> 619.4594595 | AB17: =VLOOKUP(AB$2&"--"&$U17,tsdata!$A:$DT,AB$4,FALSE) -> 4.815 | AC17: =VLOOKUP(AC$2&"--"&$U17,tsdata!$A:$DT,AC$4,FALSE) -> 4.25 | AD17: =VLOOKUP(AD$2&"--"&$U17,tsdata!$A:$DT,AD$4,FALSE) -> 5.2725 | AE17: =VLOOKUP(AE$2&"--"&$U17,tsdata!$A:$DT,AE$4,FALSE) -> 6.615259961 | AF17: =VLOOKUP(AF$2&"--"&$U17,tsdata!$A:$DT,AF$4,FALSE) -> 4.49864429 | AG17: =VLOOKUP(AG$2&"--"&$U17,tsdata!$A:$DT,AG$4,FALSE) -> 11.13041804
A18: Great Falls | B18: 2 | L18: 18 | M18: Noncore Funding / Liab | U18: 1993-06-30 | V18: =VLOOKUP(V$2&"--"&$U18,tsdata!$A:$DT,V$4,FALSE) -> 0 | W18: =VLOOKUP(W$2&"--"&$U18,tsdata!$A:$DT,W$4,FALSE) -> 0 | X18: =VLOOKUP(X$2&"--"&$U18,tsdata!$A:$DT,X$4,FALSE) -> 0 | Y18: =VLOOKUP(Y$2&"--"&$U18,tsdata!$A:$DT,Y$4,FALSE) -> 296.7008121 | Z18: =VLOOKUP(Z$2&"--"&$U18,tsdata!$A:$DT,Z$4,FALSE) -> 121.1684594 | AA18: =VLOOKUP(AA$2&"--"&$U18,tsdata!$A:$DT,AA$4,FALSE) -> 612.6262626 | AB18: =VLOOKUP(AB$2&"--"&$U18,tsdata!$A:$DT,AB$4,FALSE) -> 4.785 | AC18: =VLOOKUP(AC$2&"--"&$U18,tsdata!$A:$DT,AC$4,FALSE) -> 4.31 | AD18: =VLOOKUP(AD$2&"--"&$U18,tsdata!$A:$DT,AD$4,FALSE) -> 5.31 | AE18: =VLOOKUP(AE$2&"--"&$U18,tsdata!$A:$DT,AE$4,FALSE) -> 7.154741248 | AF18: =VLOOKUP(AF$2&"--"&$U18,tsdata!$A:$DT,AF$4,FALSE) -> 4.589849703 | AG18: =VLOOKUP(AG$2&"--"&$U18,tsdata!$A:$DT,AG$4,FALSE) -> 11.32163519
A19: Duluth | B19: 11 | L19: 19 | M19: Brokered Dep / Liab | U19: 1993-09-30 | V19: =VLOOKUP(V$2&"--"&$U19,tsdata!$A:$DT,V$4,FALSE) -> 0 | W19: =VLOOKUP(W$2&"--"&$U19,tsdata!$A:$DT,W$4,FALSE) -> 0 | X19: =VLOOKUP(X$2&"--"&$U19,tsdata!$A:$DT,X$4,FALSE) -> 0 | Y19: =VLOOKUP(Y$2&"--"&$U19,tsdata!$A:$DT,Y$4,FALSE) -> 296.5204545 | Z19: =VLOOKUP(Z$2&"--"&$U19,tsdata!$A:$DT,Z$4,FALSE) -> 131.5340909 | AA19: =VLOOKUP(AA$2&"--"&$U19,tsdata!$A:$DT,AA$4,FALSE) -> 572.6442953 | AB19: =VLOOKUP(AB$2&"--"&$U19,tsdata!$A:$DT,AB$4,FALSE) -> 4.855 | AC19: =VLOOKUP(AC$2&"--"&$U19,tsdata!$A:$DT,AC$4,FALSE) -> 4.38 | AD19: =VLOOKUP(AD$2&"--"&$U19,tsdata!$A:$DT,AD$4,FALSE) -> 5.3925 | AE19: =VLOOKUP(AE$2&"--"&$U19,tsdata!$A:$DT,AE$4,FALSE) -> 7.803635396 | AF19: =VLOOKUP(AF$2&"--"&$U19,tsdata!$A:$DT,AF$4,FALSE) -> 4.47880326 | AG19: =VLOOKUP(AG$2&"--"&$U19,tsdata!$A:$DT,AG$4,FALSE) -> 12.35509725
A20: Mankato | B20: 6 | L20: 20 | M20: Liquid Assets / Assets | U20: 1993-12-31 | V20: =VLOOKUP(V$2&"--"&$U20,tsdata!$A:$DT,V$4,FALSE) -> 0 | W20: =VLOOKUP(W$2&"--"&$U20,tsdata!$A:$DT,W$4,FALSE) -> 0 | X20: =VLOOKUP(X$2&"--"&$U20,tsdata!$A:$DT,X$4,FALSE) -> 0 | Y20: =VLOOKUP(Y$2&"--"&$U20,tsdata!$A:$DT,Y$4,FALSE) -> 353.2027295 | Z20: =VLOOKUP(Z$2&"--"&$U20,tsdata!$A:$DT,Z$4,FALSE) -> 139.1625616 | AA20: =VLOOKUP(AA$2&"--"&$U20,tsdata!$A:$DT,AA$4,FALSE) -> 970.6140351 | AB20: =VLOOKUP(AB$2&"--"&$U20,tsdata!$A:$DT,AB$4,FALSE) -> 4.93 | AC20: =VLOOKUP(AC$2&"--"&$U20,tsdata!$A:$DT,AC$4,FALSE) -> 4.385 | AD20: =VLOOKUP(AD$2&"--"&$U20,tsdata!$A:$DT,AD$4,FALSE) -> 5.325 | AE20: =VLOOKUP(AE$2&"--"&$U20,tsdata!$A:$DT,AE$4,FALSE) -> 7.159247584 | AF20: =VLOOKUP(AF$2&"--"&$U20,tsdata!$A:$DT,AF$4,FALSE) -> 4.408946519 | AG20: =VLOOKUP(AG$2&"--"&$U20,tsdata!$A:$DT,AG$4,FALSE) -> 10.76448206
A21: Mpls-StPaul | B21: 65 | L21: 21 | M21: Net Loan Growth (last 4 qtrs) | U21: 1994-03-31 | V21: =VLOOKUP(V$2&"--"&$U21,tsdata!$A:$DT,V$4,FALSE) -> 0 | W21: =VLOOKUP(W$2&"--"&$U21,tsdata!$A:$DT,W$4,FALSE) -> 0 | X21: =VLOOKUP(X$2&"--"&$U21,tsdata!$A:$DT,X$4,FALSE) -> 0 | Y21: =VLOOKUP(Y$2&"--"&$U21,tsdata!$A:$DT,Y$4,FALSE) -> 323.4657499 | Z21: =VLOOKUP(Z$2&"--"&$U21,tsdata!$A:$DT,Z$4,FALSE) -> 165.9923866 | AA21: =VLOOKUP(AA$2&"--"&$U21,tsdata!$A:$DT,AA$4,FALSE) -> 780.9684978 | AB21: =VLOOKUP(AB$2&"--"&$U21,tsdata!$A:$DT,AB$4,FALSE) -> 4.68 | AC21: =VLOOKUP(AC$2&"--"&$U21,tsdata!$A:$DT,AC$4,FALSE) -> 4.1725 | AD21: =VLOOKUP(AD$2&"--"&$U21,tsdata!$A:$DT,AD$4,FALSE) -> 5.07 | AE21: =VLOOKUP(AE$2&"--"&$U21,tsdata!$A:$DT,AE$4,FALSE) -> 7.614227856 | AF21: =VLOOKUP(AF$2&"--"&$U21,tsdata!$A:$DT,AF$4,FALSE) -> 4.542116304 | AG21: =VLOOKUP(AG$2&"--"&$U21,tsdata!$A:$DT,AG$4,FALSE) -> 11.66748758
A22: Rochester | B22: 13 | L22: 22 | M22: Banks w/ Loan Growth (last 4 qtrs) | U22: 1994-06-30 | V22: =VLOOKUP(V$2&"--"&$U22,tsdata!$A:$DT,V$4,FALSE) -> 0 | W22: =VLOOKUP(W$2&"--"&$U22,tsdata!$A:$DT,W$4,FALSE) -> 0 | X22: =VLOOKUP(X$2&"--"&$U22,tsdata!$A:$DT,X$4,FALSE) -> 0 | Y22: =VLOOKUP(Y$2&"--"&$U22,tsdata!$A:$DT,Y$4,FALSE) -> 340 | Z22: =VLOOKUP(Z$2&"--"&$U22,tsdata!$A:$DT,Z$4,FALSE) -> 163.0875278 | AA22: =VLOOKUP(AA$2&"--"&$U22,tsdata!$A:$DT,AA$4,FALSE) -> 1284.141461 | AB22: =VLOOKUP(AB$2&"--"&$U22,tsdata!$A:$DT,AB$4,FALSE) -> 4.825 | AC22: =VLOOKUP(AC$2&"--"&$U22,tsdata!$A:$DT,AC$4,FALSE) -> 4.45 | AD22: =VLOOKUP(AD$2&"--"&$U22,tsdata!$A:$DT,AD$4,FALSE) -> 5.18 | AE22: =VLOOKUP(AE$2&"--"&$U22,tsdata!$A:$DT,AE$4,FALSE) -> 8.598438867 | AF22: =VLOOKUP(AF$2&"--"&$U22,tsdata!$A:$DT,AF$4,FALSE) -> 5.49938742 | AG22: =VLOOKUP(AG$2&"--"&$U22,tsdata!$A:$DT,AG$4,FALSE) -> 14.33063821
A23: St Cloud | B23: 15 | U23: 1994-09-30 | V23: =VLOOKUP(V$2&"--"&$U23,tsdata!$A:$DT,V$4,FALSE) -> 0 | W23: =VLOOKUP(W$2&"--"&$U23,tsdata!$A:$DT,W$4,FALSE) -> 0 | X23: =VLOOKUP(X$2&"--"&$U23,tsdata!$A:$DT,X$4,FALSE) -> 0 | Y23: =VLOOKUP(Y$2&"--"&$U23,tsdata!$A:$DT,Y$4,FALSE) -> 382.7178618 | Z23: =VLOOKUP(Z$2&"--"&$U23,tsdata!$A:$DT,Z$4,FALSE) -> 209.557735 | AA23: =VLOOKUP(AA$2&"--"&$U23,tsdata!$A:$DT,AA$4,FALSE) -> 998.7215909 | AB23: =VLOOKUP(AB$2&"--"&$U23,tsdata!$A:$DT,AB$4,FALSE) -> 4.89 | AC23: =VLOOKUP(AC$2&"--"&$U23,tsdata!$A:$DT,AC$4,FALSE) -> 4.525 | AD23: =VLOOKUP(AD$2&"--"&$U23,tsdata!$A:$DT,AD$4,FALSE) -> 5.3 | AE23: =VLOOKUP(AE$2&"--"&$U23,tsdata!$A:$DT,AE$4,FALSE) -> 9.292363457 | AF23: =VLOOKUP(AF$2&"--"&$U23,tsdata!$A:$DT,AF$4,FALSE) -> 5.241002985 | AG23: =VLOOKUP(AG$2&"--"&$U23,tsdata!$A:$DT,AG$4,FALSE) -> 14.68145931
A24: Bismarck | B24: 5 | U24: 1994-12-31 | V24: =VLOOKUP(V$2&"--"&$U24,tsdata!$A:$DT,V$4,FALSE) -> 0 | W24: =VLOOKUP(W$2&"--"&$U24,tsdata!$A:$DT,W$4,FALSE) -> 0 | X24: =VLOOKUP(X$2&"--"&$U24,tsdata!$A:$DT,X$4,FALSE) -> 0 | Y24: =VLOOKUP(Y$2&"--"&$U24,tsdata!$A:$DT,Y$4,FALSE) -> 432.0634921 | Z24: =VLOOKUP(Z$2&"--"&$U24,tsdata!$A:$DT,Z$4,FALSE) -> 239.7764445 | AA24: =VLOOKUP(AA$2&"--"&$U24,tsdata!$A:$DT,AA$4,FALSE) -> 979.4444444 | AB24: =VLOOKUP(AB$2&"--"&$U24,tsdata!$A:$DT,AB$4,FALSE) -> 4.955 | AC24: =VLOOKUP(AC$2&"--"&$U24,tsdata!$A:$DT,AC$4,FALSE) -> 4.5575 | AD24: =VLOOKUP(AD$2&"--"&$U24,tsdata!$A:$DT,AD$4,FALSE) -> 5.3225 | AE24: =VLOOKUP(AE$2&"--"&$U24,tsdata!$A:$DT,AE$4,FALSE) -> 8.493669872 | AF24: =VLOOKUP(AF$2&"--"&$U24,tsdata!$A:$DT,AF$4,FALSE) -> 5.221457481 | AG24: =VLOOKUP(AG$2&"--"&$U24,tsdata!$A:$DT,AG$4,FALSE) -> 13.4927012
A25: Grand Forks | B25: 3 | U25: 1995-03-31 | V25: =VLOOKUP(V$2&"--"&$U25,tsdata!$A:$DT,V$4,FALSE) -> 0 | W25: =VLOOKUP(W$2&"--"&$U25,tsdata!$A:$DT,W$4,FALSE) -> 0 | X25: =VLOOKUP(X$2&"--"&$U25,tsdata!$A:$DT,X$4,FALSE) -> 0 | Y25: =VLOOKUP(Y$2&"--"&$U25,tsdata!$A:$DT,Y$4,FALSE) -> 422.2222222 | Z25: =VLOOKUP(Z$2&"--"&$U25,tsdata!$A:$DT,Z$4,FALSE) -> 204.5782464 | AA25: =VLOOKUP(AA$2&"--"&$U25,tsdata!$A:$DT,AA$4,FALSE) -> 1400.974026 | AB25: =VLOOKUP(AB$2&"--"&$U25,tsdata!$A:$DT,AB$4,FALSE) -> 4.985 | AC25: =VLOOKUP(AC$2&"--"&$U25,tsdata!$A:$DT,AC$4,FALSE) -> 4.4775 | AD25: =VLOOKUP(AD$2&"--"&$U25,tsdata!$A:$DT,AD$4,FALSE) -> 5.585 | AE25: =VLOOKUP(AE$2&"--"&$U25,tsdata!$A:$DT,AE$4,FALSE) -> 9.786147288 | AF25: =VLOOKUP(AF$2&"--"&$U25,tsdata!$A:$DT,AF$4,FALSE) -> 5.831483284 | AG25: =VLOOKUP(AG$2&"--"&$U25,tsdata!$A:$DT,AG$4,FALSE) -> 14.58401764
A26: Fargo | B26: 12 | U26: 1995-06-30 | V26: =VLOOKUP(V$2&"--"&$U26,tsdata!$A:$DT,V$4,FALSE) -> 0 | W26: =VLOOKUP(W$2&"--"&$U26,tsdata!$A:$DT,W$4,FALSE) -> 0 | X26: =VLOOKUP(X$2&"--"&$U26,tsdata!$A:$DT,X$4,FALSE) -> 0 | Y26: =VLOOKUP(Y$2&"--"&$U26,tsdata!$A:$DT,Y$4,FALSE) -> 452.3608769 | Z26: =VLOOKUP(Z$2&"--"&$U26,tsdata!$A:$DT,Z$4,FALSE) -> 235.359116 | AA26: =VLOOKUP(AA$2&"--"&$U26,tsdata!$A:$DT,AA$4,FALSE) -> 978.5714286 | AB26: =VLOOKUP(AB$2&"--"&$U26,tsdata!$A:$DT,AB$4,FALSE) -> 4.92 | AC26: =VLOOKUP(AC$2&"--"&$U26,tsdata!$A:$DT,AC$4,FALSE) -> 4.465 | AD26: =VLOOKUP(AD$2&"--"&$U26,tsdata!$A:$DT,AD$4,FALSE) -> 5.54 | AE26: =VLOOKUP(AE$2&"--"&$U26,tsdata!$A:$DT,AE$4,FALSE) -> 11.18458982 | AF26: =VLOOKUP(AF$2&"--"&$U26,tsdata!$A:$DT,AF$4,FALSE) -> 6.155464266 | AG26: =VLOOKUP(AG$2&"--"&$U26,tsdata!$A:$DT,AG$4,FALSE) -> 15.29954214
A27: Rapid City | B27: 1 | U27: 1995-09-30 | V27: =VLOOKUP(V$2&"--"&$U27,tsdata!$A:$DT,V$4,FALSE) -> 0 | W27: =VLOOKUP(W$2&"--"&$U27,tsdata!$A:$DT,W$4,FALSE) -> 0 | X27: =VLOOKUP(X$2&"--"&$U27,tsdata!$A:$DT,X$4,FALSE) -> 0 | Y27: =VLOOKUP(Y$2&"--"&$U27,tsdata!$A:$DT,Y$4,FALSE) -> 382.6923077 | Z27: =VLOOKUP(Z$2&"--"&$U27,tsdata!$A:$DT,Z$4,FALSE) -> 206.182286 | AA27: =VLOOKUP(AA$2&"--"&$U27,tsdata!$A:$DT,AA$4,FALSE) -> 1079.148116 | AB27: =VLOOKUP(AB$2&"--"&$U27,tsdata!$A:$DT,AB$4,FALSE) -> 4.93 | AC27: =VLOOKUP(AC$2&"--"&$U27,tsdata!$A:$DT,AC$4,FALSE) -> 4.48 | AD27: =VLOOKUP(AD$2&"--"&$U27,tsdata!$A:$DT,AD$4,FALSE) -> 5.51 | AE27: =VLOOKUP(AE$2&"--"&$U27,tsdata!$A:$DT,AE$4,FALSE) -> 11.67109991 | AF27: =VLOOKUP(AF$2&"--"&$U27,tsdata!$A:$DT,AF$4,FALSE) -> 6.028160888 | AG27: =VLOOKUP(AG$2&"--"&$U27,tsdata!$A:$DT,AG$4,FALSE) -> 16.01144418
A28: Sioux City | B28: 2 | U28: 1995-12-31 | V28: =VLOOKUP(V$2&"--"&$U28,tsdata!$A:$DT,V$4,FALSE) -> 0 | W28: =VLOOKUP(W$2&"--"&$U28,tsdata!$A:$DT,W$4,FALSE) -> 0 | X28: =VLOOKUP(X$2&"--"&$U28,tsdata!$A:$DT,X$4,FALSE) -> 0 | Y28: =VLOOKUP(Y$2&"--"&$U28,tsdata!$A:$DT,Y$4,FALSE) -> 470.1166181 | Z28: =VLOOKUP(Z$2&"--"&$U28,tsdata!$A:$DT,Z$4,FALSE) -> 218.5350744 | AA28: =VLOOKUP(AA$2&"--"&$U28,tsdata!$A:$DT,AA$4,FALSE) -> 1007.800512 | AB28: =VLOOKUP(AB$2&"--"&$U28,tsdata!$A:$DT,AB$4,FALSE) -> 4.895 | AC28: =VLOOKUP(AC$2&"--"&$U28,tsdata!$A:$DT,AC$4,FALSE) -> 4.4875 | AD28: =VLOOKUP(AD$2&"--"&$U28,tsdata!$A:$DT,AD$4,FALSE) -> 5.4525 | AE28: =VLOOKUP(AE$2&"--"&$U28,tsdata!$A:$DT,AE$4,FALSE) -> 11.74154986 | AF28: =VLOOKUP(AF$2&"--"&$U28,tsdata!$A:$DT,AF$4,FALSE) -> 6.161413188 | AG28: =VLOOKUP(AG$2&"--"&$U28,tsdata!$A:$DT,AG$4,FALSE) -> 14.73231624
A29: Sioux Falls | B29: 10 | U29: 1996-03-31 | V29: =VLOOKUP(V$2&"--"&$U29,tsdata!$A:$DT,V$4,FALSE) -> 15.26012689 | W29: =VLOOKUP(W$2&"--"&$U29,tsdata!$A:$DT,W$4,FALSE) -> 13.43076532 | X29: =VLOOKUP(X$2&"--"&$U29,tsdata!$A:$DT,X$4,FALSE) -> 20.04210455 | Y29: =VLOOKUP(Y$2&"--"&$U29,tsdata!$A:$DT,Y$4,FALSE) -> 470.8218232 | Z29: =VLOOKUP(Z$2&"--"&$U29,tsdata!$A:$DT,Z$4,FALSE) -> 207.885101 | AA29: =VLOOKUP(AA$2&"--"&$U29,tsdata!$A:$DT,AA$4,FALSE) -> 1130.651341 | AB29: =VLOOKUP(AB$2&"--"&$U29,tsdata!$A:$DT,AB$4,FALSE) -> 4.825 | AC29: =VLOOKUP(AC$2&"--"&$U29,tsdata!$A:$DT,AC$4,FALSE) -> 4.3825 | AD29: =VLOOKUP(AD$2&"--"&$U29,tsdata!$A:$DT,AD$4,FALSE) -> 5.2925 | AE29: =VLOOKUP(AE$2&"--"&$U29,tsdata!$A:$DT,AE$4,FALSE) -> 11.36828213 | AF29: =VLOOKUP(AF$2&"--"&$U29,tsdata!$A:$DT,AF$4,FALSE) -> 7.190617955 | AG29: =VLOOKUP(AG$2&"--"&$U29,tsdata!$A:$DT,AG$4,FALSE) -> 16.06270155
A30: La Crosse | B30: 6 | U30: 1996-06-30 | V30: =VLOOKUP(V$2&"--"&$U30,tsdata!$A:$DT,V$4,FALSE) -> 14.99198571 | W30: =VLOOKUP(W$2&"--"&$U30,tsdata!$A:$DT,W$4,FALSE) -> 12.75795294 | X30: =VLOOKUP(X$2&"--"&$U30,tsdata!$A:$DT,X$4,FALSE) -> 20.17232074 | Y30: =VLOOKUP(Y$2&"--"&$U30,tsdata!$A:$DT,Y$4,FALSE) -> 355.8922559 | Z30: =VLOOKUP(Z$2&"--"&$U30,tsdata!$A:$DT,Z$4,FALSE) -> 143.3002864 | AA30: =VLOOKUP(AA$2&"--"&$U30,tsdata!$A:$DT,AA$4,FALSE) -> 805.7494184 | AB30: =VLOOKUP(AB$2&"--"&$U30,tsdata!$A:$DT,AB$4,FALSE) -> 4.87 | AC30: =VLOOKUP(AC$2&"--"&$U30,tsdata!$A:$DT,AC$4,FALSE) -> 4.43 | AD30: =VLOOKUP(AD$2&"--"&$U30,tsdata!$A:$DT,AD$4,FALSE) -> 5.315 | AE30: =VLOOKUP(AE$2&"--"&$U30,tsdata!$A:$DT,AE$4,FALSE) -> 12.03489462 | AF30: =VLOOKUP(AF$2&"--"&$U30,tsdata!$A:$DT,AF$4,FALSE) -> 8.265992 | AG30: =VLOOKUP(AG$2&"--"&$U30,tsdata!$A:$DT,AG$4,FALSE) -> 16.71789124
A31: Eau Claire | B31: 5 | U31: 1996-09-30 | V31: =VLOOKUP(V$2&"--"&$U31,tsdata!$A:$DT,V$4,FALSE) -> 15.33217225 | W31: =VLOOKUP(W$2&"--"&$U31,tsdata!$A:$DT,W$4,FALSE) -> 12.7188715 | X31: =VLOOKUP(X$2&"--"&$U31,tsdata!$A:$DT,X$4,FALSE) -> 20.40135417 | Y31: =VLOOKUP(Y$2&"--"&$U31,tsdata!$A:$DT,Y$4,FALSE) -> 292.7897345 | Z31: =VLOOKUP(Z$2&"--"&$U31,tsdata!$A:$DT,Z$4,FALSE) -> 143.4376943 | AA31: =VLOOKUP(AA$2&"--"&$U31,tsdata!$A:$DT,AA$4,FALSE) -> 720.6277183 | AB31: =VLOOKUP(AB$2&"--"&$U31,tsdata!$A:$DT,AB$4,FALSE) -> 4.895 | AC31: =VLOOKUP(AC$2&"--"&$U31,tsdata!$A:$DT,AC$4,FALSE) -> 4.41 | AD31: =VLOOKUP(AD$2&"--"&$U31,tsdata!$A:$DT,AD$4,FALSE) -> 5.26 | AE31: =VLOOKUP(AE$2&"--"&$U31,tsdata!$A:$DT,AE$4,FALSE) -> 12.74467542 | AF31: =VLOOKUP(AF$2&"--"&$U31,tsdata!$A:$DT,AF$4,FALSE) -> 8.36288247 | AG31: =VLOOKUP(AG$2&"--"&$U31,tsdata!$A:$DT,AG$4,FALSE) -> 16.64192303
U32: 1996-12-31 | V32: =VLOOKUP(V$2&"--"&$U32,tsdata!$A:$DT,V$4,FALSE) -> 14.89361702 | W32: =VLOOKUP(W$2&"--"&$U32,tsdata!$A:$DT,W$4,FALSE) -> 12.43751195 | X32: =VLOOKUP(X$2&"--"&$U32,tsdata!$A:$DT,X$4,FALSE) -> 20.4890066 | Y32: =VLOOKUP(Y$2&"--"&$U32,tsdata!$A:$DT,Y$4,FALSE) -> 335.435998 | Z32: =VLOOKUP(Z$2&"--"&$U32,tsdata!$A:$DT,Z$4,FALSE) -> 136.3745201 | AA32: =VLOOKUP(AA$2&"--"&$U32,tsdata!$A:$DT,AA$4,FALSE) -> 744.1330084 | AB32: =VLOOKUP(AB$2&"--"&$U32,tsdata!$A:$DT,AB$4,FALSE) -> 4.89 | AC32: =VLOOKUP(AC$2&"--"&$U32,tsdata!$A:$DT,AC$4,FALSE) -> 4.4 | AD32: =VLOOKUP(AD$2&"--"&$U32,tsdata!$A:$DT,AD$4,FALSE) -> 5.26 | AE32: =VLOOKUP(AE$2&"--"&$U32,tsdata!$A:$DT,AE$4,FALSE) -> 11.43813888 | AF32: =VLOOKUP(AF$2&"--"&$U32,tsdata!$A:$DT,AF$4,FALSE) -> 7.885041848 | AG32: =VLOOKUP(AG$2&"--"&$U32,tsdata!$A:$DT,AG$4,FALSE) -> 16.83376385
U33: 1997-03-31 | V33: =VLOOKUP(V$2&"--"&$U33,tsdata!$A:$DT,V$4,FALSE) -> 14.66595642 | W33: =VLOOKUP(W$2&"--"&$U33,tsdata!$A:$DT,W$4,FALSE) -> 12.85907129 | X33: =VLOOKUP(X$2&"--"&$U33,tsdata!$A:$DT,X$4,FALSE) -> 19.8664742 | Y33: =VLOOKUP(Y$2&"--"&$U33,tsdata!$A:$DT,Y$4,FALSE) -> 244.4444444 | Z33: =VLOOKUP(Z$2&"--"&$U33,tsdata!$A:$DT,Z$4,FALSE) -> 126.0493017 | AA33: =VLOOKUP(AA$2&"--"&$U33,tsdata!$A:$DT,AA$4,FALSE) -> 620.5105438 | AB33: =VLOOKUP(AB$2&"--"&$U33,tsdata!$A:$DT,AB$4,FALSE) -> 4.78 | AC33: =VLOOKUP(AC$2&"--"&$U33,tsdata!$A:$DT,AC$4,FALSE) -> 4.34 | AD33: =VLOOKUP(AD$2&"--"&$U33,tsdata!$A:$DT,AD$4,FALSE) -> 5.24 | AE33: =VLOOKUP(AE$2&"--"&$U33,tsdata!$A:$DT,AE$4,FALSE) -> 12.81513955 | AF33: =VLOOKUP(AF$2&"--"&$U33,tsdata!$A:$DT,AF$4,FALSE) -> 7.873153065 | AG33: =VLOOKUP(AG$2&"--"&$U33,tsdata!$A:$DT,AG$4,FALSE) -> 18.05542151
U34: 1997-06-30 | V34: =VLOOKUP(V$2&"--"&$U34,tsdata!$A:$DT,V$4,FALSE) -> 14.45846545 | W34: =VLOOKUP(W$2&"--"&$U34,tsdata!$A:$DT,W$4,FALSE) -> 12.26241044 | X34: =VLOOKUP(X$2&"--"&$U34,tsdata!$A:$DT,X$4,FALSE) -> 18.72124959 | Y34: =VLOOKUP(Y$2&"--"&$U34,tsdata!$A:$DT,Y$4,FALSE) -> 334.2741935 | Z34: =VLOOKUP(Z$2&"--"&$U34,tsdata!$A:$DT,Z$4,FALSE) -> 165.9163987 | AA34: =VLOOKUP(AA$2&"--"&$U34,tsdata!$A:$DT,AA$4,FALSE) -> 681.264637 | AB34: =VLOOKUP(AB$2&"--"&$U34,tsdata!$A:$DT,AB$4,FALSE) -> 4.925 | AC34: =VLOOKUP(AC$2&"--"&$U34,tsdata!$A:$DT,AC$4,FALSE) -> 4.5475 | AD34: =VLOOKUP(AD$2&"--"&$U34,tsdata!$A:$DT,AD$4,FALSE) -> 5.3725 | AE34: =VLOOKUP(AE$2&"--"&$U34,tsdata!$A:$DT,AE$4,FALSE) -> 13.86452324 | AF34: =VLOOKUP(AF$2&"--"&$U34,tsdata!$A:$DT,AF$4,FALSE) -> 8.684717173 | AG34: =VLOOKUP(AG$2&"--"&$U34,tsdata!$A:$DT,AG$4,FALSE) -> 19.64656122
U35: 1997-09-30 | V35: =VLOOKUP(V$2&"--"&$U35,tsdata!$A:$DT,V$4,FALSE) -> 14.66693419 | W35: =VLOOKUP(W$2&"--"&$U35,tsdata!$A:$DT,W$4,FALSE) -> 12.33484619 | X35: =VLOOKUP(X$2&"--"&$U35,tsdata!$A:$DT,X$4,FALSE) -> 18.90266 | Y35: =VLOOKUP(Y$2&"--"&$U35,tsdata!$A:$DT,Y$4,FALSE) -> 342.6698727 | Z35: =VLOOKUP(Z$2&"--"&$U35,tsdata!$A:$DT,Z$4,FALSE) -> 183.5331521 | AA35: =VLOOKUP(AA$2&"--"&$U35,tsdata!$A:$DT,AA$4,FALSE) -> 790.5995935 | AB35: =VLOOKUP(AB$2&"--"&$U35,tsdata!$A:$DT,AB$4,FALSE) -> 4.93 | AC35: =VLOOKUP(AC$2&"--"&$U35,tsdata!$A:$DT,AC$4,FALSE) -> 4.54 | AD35: =VLOOKUP(AD$2&"--"&$U35,tsdata!$A:$DT,AD$4,FALSE) -> 5.39 | AE35: =VLOOKUP(AE$2&"--"&$U35,tsdata!$A:$DT,AE$4,FALSE) -> 13.88694015 | AF35: =VLOOKUP(AF$2&"--"&$U35,tsdata!$A:$DT,AF$4,FALSE) -> 9.807118057 | AG35: =VLOOKUP(AG$2&"--"&$U35,tsdata!$A:$DT,AG$4,FALSE) -> 19.83027474
U36: 1997-12-31 | V36: =VLOOKUP(V$2&"--"&$U36,tsdata!$A:$DT,V$4,FALSE) -> 14.72203728 | W36: =VLOOKUP(W$2&"--"&$U36,tsdata!$A:$DT,W$4,FALSE) -> 12.35168083 | X36: =VLOOKUP(X$2&"--"&$U36,tsdata!$A:$DT,X$4,FALSE) -> 19.32243092 | Y36: =VLOOKUP(Y$2&"--"&$U36,tsdata!$A:$DT,Y$4,FALSE) -> 352.3195876 | Z36: =VLOOKUP(Z$2&"--"&$U36,tsdata!$A:$DT,Z$4,FALSE) -> 153.8283063 | AA36: =VLOOKUP(AA$2&"--"&$U36,tsdata!$A:$DT,AA$4,FALSE) -> 1012.765957 | AB36: =VLOOKUP(AB$2&"--"&$U36,tsdata!$A:$DT,AB$4,FALSE) -> 4.97 | AC36: =VLOOKUP(AC$2&"--"&$U36,tsdata!$A:$DT,AC$4,FALSE) -> 4.67 | AD36: =VLOOKUP(AD$2&"--"&$U36,tsdata!$A:$DT,AD$4,FALSE) -> 5.42 | AE36: =VLOOKUP(AE$2&"--"&$U36,tsdata!$A:$DT,AE$4,FALSE) -> 13.60591683 | AF36: =VLOOKUP(AF$2&"--"&$U36,tsdata!$A:$DT,AF$4,FALSE) -> 8.170489354 | AG36: =VLOOKUP(AG$2&"--"&$U36,tsdata!$A:$DT,AG$4,FALSE) -> 19.59746899
U37: 1998-03-31 | V37: =VLOOKUP(V$2&"--"&$U37,tsdata!$A:$DT,V$4,FALSE) -> 14.84805498 | W37: =VLOOKUP(W$2&"--"&$U37,tsdata!$A:$DT,W$4,FALSE) -> 12.36513972 | X37: =VLOOKUP(X$2&"--"&$U37,tsdata!$A:$DT,X$4,FALSE) -> 19.09948215 | Y37: =VLOOKUP(Y$2&"--"&$U37,tsdata!$A:$DT,Y$4,FALSE) -> 329.7857143 | Z37: =VLOOKUP(Z$2&"--"&$U37,tsdata!$A:$DT,Z$4,FALSE) -> 159.1416138 | AA37: =VLOOKUP(AA$2&"--"&$U37,tsdata!$A:$DT,AA$4,FALSE) -> 677.8530459 | AB37: =VLOOKUP(AB$2&"--"&$U37,tsdata!$A:$DT,AB$4,FALSE) -> 4.86 | AC37: =VLOOKUP(AC$2&"--"&$U37,tsdata!$A:$DT,AC$4,FALSE) -> 4.435 | AD37: =VLOOKUP(AD$2&"--"&$U37,tsdata!$A:$DT,AD$4,FALSE) -> 5.32 | AE37: =VLOOKUP(AE$2&"--"&$U37,tsdata!$A:$DT,AE$4,FALSE) -> 14.17280691 | AF37: =VLOOKUP(AF$2&"--"&$U37,tsdata!$A:$DT,AF$4,FALSE) -> 9.944203788 | AG37: =VLOOKUP(AG$2&"--"&$U37,tsdata!$A:$DT,AG$4,FALSE) -> 19.53078823
U38: 1998-06-30 | V38: =VLOOKUP(V$2&"--"&$U38,tsdata!$A:$DT,V$4,FALSE) -> 14.29356789 | W38: =VLOOKUP(W$2&"--"&$U38,tsdata!$A:$DT,W$4,FALSE) -> 12.12869812 | X38: =VLOOKUP(X$2&"--"&$U38,tsdata!$A:$DT,X$4,FALSE) -> 18.5104694 | Y38: =VLOOKUP(Y$2&"--"&$U38,tsdata!$A:$DT,Y$4,FALSE) -> 290.5982906 | Z38: =VLOOKUP(Z$2&"--"&$U38,tsdata!$A:$DT,Z$4,FALSE) -> 162.0390223 | AA38: =VLOOKUP(AA$2&"--"&$U38,tsdata!$A:$DT,AA$4,FALSE) -> 956.274795 | AB38: =VLOOKUP(AB$2&"--"&$U38,tsdata!$A:$DT,AB$4,FALSE) -> 4.88 | AC38: =VLOOKUP(AC$2&"--"&$U38,tsdata!$A:$DT,AC$4,FALSE) -> 4.495 | AD38: =VLOOKUP(AD$2&"--"&$U38,tsdata!$A:$DT,AD$4,FALSE) -> 5.325 | AE38: =VLOOKUP(AE$2&"--"&$U38,tsdata!$A:$DT,AE$4,FALSE) -> 14.21599675 | AF38: =VLOOKUP(AF$2&"--"&$U38,tsdata!$A:$DT,AF$4,FALSE) -> 9.919199298 | AG38: =VLOOKUP(AG$2&"--"&$U38,tsdata!$A:$DT,AG$4,FALSE) -> 20.47119264
U39: 1998-09-30 | V39: =VLOOKUP(V$2&"--"&$U39,tsdata!$A:$DT,V$4,FALSE) -> 14.00866669 | W39: =VLOOKUP(W$2&"--"&$U39,tsdata!$A:$DT,W$4,FALSE) -> 12.17205046 | X39: =VLOOKUP(X$2&"--"&$U39,tsdata!$A:$DT,X$4,FALSE) -> 19.24211096 | Y39: =VLOOKUP(Y$2&"--"&$U39,tsdata!$A:$DT,Y$4,FALSE) -> 332.4761375 | Z39: =VLOOKUP(Z$2&"--"&$U39,tsdata!$A:$DT,Z$4,FALSE) -> 174.517807 | AA39: =VLOOKUP(AA$2&"--"&$U39,tsdata!$A:$DT,AA$4,FALSE) -> 970.3804348 | AB39: =VLOOKUP(AB$2&"--"&$U39,tsdata!$A:$DT,AB$4,FALSE) -> 4.84 | AC39: =VLOOKUP(AC$2&"--"&$U39,tsdata!$A:$DT,AC$4,FALSE) -> 4.525 | AD39: =VLOOKUP(AD$2&"--"&$U39,tsdata!$A:$DT,AD$4,FALSE) -> 5.425 | AE39: =VLOOKUP(AE$2&"--"&$U39,tsdata!$A:$DT,AE$4,FALSE) -> 14.63278023 | AF39: =VLOOKUP(AF$2&"--"&$U39,tsdata!$A:$DT,AF$4,FALSE) -> 10.83084339 | AG39: =VLOOKUP(AG$2&"--"&$U39,tsdata!$A:$DT,AG$4,FALSE) -> 20.17635466
U40: 1998-12-31 | V40: =VLOOKUP(V$2&"--"&$U40,tsdata!$A:$DT,V$4,FALSE) -> 14.27347987 | W40: =VLOOKUP(W$2&"--"&$U40,tsdata!$A:$DT,W$4,FALSE) -> 12.0925322 | X40: =VLOOKUP(X$2&"--"&$U40,tsdata!$A:$DT,X$4,FALSE) -> 19.08748872 | Y40: =VLOOKUP(Y$2&"--"&$U40,tsdata!$A:$DT,Y$4,FALSE) -> 363.0964303 | Z40: =VLOOKUP(Z$2&"--"&$U40,tsdata!$A:$DT,Z$4,FALSE) -> 162.6853921 | AA40: =VLOOKUP(AA$2&"--"&$U40,tsdata!$A:$DT,AA$4,FALSE) -> 1095.714286 | AB40: =VLOOKUP(AB$2&"--"&$U40,tsdata!$A:$DT,AB$4,FALSE) -> 4.86 | AC40: =VLOOKUP(AC$2&"--"&$U40,tsdata!$A:$DT,AC$4,FALSE) -> 4.555 | AD40: =VLOOKUP(AD$2&"--"&$U40,tsdata!$A:$DT,AD$4,FALSE) -> 5.405 | AE40: =VLOOKUP(AE$2&"--"&$U40,tsdata!$A:$DT,AE$4,FALSE) -> 13.54288613 | AF40: =VLOOKUP(AF$2&"--"&$U40,tsdata!$A:$DT,AF$4,FALSE) -> 9.520516742 | AG40: =VLOOKUP(AG$2&"--"&$U40,tsdata!$A:$DT,AG$4,FALSE) -> 20.05896884
U41: 1999-03-31 | V41: =VLOOKUP(V$2&"--"&$U41,tsdata!$A:$DT,V$4,FALSE) -> 14.40011921 | W41: =VLOOKUP(W$2&"--"&$U41,tsdata!$A:$DT,W$4,FALSE) -> 12.20604122 | X41: =VLOOKUP(X$2&"--"&$U41,tsdata!$A:$DT,X$4,FALSE) -> 18.85568743 | Y41: =VLOOKUP(Y$2&"--"&$U41,tsdata!$A:$DT,Y$4,FALSE) -> 298.1349941 | Z41: =VLOOKUP(Z$2&"--"&$U41,tsdata!$A:$DT,Z$4,FALSE) -> 148.1175896 | AA41: =VLOOKUP(AA$2&"--"&$U41,tsdata!$A:$DT,AA$4,FALSE) -> 957.9665493 | AB41: =VLOOKUP(AB$2&"--"&$U41,tsdata!$A:$DT,AB$4,FALSE) -> 4.66 | AC41: =VLOOKUP(AC$2&"--"&$U41,tsdata!$A:$DT,AC$4,FALSE) -> 4.255 | AD41: =VLOOKUP(AD$2&"--"&$U41,tsdata!$A:$DT,AD$4,FALSE) -> 5.1975 | AE41: =VLOOKUP(AE$2&"--"&$U41,tsdata!$A:$DT,AE$4,FALSE) -> 15.00877301 | AF41: =VLOOKUP(AF$2&"--"&$U41,tsdata!$A:$DT,AF$4,FALSE) -> 9.406600236 | AG41: =VLOOKUP(AG$2&"--"&$U41,tsdata!$A:$DT,AG$4,FALSE) -> 21.3078595
U42: 1999-06-30 | V42: =VLOOKUP(V$2&"--"&$U42,tsdata!$A:$DT,V$4,FALSE) -> 13.86820529 | W42: =VLOOKUP(W$2&"--"&$U42,tsdata!$A:$DT,W$4,FALSE) -> 11.97268108 | X42: =VLOOKUP(X$2&"--"&$U42,tsdata!$A:$DT,X$4,FALSE) -> 17.34574339 | Y42: =VLOOKUP(Y$2&"--"&$U42,tsdata!$A:$DT,Y$4,FALSE) -> 366.3865546 | Z42: =VLOOKUP(Z$2&"--"&$U42,tsdata!$A:$DT,Z$4,FALSE) -> 172.6349614 | AA42: =VLOOKUP(AA$2&"--"&$U42,tsdata!$A:$DT,AA$4,FALSE) -> 1071.038961 | AB42: =VLOOKUP(AB$2&"--"&$U42,tsdata!$A:$DT,AB$4,FALSE) -> 4.71 | AC42: =VLOOKUP(AC$2&"--"&$U42,tsdata!$A:$DT,AC$4,FALSE) -> 4.3 | AD42: =VLOOKUP(AD$2&"--"&$U42,tsdata!$A:$DT,AD$4,FALSE) -> 5.18 | AE42: =VLOOKUP(AE$2&"--"&$U42,tsdata!$A:$DT,AE$4,FALSE) -> 15.66720511 | AF42: =VLOOKUP(AF$2&"--"&$U42,tsdata!$A:$DT,AF$4,FALSE) -> 10.24550225 | AG42: =VLOOKUP(AG$2&"--"&$U42,tsdata!$A:$DT,AG$4,FALSE) -> 22.74409065
U43: 1999-09-30 | V43: =VLOOKUP(V$2&"--"&$U43,tsdata!$A:$DT,V$4,FALSE) -> 14.12579186 | W43: =VLOOKUP(W$2&"--"&$U43,tsdata!$A:$DT,W$4,FALSE) -> 11.64997118 | X43: =VLOOKUP(X$2&"--"&$U43,tsdata!$A:$DT,X$4,FALSE) -> 17.13227759 | Y43: =VLOOKUP(Y$2&"--"&$U43,tsdata!$A:$DT,Y$4,FALSE) -> 276.9230769 | Z43: =VLOOKUP(Z$2&"--"&$U43,tsdata!$A:$DT,Z$4,FALSE) -> 152.2022769 | AA43: =VLOOKUP(AA$2&"--"&$U43,tsdata!$A:$DT,AA$4,FALSE) -> 914.9309551 | AB43: =VLOOKUP(AB$2&"--"&$U43,tsdata!$A:$DT,AB$4,FALSE) -> 4.79 | AC43: =VLOOKUP(AC$2&"--"&$U43,tsdata!$A:$DT,AC$4,FALSE) -> 4.34 | AD43: =VLOOKUP(AD$2&"--"&$U43,tsdata!$A:$DT,AD$4,FALSE) -> 5.2625 | AE43: =VLOOKUP(AE$2&"--"&$U43,tsdata!$A:$DT,AE$4,FALSE) -> 15.91393063 | AF43: =VLOOKUP(AF$2&"--"&$U43,tsdata!$A:$DT,AF$4,FALSE) -> 10.77277456 | AG43: =VLOOKUP(AG$2&"--"&$U43,tsdata!$A:$DT,AG$4,FALSE) -> 23.907365
U44: 1999-12-31 | V44: =VLOOKUP(V$2&"--"&$U44,tsdata!$A:$DT,V$4,FALSE) -> 13.81031614 | W44: =VLOOKUP(W$2&"--"&$U44,tsdata!$A:$DT,W$4,FALSE) -> 11.95417095 | X44: =VLOOKUP(X$2&"--"&$U44,tsdata!$A:$DT,X$4,FALSE) -> 17.23872126 | Y44: =VLOOKUP(Y$2&"--"&$U44,tsdata!$A:$DT,Y$4,FALSE) -> 277.3584906 | Z44: =VLOOKUP(Z$2&"--"&$U44,tsdata!$A:$DT,Z$4,FALSE) -> 133.8557994 | AA44: =VLOOKUP(AA$2&"--"&$U44,tsdata!$A:$DT,AA$4,FALSE) -> 922.0588235 | AB44: =VLOOKUP(AB$2&"--"&$U44,tsdata!$A:$DT,AB$4,FALSE) -> 4.77 | AC44: =VLOOKUP(AC$2&"--"&$U44,tsdata!$A:$DT,AC$4,FALSE) -> 4.375 | AD44: =VLOOKUP(AD$2&"--"&$U44,tsdata!$A:$DT,AD$4,FALSE) -> 5.31 | AE44: =VLOOKUP(AE$2&"--"&$U44,tsdata!$A:$DT,AE$4,FALSE) -> 17.82683031 | AF44: =VLOOKUP(AF$2&"--"&$U44,tsdata!$A:$DT,AF$4,FALSE) -> 10.74180642 | AG44: =VLOOKUP(AG$2&"--"&$U44,tsdata!$A:$DT,AG$4,FALSE) -> 23.56035804
U45: 2000-03-31 | V45: =VLOOKUP(V$2&"--"&$U45,tsdata!$A:$DT,V$4,FALSE) -> 13.96489427 | W45: =VLOOKUP(W$2&"--"&$U45,tsdata!$A:$DT,W$4,FALSE) -> 11.95557933 | X45: =VLOOKUP(X$2&"--"&$U45,tsdata!$A:$DT,X$4,FALSE) -> 17.75907754 | Y45: =VLOOKUP(Y$2&"--"&$U45,tsdata!$A:$DT,Y$4,FALSE) -> 336.3970588 | Z45: =VLOOKUP(Z$2&"--"&$U45,tsdata!$A:$DT,Z$4,FALSE) -> 153.2163743 | AA45: =VLOOKUP(AA$2&"--"&$U45,tsdata!$A:$DT,AA$4,FALSE) -> 892.8571429 | AB45: =VLOOKUP(AB$2&"--"&$U45,tsdata!$A:$DT,AB$4,FALSE) -> 4.755 | AC45: =VLOOKUP(AC$2&"--"&$U45,tsdata!$A:$DT,AC$4,FALSE) -> 4.3125 | AD45: =VLOOKUP(AD$2&"--"&$U45,tsdata!$A:$DT,AD$4,FALSE) -> 5.27 | AE45: =VLOOKUP(AE$2&"--"&$U45,tsdata!$A:$DT,AE$4,FALSE) -> 18.21477029 | AF45: =VLOOKUP(AF$2&"--"&$U45,tsdata!$A:$DT,AF$4,FALSE) -> 11.03070739 | AG45: =VLOOKUP(AG$2&"--"&$U45,tsdata!$A:$DT,AG$4,FALSE) -> 23.49833991
U46: 2000-06-30 | V46: =VLOOKUP(V$2&"--"&$U46,tsdata!$A:$DT,V$4,FALSE) -> 13.81862797 | W46: =VLOOKUP(W$2&"--"&$U46,tsdata!$A:$DT,W$4,FALSE) -> 11.84599982 | X46: =VLOOKUP(X$2&"--"&$U46,tsdata!$A:$DT,X$4,FALSE) -> 17.04356626 | Y46: =VLOOKUP(Y$2&"--"&$U46,tsdata!$A:$DT,Y$4,FALSE) -> 282.7806202 | Z46: =VLOOKUP(Z$2&"--"&$U46,tsdata!$A:$DT,Z$4,FALSE) -> 137.4942271 | AA46: =VLOOKUP(AA$2&"--"&$U46,tsdata!$A:$DT,AA$4,FALSE) -> 774.5833333 | AB46: =VLOOKUP(AB$2&"--"&$U46,tsdata!$A:$DT,AB$4,FALSE) -> 4.855 | AC46: =VLOOKUP(AC$2&"--"&$U46,tsdata!$A:$DT,AC$4,FALSE) -> 4.37 | AD46: =VLOOKUP(AD$2&"--"&$U46,tsdata!$A:$DT,AD$4,FALSE) -> 5.2725 | AE46: =VLOOKUP(AE$2&"--"&$U46,tsdata!$A:$DT,AE$4,FALSE) -> 20.46350393 | AF46: =VLOOKUP(AF$2&"--"&$U46,tsdata!$A:$DT,AF$4,FALSE) -> 11.9813765 | AG46: =VLOOKUP(AG$2&"--"&$U46,tsdata!$A:$DT,AG$4,FALSE) -> 29.02376967
U47: 2000-09-30 | V47: =VLOOKUP(V$2&"--"&$U47,tsdata!$A:$DT,V$4,FALSE) -> 14.04563726 | W47: =VLOOKUP(W$2&"--"&$U47,tsdata!$A:$DT,W$4,FALSE) -> 11.70130765 | X47: =VLOOKUP(X$2&"--"&$U47,tsdata!$A:$DT,X$4,FALSE) -> 16.65636297 | Y47: =VLOOKUP(Y$2&"--"&$U47,tsdata!$A:$DT,Y$4,FALSE) -> 346.0869565 | Z47: =VLOOKUP(Z$2&"--"&$U47,tsdata!$A:$DT,Z$4,FALSE) -> 128.5605634 | AA47: =VLOOKUP(AA$2&"--"&$U47,tsdata!$A:$DT,AA$4,FALSE) -> 791.9140625 | AB47: =VLOOKUP(AB$2&"--"&$U47,tsdata!$A:$DT,AB$4,FALSE) -> 4.88 | AC47: =VLOOKUP(AC$2&"--"&$U47,tsdata!$A:$DT,AC$4,FALSE) -> 4.3925 | AD47: =VLOOKUP(AD$2&"--"&$U47,tsdata!$A:$DT,AD$4,FALSE) -> 5.235 | AE47: =VLOOKUP(AE$2&"--"&$U47,tsdata!$A:$DT,AE$4,FALSE) -> 18.83988042 | AF47: =VLOOKUP(AF$2&"--"&$U47,tsdata!$A:$DT,AF$4,FALSE) -> 11.712553 | AG47: =VLOOKUP(AG$2&"--"&$U47,tsdata!$A:$DT,AG$4,FALSE) -> 26.63521903
U48: 2000-12-31 | V48: =VLOOKUP(V$2&"--"&$U48,tsdata!$A:$DT,V$4,FALSE) -> 13.68019389 | W48: =VLOOKUP(W$2&"--"&$U48,tsdata!$A:$DT,W$4,FALSE) -> 12.023505 | X48: =VLOOKUP(X$2&"--"&$U48,tsdata!$A:$DT,X$4,FALSE) -> 16.90775427 | Y48: =VLOOKUP(Y$2&"--"&$U48,tsdata!$A:$DT,Y$4,FALSE) -> 278.2417687 | Z48: =VLOOKUP(Z$2&"--"&$U48,tsdata!$A:$DT,Z$4,FALSE) -> 130.1151555 | AA48: =VLOOKUP(AA$2&"--"&$U48,tsdata!$A:$DT,AA$4,FALSE) -> 718.2263514 | AB48: =VLOOKUP(AB$2&"--"&$U48,tsdata!$A:$DT,AB$4,FALSE) -> 4.87 | AC48: =VLOOKUP(AC$2&"--"&$U48,tsdata!$A:$DT,AC$4,FALSE) -> 4.39 | AD48: =VLOOKUP(AD$2&"--"&$U48,tsdata!$A:$DT,AD$4,FALSE) -> 5.225 | AE48: =VLOOKUP(AE$2&"--"&$U48,tsdata!$A:$DT,AE$4,FALSE) -> 17.96173953 | AF48: =VLOOKUP(AF$2&"--"&$U48,tsdata!$A:$DT,AF$4,FALSE) -> 10.37962714 | AG48: =VLOOKUP(AG$2&"--"&$U48,tsdata!$A:$DT,AG$4,FALSE) -> 25.14446254
U49: 2001-03-31 | V49: =VLOOKUP(V$2&"--"&$U49,tsdata!$A:$DT,V$4,FALSE) -> 13.945 | W49: =VLOOKUP(W$2&"--"&$U49,tsdata!$A:$DT,W$4,FALSE) -> 12.25 | X49: =VLOOKUP(X$2&"--"&$U49,tsdata!$A:$DT,X$4,FALSE) -> 16.98 | Y49: =VLOOKUP(Y$2&"--"&$U49,tsdata!$A:$DT,Y$4,FALSE) -> 193.4301036 | Z49: =VLOOKUP(Z$2&"--"&$U49,tsdata!$A:$DT,Z$4,FALSE) -> 119.1107232 | AA49: =VLOOKUP(AA$2&"--"&$U49,tsdata!$A:$DT,AA$4,FALSE) -> 609.5918367 | AB49: =VLOOKUP(AB$2&"--"&$U49,tsdata!$A:$DT,AB$4,FALSE) -> 4.545 | AC49: =VLOOKUP(AC$2&"--"&$U49,tsdata!$A:$DT,AC$4,FALSE) -> 4.1075 | AD49: =VLOOKUP(AD$2&"--"&$U49,tsdata!$A:$DT,AD$4,FALSE) -> 5.1375 | AE49: =VLOOKUP(AE$2&"--"&$U49,tsdata!$A:$DT,AE$4,FALSE) -> 17.67455053 | AF49: =VLOOKUP(AF$2&"--"&$U49,tsdata!$A:$DT,AF$4,FALSE) -> 11.36969774 | AG49: =VLOOKUP(AG$2&"--"&$U49,tsdata!$A:$DT,AG$4,FALSE) -> 26.5843825
U50: 2001-06-30 | V50: =VLOOKUP(V$2&"--"&$U50,tsdata!$A:$DT,V$4,FALSE) -> 14.06 | W50: =VLOOKUP(W$2&"--"&$U50,tsdata!$A:$DT,W$4,FALSE) -> 12.19 | X50: =VLOOKUP(X$2&"--"&$U50,tsdata!$A:$DT,X$4,FALSE) -> 16.93 | Y50: =VLOOKUP(Y$2&"--"&$U50,tsdata!$A:$DT,Y$4,FALSE) -> 226.439079 | Z50: =VLOOKUP(Z$2&"--"&$U50,tsdata!$A:$DT,Z$4,FALSE) -> 118.3337402 | AA50: =VLOOKUP(AA$2&"--"&$U50,tsdata!$A:$DT,AA$4,FALSE) -> 704.8007246 | AB50: =VLOOKUP(AB$2&"--"&$U50,tsdata!$A:$DT,AB$4,FALSE) -> 4.685 | AC50: =VLOOKUP(AC$2&"--"&$U50,tsdata!$A:$DT,AC$4,FALSE) -> 4.195 | AD50: =VLOOKUP(AD$2&"--"&$U50,tsdata!$A:$DT,AD$4,FALSE) -> 5.2075 | AE50: =VLOOKUP(AE$2&"--"&$U50,tsdata!$A:$DT,AE$4,FALSE) -> 17.80045123 | AF50: =VLOOKUP(AF$2&"--"&$U50,tsdata!$A:$DT,AF$4,FALSE) -> 11.87457272 | AG50: =VLOOKUP(AG$2&"--"&$U50,tsdata!$A:$DT,AG$4,FALSE) -> 25.92548205
U51: 2001-09-30 | V51: =VLOOKUP(V$2&"--"&$U51,tsdata!$A:$DT,V$4,FALSE) -> 13.88 | W51: =VLOOKUP(W$2&"--"&$U51,tsdata!$A:$DT,W$4,FALSE) -> 12.3675 | X51: =VLOOKUP(X$2&"--"&$U51,tsdata!$A:$DT,X$4,FALSE) -> 17 | Y51: =VLOOKUP(Y$2&"--"&$U51,tsdata!$A:$DT,Y$4,FALSE) -> 289.8656561 | Z51: =VLOOKUP(Z$2&"--"&$U51,tsdata!$A:$DT,Z$4,FALSE) -> 127.8311737 | AA51: =VLOOKUP(AA$2&"--"&$U51,tsdata!$A:$DT,AA$4,FALSE) -> 796.2339744 | AB51: =VLOOKUP(AB$2&"--"&$U51,tsdata!$A:$DT,AB$4,FALSE) -> 4.66 | AC51: =VLOOKUP(AC$2&"--"&$U51,tsdata!$A:$DT,AC$4,FALSE) -> 4.1925 | AD51: =VLOOKUP(AD$2&"--"&$U51,tsdata!$A:$DT,AD$4,FALSE) -> 5.2125 | AE51: =VLOOKUP(AE$2&"--"&$U51,tsdata!$A:$DT,AE$4,FALSE) -> 18.24537875 | AF51: =VLOOKUP(AF$2&"--"&$U51,tsdata!$A:$DT,AF$4,FALSE) -> 12.53996946 | AG51: =VLOOKUP(AG$2&"--"&$U51,tsdata!$A:$DT,AG$4,FALSE) -> 24.48428334
U52: 2001-12-31 | V52: =VLOOKUP(V$2&"--"&$U52,tsdata!$A:$DT,V$4,FALSE) -> 13.65 | W52: =VLOOKUP(W$2&"--"&$U52,tsdata!$A:$DT,W$4,FALSE) -> 12.17 | X52: =VLOOKUP(X$2&"--"&$U52,tsdata!$A:$DT,X$4,FALSE) -> 16.97 | Y52: =VLOOKUP(Y$2&"--"&$U52,tsdata!$A:$DT,Y$4,FALSE) -> 205.4884606 | Z52: =VLOOKUP(Z$2&"--"&$U52,tsdata!$A:$DT,Z$4,FALSE) -> 111.2449175 | AA52: =VLOOKUP(AA$2&"--"&$U52,tsdata!$A:$DT,AA$4,FALSE) -> 552.9026423 | AB52: =VLOOKUP(AB$2&"--"&$U52,tsdata!$A:$DT,AB$4,FALSE) -> 4.63 | AC52: =VLOOKUP(AC$2&"--"&$U52,tsdata!$A:$DT,AC$4,FALSE) -> 4.24 | AD52: =VLOOKUP(AD$2&"--"&$U52,tsdata!$A:$DT,AD$4,FALSE) -> 5.19 | AE52: =VLOOKUP(AE$2&"--"&$U52,tsdata!$A:$DT,AE$4,FALSE) -> 16.2889839 | AF52: =VLOOKUP(AF$2&"--"&$U52,tsdata!$A:$DT,AF$4,FALSE) -> 11.86483209 | AG52: =VLOOKUP(AG$2&"--"&$U52,tsdata!$A:$DT,AG$4,FALSE) -> 23.78265272
U53: 2002-03-31 | V53: =VLOOKUP(V$2&"--"&$U53,tsdata!$A:$DT,V$4,FALSE) -> 13.77 | W53: =VLOOKUP(W$2&"--"&$U53,tsdata!$A:$DT,W$4,FALSE) -> 12.58 | X53: =VLOOKUP(X$2&"--"&$U53,tsdata!$A:$DT,X$4,FALSE) -> 17.34 | Y53: =VLOOKUP(Y$2&"--"&$U53,tsdata!$A:$DT,Y$4,FALSE) -> 248.6384075 | Z53: =VLOOKUP(Z$2&"--"&$U53,tsdata!$A:$DT,Z$4,FALSE) -> 123.452203 | AA53: =VLOOKUP(AA$2&"--"&$U53,tsdata!$A:$DT,AA$4,FALSE) -> 738.1515638 | AB53: =VLOOKUP(AB$2&"--"&$U53,tsdata!$A:$DT,AB$4,FALSE) -> 4.62 | AC53: =VLOOKUP(AC$2&"--"&$U53,tsdata!$A:$DT,AC$4,FALSE) -> 4.16 | AD53: =VLOOKUP(AD$2&"--"&$U53,tsdata!$A:$DT,AD$4,FALSE) -> 5.05 | AE53: =VLOOKUP(AE$2&"--"&$U53,tsdata!$A:$DT,AE$4,FALSE) -> 14.00672122 | AF53: =VLOOKUP(AF$2&"--"&$U53,tsdata!$A:$DT,AF$4,FALSE) -> 10.73148706 | AG53: =VLOOKUP(AG$2&"--"&$U53,tsdata!$A:$DT,AG$4,FALSE) -> 22.61773093
U54: 2002-06-30 | V54: =VLOOKUP(V$2&"--"&$U54,tsdata!$A:$DT,V$4,FALSE) -> 14.08 | W54: =VLOOKUP(W$2&"--"&$U54,tsdata!$A:$DT,W$4,FALSE) -> 12.43 | X54: =VLOOKUP(X$2&"--"&$U54,tsdata!$A:$DT,X$4,FALSE) -> 17.06 | Y54: =VLOOKUP(Y$2&"--"&$U54,tsdata!$A:$DT,Y$4,FALSE) -> 258.6206897 | Z54: =VLOOKUP(Z$2&"--"&$U54,tsdata!$A:$DT,Z$4,FALSE) -> 135.9550562 | AA54: =VLOOKUP(AA$2&"--"&$U54,tsdata!$A:$DT,AA$4,FALSE) -> 715.2941176 | AB54: =VLOOKUP(AB$2&"--"&$U54,tsdata!$A:$DT,AB$4,FALSE) -> 4.62 | AC54: =VLOOKUP(AC$2&"--"&$U54,tsdata!$A:$DT,AC$4,FALSE) -> 4.28 | AD54: =VLOOKUP(AD$2&"--"&$U54,tsdata!$A:$DT,AD$4,FALSE) -> 5.07 | AE54: =VLOOKUP(AE$2&"--"&$U54,tsdata!$A:$DT,AE$4,FALSE) -> 15.22163787 | AF54: =VLOOKUP(AF$2&"--"&$U54,tsdata!$A:$DT,AF$4,FALSE) -> 11.81530808 | AG54: =VLOOKUP(AG$2&"--"&$U54,tsdata!$A:$DT,AG$4,FALSE) -> 23.90082686
U55: 2002-09-30 | V55: =VLOOKUP(V$2&"--"&$U55,tsdata!$A:$DT,V$4,FALSE) -> 14.1 | W55: =VLOOKUP(W$2&"--"&$U55,tsdata!$A:$DT,W$4,FALSE) -> 12.43 | X55: =VLOOKUP(X$2&"--"&$U55,tsdata!$A:$DT,X$4,FALSE) -> 16.815 | Y55: =VLOOKUP(Y$2&"--"&$U55,tsdata!$A:$DT,Y$4,FALSE) -> 262.542482 | Z55: =VLOOKUP(Z$2&"--"&$U55,tsdata!$A:$DT,Z$4,FALSE) -> 147.277309 | AA55: =VLOOKUP(AA$2&"--"&$U55,tsdata!$A:$DT,AA$4,FALSE) -> 475.5875763 | AB55: =VLOOKUP(AB$2&"--"&$U55,tsdata!$A:$DT,AB$4,FALSE) -> 4.74 | AC55: =VLOOKUP(AC$2&"--"&$U55,tsdata!$A:$DT,AC$4,FALSE) -> 4.38 | AD55: =VLOOKUP(AD$2&"--"&$U55,tsdata!$A:$DT,AD$4,FALSE) -> 5.1125 | AE55: =VLOOKUP(AE$2&"--"&$U55,tsdata!$A:$DT,AE$4,FALSE) -> 15.78890623 | AF55: =VLOOKUP(AF$2&"--"&$U55,tsdata!$A:$DT,AF$4,FALSE) -> 12.12590663 | AG55: =VLOOKUP(AG$2&"--"&$U55,tsdata!$A:$DT,AG$4,FALSE) -> 22.88848202
U56: 2002-12-31 | V56: =VLOOKUP(V$2&"--"&$U56,tsdata!$A:$DT,V$4,FALSE) -> 14.13 | W56: =VLOOKUP(W$2&"--"&$U56,tsdata!$A:$DT,W$4,FALSE) -> 12.76 | X56: =VLOOKUP(X$2&"--"&$U56,tsdata!$A:$DT,X$4,FALSE) -> 16.7925 | Y56: =VLOOKUP(Y$2&"--"&$U56,tsdata!$A:$DT,Y$4,FALSE) -> 326.9377382 | Z56: =VLOOKUP(Z$2&"--"&$U56,tsdata!$A:$DT,Z$4,FALSE) -> 133.6187215 | AA56: =VLOOKUP(AA$2&"--"&$U56,tsdata!$A:$DT,AA$4,FALSE) -> 716.3934426 | AB56: =VLOOKUP(AB$2&"--"&$U56,tsdata!$A:$DT,AB$4,FALSE) -> 4.7 | AC56: =VLOOKUP(AC$2&"--"&$U56,tsdata!$A:$DT,AC$4,FALSE) -> 4.3775 | AD56: =VLOOKUP(AD$2&"--"&$U56,tsdata!$A:$DT,AD$4,FALSE) -> 5.1475 | AE56: =VLOOKUP(AE$2&"--"&$U56,tsdata!$A:$DT,AE$4,FALSE) -> 14.27488406 | AF56: =VLOOKUP(AF$2&"--"&$U56,tsdata!$A:$DT,AF$4,FALSE) -> 11.29640256 | AG56: =VLOOKUP(AG$2&"--"&$U56,tsdata!$A:$DT,AG$4,FALSE) -> 22.98060102
U57: 2003-03-31 | V57: =VLOOKUP(V$2&"--"&$U57,tsdata!$A:$DT,V$4,FALSE) -> 14.23 | W57: =VLOOKUP(W$2&"--"&$U57,tsdata!$A:$DT,W$4,FALSE) -> 12.89 | X57: =VLOOKUP(X$2&"--"&$U57,tsdata!$A:$DT,X$4,FALSE) -> 17.07 | Y57: =VLOOKUP(Y$2&"--"&$U57,tsdata!$A:$DT,Y$4,FALSE) -> 237.3134328 | Z57: =VLOOKUP(Z$2&"--"&$U57,tsdata!$A:$DT,Z$4,FALSE) -> 127.3260073 | AA57: =VLOOKUP(AA$2&"--"&$U57,tsdata!$A:$DT,AA$4,FALSE) -> 949.5210728 | AB57: =VLOOKUP(AB$2&"--"&$U57,tsdata!$A:$DT,AB$4,FALSE) -> 4.43 | AC57: =VLOOKUP(AC$2&"--"&$U57,tsdata!$A:$DT,AC$4,FALSE) -> 4.12 | AD57: =VLOOKUP(AD$2&"--"&$U57,tsdata!$A:$DT,AD$4,FALSE) -> 5 | AE57: =VLOOKUP(AE$2&"--"&$U57,tsdata!$A:$DT,AE$4,FALSE) -> 14.60599991 | AF57: =VLOOKUP(AF$2&"--"&$U57,tsdata!$A:$DT,AF$4,FALSE) -> 10.67366613 | AG57: =VLOOKUP(AG$2&"--"&$U57,tsdata!$A:$DT,AG$4,FALSE) -> 23.75827965
U58: 2003-06-30 | V58: =VLOOKUP(V$2&"--"&$U58,tsdata!$A:$DT,V$4,FALSE) -> 14.285 | W58: =VLOOKUP(W$2&"--"&$U58,tsdata!$A:$DT,W$4,FALSE) -> 12.53 | X58: =VLOOKUP(X$2&"--"&$U58,tsdata!$A:$DT,X$4,FALSE) -> 17.2725 | Y58: =VLOOKUP(Y$2&"--"&$U58,tsdata!$A:$DT,Y$4,FALSE) -> 268.3417085 | Z58: =VLOOKUP(Z$2&"--"&$U58,tsdata!$A:$DT,Z$4,FALSE) -> 140 | AA58: =VLOOKUP(AA$2&"--"&$U58,tsdata!$A:$DT,AA$4,FALSE) -> 1033.962264 | AB58: =VLOOKUP(AB$2&"--"&$U58,tsdata!$A:$DT,AB$4,FALSE) -> 4.54 | AC58: =VLOOKUP(AC$2&"--"&$U58,tsdata!$A:$DT,AC$4,FALSE) -> 4.1075 | AD58: =VLOOKUP(AD$2&"--"&$U58,tsdata!$A:$DT,AD$4,FALSE) -> 5.035 | AE58: =VLOOKUP(AE$2&"--"&$U58,tsdata!$A:$DT,AE$4,FALSE) -> 14.59685663 | AF58: =VLOOKUP(AF$2&"--"&$U58,tsdata!$A:$DT,AF$4,FALSE) -> 11.23273766 | AG58: =VLOOKUP(AG$2&"--"&$U58,tsdata!$A:$DT,AG$4,FALSE) -> 24.56657824
U59: 2003-09-30 | V59: =VLOOKUP(V$2&"--"&$U59,tsdata!$A:$DT,V$4,FALSE) -> 14.58 | W59: =VLOOKUP(W$2&"--"&$U59,tsdata!$A:$DT,W$4,FALSE) -> 12.9075 | X59: =VLOOKUP(X$2&"--"&$U59,tsdata!$A:$DT,X$4,FALSE) -> 17.105 | Y59: =VLOOKUP(Y$2&"--"&$U59,tsdata!$A:$DT,Y$4,FALSE) -> 246.7948718 | Z59: =VLOOKUP(Z$2&"--"&$U59,tsdata!$A:$DT,Z$4,FALSE) -> 137.3980453 | AA59: =VLOOKUP(AA$2&"--"&$U59,tsdata!$A:$DT,AA$4,FALSE) -> 860.9073043 | AB59: =VLOOKUP(AB$2&"--"&$U59,tsdata!$A:$DT,AB$4,FALSE) -> 4.555 | AC59: =VLOOKUP(AC$2&"--"&$U59,tsdata!$A:$DT,AC$4,FALSE) -> 4.18 | AD59: =VLOOKUP(AD$2&"--"&$U59,tsdata!$A:$DT,AD$4,FALSE) -> 5.0025 | AE59: =VLOOKUP(AE$2&"--"&$U59,tsdata!$A:$DT,AE$4,FALSE) -> 14.80615654 | AF59: =VLOOKUP(AF$2&"--"&$U59,tsdata!$A:$DT,AF$4,FALSE) -> 11.30074941 | AG59: =VLOOKUP(AG$2&"--"&$U59,tsdata!$A:$DT,AG$4,FALSE) -> 25.31780626
U60: 2003-12-31 | V60: =VLOOKUP(V$2&"--"&$U60,tsdata!$A:$DT,V$4,FALSE) -> 14.44 | W60: =VLOOKUP(W$2&"--"&$U60,tsdata!$A:$DT,W$4,FALSE) -> 12.99 | X60: =VLOOKUP(X$2&"--"&$U60,tsdata!$A:$DT,X$4,FALSE) -> 17.365 | Y60: =VLOOKUP(Y$2&"--"&$U60,tsdata!$A:$DT,Y$4,FALSE) -> 215.253047 | Z60: =VLOOKUP(Z$2&"--"&$U60,tsdata!$A:$DT,Z$4,FALSE) -> 102.3028496 | AA60: =VLOOKUP(AA$2&"--"&$U60,tsdata!$A:$DT,AA$4,FALSE) -> 476.2239039 | AB60: =VLOOKUP(AB$2&"--"&$U60,tsdata!$A:$DT,AB$4,FALSE) -> 4.59 | AC60: =VLOOKUP(AC$2&"--"&$U60,tsdata!$A:$DT,AC$4,FALSE) -> 4.205 | AD60: =VLOOKUP(AD$2&"--"&$U60,tsdata!$A:$DT,AD$4,FALSE) -> 5.005 | AE60: =VLOOKUP(AE$2&"--"&$U60,tsdata!$A:$DT,AE$4,FALSE) -> 14.89768294 | AF60: =VLOOKUP(AF$2&"--"&$U60,tsdata!$A:$DT,AF$4,FALSE) -> 11.02730914 | AG60: =VLOOKUP(AG$2&"--"&$U60,tsdata!$A:$DT,AG$4,FALSE) -> 23.45045725
U61: 2004-03-31 | V61: =VLOOKUP(V$2&"--"&$U61,tsdata!$A:$DT,V$4,FALSE) -> 14.455 | W61: =VLOOKUP(W$2&"--"&$U61,tsdata!$A:$DT,W$4,FALSE) -> 12.815 | X61: =VLOOKUP(X$2&"--"&$U61,tsdata!$A:$DT,X$4,FALSE) -> 17.5225 | Y61: =VLOOKUP(Y$2&"--"&$U61,tsdata!$A:$DT,Y$4,FALSE) -> 220.5443371 | Z61: =VLOOKUP(Z$2&"--"&$U61,tsdata!$A:$DT,Z$4,FALSE) -> 104.0632054 | AA61: =VLOOKUP(AA$2&"--"&$U61,tsdata!$A:$DT,AA$4,FALSE) -> 528.0927835 | AB61: =VLOOKUP(AB$2&"--"&$U61,tsdata!$A:$DT,AB$4,FALSE) -> 4.455 | AC61: =VLOOKUP(AC$2&"--"&$U61,tsdata!$A:$DT,AC$4,FALSE) -> 4.1925 | AD61: =VLOOKUP(AD$2&"--"&$U61,tsdata!$A:$DT,AD$4,FALSE) -> 4.9575 | AE61: =VLOOKUP(AE$2&"--"&$U61,tsdata!$A:$DT,AE$4,FALSE) -> 15.06186342 | AF61: =VLOOKUP(AF$2&"--"&$U61,tsdata!$A:$DT,AF$4,FALSE) -> 11.65341385 | AG61: =VLOOKUP(AG$2&"--"&$U61,tsdata!$A:$DT,AG$4,FALSE) -> 24.64295713
U62: 2004-06-30 | V62: =VLOOKUP(V$2&"--"&$U62,tsdata!$A:$DT,V$4,FALSE) -> 14.1 | W62: =VLOOKUP(W$2&"--"&$U62,tsdata!$A:$DT,W$4,FALSE) -> 12.51 | X62: =VLOOKUP(X$2&"--"&$U62,tsdata!$A:$DT,X$4,FALSE) -> 17.365 | Y62: =VLOOKUP(Y$2&"--"&$U62,tsdata!$A:$DT,Y$4,FALSE) -> 363.3333333 | Z62: =VLOOKUP(Z$2&"--"&$U62,tsdata!$A:$DT,Z$4,FALSE) -> 144.0727246 | AA62: =VLOOKUP(AA$2&"--"&$U62,tsdata!$A:$DT,AA$4,FALSE) -> 1158.119304 | AB62: =VLOOKUP(AB$2&"--"&$U62,tsdata!$A:$DT,AB$4,FALSE) -> 4.49 | AC62: =VLOOKUP(AC$2&"--"&$U62,tsdata!$A:$DT,AC$4,FALSE) -> 4.18 | AD62: =VLOOKUP(AD$2&"--"&$U62,tsdata!$A:$DT,AD$4,FALSE) -> 4.925 | AE62: =VLOOKUP(AE$2&"--"&$U62,tsdata!$A:$DT,AE$4,FALSE) -> 16.54685253 | AF62: =VLOOKUP(AF$2&"--"&$U62,tsdata!$A:$DT,AF$4,FALSE) -> 11.37720484 | AG62: =VLOOKUP(AG$2&"--"&$U62,tsdata!$A:$DT,AG$4,FALSE) -> 24.49386646
U63: 2004-09-30 | V63: =VLOOKUP(V$2&"--"&$U63,tsdata!$A:$DT,V$4,FALSE) -> 14.17 | W63: =VLOOKUP(W$2&"--"&$U63,tsdata!$A:$DT,W$4,FALSE) -> 12.33 | X63: =VLOOKUP(X$2&"--"&$U63,tsdata!$A:$DT,X$4,FALSE) -> 17.875 | Y63: =VLOOKUP(Y$2&"--"&$U63,tsdata!$A:$DT,Y$4,FALSE) -> 369.5156695 | Z63: =VLOOKUP(Z$2&"--"&$U63,tsdata!$A:$DT,Z$4,FALSE) -> 143.4391036 | AA63: =VLOOKUP(AA$2&"--"&$U63,tsdata!$A:$DT,AA$4,FALSE) -> 955.4019237 | AB63: =VLOOKUP(AB$2&"--"&$U63,tsdata!$A:$DT,AB$4,FALSE) -> 4.54 | AC63: =VLOOKUP(AC$2&"--"&$U63,tsdata!$A:$DT,AC$4,FALSE) -> 4.205 | AD63: =VLOOKUP(AD$2&"--"&$U63,tsdata!$A:$DT,AD$4,FALSE) -> 4.98 | AE63: =VLOOKUP(AE$2&"--"&$U63,tsdata!$A:$DT,AE$4,FALSE) -> 17.21520871 | AF63: =VLOOKUP(AF$2&"--"&$U63,tsdata!$A:$DT,AF$4,FALSE) -> 11.60361654 | AG63: =VLOOKUP(AG$2&"--"&$U63,tsdata!$A:$DT,AG$4,FALSE) -> 26.74619217
U64: 2004-12-31 | V64: =VLOOKUP(V$2&"--"&$U64,tsdata!$A:$DT,V$4,FALSE) -> 14.56 | W64: =VLOOKUP(W$2&"--"&$U64,tsdata!$A:$DT,W$4,FALSE) -> 12.53 | X64: =VLOOKUP(X$2&"--"&$U64,tsdata!$A:$DT,X$4,FALSE) -> 17.27 | Y64: =VLOOKUP(Y$2&"--"&$U64,tsdata!$A:$DT,Y$4,FALSE) -> 356.3876652 | Z64: =VLOOKUP(Z$2&"--"&$U64,tsdata!$A:$DT,Z$4,FALSE) -> 144.5054945 | AA64: =VLOOKUP(AA$2&"--"&$U64,tsdata!$A:$DT,AA$4,FALSE) -> 1292.753623 | AB64: =VLOOKUP(AB$2&"--"&$U64,tsdata!$A:$DT,AB$4,FALSE) -> 4.56 | AC64: =VLOOKUP(AC$2&"--"&$U64,tsdata!$A:$DT,AC$4,FALSE) -> 4.28 | AD64: =VLOOKUP(AD$2&"--"&$U64,tsdata!$A:$DT,AD$4,FALSE) -> 4.98 | AE64: =VLOOKUP(AE$2&"--"&$U64,tsdata!$A:$DT,AE$4,FALSE) -> 15.99208095 | AF64: =VLOOKUP(AF$2&"--"&$U64,tsdata!$A:$DT,AF$4,FALSE) -> 11.84105761 | AG64: =VLOOKUP(AG$2&"--"&$U64,tsdata!$A:$DT,AG$4,FALSE) -> 24.64559015
U65: 2005-03-31 | V65: =VLOOKUP(V$2&"--"&$U65,tsdata!$A:$DT,V$4,FALSE) -> 14.38 | W65: =VLOOKUP(W$2&"--"&$U65,tsdata!$A:$DT,W$4,FALSE) -> 12.5925 | X65: =VLOOKUP(X$2&"--"&$U65,tsdata!$A:$DT,X$4,FALSE) -> 17.35 | Y65: =VLOOKUP(Y$2&"--"&$U65,tsdata!$A:$DT,Y$4,FALSE) -> 339.7640931 | Z65: =VLOOKUP(Z$2&"--"&$U65,tsdata!$A:$DT,Z$4,FALSE) -> 164.606676 | AA65: =VLOOKUP(AA$2&"--"&$U65,tsdata!$A:$DT,AA$4,FALSE) -> 1216.88493 | AB65: =VLOOKUP(AB$2&"--"&$U65,tsdata!$A:$DT,AB$4,FALSE) -> 4.485 | AC65: =VLOOKUP(AC$2&"--"&$U65,tsdata!$A:$DT,AC$4,FALSE) -> 4.1775 | AD65: =VLOOKUP(AD$2&"--"&$U65,tsdata!$A:$DT,AD$4,FALSE) -> 4.97 | AE65: =VLOOKUP(AE$2&"--"&$U65,tsdata!$A:$DT,AE$4,FALSE) -> 15.66952451 | AF65: =VLOOKUP(AF$2&"--"&$U65,tsdata!$A:$DT,AF$4,FALSE) -> 11.73824835 | AG65: =VLOOKUP(AG$2&"--"&$U65,tsdata!$A:$DT,AG$4,FALSE) -> 23.97990088
U66: 2005-06-30 | V66: =VLOOKUP(V$2&"--"&$U66,tsdata!$A:$DT,V$4,FALSE) -> 14.255 | W66: =VLOOKUP(W$2&"--"&$U66,tsdata!$A:$DT,W$4,FALSE) -> 12.4875 | X66: =VLOOKUP(X$2&"--"&$U66,tsdata!$A:$DT,X$4,FALSE) -> 17.19 | Y66: =VLOOKUP(Y$2&"--"&$U66,tsdata!$A:$DT,Y$4,FALSE) -> 454.3105193 | Z66: =VLOOKUP(Z$2&"--"&$U66,tsdata!$A:$DT,Z$4,FALSE) -> 175.3973855 | AA66: =VLOOKUP(AA$2&"--"&$U66,tsdata!$A:$DT,AA$4,FALSE) -> 856.344147 | AB66: =VLOOKUP(AB$2&"--"&$U66,tsdata!$A:$DT,AB$4,FALSE) -> 4.535 | AC66: =VLOOKUP(AC$2&"--"&$U66,tsdata!$A:$DT,AC$4,FALSE) -> 4.315 | AD66: =VLOOKUP(AD$2&"--"&$U66,tsdata!$A:$DT,AD$4,FALSE) -> 5.0725 | AE66: =VLOOKUP(AE$2&"--"&$U66,tsdata!$A:$DT,AE$4,FALSE) -> 17.7449603 | AF66: =VLOOKUP(AF$2&"--"&$U66,tsdata!$A:$DT,AF$4,FALSE) -> 11.94916375 | AG66: =VLOOKUP(AG$2&"--"&$U66,tsdata!$A:$DT,AG$4,FALSE) -> 26.41433402
U67: 2005-09-30 | V67: =VLOOKUP(V$2&"--"&$U67,tsdata!$A:$DT,V$4,FALSE) -> 14.45 | W67: =VLOOKUP(W$2&"--"&$U67,tsdata!$A:$DT,W$4,FALSE) -> 12.825 | X67: =VLOOKUP(X$2&"--"&$U67,tsdata!$A:$DT,X$4,FALSE) -> 17.46 | Y67: =VLOOKUP(Y$2&"--"&$U67,tsdata!$A:$DT,Y$4,FALSE) -> 404.4166123 | Z67: =VLOOKUP(Z$2&"--"&$U67,tsdata!$A:$DT,Z$4,FALSE) -> 148.8607551 | AA67: =VLOOKUP(AA$2&"--"&$U67,tsdata!$A:$DT,AA$4,FALSE) -> 991.4334806 | AB67: =VLOOKUP(AB$2&"--"&$U67,tsdata!$A:$DT,AB$4,FALSE) -> 4.6 | AC67: =VLOOKUP(AC$2&"--"&$U67,tsdata!$A:$DT,AC$4,FALSE) -> 4.33 | AD67: =VLOOKUP(AD$2&"--"&$U67,tsdata!$A:$DT,AD$4,FALSE) -> 5.095 | AE67: =VLOOKUP(AE$2&"--"&$U67,tsdata!$A:$DT,AE$4,FALSE) -> 18.69934604 | AF67: =VLOOKUP(AF$2&"--"&$U67,tsdata!$A:$DT,AF$4,FALSE) -> 12.78176622 | AG67: =VLOOKUP(AG$2&"--"&$U67,tsdata!$A:$DT,AG$4,FALSE) -> 27.65404804
U68: 2005-12-31 | V68: =VLOOKUP(V$2&"--"&$U68,tsdata!$A:$DT,V$4,FALSE) -> 14.65 | W68: =VLOOKUP(W$2&"--"&$U68,tsdata!$A:$DT,W$4,FALSE) -> 13.08 | X68: =VLOOKUP(X$2&"--"&$U68,tsdata!$A:$DT,X$4,FALSE) -> 17.39 | Y68: =VLOOKUP(Y$2&"--"&$U68,tsdata!$A:$DT,Y$4,FALSE) -> 268.8372093 | Z68: =VLOOKUP(Z$2&"--"&$U68,tsdata!$A:$DT,Z$4,FALSE) -> 179.7238275 | AA68: =VLOOKUP(AA$2&"--"&$U68,tsdata!$A:$DT,AA$4,FALSE) -> 1099.361984 | AB68: =VLOOKUP(AB$2&"--"&$U68,tsdata!$A:$DT,AB$4,FALSE) -> 4.57 | AC68: =VLOOKUP(AC$2&"--"&$U68,tsdata!$A:$DT,AC$4,FALSE) -> 4.335 | AD68: =VLOOKUP(AD$2&"--"&$U68,tsdata!$A:$DT,AD$4,FALSE) -> 5.14 | AE68: =VLOOKUP(AE$2&"--"&$U68,tsdata!$A:$DT,AE$4,FALSE) -> 18.01576968 | AF68: =VLOOKUP(AF$2&"--"&$U68,tsdata!$A:$DT,AF$4,FALSE) -> 12.35586087 | AG68: =VLOOKUP(AG$2&"--"&$U68,tsdata!$A:$DT,AG$4,FALSE) -> 24.28113148
U69: 2006-03-31 | V69: =VLOOKUP(V$2&"--"&$U69,tsdata!$A:$DT,V$4,FALSE) -> 14.67 | W69: =VLOOKUP(W$2&"--"&$U69,tsdata!$A:$DT,W$4,FALSE) -> 13.02 | X69: =VLOOKUP(X$2&"--"&$U69,tsdata!$A:$DT,X$4,FALSE) -> 17.2 | Y69: =VLOOKUP(Y$2&"--"&$U69,tsdata!$A:$DT,Y$4,FALSE) -> 273.7155762 | Z69: =VLOOKUP(Z$2&"--"&$U69,tsdata!$A:$DT,Z$4,FALSE) -> 169.7002997 | AA69: =VLOOKUP(AA$2&"--"&$U69,tsdata!$A:$DT,AA$4,FALSE) -> 906.6442652 | AB69: =VLOOKUP(AB$2&"--"&$U69,tsdata!$A:$DT,AB$4,FALSE) -> 4.57 | AC69: =VLOOKUP(AC$2&"--"&$U69,tsdata!$A:$DT,AC$4,FALSE) -> 4.225 | AD69: =VLOOKUP(AD$2&"--"&$U69,tsdata!$A:$DT,AD$4,FALSE) -> 5.025 | AE69: =VLOOKUP(AE$2&"--"&$U69,tsdata!$A:$DT,AE$4,FALSE) -> 18.88541305 | AF69: =VLOOKUP(AF$2&"--"&$U69,tsdata!$A:$DT,AF$4,FALSE) -> 12.49044767 | AG69: =VLOOKUP(AG$2&"--"&$U69,tsdata!$A:$DT,AG$4,FALSE) -> 26.49701653
U70: 2006-06-30 | V70: =VLOOKUP(V$2&"--"&$U70,tsdata!$A:$DT,V$4,FALSE) -> 14.48 | W70: =VLOOKUP(W$2&"--"&$U70,tsdata!$A:$DT,W$4,FALSE) -> 12.47 | X70: =VLOOKUP(X$2&"--"&$U70,tsdata!$A:$DT,X$4,FALSE) -> 16.48 | Y70: =VLOOKUP(Y$2&"--"&$U70,tsdata!$A:$DT,Y$4,FALSE) -> 324.9803357 | Z70: =VLOOKUP(Z$2&"--"&$U70,tsdata!$A:$DT,Z$4,FALSE) -> 150.2874365 | AA70: =VLOOKUP(AA$2&"--"&$U70,tsdata!$A:$DT,AA$4,FALSE) -> 1064.898741 | AB70: =VLOOKUP(AB$2&"--"&$U70,tsdata!$A:$DT,AB$4,FALSE) -> 4.53 | AC70: =VLOOKUP(AC$2&"--"&$U70,tsdata!$A:$DT,AC$4,FALSE) -> 4.2 | AD70: =VLOOKUP(AD$2&"--"&$U70,tsdata!$A:$DT,AD$4,FALSE) -> 5.105 | AE70: =VLOOKUP(AE$2&"--"&$U70,tsdata!$A:$DT,AE$4,FALSE) -> 20.17434498 | AF70: =VLOOKUP(AF$2&"--"&$U70,tsdata!$A:$DT,AF$4,FALSE) -> 12.87692364 | AG70: =VLOOKUP(AG$2&"--"&$U70,tsdata!$A:$DT,AG$4,FALSE) -> 26.82404283
U71: 2006-09-30 | V71: =VLOOKUP(V$2&"--"&$U71,tsdata!$A:$DT,V$4,FALSE) -> 14.515 | W71: =VLOOKUP(W$2&"--"&$U71,tsdata!$A:$DT,W$4,FALSE) -> 12.36 | X71: =VLOOKUP(X$2&"--"&$U71,tsdata!$A:$DT,X$4,FALSE) -> 16.81 | Y71: =VLOOKUP(Y$2&"--"&$U71,tsdata!$A:$DT,Y$4,FALSE) -> 298.9583333 | Z71: =VLOOKUP(Z$2&"--"&$U71,tsdata!$A:$DT,Z$4,FALSE) -> 133.7133003 | AA71: =VLOOKUP(AA$2&"--"&$U71,tsdata!$A:$DT,AA$4,FALSE) -> 829.7345679 | AB71: =VLOOKUP(AB$2&"--"&$U71,tsdata!$A:$DT,AB$4,FALSE) -> 4.57 | AC71: =VLOOKUP(AC$2&"--"&$U71,tsdata!$A:$DT,AC$4,FALSE) -> 4.1975 | AD71: =VLOOKUP(AD$2&"--"&$U71,tsdata!$A:$DT,AD$4,FALSE) -> 5.075 | AE71: =VLOOKUP(AE$2&"--"&$U71,tsdata!$A:$DT,AE$4,FALSE) -> 21.24080103 | AF71: =VLOOKUP(AF$2&"--"&$U71,tsdata!$A:$DT,AF$4,FALSE) -> 14.62338736 | AG71: =VLOOKUP(AG$2&"--"&$U71,tsdata!$A:$DT,AG$4,FALSE) -> 28.28057278
U72: 2006-12-31 | V72: =VLOOKUP(V$2&"--"&$U72,tsdata!$A:$DT,V$4,FALSE) -> 14.14 | W72: =VLOOKUP(W$2&"--"&$U72,tsdata!$A:$DT,W$4,FALSE) -> 12.675 | X72: =VLOOKUP(X$2&"--"&$U72,tsdata!$A:$DT,X$4,FALSE) -> 17.0325 | Y72: =VLOOKUP(Y$2&"--"&$U72,tsdata!$A:$DT,Y$4,FALSE) -> 256.8 | Z72: =VLOOKUP(Z$2&"--"&$U72,tsdata!$A:$DT,Z$4,FALSE) -> 124.0641711 | AA72: =VLOOKUP(AA$2&"--"&$U72,tsdata!$A:$DT,AA$4,FALSE) -> 532 | AB72: =VLOOKUP(AB$2&"--"&$U72,tsdata!$A:$DT,AB$4,FALSE) -> 4.57 | AC72: =VLOOKUP(AC$2&"--"&$U72,tsdata!$A:$DT,AC$4,FALSE) -> 4.21 | AD72: =VLOOKUP(AD$2&"--"&$U72,tsdata!$A:$DT,AD$4,FALSE) -> 5.055 | AE72: =VLOOKUP(AE$2&"--"&$U72,tsdata!$A:$DT,AE$4,FALSE) -> 21.21164499 | AF72: =VLOOKUP(AF$2&"--"&$U72,tsdata!$A:$DT,AF$4,FALSE) -> 15.2338863 | AG72: =VLOOKUP(AG$2&"--"&$U72,tsdata!$A:$DT,AG$4,FALSE) -> 26.71840923
U73: 2007-03-31 | V73: =VLOOKUP(V$2&"--"&$U73,tsdata!$A:$DT,V$4,FALSE) -> 14.21 | W73: =VLOOKUP(W$2&"--"&$U73,tsdata!$A:$DT,W$4,FALSE) -> 12.54 | X73: =VLOOKUP(X$2&"--"&$U73,tsdata!$A:$DT,X$4,FALSE) -> 16.855 | Y73: =VLOOKUP(Y$2&"--"&$U73,tsdata!$A:$DT,Y$4,FALSE) -> 273.0190572 | Z73: =VLOOKUP(Z$2&"--"&$U73,tsdata!$A:$DT,Z$4,FALSE) -> 92.14402619 | AA73: =VLOOKUP(AA$2&"--"&$U73,tsdata!$A:$DT,AA$4,FALSE) -> 552.4390244 | AB73: =VLOOKUP(AB$2&"--"&$U73,tsdata!$A:$DT,AB$4,FALSE) -> 4.49 | AC73: =VLOOKUP(AC$2&"--"&$U73,tsdata!$A:$DT,AC$4,FALSE) -> 4.035 | AD73: =VLOOKUP(AD$2&"--"&$U73,tsdata!$A:$DT,AD$4,FALSE) -> 4.925 | AE73: =VLOOKUP(AE$2&"--"&$U73,tsdata!$A:$DT,AE$4,FALSE) -> 21.16927923 | AF73: =VLOOKUP(AF$2&"--"&$U73,tsdata!$A:$DT,AF$4,FALSE) -> 14.38715878 | AG73: =VLOOKUP(AG$2&"--"&$U73,tsdata!$A:$DT,AG$4,FALSE) -> 26.32970605
U74: 2007-06-30 | V74: =VLOOKUP(V$2&"--"&$U74,tsdata!$A:$DT,V$4,FALSE) -> 14.09 | W74: =VLOOKUP(W$2&"--"&$U74,tsdata!$A:$DT,W$4,FALSE) -> 12.21 | X74: =VLOOKUP(X$2&"--"&$U74,tsdata!$A:$DT,X$4,FALSE) -> 17.03 | Y74: =VLOOKUP(Y$2&"--"&$U74,tsdata!$A:$DT,Y$4,FALSE) -> 245.4935042 | Z74: =VLOOKUP(Z$2&"--"&$U74,tsdata!$A:$DT,Z$4,FALSE) -> 103.8290909 | AA74: =VLOOKUP(AA$2&"--"&$U74,tsdata!$A:$DT,AA$4,FALSE) -> 601.4295154 | AB74: =VLOOKUP(AB$2&"--"&$U74,tsdata!$A:$DT,AB$4,FALSE) -> 4.58 | AC74: =VLOOKUP(AC$2&"--"&$U74,tsdata!$A:$DT,AC$4,FALSE) -> 4.09 | AD74: =VLOOKUP(AD$2&"--"&$U74,tsdata!$A:$DT,AD$4,FALSE) -> 4.98 | AE74: =VLOOKUP(AE$2&"--"&$U74,tsdata!$A:$DT,AE$4,FALSE) -> 20.4415372 | AF74: =VLOOKUP(AF$2&"--"&$U74,tsdata!$A:$DT,AF$4,FALSE) -> 14.6188097 | AG74: =VLOOKUP(AG$2&"--"&$U74,tsdata!$A:$DT,AG$4,FALSE) -> 26.11777423
U75: 2007-09-30 | V75: =VLOOKUP(V$2&"--"&$U75,tsdata!$A:$DT,V$4,FALSE) -> 14.38 | W75: =VLOOKUP(W$2&"--"&$U75,tsdata!$A:$DT,W$4,FALSE) -> 12.28 | X75: =VLOOKUP(X$2&"--"&$U75,tsdata!$A:$DT,X$4,FALSE) -> 17.21 | Y75: =VLOOKUP(Y$2&"--"&$U75,tsdata!$A:$DT,Y$4,FALSE) -> 235.6557377 | Z75: =VLOOKUP(Z$2&"--"&$U75,tsdata!$A:$DT,Z$4,FALSE) -> 99.33966158 | AA75: =VLOOKUP(AA$2&"--"&$U75,tsdata!$A:$DT,AA$4,FALSE) -> 561.4377183 | AB75: =VLOOKUP(AB$2&"--"&$U75,tsdata!$A:$DT,AB$4,FALSE) -> 4.56 | AC75: =VLOOKUP(AC$2&"--"&$U75,tsdata!$A:$DT,AC$4,FALSE) -> 4.09 | AD75: =VLOOKUP(AD$2&"--"&$U75,tsdata!$A:$DT,AD$4,FALSE) -> 4.98 | AE75: =VLOOKUP(AE$2&"--"&$U75,tsdata!$A:$DT,AE$4,FALSE) -> 20.14510278 | AF75: =VLOOKUP(AF$2&"--"&$U75,tsdata!$A:$DT,AF$4,FALSE) -> 14.4712175 | AG75: =VLOOKUP(AG$2&"--"&$U75,tsdata!$A:$DT,AG$4,FALSE) -> 26.92704685
U76: 2007-12-31 | V76: =VLOOKUP(V$2&"--"&$U76,tsdata!$A:$DT,V$4,FALSE) -> 14.035 | W76: =VLOOKUP(W$2&"--"&$U76,tsdata!$A:$DT,W$4,FALSE) -> 12.155 | X76: =VLOOKUP(X$2&"--"&$U76,tsdata!$A:$DT,X$4,FALSE) -> 16.745 | Y76: =VLOOKUP(Y$2&"--"&$U76,tsdata!$A:$DT,Y$4,FALSE) -> 173.7506583 | Z76: =VLOOKUP(Z$2&"--"&$U76,tsdata!$A:$DT,Z$4,FALSE) -> 83.4477509 | AA76: =VLOOKUP(AA$2&"--"&$U76,tsdata!$A:$DT,AA$4,FALSE) -> 605.122679 | AB76: =VLOOKUP(AB$2&"--"&$U76,tsdata!$A:$DT,AB$4,FALSE) -> 4.45 | AC76: =VLOOKUP(AC$2&"--"&$U76,tsdata!$A:$DT,AC$4,FALSE) -> 4.055 | AD76: =VLOOKUP(AD$2&"--"&$U76,tsdata!$A:$DT,AD$4,FALSE) -> 4.96 | AE76: =VLOOKUP(AE$2&"--"&$U76,tsdata!$A:$DT,AE$4,FALSE) -> 21.62813577 | AF76: =VLOOKUP(AF$2&"--"&$U76,tsdata!$A:$DT,AF$4,FALSE) -> 14.10679952 | AG76: =VLOOKUP(AG$2&"--"&$U76,tsdata!$A:$DT,AG$4,FALSE) -> 28.16135292
U77: 2008-03-31 | V77: =VLOOKUP(V$2&"--"&$U77,tsdata!$A:$DT,V$4,FALSE) -> 14.265 | W77: =VLOOKUP(W$2&"--"&$U77,tsdata!$A:$DT,W$4,FALSE) -> 12.315 | X77: =VLOOKUP(X$2&"--"&$U77,tsdata!$A:$DT,X$4,FALSE) -> 17.06 | Y77: =VLOOKUP(Y$2&"--"&$U77,tsdata!$A:$DT,Y$4,FALSE) -> 166.40625 | Z77: =VLOOKUP(Z$2&"--"&$U77,tsdata!$A:$DT,Z$4,FALSE) -> 86.71139024 | AA77: =VLOOKUP(AA$2&"--"&$U77,tsdata!$A:$DT,AA$4,FALSE) -> 486.8131868 | AB77: =VLOOKUP(AB$2&"--"&$U77,tsdata!$A:$DT,AB$4,FALSE) -> 4.35 | AC77: =VLOOKUP(AC$2&"--"&$U77,tsdata!$A:$DT,AC$4,FALSE) -> 3.885 | AD77: =VLOOKUP(AD$2&"--"&$U77,tsdata!$A:$DT,AD$4,FALSE) -> 4.835 | AE77: =VLOOKUP(AE$2&"--"&$U77,tsdata!$A:$DT,AE$4,FALSE) -> 21.66786594 | AF77: =VLOOKUP(AF$2&"--"&$U77,tsdata!$A:$DT,AF$4,FALSE) -> 14.56905372 | AG77: =VLOOKUP(AG$2&"--"&$U77,tsdata!$A:$DT,AG$4,FALSE) -> 28.29483337
U78: 2008-06-30 | V78: =VLOOKUP(V$2&"--"&$U78,tsdata!$A:$DT,V$4,FALSE) -> 14.04 | W78: =VLOOKUP(W$2&"--"&$U78,tsdata!$A:$DT,W$4,FALSE) -> 12.08 | X78: =VLOOKUP(X$2&"--"&$U78,tsdata!$A:$DT,X$4,FALSE) -> 16.63 | Y78: =VLOOKUP(Y$2&"--"&$U78,tsdata!$A:$DT,Y$4,FALSE) -> 138.1242662 | Z78: =VLOOKUP(Z$2&"--"&$U78,tsdata!$A:$DT,Z$4,FALSE) -> 74.6458278 | AA78: =VLOOKUP(AA$2&"--"&$U78,tsdata!$A:$DT,AA$4,FALSE) -> 452.9055273 | AB78: =VLOOKUP(AB$2&"--"&$U78,tsdata!$A:$DT,AB$4,FALSE) -> 4.31 | AC78: =VLOOKUP(AC$2&"--"&$U78,tsdata!$A:$DT,AC$4,FALSE) -> 3.96 | AD78: =VLOOKUP(AD$2&"--"&$U78,tsdata!$A:$DT,AD$4,FALSE) -> 4.84 | AE78: =VLOOKUP(AE$2&"--"&$U78,tsdata!$A:$DT,AE$4,FALSE) -> 21.7445602 | AF78: =VLOOKUP(AF$2&"--"&$U78,tsdata!$A:$DT,AF$4,FALSE) -> 14.78203142 | AG78: =VLOOKUP(AG$2&"--"&$U78,tsdata!$A:$DT,AG$4,FALSE) -> 28.36287055
U79: 2008-09-30 | V79: =VLOOKUP(V$2&"--"&$U79,tsdata!$A:$DT,V$4,FALSE) -> 14.14 | W79: =VLOOKUP(W$2&"--"&$U79,tsdata!$A:$DT,W$4,FALSE) -> 12.12 | X79: =VLOOKUP(X$2&"--"&$U79,tsdata!$A:$DT,X$4,FALSE) -> 16.7175 | Y79: =VLOOKUP(Y$2&"--"&$U79,tsdata!$A:$DT,Y$4,FALSE) -> 126.6976744 | Z79: =VLOOKUP(Z$2&"--"&$U79,tsdata!$A:$DT,Z$4,FALSE) -> 63.90288391 | AA79: =VLOOKUP(AA$2&"--"&$U79,tsdata!$A:$DT,AA$4,FALSE) -> 264.4092314 | AB79: =VLOOKUP(AB$2&"--"&$U79,tsdata!$A:$DT,AB$4,FALSE) -> 4.355 | AC79: =VLOOKUP(AC$2&"--"&$U79,tsdata!$A:$DT,AC$4,FALSE) -> 3.985 | AD79: =VLOOKUP(AD$2&"--"&$U79,tsdata!$A:$DT,AD$4,FALSE) -> 4.775 | AE79: =VLOOKUP(AE$2&"--"&$U79,tsdata!$A:$DT,AE$4,FALSE) -> 22.63720161 | AF79: =VLOOKUP(AF$2&"--"&$U79,tsdata!$A:$DT,AF$4,FALSE) -> 16.72212098 | AG79: =VLOOKUP(AG$2&"--"&$U79,tsdata!$A:$DT,AG$4,FALSE) -> 29.87215946
U80: 2008-12-31 | V80: =VLOOKUP(V$2&"--"&$U80,tsdata!$A:$DT,V$4,FALSE) -> 13.83 | W80: =VLOOKUP(W$2&"--"&$U80,tsdata!$A:$DT,W$4,FALSE) -> 12.4025 | X80: =VLOOKUP(X$2&"--"&$U80,tsdata!$A:$DT,X$4,FALSE) -> 16.405 | Y80: =VLOOKUP(Y$2&"--"&$U80,tsdata!$A:$DT,Y$4,FALSE) -> 112.6070529 | Z80: =VLOOKUP(Z$2&"--"&$U80,tsdata!$A:$DT,Z$4,FALSE) -> 55.37649933 | AA80: =VLOOKUP(AA$2&"--"&$U80,tsdata!$A:$DT,AA$4,FALSE) -> 235.3038154 | AB80: =VLOOKUP(AB$2&"--"&$U80,tsdata!$A:$DT,AB$4,FALSE) -> 4.31 | AC80: =VLOOKUP(AC$2&"--"&$U80,tsdata!$A:$DT,AC$4,FALSE) -> 3.955 | AD80: =VLOOKUP(AD$2&"--"&$U80,tsdata!$A:$DT,AD$4,FALSE) -> 4.725 | AE80: =VLOOKUP(AE$2&"--"&$U80,tsdata!$A:$DT,AE$4,FALSE) -> 22.00340303 | AF80: =VLOOKUP(AF$2&"--"&$U80,tsdata!$A:$DT,AF$4,FALSE) -> 16.31880268 | AG80: =VLOOKUP(AG$2&"--"&$U80,tsdata!$A:$DT,AG$4,FALSE) -> 31.64260338
U81: 2009-03-31 | V81: =VLOOKUP(V$2&"--"&$U81,tsdata!$A:$DT,V$4,FALSE) -> 14.075 | W81: =VLOOKUP(W$2&"--"&$U81,tsdata!$A:$DT,W$4,FALSE) -> 12.5375 | X81: =VLOOKUP(X$2&"--"&$U81,tsdata!$A:$DT,X$4,FALSE) -> 16.325 | Y81: =VLOOKUP(Y$2&"--"&$U81,tsdata!$A:$DT,Y$4,FALSE) -> 99.44903581 | Z81: =VLOOKUP(Z$2&"--"&$U81,tsdata!$A:$DT,Z$4,FALSE) -> 48.30435311 | AA81: =VLOOKUP(AA$2&"--"&$U81,tsdata!$A:$DT,AA$4,FALSE) -> 202.8560926 | AB81: =VLOOKUP(AB$2&"--"&$U81,tsdata!$A:$DT,AB$4,FALSE) -> 4.165 | AC81: =VLOOKUP(AC$2&"--"&$U81,tsdata!$A:$DT,AC$4,FALSE) -> 3.7975 | AD81: =VLOOKUP(AD$2&"--"&$U81,tsdata!$A:$DT,AD$4,FALSE) -> 4.6275 | AE81: =VLOOKUP(AE$2&"--"&$U81,tsdata!$A:$DT,AE$4,FALSE) -> 21.72544505 | AF81: =VLOOKUP(AF$2&"--"&$U81,tsdata!$A:$DT,AF$4,FALSE) -> 16.55183777 | AG81: =VLOOKUP(AG$2&"--"&$U81,tsdata!$A:$DT,AG$4,FALSE) -> 32.58883895
U82: 2009-06-30 | V82: =VLOOKUP(V$2&"--"&$U82,tsdata!$A:$DT,V$4,FALSE) -> 14.435 | W82: =VLOOKUP(W$2&"--"&$U82,tsdata!$A:$DT,W$4,FALSE) -> 12.5275 | X82: =VLOOKUP(X$2&"--"&$U82,tsdata!$A:$DT,X$4,FALSE) -> 16.3125 | Y82: =VLOOKUP(Y$2&"--"&$U82,tsdata!$A:$DT,Y$4,FALSE) -> 84.37559447 | Z82: =VLOOKUP(Z$2&"--"&$U82,tsdata!$A:$DT,Z$4,FALSE) -> 56.53568607 | AA82: =VLOOKUP(AA$2&"--"&$U82,tsdata!$A:$DT,AA$4,FALSE) -> 157.2677159 | AB82: =VLOOKUP(AB$2&"--"&$U82,tsdata!$A:$DT,AB$4,FALSE) -> 4.175 | AC82: =VLOOKUP(AC$2&"--"&$U82,tsdata!$A:$DT,AC$4,FALSE) -> 3.8175 | AD82: =VLOOKUP(AD$2&"--"&$U82,tsdata!$A:$DT,AD$4,FALSE) -> 4.6275 | AE82: =VLOOKUP(AE$2&"--"&$U82,tsdata!$A:$DT,AE$4,FALSE) -> 23.00183272 | AF82: =VLOOKUP(AF$2&"--"&$U82,tsdata!$A:$DT,AF$4,FALSE) -> 16.76153474 | AG82: =VLOOKUP(AG$2&"--"&$U82,tsdata!$A:$DT,AG$4,FALSE) -> 29.40823047
U83: 2009-09-30 | V83: =VLOOKUP(V$2&"--"&$U83,tsdata!$A:$DT,V$4,FALSE) -> 14.77 | W83: =VLOOKUP(W$2&"--"&$U83,tsdata!$A:$DT,W$4,FALSE) -> 12.71 | X83: =VLOOKUP(X$2&"--"&$U83,tsdata!$A:$DT,X$4,FALSE) -> 16.93 | Y83: =VLOOKUP(Y$2&"--"&$U83,tsdata!$A:$DT,Y$4,FALSE) -> 84.82030499 | Z83: =VLOOKUP(Z$2&"--"&$U83,tsdata!$A:$DT,Z$4,FALSE) -> 58.20332934 | AA83: =VLOOKUP(AA$2&"--"&$U83,tsdata!$A:$DT,AA$4,FALSE) -> 265.4418073 | AB83: =VLOOKUP(AB$2&"--"&$U83,tsdata!$A:$DT,AB$4,FALSE) -> 4.29 | AC83: =VLOOKUP(AC$2&"--"&$U83,tsdata!$A:$DT,AC$4,FALSE) -> 3.91 | AD83: =VLOOKUP(AD$2&"--"&$U83,tsdata!$A:$DT,AD$4,FALSE) -> 4.6 | AE83: =VLOOKUP(AE$2&"--"&$U83,tsdata!$A:$DT,AE$4,FALSE) -> 23.63096343 | AF83: =VLOOKUP(AF$2&"--"&$U83,tsdata!$A:$DT,AF$4,FALSE) -> 16.41347424 | AG83: =VLOOKUP(AG$2&"--"&$U83,tsdata!$A:$DT,AG$4,FALSE) -> 30.37954473
U84: 2009-12-31 | V84: =VLOOKUP(V$2&"--"&$U84,tsdata!$A:$DT,V$4,FALSE) -> 15.09 | W84: =VLOOKUP(W$2&"--"&$U84,tsdata!$A:$DT,W$4,FALSE) -> 12.775 | X84: =VLOOKUP(X$2&"--"&$U84,tsdata!$A:$DT,X$4,FALSE) -> 16.9425 | Y84: =VLOOKUP(Y$2&"--"&$U84,tsdata!$A:$DT,Y$4,FALSE) -> 79.46635731 | Z84: =VLOOKUP(Z$2&"--"&$U84,tsdata!$A:$DT,Z$4,FALSE) -> 56.73142293 | AA84: =VLOOKUP(AA$2&"--"&$U84,tsdata!$A:$DT,AA$4,FALSE) -> 138.3451843 | AB84: =VLOOKUP(AB$2&"--"&$U84,tsdata!$A:$DT,AB$4,FALSE) -> 4.285 | AC84: =VLOOKUP(AC$2&"--"&$U84,tsdata!$A:$DT,AC$4,FALSE) -> 3.925 | AD84: =VLOOKUP(AD$2&"--"&$U84,tsdata!$A:$DT,AD$4,FALSE) -> 4.6125 | AE84: =VLOOKUP(AE$2&"--"&$U84,tsdata!$A:$DT,AE$4,FALSE) -> 22.61038474 | AF84: =VLOOKUP(AF$2&"--"&$U84,tsdata!$A:$DT,AF$4,FALSE) -> 15.69860632 | AG84: =VLOOKUP(AG$2&"--"&$U84,tsdata!$A:$DT,AG$4,FALSE) -> 29.94779865
U85: 2010-03-31 | V85: =VLOOKUP(V$2&"--"&$U85,tsdata!$A:$DT,V$4,FALSE) -> 15.42 | W85: =VLOOKUP(W$2&"--"&$U85,tsdata!$A:$DT,W$4,FALSE) -> 13.14 | X85: =VLOOKUP(X$2&"--"&$U85,tsdata!$A:$DT,X$4,FALSE) -> 17.355 | Y85: =VLOOKUP(Y$2&"--"&$U85,tsdata!$A:$DT,Y$4,FALSE) -> 86.78823102 | Z85: =VLOOKUP(Z$2&"--"&$U85,tsdata!$A:$DT,Z$4,FALSE) -> 62.3186809 | AA85: =VLOOKUP(AA$2&"--"&$U85,tsdata!$A:$DT,AA$4,FALSE) -> 165.6605884 | AB85: =VLOOKUP(AB$2&"--"&$U85,tsdata!$A:$DT,AB$4,FALSE) -> 4.19 | AC85: =VLOOKUP(AC$2&"--"&$U85,tsdata!$A:$DT,AC$4,FALSE) -> 3.895 | AD85: =VLOOKUP(AD$2&"--"&$U85,tsdata!$A:$DT,AD$4,FALSE) -> 4.5025 | AE85: =VLOOKUP(AE$2&"--"&$U85,tsdata!$A:$DT,AE$4,FALSE) -> 23.32123043 | AF85: =VLOOKUP(AF$2&"--"&$U85,tsdata!$A:$DT,AF$4,FALSE) -> 15.76475919 | AG85: =VLOOKUP(AG$2&"--"&$U85,tsdata!$A:$DT,AG$4,FALSE) -> 30.29930036
U86: 2010-06-30 | V86: =VLOOKUP(V$2&"--"&$U86,tsdata!$A:$DT,V$4,FALSE) -> 15.54 | W86: =VLOOKUP(W$2&"--"&$U86,tsdata!$A:$DT,W$4,FALSE) -> 13.18 | X86: =VLOOKUP(X$2&"--"&$U86,tsdata!$A:$DT,X$4,FALSE) -> 17.36 | Y86: =VLOOKUP(Y$2&"--"&$U86,tsdata!$A:$DT,Y$4,FALSE) -> 87.59730605 | Z86: =VLOOKUP(Z$2&"--"&$U86,tsdata!$A:$DT,Z$4,FALSE) -> 62.42814424 | AA86: =VLOOKUP(AA$2&"--"&$U86,tsdata!$A:$DT,AA$4,FALSE) -> 214.6034051 | AB86: =VLOOKUP(AB$2&"--"&$U86,tsdata!$A:$DT,AB$4,FALSE) -> 4.29 | AC86: =VLOOKUP(AC$2&"--"&$U86,tsdata!$A:$DT,AC$4,FALSE) -> 3.87 | AD86: =VLOOKUP(AD$2&"--"&$U86,tsdata!$A:$DT,AD$4,FALSE) -> 4.58 | AE86: =VLOOKUP(AE$2&"--"&$U86,tsdata!$A:$DT,AE$4,FALSE) -> 22.75109507 | AF86: =VLOOKUP(AF$2&"--"&$U86,tsdata!$A:$DT,AF$4,FALSE) -> 15.58061234 | AG86: =VLOOKUP(AG$2&"--"&$U86,tsdata!$A:$DT,AG$4,FALSE) -> 30.77624788
U87: 2010-09-30 | V87: =VLOOKUP(V$2&"--"&$U87,tsdata!$A:$DT,V$4,FALSE) -> 15.45 | W87: =VLOOKUP(W$2&"--"&$U87,tsdata!$A:$DT,W$4,FALSE) -> 13.44 | X87: =VLOOKUP(X$2&"--"&$U87,tsdata!$A:$DT,X$4,FALSE) -> 17.55 | Y87: =VLOOKUP(Y$2&"--"&$U87,tsdata!$A:$DT,Y$4,FALSE) -> 91.19139444 | Z87: =VLOOKUP(Z$2&"--"&$U87,tsdata!$A:$DT,Z$4,FALSE) -> 61.26635888 | AA87: =VLOOKUP(AA$2&"--"&$U87,tsdata!$A:$DT,AA$4,FALSE) -> 221.637903 | AB87: =VLOOKUP(AB$2&"--"&$U87,tsdata!$A:$DT,AB$4,FALSE) -> 4.255 | AC87: =VLOOKUP(AC$2&"--"&$U87,tsdata!$A:$DT,AC$4,FALSE) -> 3.935 | AD87: =VLOOKUP(AD$2&"--"&$U87,tsdata!$A:$DT,AD$4,FALSE) -> 4.54 | AE87: =VLOOKUP(AE$2&"--"&$U87,tsdata!$A:$DT,AE$4,FALSE) -> 21.74838628 | AF87: =VLOOKUP(AF$2&"--"&$U87,tsdata!$A:$DT,AF$4,FALSE) -> 15.48986534 | AG87: =VLOOKUP(AG$2&"--"&$U87,tsdata!$A:$DT,AG$4,FALSE) -> 29.25292516
U88: 2010-12-31 | V88: =VLOOKUP(V$2&"--"&$U88,tsdata!$A:$DT,V$4,FALSE) -> 15.485 | W88: =VLOOKUP(W$2&"--"&$U88,tsdata!$A:$DT,W$4,FALSE) -> 13.465 | X88: =VLOOKUP(X$2&"--"&$U88,tsdata!$A:$DT,X$4,FALSE) -> 17.915 | Y88: =VLOOKUP(Y$2&"--"&$U88,tsdata!$A:$DT,Y$4,FALSE) -> 96.61016949 | Z88: =VLOOKUP(Z$2&"--"&$U88,tsdata!$A:$DT,Z$4,FALSE) -> 61.67644439 | AA88: =VLOOKUP(AA$2&"--"&$U88,tsdata!$A:$DT,AA$4,FALSE) -> 237.4164811 | AB88: =VLOOKUP(AB$2&"--"&$U88,tsdata!$A:$DT,AB$4,FALSE) -> 4.26 | AC88: =VLOOKUP(AC$2&"--"&$U88,tsdata!$A:$DT,AC$4,FALSE) -> 3.875 | AD88: =VLOOKUP(AD$2&"--"&$U88,tsdata!$A:$DT,AD$4,FALSE) -> 4.535 | AE88: =VLOOKUP(AE$2&"--"&$U88,tsdata!$A:$DT,AE$4,FALSE) -> 21.16082952 | AF88: =VLOOKUP(AF$2&"--"&$U88,tsdata!$A:$DT,AF$4,FALSE) -> 15.47587276 | AG88: =VLOOKUP(AG$2&"--"&$U88,tsdata!$A:$DT,AG$4,FALSE) -> 30.1726354
U89: 2011-03-31 | V89: =VLOOKUP(V$2&"--"&$U89,tsdata!$A:$DT,V$4,FALSE) -> 16.15 | W89: =VLOOKUP(W$2&"--"&$U89,tsdata!$A:$DT,W$4,FALSE) -> 13.89 | X89: =VLOOKUP(X$2&"--"&$U89,tsdata!$A:$DT,X$4,FALSE) -> 18.46 | Y89: =VLOOKUP(Y$2&"--"&$U89,tsdata!$A:$DT,Y$4,FALSE) -> 92.5831202 | Z89: =VLOOKUP(Z$2&"--"&$U89,tsdata!$A:$DT,Z$4,FALSE) -> 66.25316519 | AA89: =VLOOKUP(AA$2&"--"&$U89,tsdata!$A:$DT,AA$4,FALSE) -> 196.2112694 | AB89: =VLOOKUP(AB$2&"--"&$U89,tsdata!$A:$DT,AB$4,FALSE) -> 4.02 | AC89: =VLOOKUP(AC$2&"--"&$U89,tsdata!$A:$DT,AC$4,FALSE) -> 3.65 | AD89: =VLOOKUP(AD$2&"--"&$U89,tsdata!$A:$DT,AD$4,FALSE) -> 4.3 | AE89: =VLOOKUP(AE$2&"--"&$U89,tsdata!$A:$DT,AE$4,FALSE) -> 21.16351448 | AF89: =VLOOKUP(AF$2&"--"&$U89,tsdata!$A:$DT,AF$4,FALSE) -> 15.6545373 | AG89: =VLOOKUP(AG$2&"--"&$U89,tsdata!$A:$DT,AG$4,FALSE) -> 26.96447215
U90: 2011-06-30 | V90: =VLOOKUP(V$2&"--"&$U90,tsdata!$A:$DT,V$4,FALSE) -> 16.42 | W90: =VLOOKUP(W$2&"--"&$U90,tsdata!$A:$DT,W$4,FALSE) -> 13.82 | X90: =VLOOKUP(X$2&"--"&$U90,tsdata!$A:$DT,X$4,FALSE) -> 18.17 | Y90: =VLOOKUP(Y$2&"--"&$U90,tsdata!$A:$DT,Y$4,FALSE) -> 98.04560261 | Z90: =VLOOKUP(Z$2&"--"&$U90,tsdata!$A:$DT,Z$4,FALSE) -> 66.94312796 | AA90: =VLOOKUP(AA$2&"--"&$U90,tsdata!$A:$DT,AA$4,FALSE) -> 176.1904762 | AB90: =VLOOKUP(AB$2&"--"&$U90,tsdata!$A:$DT,AB$4,FALSE) -> 4.13 | AC90: =VLOOKUP(AC$2&"--"&$U90,tsdata!$A:$DT,AC$4,FALSE) -> 3.725 | AD90: =VLOOKUP(AD$2&"--"&$U90,tsdata!$A:$DT,AD$4,FALSE) -> 4.465 | AE90: =VLOOKUP(AE$2&"--"&$U90,tsdata!$A:$DT,AE$4,FALSE) -> 19.9604929 | AF90: =VLOOKUP(AF$2&"--"&$U90,tsdata!$A:$DT,AF$4,FALSE) -> 14.81124067 | AG90: =VLOOKUP(AG$2&"--"&$U90,tsdata!$A:$DT,AG$4,FALSE) -> 24.81734784
U91: 2011-09-30 | V91: =VLOOKUP(V$2&"--"&$U91,tsdata!$A:$DT,V$4,FALSE) -> 16.245 | W91: =VLOOKUP(W$2&"--"&$U91,tsdata!$A:$DT,W$4,FALSE) -> 14.245 | X91: =VLOOKUP(X$2&"--"&$U91,tsdata!$A:$DT,X$4,FALSE) -> 18.5225 | Y91: =VLOOKUP(Y$2&"--"&$U91,tsdata!$A:$DT,Y$4,FALSE) -> 107.9589951 | Z91: =VLOOKUP(Z$2&"--"&$U91,tsdata!$A:$DT,Z$4,FALSE) -> 69.77939167 | AA91: =VLOOKUP(AA$2&"--"&$U91,tsdata!$A:$DT,AA$4,FALSE) -> 170.934157 | AB91: =VLOOKUP(AB$2&"--"&$U91,tsdata!$A:$DT,AB$4,FALSE) -> 4.17 | AC91: =VLOOKUP(AC$2&"--"&$U91,tsdata!$A:$DT,AC$4,FALSE) -> 3.7725 | AD91: =VLOOKUP(AD$2&"--"&$U91,tsdata!$A:$DT,AD$4,FALSE) -> 4.54 | AE91: =VLOOKUP(AE$2&"--"&$U91,tsdata!$A:$DT,AE$4,FALSE) -> 19.15163643 | AF91: =VLOOKUP(AF$2&"--"&$U91,tsdata!$A:$DT,AF$4,FALSE) -> 14.05541167 | AG91: =VLOOKUP(AG$2&"--"&$U91,tsdata!$A:$DT,AG$4,FALSE) -> 23.67162877
U92: 2011-12-31 | V92: =VLOOKUP(V$2&"--"&$U92,tsdata!$A:$DT,V$4,FALSE) -> 16.595 | W92: =VLOOKUP(W$2&"--"&$U92,tsdata!$A:$DT,W$4,FALSE) -> 14.6825 | X92: =VLOOKUP(X$2&"--"&$U92,tsdata!$A:$DT,X$4,FALSE) -> 19.0175 | Y92: =VLOOKUP(Y$2&"--"&$U92,tsdata!$A:$DT,Y$4,FALSE) -> 109.0179595 | Z92: =VLOOKUP(Z$2&"--"&$U92,tsdata!$A:$DT,Z$4,FALSE) -> 65.29945624 | AA92: =VLOOKUP(AA$2&"--"&$U92,tsdata!$A:$DT,AA$4,FALSE) -> 237.3783922 | AB92: =VLOOKUP(AB$2&"--"&$U92,tsdata!$A:$DT,AB$4,FALSE) -> 4.09 | AC92: =VLOOKUP(AC$2&"--"&$U92,tsdata!$A:$DT,AC$4,FALSE) -> 3.7 | AD92: =VLOOKUP(AD$2&"--"&$U92,tsdata!$A:$DT,AD$4,FALSE) -> 4.49 | AE92: =VLOOKUP(AE$2&"--"&$U92,tsdata!$A:$DT,AE$4,FALSE) -> 18.08350492 | AF92: =VLOOKUP(AF$2&"--"&$U92,tsdata!$A:$DT,AF$4,FALSE) -> 13.65940161 | AG92: =VLOOKUP(AG$2&"--"&$U92,tsdata!$A:$DT,AG$4,FALSE) -> 22.70673296
U93: 2012-03-31 | V93: =VLOOKUP(V$2&"--"&$U93,tsdata!$A:$DT,V$4,FALSE) -> 17.02 | W93: =VLOOKUP(W$2&"--"&$U93,tsdata!$A:$DT,W$4,FALSE) -> 14.79 | X93: =VLOOKUP(X$2&"--"&$U93,tsdata!$A:$DT,X$4,FALSE) -> 19.44 | Y93: =VLOOKUP(Y$2&"--"&$U93,tsdata!$A:$DT,Y$4,FALSE) -> 107.7220182 | Z93: =VLOOKUP(Z$2&"--"&$U93,tsdata!$A:$DT,Z$4,FALSE) -> 76.26285498 | AA93: =VLOOKUP(AA$2&"--"&$U93,tsdata!$A:$DT,AA$4,FALSE) -> 249.6902904 | AB93: =VLOOKUP(AB$2&"--"&$U93,tsdata!$A:$DT,AB$4,FALSE) -> 3.89 | AC93: =VLOOKUP(AC$2&"--"&$U93,tsdata!$A:$DT,AC$4,FALSE) -> 3.62 | AD93: =VLOOKUP(AD$2&"--"&$U93,tsdata!$A:$DT,AD$4,FALSE) -> 4.41 | AE93: =VLOOKUP(AE$2&"--"&$U93,tsdata!$A:$DT,AE$4,FALSE) -> 18.11267999 | AF93: =VLOOKUP(AF$2&"--"&$U93,tsdata!$A:$DT,AF$4,FALSE) -> 12.29129291 | AG93: =VLOOKUP(AG$2&"--"&$U93,tsdata!$A:$DT,AG$4,FALSE) -> 22.7589545
U94: 2012-06-30 | V94: =VLOOKUP(V$2&"--"&$U94,tsdata!$A:$DT,V$4,FALSE) -> 16.825 | W94: =VLOOKUP(W$2&"--"&$U94,tsdata!$A:$DT,W$4,FALSE) -> 14.56 | X94: =VLOOKUP(X$2&"--"&$U94,tsdata!$A:$DT,X$4,FALSE) -> 18.665 | Y94: =VLOOKUP(Y$2&"--"&$U94,tsdata!$A:$DT,Y$4,FALSE) -> 115.3550864 | Z94: =VLOOKUP(Z$2&"--"&$U94,tsdata!$A:$DT,Z$4,FALSE) -> 75.02774327 | AA94: =VLOOKUP(AA$2&"--"&$U94,tsdata!$A:$DT,AA$4,FALSE) -> 265.3229901 | AB94: =VLOOKUP(AB$2&"--"&$U94,tsdata!$A:$DT,AB$4,FALSE) -> 4 | AC94: =VLOOKUP(AC$2&"--"&$U94,tsdata!$A:$DT,AC$4,FALSE) -> 3.65 | AD94: =VLOOKUP(AD$2&"--"&$U94,tsdata!$A:$DT,AD$4,FALSE) -> 4.4075 | AE94: =VLOOKUP(AE$2&"--"&$U94,tsdata!$A:$DT,AE$4,FALSE) -> 17.26911384 | AF94: =VLOOKUP(AF$2&"--"&$U94,tsdata!$A:$DT,AF$4,FALSE) -> 11.92589883 | AG94: =VLOOKUP(AG$2&"--"&$U94,tsdata!$A:$DT,AG$4,FALSE) -> 20.90084848
U95: 2012-09-30 | V95: =VLOOKUP(V$2&"--"&$U95,tsdata!$A:$DT,V$4,FALSE) -> 17.27 | W95: =VLOOKUP(W$2&"--"&$U95,tsdata!$A:$DT,W$4,FALSE) -> 14.84 | X95: =VLOOKUP(X$2&"--"&$U95,tsdata!$A:$DT,X$4,FALSE) -> 19.58 | Y95: =VLOOKUP(Y$2&"--"&$U95,tsdata!$A:$DT,Y$4,FALSE) -> 112.1022856 | Z95: =VLOOKUP(Z$2&"--"&$U95,tsdata!$A:$DT,Z$4,FALSE) -> 81.17480538 | AA95: =VLOOKUP(AA$2&"--"&$U95,tsdata!$A:$DT,AA$4,FALSE) -> 244.4250349 | AB95: =VLOOKUP(AB$2&"--"&$U95,tsdata!$A:$DT,AB$4,FALSE) -> 3.99 | AC95: =VLOOKUP(AC$2&"--"&$U95,tsdata!$A:$DT,AC$4,FALSE) -> 3.69 | AD95: =VLOOKUP(AD$2&"--"&$U95,tsdata!$A:$DT,AD$4,FALSE) -> 4.36 | AE95: =VLOOKUP(AE$2&"--"&$U95,tsdata!$A:$DT,AE$4,FALSE) -> 16.08891241 | AF95: =VLOOKUP(AF$2&"--"&$U95,tsdata!$A:$DT,AF$4,FALSE) -> 11.78592438 | AG95: =VLOOKUP(AG$2&"--"&$U95,tsdata!$A:$DT,AG$4,FALSE) -> 21.29611974
U96: 2012-12-31 | V96: =VLOOKUP(V$2&"--"&$U96,tsdata!$A:$DT,V$4,FALSE) -> 17.39 | W96: =VLOOKUP(W$2&"--"&$U96,tsdata!$A:$DT,W$4,FALSE) -> 14.92 | X96: =VLOOKUP(X$2&"--"&$U96,tsdata!$A:$DT,X$4,FALSE) -> 19.69 | Y96: =VLOOKUP(Y$2&"--"&$U96,tsdata!$A:$DT,Y$4,FALSE) -> 109.4228676 | Z96: =VLOOKUP(Z$2&"--"&$U96,tsdata!$A:$DT,Z$4,FALSE) -> 66.13910382 | AA96: =VLOOKUP(AA$2&"--"&$U96,tsdata!$A:$DT,AA$4,FALSE) -> 263.0596762 | AB96: =VLOOKUP(AB$2&"--"&$U96,tsdata!$A:$DT,AB$4,FALSE) -> 3.93 | AC96: =VLOOKUP(AC$2&"--"&$U96,tsdata!$A:$DT,AC$4,FALSE) -> 3.61 | AD96: =VLOOKUP(AD$2&"--"&$U96,tsdata!$A:$DT,AD$4,FALSE) -> 4.32 | AE96: =VLOOKUP(AE$2&"--"&$U96,tsdata!$A:$DT,AE$4,FALSE) -> 15.21436513 | AF96: =VLOOKUP(AF$2&"--"&$U96,tsdata!$A:$DT,AF$4,FALSE) -> 11.88106589 | AG96: =VLOOKUP(AG$2&"--"&$U96,tsdata!$A:$DT,AG$4,FALSE) -> 19.52726448
U97: 2013-03-31 | V97: =VLOOKUP(V$2&"--"&$U97,tsdata!$A:$DT,V$4,FALSE) -> 18.005 | W97: =VLOOKUP(W$2&"--"&$U97,tsdata!$A:$DT,W$4,FALSE) -> 15.7525 | X97: =VLOOKUP(X$2&"--"&$U97,tsdata!$A:$DT,X$4,FALSE) -> 19.775 | Y97: =VLOOKUP(Y$2&"--"&$U97,tsdata!$A:$DT,Y$4,FALSE) -> 116.8067582 | Z97: =VLOOKUP(Z$2&"--"&$U97,tsdata!$A:$DT,Z$4,FALSE) -> 67.49461722 | AA97: =VLOOKUP(AA$2&"--"&$U97,tsdata!$A:$DT,AA$4,FALSE) -> 243.1738367 | AB97: =VLOOKUP(AB$2&"--"&$U97,tsdata!$A:$DT,AB$4,FALSE) -> 3.595 | AC97: =VLOOKUP(AC$2&"--"&$U97,tsdata!$A:$DT,AC$4,FALSE) -> 3.25 | AD97: =VLOOKUP(AD$2&"--"&$U97,tsdata!$A:$DT,AD$4,FALSE) -> 3.9425 | AE97: =VLOOKUP(AE$2&"--"&$U97,tsdata!$A:$DT,AE$4,FALSE) -> 15.30277642 | AF97: =VLOOKUP(AF$2&"--"&$U97,tsdata!$A:$DT,AF$4,FALSE) -> 10.6555048 | AG97: =VLOOKUP(AG$2&"--"&$U97,tsdata!$A:$DT,AG$4,FALSE) -> 19.01966496
U98: 2013-06-30 | V98: =VLOOKUP(V$2&"--"&$U98,tsdata!$A:$DT,V$4,FALSE) -> 17.66 | W98: =VLOOKUP(W$2&"--"&$U98,tsdata!$A:$DT,W$4,FALSE) -> 15.315 | X98: =VLOOKUP(X$2&"--"&$U98,tsdata!$A:$DT,X$4,FALSE) -> 19.595 | Y98: =VLOOKUP(Y$2&"--"&$U98,tsdata!$A:$DT,Y$4,FALSE) -> 138.8563866 | Z98: =VLOOKUP(Z$2&"--"&$U98,tsdata!$A:$DT,Z$4,FALSE) -> 86.76096821 | AA98: =VLOOKUP(AA$2&"--"&$U98,tsdata!$A:$DT,AA$4,FALSE) -> 228.5460993 | AB98: =VLOOKUP(AB$2&"--"&$U98,tsdata!$A:$DT,AB$4,FALSE) -> 3.68 | AC98: =VLOOKUP(AC$2&"--"&$U98,tsdata!$A:$DT,AC$4,FALSE) -> 3.355 | AD98: =VLOOKUP(AD$2&"--"&$U98,tsdata!$A:$DT,AD$4,FALSE) -> 4.015 | AE98: =VLOOKUP(AE$2&"--"&$U98,tsdata!$A:$DT,AE$4,FALSE) -> 14.9990235 | AF98: =VLOOKUP(AF$2&"--"&$U98,tsdata!$A:$DT,AF$4,FALSE) -> 10.69693306 | AG98: =VLOOKUP(AG$2&"--"&$U98,tsdata!$A:$DT,AG$4,FALSE) -> 19.45110784
U99: 2013-09-30 | V99: =VLOOKUP(V$2&"--"&$U99,tsdata!$A:$DT,V$4,FALSE) -> 18.04 | W99: =VLOOKUP(W$2&"--"&$U99,tsdata!$A:$DT,W$4,FALSE) -> 15.045 | X99: =VLOOKUP(X$2&"--"&$U99,tsdata!$A:$DT,X$4,FALSE) -> 20.035 | Y99: =VLOOKUP(Y$2&"--"&$U99,tsdata!$A:$DT,Y$4,FALSE) -> 142.1447169 | Z99: =VLOOKUP(Z$2&"--"&$U99,tsdata!$A:$DT,Z$4,FALSE) -> 79.27805489 | AA99: =VLOOKUP(AA$2&"--"&$U99,tsdata!$A:$DT,AA$4,FALSE) -> 246.7598051 | AB99: =VLOOKUP(AB$2&"--"&$U99,tsdata!$A:$DT,AB$4,FALSE) -> 3.7 | AC99: =VLOOKUP(AC$2&"--"&$U99,tsdata!$A:$DT,AC$4,FALSE) -> 3.395 | AD99: =VLOOKUP(AD$2&"--"&$U99,tsdata!$A:$DT,AD$4,FALSE) -> 4.065 | AE99: =VLOOKUP(AE$2&"--"&$U99,tsdata!$A:$DT,AE$4,FALSE) -> 15.01963641 | AF99: =VLOOKUP(AF$2&"--"&$U99,tsdata!$A:$DT,AF$4,FALSE) -> 10.8126608 | AG99: =VLOOKUP(AG$2&"--"&$U99,tsdata!$A:$DT,AG$4,FALSE) -> 19.74541136
U100: 2013-12-31 | V100: =VLOOKUP(V$2&"--"&$U100,tsdata!$A:$DT,V$4,FALSE) -> 18.17 | W100: =VLOOKUP(W$2&"--"&$U100,tsdata!$A:$DT,W$4,FALSE) -> 14.835 | X100: =VLOOKUP(X$2&"--"&$U100,tsdata!$A:$DT,X$4,FALSE) -> 20.18 | Y100: =VLOOKUP(Y$2&"--"&$U100,tsdata!$A:$DT,Y$4,FALSE) -> 159.8711646 | Z100: =VLOOKUP(Z$2&"--"&$U100,tsdata!$A:$DT,Z$4,FALSE) -> 83.28999283 | AA100: =VLOOKUP(AA$2&"--"&$U100,tsdata!$A:$DT,AA$4,FALSE) -> 275.9106054 | AB100: =VLOOKUP(AB$2&"--"&$U100,tsdata!$A:$DT,AB$4,FALSE) -> 3.715 | AC100: =VLOOKUP(AC$2&"--"&$U100,tsdata!$A:$DT,AC$4,FALSE) -> 3.455 | AD100: =VLOOKUP(AD$2&"--"&$U100,tsdata!$A:$DT,AD$4,FALSE) -> 4.045 | AE100: =VLOOKUP(AE$2&"--"&$U100,tsdata!$A:$DT,AE$4,FALSE) -> 13.80441361 | AF100: =VLOOKUP(AF$2&"--"&$U100,tsdata!$A:$DT,AF$4,FALSE) -> 9.918285337 | AG100: =VLOOKUP(AG$2&"--"&$U100,tsdata!$A:$DT,AG$4,FALSE) -> 17.40336411
U101: 2014-03-31 | V101: =VLOOKUP(V$2&"--"&$U101,tsdata!$A:$DT,V$4,FALSE) -> 18.3 | W101: =VLOOKUP(W$2&"--"&$U101,tsdata!$A:$DT,W$4,FALSE) -> 15.6475 | X101: =VLOOKUP(X$2&"--"&$U101,tsdata!$A:$DT,X$4,FALSE) -> 20.4375 | Y101: =VLOOKUP(Y$2&"--"&$U101,tsdata!$A:$DT,Y$4,FALSE) -> 170.0772899 | Z101: =VLOOKUP(Z$2&"--"&$U101,tsdata!$A:$DT,Z$4,FALSE) -> 80.72215815 | AA101: =VLOOKUP(AA$2&"--"&$U101,tsdata!$A:$DT,AA$4,FALSE) -> 341.0220829 | AB101: =VLOOKUP(AB$2&"--"&$U101,tsdata!$A:$DT,AB$4,FALSE) -> 3.67 | AC101: =VLOOKUP(AC$2&"--"&$U101,tsdata!$A:$DT,AC$4,FALSE) -> 3.3525 | AD101: =VLOOKUP(AD$2&"--"&$U101,tsdata!$A:$DT,AD$4,FALSE) -> 3.9625 | AE101: =VLOOKUP(AE$2&"--"&$U101,tsdata!$A:$DT,AE$4,FALSE) -> 13.33769 | AF101: =VLOOKUP(AF$2&"--"&$U101,tsdata!$A:$DT,AF$4,FALSE) -> 10.12652619 | AG101: =VLOOKUP(AG$2&"--"&$U101,tsdata!$A:$DT,AG$4,FALSE) -> 17.35151917
U102: 2014-06-30 | V102: =VLOOKUP(V$2&"--"&$U102,tsdata!$A:$DT,V$4,FALSE) -> 17.34 | W102: =VLOOKUP(W$2&"--"&$U102,tsdata!$A:$DT,W$4,FALSE) -> 15.105 | X102: =VLOOKUP(X$2&"--"&$U102,tsdata!$A:$DT,X$4,FALSE) -> 19.53 | Y102: =VLOOKUP(Y$2&"--"&$U102,tsdata!$A:$DT,Y$4,FALSE) -> 178.6941581 | Z102: =VLOOKUP(Z$2&"--"&$U102,tsdata!$A:$DT,Z$4,FALSE) -> 85.40899705 | AA102: =VLOOKUP(AA$2&"--"&$U102,tsdata!$A:$DT,AA$4,FALSE) -> 310.9273738 | AB102: =VLOOKUP(AB$2&"--"&$U102,tsdata!$A:$DT,AB$4,FALSE) -> 3.73 | AC102: =VLOOKUP(AC$2&"--"&$U102,tsdata!$A:$DT,AC$4,FALSE) -> 3.425 | AD102: =VLOOKUP(AD$2&"--"&$U102,tsdata!$A:$DT,AD$4,FALSE) -> 4.02 | AE102: =VLOOKUP(AE$2&"--"&$U102,tsdata!$A:$DT,AE$4,FALSE) -> 13.24633437 | AF102: =VLOOKUP(AF$2&"--"&$U102,tsdata!$A:$DT,AF$4,FALSE) -> 9.991895181 | AG102: =VLOOKUP(AG$2&"--"&$U102,tsdata!$A:$DT,AG$4,FALSE) -> 18.92699884
U103: 2014-09-30 | V103: =VLOOKUP(V$2&"--"&$U103,tsdata!$A:$DT,V$4,FALSE) -> 17.54 | W103: =VLOOKUP(W$2&"--"&$U103,tsdata!$A:$DT,W$4,FALSE) -> 15.175 | X103: =VLOOKUP(X$2&"--"&$U103,tsdata!$A:$DT,X$4,FALSE) -> 19.5975 | Y103: =VLOOKUP(Y$2&"--"&$U103,tsdata!$A:$DT,Y$4,FALSE) -> 186.0251937 | Z103: =VLOOKUP(Z$2&"--"&$U103,tsdata!$A:$DT,Z$4,FALSE) -> 91.62409733 | AA103: =VLOOKUP(AA$2&"--"&$U103,tsdata!$A:$DT,AA$4,FALSE) -> 592.4361314 | AB103: =VLOOKUP(AB$2&"--"&$U103,tsdata!$A:$DT,AB$4,FALSE) -> 3.795 | AC103: =VLOOKUP(AC$2&"--"&$U103,tsdata!$A:$DT,AC$4,FALSE) -> 3.4675 | AD103: =VLOOKUP(AD$2&"--"&$U103,tsdata!$A:$DT,AD$4,FALSE) -> 4.0875 | AE103: =VLOOKUP(AE$2&"--"&$U103,tsdata!$A:$DT,AE$4,FALSE) -> 13.69104116 | AF103: =VLOOKUP(AF$2&"--"&$U103,tsdata!$A:$DT,AF$4,FALSE) -> 9.838956508 | AG103: =VLOOKUP(AG$2&"--"&$U103,tsdata!$A:$DT,AG$4,FALSE) -> 20.90331699
U104: 2014-12-31 | V104: =VLOOKUP(V$2&"--"&$U104,tsdata!$A:$DT,V$4,FALSE) -> 17.53 | W104: =VLOOKUP(W$2&"--"&$U104,tsdata!$A:$DT,W$4,FALSE) -> 15.06 | X104: =VLOOKUP(X$2&"--"&$U104,tsdata!$A:$DT,X$4,FALSE) -> 19.61 | Y104: =VLOOKUP(Y$2&"--"&$U104,tsdata!$A:$DT,Y$4,FALSE) -> 196.398892 | Z104: =VLOOKUP(Z$2&"--"&$U104,tsdata!$A:$DT,Z$4,FALSE) -> 95.45454545 | AA104: =VLOOKUP(AA$2&"--"&$U104,tsdata!$A:$DT,AA$4,FALSE) -> 467.6470588 | AB104: =VLOOKUP(AB$2&"--"&$U104,tsdata!$A:$DT,AB$4,FALSE) -> 3.79 | AC104: =VLOOKUP(AC$2&"--"&$U104,tsdata!$A:$DT,AC$4,FALSE) -> 3.46 | AD104: =VLOOKUP(AD$2&"--"&$U104,tsdata!$A:$DT,AD$4,FALSE) -> 4.12 | AE104: =VLOOKUP(AE$2&"--"&$U104,tsdata!$A:$DT,AE$4,FALSE) -> 13.3019569 | AF104: =VLOOKUP(AF$2&"--"&$U104,tsdata!$A:$DT,AF$4,FALSE) -> 9.382950282 | AG104: =VLOOKUP(AG$2&"--"&$U104,tsdata!$A:$DT,AG$4,FALSE) -> 18.58085944
U105: 2015-03-31 | V105: =VLOOKUP(V$2&"--"&$U105,tsdata!$A:$DT,V$4,FALSE) -> 17.38 | W105: =VLOOKUP(W$2&"--"&$U105,tsdata!$A:$DT,W$4,FALSE) -> 14.57 | X105: =VLOOKUP(X$2&"--"&$U105,tsdata!$A:$DT,X$4,FALSE) -> 19.75 | Y105: =VLOOKUP(Y$2&"--"&$U105,tsdata!$A:$DT,Y$4,FALSE) -> 261.8374558 | Z105: =VLOOKUP(Z$2&"--"&$U105,tsdata!$A:$DT,Z$4,FALSE) -> 110.9206113 | AA105: =VLOOKUP(AA$2&"--"&$U105,tsdata!$A:$DT,AA$4,FALSE) -> 773.6842105 | AB105: =VLOOKUP(AB$2&"--"&$U105,tsdata!$A:$DT,AB$4,FALSE) -> 3.59 | AC105: =VLOOKUP(AC$2&"--"&$U105,tsdata!$A:$DT,AC$4,FALSE) -> 3.41 | AD105: =VLOOKUP(AD$2&"--"&$U105,tsdata!$A:$DT,AD$4,FALSE) -> 4.02 | AE105: =VLOOKUP(AE$2&"--"&$U105,tsdata!$A:$DT,AE$4,FALSE) -> 13.87088314 | AF105: =VLOOKUP(AF$2&"--"&$U105,tsdata!$A:$DT,AF$4,FALSE) -> 9.048243495 | AG105: =VLOOKUP(AG$2&"--"&$U105,tsdata!$A:$DT,AG$4,FALSE) -> 20.65671857
U106: 2015-06-30 | V106: =VLOOKUP(V$2&"--"&$U106,tsdata!$A:$DT,V$4,FALSE) -> 17.21 | W106: =VLOOKUP(W$2&"--"&$U106,tsdata!$A:$DT,W$4,FALSE) -> 14.35 | X106: =VLOOKUP(X$2&"--"&$U106,tsdata!$A:$DT,X$4,FALSE) -> 18.8 | Y106: =VLOOKUP(Y$2&"--"&$U106,tsdata!$A:$DT,Y$4,FALSE) -> 219.01566 | Z106: =VLOOKUP(Z$2&"--"&$U106,tsdata!$A:$DT,Z$4,FALSE) -> 107.9504594 | AA106: =VLOOKUP(AA$2&"--"&$U106,tsdata!$A:$DT,AA$4,FALSE) -> 607.2463768 | AB106: =VLOOKUP(AB$2&"--"&$U106,tsdata!$A:$DT,AB$4,FALSE) -> 3.66 | AC106: =VLOOKUP(AC$2&"--"&$U106,tsdata!$A:$DT,AC$4,FALSE) -> 3.435 | AD106: =VLOOKUP(AD$2&"--"&$U106,tsdata!$A:$DT,AD$4,FALSE) -> 4.105 | AE106: =VLOOKUP(AE$2&"--"&$U106,tsdata!$A:$DT,AE$4,FALSE) -> 14.39727204 | AF106: =VLOOKUP(AF$2&"--"&$U106,tsdata!$A:$DT,AF$4,FALSE) -> 10.18653812 | AG106: =VLOOKUP(AG$2&"--"&$U106,tsdata!$A:$DT,AG$4,FALSE) -> 21.44480321
U107: 2015-09-30 | V107: =VLOOKUP(V$2&"--"&$U107,tsdata!$A:$DT,V$4,FALSE) -> 17.01 | W107: =VLOOKUP(W$2&"--"&$U107,tsdata!$A:$DT,W$4,FALSE) -> 14.16 | X107: =VLOOKUP(X$2&"--"&$U107,tsdata!$A:$DT,X$4,FALSE) -> 19.27 | Y107: =VLOOKUP(Y$2&"--"&$U107,tsdata!$A:$DT,Y$4,FALSE) -> 216.5847534 | Z107: =VLOOKUP(Z$2&"--"&$U107,tsdata!$A:$DT,Z$4,FALSE) -> 114.7412264 | AA107: =VLOOKUP(AA$2&"--"&$U107,tsdata!$A:$DT,AA$4,FALSE) -> 587.8883556 | AB107: =VLOOKUP(AB$2&"--"&$U107,tsdata!$A:$DT,AB$4,FALSE) -> 3.71 | AC107: =VLOOKUP(AC$2&"--"&$U107,tsdata!$A:$DT,AC$4,FALSE) -> 3.52 | AD107: =VLOOKUP(AD$2&"--"&$U107,tsdata!$A:$DT,AD$4,FALSE) -> 4.14 | AE107: =VLOOKUP(AE$2&"--"&$U107,tsdata!$A:$DT,AE$4,FALSE) -> 14.07614052 | AF107: =VLOOKUP(AF$2&"--"&$U107,tsdata!$A:$DT,AF$4,FALSE) -> 9.091516589 | AG107: =VLOOKUP(AG$2&"--"&$U107,tsdata!$A:$DT,AG$4,FALSE) -> 21.27791347
U108: 2015-12-31 | V108: =VLOOKUP(V$2&"--"&$U108,tsdata!$A:$DT,V$4,FALSE) -> 17.46 | W108: =VLOOKUP(W$2&"--"&$U108,tsdata!$A:$DT,W$4,FALSE) -> 14.09 | X108: =VLOOKUP(X$2&"--"&$U108,tsdata!$A:$DT,X$4,FALSE) -> 19.075 | Y108: =VLOOKUP(Y$2&"--"&$U108,tsdata!$A:$DT,Y$4,FALSE) -> 265.1515152 | Z108: =VLOOKUP(Z$2&"--"&$U108,tsdata!$A:$DT,Z$4,FALSE) -> 133.3333333 | AA108: =VLOOKUP(AA$2&"--"&$U108,tsdata!$A:$DT,AA$4,FALSE) -> 761.160221 | AB108: =VLOOKUP(AB$2&"--"&$U108,tsdata!$A:$DT,AB$4,FALSE) -> 3.755 | AC108: =VLOOKUP(AC$2&"--"&$U108,tsdata!$A:$DT,AC$4,FALSE) -> 3.51 | AD108: =VLOOKUP(AD$2&"--"&$U108,tsdata!$A:$DT,AD$4,FALSE) -> 4.145 | AE108: =VLOOKUP(AE$2&"--"&$U108,tsdata!$A:$DT,AE$4,FALSE) -> 13.25045214 | AF108: =VLOOKUP(AF$2&"--"&$U108,tsdata!$A:$DT,AF$4,FALSE) -> 8.718996043 | AG108: =VLOOKUP(AG$2&"--"&$U108,tsdata!$A:$DT,AG$4,FALSE) -> 19.05377919
U109: 2016-03-31 | V109: =VLOOKUP(V$2&"--"&$U109,tsdata!$A:$DT,V$4,FALSE) -> 17.01 | W109: =VLOOKUP(W$2&"--"&$U109,tsdata!$A:$DT,W$4,FALSE) -> 14.22 | X109: =VLOOKUP(X$2&"--"&$U109,tsdata!$A:$DT,X$4,FALSE) -> 19.89 | Y109: =VLOOKUP(Y$2&"--"&$U109,tsdata!$A:$DT,Y$4,FALSE) -> 169.7160883 | Z109: =VLOOKUP(Z$2&"--"&$U109,tsdata!$A:$DT,Z$4,FALSE) -> 117.4059788 | AA109: =VLOOKUP(AA$2&"--"&$U109,tsdata!$A:$DT,AA$4,FALSE) -> 480.03663 | AB109: =VLOOKUP(AB$2&"--"&$U109,tsdata!$A:$DT,AB$4,FALSE) -> 3.76 | AC109: =VLOOKUP(AC$2&"--"&$U109,tsdata!$A:$DT,AC$4,FALSE) -> 3.55 | AD109: =VLOOKUP(AD$2&"--"&$U109,tsdata!$A:$DT,AD$4,FALSE) -> 4.07 | AE109: =VLOOKUP(AE$2&"--"&$U109,tsdata!$A:$DT,AE$4,FALSE) -> 12.46725931 | AF109: =VLOOKUP(AF$2&"--"&$U109,tsdata!$A:$DT,AF$4,FALSE) -> 8.556613851 | AG109: =VLOOKUP(AG$2&"--"&$U109,tsdata!$A:$DT,AG$4,FALSE) -> 16.49277039
U110: 2016-06-30 | V110: =VLOOKUP(V$2&"--"&$U110,tsdata!$A:$DT,V$4,FALSE) -> 17.06 | W110: =VLOOKUP(W$2&"--"&$U110,tsdata!$A:$DT,W$4,FALSE) -> 14.37 | X110: =VLOOKUP(X$2&"--"&$U110,tsdata!$A:$DT,X$4,FALSE) -> 19.6 | Y110: =VLOOKUP(Y$2&"--"&$U110,tsdata!$A:$DT,Y$4,FALSE) -> 192.4480821 | Z110: =VLOOKUP(Z$2&"--"&$U110,tsdata!$A:$DT,Z$4,FALSE) -> 117.4735883 | AA110: =VLOOKUP(AA$2&"--"&$U110,tsdata!$A:$DT,AA$4,FALSE) -> 538.2981602 | AB110: =VLOOKUP(AB$2&"--"&$U110,tsdata!$A:$DT,AB$4,FALSE) -> 3.86 | AC110: =VLOOKUP(AC$2&"--"&$U110,tsdata!$A:$DT,AC$4,FALSE) -> 3.59 | AD110: =VLOOKUP(AD$2&"--"&$U110,tsdata!$A:$DT,AD$4,FALSE) -> 4.11 | AE110: =VLOOKUP(AE$2&"--"&$U110,tsdata!$A:$DT,AE$4,FALSE) -> 12.9715889 | AF110: =VLOOKUP(AF$2&"--"&$U110,tsdata!$A:$DT,AF$4,FALSE) -> 8.787892949 | AG110: =VLOOKUP(AG$2&"--"&$U110,tsdata!$A:$DT,AG$4,FALSE) -> 18.77101233
U111: 2016-09-30 | V111: =VLOOKUP(V$2&"--"&$U111,tsdata!$A:$DT,V$4,FALSE) -> 17.22 | W111: =VLOOKUP(W$2&"--"&$U111,tsdata!$A:$DT,W$4,FALSE) -> 14.2275 | X111: =VLOOKUP(X$2&"--"&$U111,tsdata!$A:$DT,X$4,FALSE) -> 19.74 | Y111: =VLOOKUP(Y$2&"--"&$U111,tsdata!$A:$DT,Y$4,FALSE) -> 205.106383 | Z111: =VLOOKUP(Z$2&"--"&$U111,tsdata!$A:$DT,Z$4,FALSE) -> 121.7435109 | AA111: =VLOOKUP(AA$2&"--"&$U111,tsdata!$A:$DT,AA$4,FALSE) -> 591.9354839 | AB111: =VLOOKUP(AB$2&"--"&$U111,tsdata!$A:$DT,AB$4,FALSE) -> 3.835 | AC111: =VLOOKUP(AC$2&"--"&$U111,tsdata!$A:$DT,AC$4,FALSE) -> 3.595 | AD111: =VLOOKUP(AD$2&"--"&$U111,tsdata!$A:$DT,AD$4,FALSE) -> 4.1425 | AE111: =VLOOKUP(AE$2&"--"&$U111,tsdata!$A:$DT,AE$4,FALSE) -> 12.6815078 | AF111: =VLOOKUP(AF$2&"--"&$U111,tsdata!$A:$DT,AF$4,FALSE) -> 8.442928529 | AG111: =VLOOKUP(AG$2&"--"&$U111,tsdata!$A:$DT,AG$4,FALSE) -> 21.10243502
U112: 2016-12-31 | V112: =VLOOKUP(V$2&"--"&$U112,tsdata!$A:$DT,V$4,FALSE) -> 16.46 | W112: =VLOOKUP(W$2&"--"&$U112,tsdata!$A:$DT,W$4,FALSE) -> 14.045 | X112: =VLOOKUP(X$2&"--"&$U112,tsdata!$A:$DT,X$4,FALSE) -> 20.0575 | Y112: =VLOOKUP(Y$2&"--"&$U112,tsdata!$A:$DT,Y$4,FALSE) -> 189.9815852 | Z112: =VLOOKUP(Z$2&"--"&$U112,tsdata!$A:$DT,Z$4,FALSE) -> 128.4335805 | AA112: =VLOOKUP(AA$2&"--"&$U112,tsdata!$A:$DT,AA$4,FALSE) -> 544.2046149 | AB112: =VLOOKUP(AB$2&"--"&$U112,tsdata!$A:$DT,AB$4,FALSE) -> 3.845 | AC112: =VLOOKUP(AC$2&"--"&$U112,tsdata!$A:$DT,AC$4,FALSE) -> 3.6025 | AD112: =VLOOKUP(AD$2&"--"&$U112,tsdata!$A:$DT,AD$4,FALSE) -> 4.135 | AE112: =VLOOKUP(AE$2&"--"&$U112,tsdata!$A:$DT,AE$4,FALSE) -> 12.42569125 | AF112: =VLOOKUP(AF$2&"--"&$U112,tsdata!$A:$DT,AF$4,FALSE) -> 7.97882316 | AG112: =VLOOKUP(AG$2&"--"&$U112,tsdata!$A:$DT,AG$4,FALSE) -> 17.92310259
U113: 2017-03-31 | V113: =VLOOKUP(V$2&"--"&$U113,tsdata!$A:$DT,V$4,FALSE) -> 16.3 | W113: =VLOOKUP(W$2&"--"&$U113,tsdata!$A:$DT,W$4,FALSE) -> 14.35 | X113: =VLOOKUP(X$2&"--"&$U113,tsdata!$A:$DT,X$4,FALSE) -> 19.815 | Y113: =VLOOKUP(Y$2&"--"&$U113,tsdata!$A:$DT,Y$4,FALSE) -> 172.9715052 | Z113: =VLOOKUP(Z$2&"--"&$U113,tsdata!$A:$DT,Z$4,FALSE) -> 128.212004 | AA113: =VLOOKUP(AA$2&"--"&$U113,tsdata!$A:$DT,AA$4,FALSE) -> 375.2767086 | AB113: =VLOOKUP(AB$2&"--"&$U113,tsdata!$A:$DT,AB$4,FALSE) -> 3.64 | AC113: =VLOOKUP(AC$2&"--"&$U113,tsdata!$A:$DT,AC$4,FALSE) -> 3.465 | AD113: =VLOOKUP(AD$2&"--"&$U113,tsdata!$A:$DT,AD$4,FALSE) -> 3.985 | AE113: =VLOOKUP(AE$2&"--"&$U113,tsdata!$A:$DT,AE$4,FALSE) -> 13.13291449 | AF113: =VLOOKUP(AF$2&"--"&$U113,tsdata!$A:$DT,AF$4,FALSE) -> 7.508577773 | AG113: =VLOOKUP(AG$2&"--"&$U113,tsdata!$A:$DT,AG$4,FALSE) -> 19.14603225
U114: 2017-06-30 | V114: =VLOOKUP(V$2&"--"&$U114,tsdata!$A:$DT,V$4,FALSE) -> 15.58 | W114: =VLOOKUP(W$2&"--"&$U114,tsdata!$A:$DT,W$4,FALSE) -> 14.18 | X114: =VLOOKUP(X$2&"--"&$U114,tsdata!$A:$DT,X$4,FALSE) -> 19.3 | Y114: =VLOOKUP(Y$2&"--"&$U114,tsdata!$A:$DT,Y$4,FALSE) -> 180.1104449 | Z114: =VLOOKUP(Z$2&"--"&$U114,tsdata!$A:$DT,Z$4,FALSE) -> 129.8156124 | AA114: =VLOOKUP(AA$2&"--"&$U114,tsdata!$A:$DT,AA$4,FALSE) -> 403.75153 | AB114: =VLOOKUP(AB$2&"--"&$U114,tsdata!$A:$DT,AB$4,FALSE) -> 3.73 | AC114: =VLOOKUP(AC$2&"--"&$U114,tsdata!$A:$DT,AC$4,FALSE) -> 3.51 | AD114: =VLOOKUP(AD$2&"--"&$U114,tsdata!$A:$DT,AD$4,FALSE) -> 4.1 | AE114: =VLOOKUP(AE$2&"--"&$U114,tsdata!$A:$DT,AE$4,FALSE) -> 12.23756229 | AF114: =VLOOKUP(AF$2&"--"&$U114,tsdata!$A:$DT,AF$4,FALSE) -> 7.895921123 | AG114: =VLOOKUP(AG$2&"--"&$U114,tsdata!$A:$DT,AG$4,FALSE) -> 20.56150845
U115: 2017-09-30 | V115: =VLOOKUP(V$2&"--"&$U115,tsdata!$A:$DT,V$4,FALSE) -> 16 | W115: =VLOOKUP(W$2&"--"&$U115,tsdata!$A:$DT,W$4,FALSE) -> 14.2825 | X115: =VLOOKUP(X$2&"--"&$U115,tsdata!$A:$DT,X$4,FALSE) -> 18.68 | Y115: =VLOOKUP(Y$2&"--"&$U115,tsdata!$A:$DT,Y$4,FALSE) -> 230.3280802 | Z115: =VLOOKUP(Z$2&"--"&$U115,tsdata!$A:$DT,Z$4,FALSE) -> 126.4716899 | AA115: =VLOOKUP(AA$2&"--"&$U115,tsdata!$A:$DT,AA$4,FALSE) -> 476.811065 | AB115: =VLOOKUP(AB$2&"--"&$U115,tsdata!$A:$DT,AB$4,FALSE) -> 3.805 | AC115: =VLOOKUP(AC$2&"--"&$U115,tsdata!$A:$DT,AC$4,FALSE) -> 3.5775 | AD115: =VLOOKUP(AD$2&"--"&$U115,tsdata!$A:$DT,AD$4,FALSE) -> 4.06 | AE115: =VLOOKUP(AE$2&"--"&$U115,tsdata!$A:$DT,AE$4,FALSE) -> 12.72365865 | AF115: =VLOOKUP(AF$2&"--"&$U115,tsdata!$A:$DT,AF$4,FALSE) -> 7.40518828 | AG115: =VLOOKUP(AG$2&"--"&$U115,tsdata!$A:$DT,AG$4,FALSE) -> 21.5347037
U116: 2017-12-31 | V116: =VLOOKUP(V$2&"--"&$U116,tsdata!$A:$DT,V$4,FALSE) -> 16.43 | W116: =VLOOKUP(W$2&"--"&$U116,tsdata!$A:$DT,W$4,FALSE) -> 14.02 | X116: =VLOOKUP(X$2&"--"&$U116,tsdata!$A:$DT,X$4,FALSE) -> 19.09 | Y116: =VLOOKUP(Y$2&"--"&$U116,tsdata!$A:$DT,Y$4,FALSE) -> 204.0834442 | Z116: =VLOOKUP(Z$2&"--"&$U116,tsdata!$A:$DT,Z$4,FALSE) -> 100.4329962 | AA116: =VLOOKUP(AA$2&"--"&$U116,tsdata!$A:$DT,AA$4,FALSE) -> 607.1006764 | AB116: =VLOOKUP(AB$2&"--"&$U116,tsdata!$A:$DT,AB$4,FALSE) -> 3.84 | AC116: =VLOOKUP(AC$2&"--"&$U116,tsdata!$A:$DT,AC$4,FALSE) -> 3.6 | AD116: =VLOOKUP(AD$2&"--"&$U116,tsdata!$A:$DT,AD$4,FALSE) -> 4.08 | AE116: =VLOOKUP(AE$2&"--"&$U116,tsdata!$A:$DT,AE$4,FALSE) -> 12.46607234 | AF116: =VLOOKUP(AF$2&"--"&$U116,tsdata!$A:$DT,AF$4,FALSE) -> 6.95128716 | AG116: =VLOOKUP(AG$2&"--"&$U116,tsdata!$A:$DT,AG$4,FALSE) -> 17.69967048
U117: 2018-03-31 | V117: =VLOOKUP(V$2&"--"&$U117,tsdata!$A:$DT,V$4,FALSE) -> 15.95 | W117: =VLOOKUP(W$2&"--"&$U117,tsdata!$A:$DT,W$4,FALSE) -> 14.49 | X117: =VLOOKUP(X$2&"--"&$U117,tsdata!$A:$DT,X$4,FALSE) -> 19.16 | Y117: =VLOOKUP(Y$2&"--"&$U117,tsdata!$A:$DT,Y$4,FALSE) -> 172.2556936 | Z117: =VLOOKUP(Z$2&"--"&$U117,tsdata!$A:$DT,Z$4,FALSE) -> 82.18652761 | AA117: =VLOOKUP(AA$2&"--"&$U117,tsdata!$A:$DT,AA$4,FALSE) -> 424.0940554 | AB117: =VLOOKUP(AB$2&"--"&$U117,tsdata!$A:$DT,AB$4,FALSE) -> 3.89 | AC117: =VLOOKUP(AC$2&"--"&$U117,tsdata!$A:$DT,AC$4,FALSE) -> 3.67 | AD117: =VLOOKUP(AD$2&"--"&$U117,tsdata!$A:$DT,AD$4,FALSE) -> 4.1 | AE117: =VLOOKUP(AE$2&"--"&$U117,tsdata!$A:$DT,AE$4,FALSE) -> 13.69705724 | AF117: =VLOOKUP(AF$2&"--"&$U117,tsdata!$A:$DT,AF$4,FALSE) -> 7.785218847 | AG117: =VLOOKUP(AG$2&"--"&$U117,tsdata!$A:$DT,AG$4,FALSE) -> 17.92929578
U118: 2018-06-30 | V118: =VLOOKUP(V$2&"--"&$U118,tsdata!$A:$DT,V$4,FALSE) -> 15.845 | W118: =VLOOKUP(W$2&"--"&$U118,tsdata!$A:$DT,W$4,FALSE) -> 13.8225 | X118: =VLOOKUP(X$2&"--"&$U118,tsdata!$A:$DT,X$4,FALSE) -> 20.3 | Y118: =VLOOKUP(Y$2&"--"&$U118,tsdata!$A:$DT,Y$4,FALSE) -> 187.97027 | Z118: =VLOOKUP(Z$2&"--"&$U118,tsdata!$A:$DT,Z$4,FALSE) -> 85.8154228 | AA118: =VLOOKUP(AA$2&"--"&$U118,tsdata!$A:$DT,AA$4,FALSE) -> 410.4748284 | AB118: =VLOOKUP(AB$2&"--"&$U118,tsdata!$A:$DT,AB$4,FALSE) -> 3.95 | AC118: =VLOOKUP(AC$2&"--"&$U118,tsdata!$A:$DT,AC$4,FALSE) -> 3.6775 | AD118: =VLOOKUP(AD$2&"--"&$U118,tsdata!$A:$DT,AD$4,FALSE) -> 4.25 | AE118: =VLOOKUP(AE$2&"--"&$U118,tsdata!$A:$DT,AE$4,FALSE) -> 14.73787437 | AF118: =VLOOKUP(AF$2&"--"&$U118,tsdata!$A:$DT,AF$4,FALSE) -> 8.050625679 | AG118: =VLOOKUP(AG$2&"--"&$U118,tsdata!$A:$DT,AG$4,FALSE) -> 21.40584736
U119: 2018-09-30 | V119: =VLOOKUP(V$2&"--"&$U119,tsdata!$A:$DT,V$4,FALSE) -> 15.98 | W119: =VLOOKUP(W$2&"--"&$U119,tsdata!$A:$DT,W$4,FALSE) -> 14.055 | X119: =VLOOKUP(X$2&"--"&$U119,tsdata!$A:$DT,X$4,FALSE) -> 19.645 | Y119: =VLOOKUP(Y$2&"--"&$U119,tsdata!$A:$DT,Y$4,FALSE) -> 191.8318235 | Z119: =VLOOKUP(Z$2&"--"&$U119,tsdata!$A:$DT,Z$4,FALSE) -> 81.23927321 | AA119: =VLOOKUP(AA$2&"--"&$U119,tsdata!$A:$DT,AA$4,FALSE) -> 601.7085799 | AB119: =VLOOKUP(AB$2&"--"&$U119,tsdata!$A:$DT,AB$4,FALSE) -> 3.95 | AC119: =VLOOKUP(AC$2&"--"&$U119,tsdata!$A:$DT,AC$4,FALSE) -> 3.67 | AD119: =VLOOKUP(AD$2&"--"&$U119,tsdata!$A:$DT,AD$4,FALSE) -> 4.315 | AE119: =VLOOKUP(AE$2&"--"&$U119,tsdata!$A:$DT,AE$4,FALSE) -> 14.96433289 | AF119: =VLOOKUP(AF$2&"--"&$U119,tsdata!$A:$DT,AF$4,FALSE) -> 8.186146836 | AG119: =VLOOKUP(AG$2&"--"&$U119,tsdata!$A:$DT,AG$4,FALSE) -> 22.39936679
U120: 2018-12-31 | V120: =VLOOKUP(V$2&"--"&$U120,tsdata!$A:$DT,V$4,FALSE) -> 16.12 | W120: =VLOOKUP(W$2&"--"&$U120,tsdata!$A:$DT,W$4,FALSE) -> 14.07 | X120: =VLOOKUP(X$2&"--"&$U120,tsdata!$A:$DT,X$4,FALSE) -> 20.925 | Y120: =VLOOKUP(Y$2&"--"&$U120,tsdata!$A:$DT,Y$4,FALSE) -> 176.1134308 | Z120: =VLOOKUP(Z$2&"--"&$U120,tsdata!$A:$DT,Z$4,FALSE) -> 86.4608076 | AA120: =VLOOKUP(AA$2&"--"&$U120,tsdata!$A:$DT,AA$4,FALSE) -> 515.9793814 | AB120: =VLOOKUP(AB$2&"--"&$U120,tsdata!$A:$DT,AB$4,FALSE) -> 3.96 | AC120: =VLOOKUP(AC$2&"--"&$U120,tsdata!$A:$DT,AC$4,FALSE) -> 3.69 | AD120: =VLOOKUP(AD$2&"--"&$U120,tsdata!$A:$DT,AD$4,FALSE) -> 4.355 | AE120: =VLOOKUP(AE$2&"--"&$U120,tsdata!$A:$DT,AE$4,FALSE) -> 14.49655068 | AF120: =VLOOKUP(AF$2&"--"&$U120,tsdata!$A:$DT,AF$4,FALSE) -> 7.856731824 | AG120: =VLOOKUP(AG$2&"--"&$U120,tsdata!$A:$DT,AG$4,FALSE) -> 19.58077144
U121: 2019-03-31 | V121: =VLOOKUP(V$2&"--"&$U121,tsdata!$A:$DT,V$4,FALSE) -> 16.44 | W121: =VLOOKUP(W$2&"--"&$U121,tsdata!$A:$DT,W$4,FALSE) -> 14.525 | X121: =VLOOKUP(X$2&"--"&$U121,tsdata!$A:$DT,X$4,FALSE) -> 20.875 | Y121: =VLOOKUP(Y$2&"--"&$U121,tsdata!$A:$DT,Y$4,FALSE) -> 148.7018706 | Z121: =VLOOKUP(Z$2&"--"&$U121,tsdata!$A:$DT,Z$4,FALSE) -> 103.8319151 | AA121: =VLOOKUP(AA$2&"--"&$U121,tsdata!$A:$DT,AA$4,FALSE) -> 553.7825226 | AB121: =VLOOKUP(AB$2&"--"&$U121,tsdata!$A:$DT,AB$4,FALSE) -> 3.95 | AC121: =VLOOKUP(AC$2&"--"&$U121,tsdata!$A:$DT,AC$4,FALSE) -> 3.675 | AD121: =VLOOKUP(AD$2&"--"&$U121,tsdata!$A:$DT,AD$4,FALSE) -> 4.285 | AE121: =VLOOKUP(AE$2&"--"&$U121,tsdata!$A:$DT,AE$4,FALSE) -> 15.37822503 | AF121: =VLOOKUP(AF$2&"--"&$U121,tsdata!$A:$DT,AF$4,FALSE) -> 8.633974946 | AG121: =VLOOKUP(AG$2&"--"&$U121,tsdata!$A:$DT,AG$4,FALSE) -> 19.26967447
U122: 2019-06-30 | V122: =VLOOKUP(V$2&"--"&$U122,tsdata!$A:$DT,V$4,FALSE) -> 16.24 | W122: =VLOOKUP(W$2&"--"&$U122,tsdata!$A:$DT,W$4,FALSE) -> 14.355 | X122: =VLOOKUP(X$2&"--"&$U122,tsdata!$A:$DT,X$4,FALSE) -> 20.695 | Y122: =VLOOKUP(Y$2&"--"&$U122,tsdata!$A:$DT,Y$4,FALSE) -> 163.9326861 | Z122: =VLOOKUP(Z$2&"--"&$U122,tsdata!$A:$DT,Z$4,FALSE) -> 97.64194956 | AA122: =VLOOKUP(AA$2&"--"&$U122,tsdata!$A:$DT,AA$4,FALSE) -> 338.3506846 | AB122: =VLOOKUP(AB$2&"--"&$U122,tsdata!$A:$DT,AB$4,FALSE) -> 4.02 | AC122: =VLOOKUP(AC$2&"--"&$U122,tsdata!$A:$DT,AC$4,FALSE) -> 3.725 | AD122: =VLOOKUP(AD$2&"--"&$U122,tsdata!$A:$DT,AD$4,FALSE) -> 4.41 | AE122: =VLOOKUP(AE$2&"--"&$U122,tsdata!$A:$DT,AE$4,FALSE) -> 14.78232076 | AF122: =VLOOKUP(AF$2&"--"&$U122,tsdata!$A:$DT,AF$4,FALSE) -> 8.235334073 | AG122: =VLOOKUP(AG$2&"--"&$U122,tsdata!$A:$DT,AG$4,FALSE) -> 20.10078369
U123: 2019-09-30 | V123: =VLOOKUP(V$2&"--"&$U123,tsdata!$A:$DT,V$4,FALSE) -> 16.6107 | W123: =VLOOKUP(W$2&"--"&$U123,tsdata!$A:$DT,W$4,FALSE) -> 14.46735 | X123: =VLOOKUP(X$2&"--"&$U123,tsdata!$A:$DT,X$4,FALSE) -> 19.4166 | Y123: =VLOOKUP(Y$2&"--"&$U123,tsdata!$A:$DT,Y$4,FALSE) -> 150.2068685 | Z123: =VLOOKUP(Z$2&"--"&$U123,tsdata!$A:$DT,Z$4,FALSE) -> 92.13203761 | AA123: =VLOOKUP(AA$2&"--"&$U123,tsdata!$A:$DT,AA$4,FALSE) -> 390.2404673 | AB123: =VLOOKUP(AB$2&"--"&$U123,tsdata!$A:$DT,AB$4,FALSE) -> 4.05 | AC123: =VLOOKUP(AC$2&"--"&$U123,tsdata!$A:$DT,AC$4,FALSE) -> 3.735 | AD123: =VLOOKUP(AD$2&"--"&$U123,tsdata!$A:$DT,AD$4,FALSE) -> 4.43 | AE123: =VLOOKUP(AE$2&"--"&$U123,tsdata!$A:$DT,AE$4,FALSE) -> 16.646026 | AF123: =VLOOKUP(AF$2&"--"&$U123,tsdata!$A:$DT,AF$4,FALSE) -> 8.158477061 | AG123: =VLOOKUP(AG$2&"--"&$U123,tsdata!$A:$DT,AG$4,FALSE) -> 20.64180991
U124: 2019-12-31 | V124: =VLOOKUP(V$2&"--"&$U124,tsdata!$A:$DT,V$4,FALSE) -> 16.5387 | W124: =VLOOKUP(W$2&"--"&$U124,tsdata!$A:$DT,W$4,FALSE) -> 14.4068 | X124: =VLOOKUP(X$2&"--"&$U124,tsdata!$A:$DT,X$4,FALSE) -> 19.9266 | Y124: =VLOOKUP(Y$2&"--"&$U124,tsdata!$A:$DT,Y$4,FALSE) -> 178.571604 | Z124: =VLOOKUP(Z$2&"--"&$U124,tsdata!$A:$DT,Z$4,FALSE) -> 97.84820471 | AA124: =VLOOKUP(AA$2&"--"&$U124,tsdata!$A:$DT,AA$4,FALSE) -> 475.2044285 | AB124: =VLOOKUP(AB$2&"--"&$U124,tsdata!$A:$DT,AB$4,FALSE) -> 4.02 | AC124: =VLOOKUP(AC$2&"--"&$U124,tsdata!$A:$DT,AC$4,FALSE) -> 3.64 | AD124: =VLOOKUP(AD$2&"--"&$U124,tsdata!$A:$DT,AD$4,FALSE) -> 4.35 | AE124: =VLOOKUP(AE$2&"--"&$U124,tsdata!$A:$DT,AE$4,FALSE) -> 13.6776107 | AF124: =VLOOKUP(AF$2&"--"&$U124,tsdata!$A:$DT,AF$4,FALSE) -> 7.666827408 | AG124: =VLOOKUP(AG$2&"--"&$U124,tsdata!$A:$DT,AG$4,FALSE) -> 18.493937
U125: 2020-03-31 | V125: =VLOOKUP(V$2&"--"&$U125,tsdata!$A:$DT,V$4,FALSE) -> 15.6111 | W125: =VLOOKUP(W$2&"--"&$U125,tsdata!$A:$DT,W$4,FALSE) -> 14.3906 | X125: =VLOOKUP(X$2&"--"&$U125,tsdata!$A:$DT,X$4,FALSE) -> 18.166875 | Y125: =VLOOKUP(Y$2&"--"&$U125,tsdata!$A:$DT,Y$4,FALSE) -> 193.7684256 | Z125: =VLOOKUP(Z$2&"--"&$U125,tsdata!$A:$DT,Z$4,FALSE) -> 108.0088247 | AA125: =VLOOKUP(AA$2&"--"&$U125,tsdata!$A:$DT,AA$4,FALSE) -> 399.1603345 | AB125: =VLOOKUP(AB$2&"--"&$U125,tsdata!$A:$DT,AB$4,FALSE) -> 3.91 | AC125: =VLOOKUP(AC$2&"--"&$U125,tsdata!$A:$DT,AC$4,FALSE) -> 3.5975 | AD125: =VLOOKUP(AD$2&"--"&$U125,tsdata!$A:$DT,AD$4,FALSE) -> 4.2825 | AE125: =VLOOKUP(AE$2&"--"&$U125,tsdata!$A:$DT,AE$4,FALSE) -> 13.82293186 | AF125: =VLOOKUP(AF$2&"--"&$U125,tsdata!$A:$DT,AF$4,FALSE) -> 7.522143572 | AG125: =VLOOKUP(AG$2&"--"&$U125,tsdata!$A:$DT,AG$4,FALSE) -> 18.36476482

Sheet tsdata (hidden)
A1: code | B1: series | C1: order | D1: date | E1: SMB 25th | F1: SMB Med | G1: SMB 75th | H1: SMB Avg | I1: District 25th | J1: District Med | K1: District 75th | L1: District Avg | M1: Nation 25th | N1: Nation Med | O1: Nation 75th | P1: Nation Avg | Q1: MI 25th | R1: MI Med | S1: MI 75th | T1: MI Avg | U1: MN 25th | V1: MN Med | W1: MN 75th | X1: MN Avg | Y1: MT 25th | Z1: MT Med | AA1: MT 75th | AB1: MT Avg | AC1: ND 25th | AD1: ND Med | AE1: ND 75th | AF1: ND Avg | AG1: SD 25th | AH1: SD Med | AI1: SD 75th | AJ1: SD Avg | AK1: WI 25th | AL1: WI Med | AM1: WI 75th | AN1: WI Avg | AO1: Ag Banks 25th | AP1: Ag Banks Med | AQ1: Ag Banks 75th | AR1: Ag Banks Avg | AS1: CRE Banks 25th | AT1: CRE Banks Med | AU1: CRE Banks 75th | AV1: CRE Banks Avg | AW1: RES RE Banks 25th | AX1: RES RE Banks Med | AY1: RES RE Banks 75th | AZ1: RES RE Banks Avg | BA1: C&I Banks 25th | BB1: C&I Banks Med | BC1: C&I Banks 75th | BD1: C&I Banks Avg | BE1: Other Banks 25th | BF1: Other Banks Med | BG1: Other Banks 75th | BH1: Other Banks Avg | BI1: Billings 25th | BJ1: Billings Med | BK1: Billings 75th | BL1: Billings Avg | BM1: Missoula 25th | BN1: Missoula Med | BO1: Missoula 75th | BP1: Missoula Avg | BQ1: Great Falls 25th | BR1: Great Falls Med | BS1: Great Falls 75th | BT1: Great Falls Avg | BU1: Duluth 25th | BV1: Duluth Med | BW1: Duluth 75th | BX1: Duluth 75th Avg | BY1: Mankato 25th | BZ1: Mankato Med | CA1: Mankato 75th | CB1: Mankato Avg | CC1: Mpls-StPaul 25th | CD1: Mpls-StPaul Med | CE1: Mpls-StPaul 75th | CF1: Mpls-StPaul Avg | CG1: Rochester 25th | CH1: Rochester Med | CI1: Rochester 75th | CJ1: Rochester Avg | CK1: St Cloud 25th | CL1: St Cloud Med | CM1: St Cloud 75th | CN1: St Cloud Avg | CO1: Bismarck 25th | CP1: Bismarck Med | CQ1: Bismarck 75th | CR1: Bismarck Avg | CS1: Grand Forks 25th | CT1: Grand Forks Med | CU1: Grand Forks 75th | CV1: Grand Forks Avg | CW1: Fargo 25th | CX1: Fargo Med | CY1: Fargo 75th | CZ1: Fargo Avg | DA1: Rapid City 25th | DB1: Rapid City Med | DC1: Rapid City 75th | DD1: Rapid City Avg | DE1: Sioux City 25th | DF1: Sioux City Med | DG1: Sioux City 75th | DH1: Sioux City Avg | DI1: Sioux Falls 25th | DJ1: Sioux Falls Med | DK1: Sioux Falls 75th | DL1: Sioux Falls Avg | DM1: La Crosse 25th | DN1: La Crosse Med | DO1: La Crosse 75th | DP1: La Crosse Avg | DQ1: Eau Claire 25th | DR1: Eau Claire Med | DS1: Eau Claire75th | DT1: Eau Claire Avg
A2: 1 | B2: 2 | C2: 3 | D2: 4 | E2: 5 | F2: 6 | G2: 7 | H2: 8 | I2: 9 | J2: 10 | K2: 11 | L2: 12 | M2: 13 | N2: 14 | O2: 15 | P2: 16 | Q2: 17 | R2: 18 | S2: 19 | T2: 20 | U2: 21 | V2: 22 | W2: 23 | X2: 24 | Y2: 25 | Z2: 26 | AA2: 27 | AB2: 28 | AC2: 29 | AD2: 30 | AE2: 31 | AF2: 32 | AG2: 33 | AH2: 34 | AI2: 35 | AJ2: 36 | AK2: 37 | AL2: 38 | AM2: 39 | AN2: 40 | AO2: 41 | AP2: 42 | AQ2: 43 | AR2: 44 | AS2: 45 | AT2: 46 | AU2: 47 | AV2: 48 | AW2: 49 | AX2: 50 | AY2: 51 | AZ2: 52 | BA2: 53 | BB2: 54 | BC2: 55 | BD2: 56 | BE2: 57 | BF2: 58 | BG2: 59 | BH2: 60 | BI2: 61 | BJ2: 62 | BK2: 63 | BL2: 64 | BM2: 65 | BN2: 66 | BO2: 67 | BP2: 68 | BQ2: 69 | BR2: 70 | BS2: 71 | BT2: 72 | BU2: 73 | BV2: 74 | BW2: 75 | BX2: 76 | BY2: 77 | BZ2: 78 | CA2: 79 | CB2: 80 | CC2: 81 | CD2: 82 | CE2: 83 | CF2: 84 | CG2: 85 | CH2: 86 | CI2: 87 | CJ2: 88 | CK2: 89 | CL2: 90 | CM2: 91 | CN2: 92 | CO2: 93 | CP2: 94 | CQ2: 95 | CR2: 96 | CS2: 97 | CT2: 98 | CU2: 99 | CV2: 100 | CW2: 101 | CX2: 102 | CY2: 103 | CZ2: 104 | DA2: 105 | DB2: 106 | DC2: 107 | DD2: 108 | DE2: 109 | DF2: 110 | DG2: 111 | DH2: 112 | DI2: 113 | DJ2: 114 | DK2: 115 | DL2: 116 | DM2: 117 | DN2: 118 | DO2: 119 | DP2: 120 | DQ2: 121 | DR2: 122 | DS2: 123 | DT2: 124
A3: =B3&"--"&D3 -> Equity / Assets--32963 | B3: =VLOOKUP(C3,labels,2,FALSE) -> Equity / Assets | C3: 1 | D3: 1990-03-31 | E3: 7.768106608 | F3: 9.023901144 | G3: 10.87170784 | H3: 9.577476648 | I3: 7.392972504 | J3: 8.48018885 | K3: 10.22242865 | L3: 9.034658164 | M3: 6.899282934 | N3: 8.191991947 | O3: 10.05933769 | P3: 8.878994908 | Q3: 7.397639262 | R3: 8.131794139 | S3: 9.246832856 | T3: 8.594504452 | U3: 7.184200181 | V3: 8.249455453 | W3: 9.995195048 | X3: 8.829072701 | Y3: 7.363907116 | Z3: 8.853005217 | AA3: 10.23807544 | AB3: 9.114303609 | AC3: 7.787759301 | AD3: 9.104666103 | AE3: 10.86318738 | AF3: 9.494044706 | AG3: 7.843607397 | AH3: 8.996596774 | AI3: 11.19783343 | AJ3: 9.817414359 | AK3: 7.556339699 | AL3: 8.225061752 | AM3: 9.674622323 | AN3: 8.86112911 | AO3: 7.810544879 | AP3: 9.128818355 | AQ3: 11.00512128 | AR3: 9.682316027 | AS3: 7.298113448 | AT3: 8.305568938 | AU3: 9.949490071 | AV3: 8.767996914 | AW3: 7.344198319 | AX3: 8.219564606 | AY3: 9.625414561 | AZ3: 8.678597014 | BA3: 6.958147497 | BB3: 8.138517991 | BC3: 9.647725261 | BD3: 8.489875042 | BE3: 7.062627337 | BF3: 7.879536576 | BG3: 9.287381459 | BH3: 9.202000757 | BI3: 6.773924283 | BJ3: 8.042441264 | BK3: 10.56766109 | BL3: 8.563803502 | BN3: NA | BQ3: 8.076174278 | BR3: 9.516101551 | BS3: 11.41014197 | BT3: 9.936187025 | BU3: 6.25329429 | BV3: 7.739500577 | BW3: 9.612006416 | BX3: 8.118834875 | BZ3: NA | CC3: 7.120269013 | CD3: 8.01333653 | CE3: 9.296526486 | CF3: 8.366919619 | CG3: 5.557108282 | CH3: 7.516059447 | CI3: 12.57594254 | CJ3: 9.310120376 | CK3: 7.315374544 | CL3: 7.58309761 | CM3: 9.296063598 | CN3: 8.325477918 | CO3: 7.850575852 | CP3: 8.988764045 | CQ3: 9.585393572 | CR3: 8.538065004 | CS3: 8.121247836 | CT3: 9.783127926 | CU3: 11.00448096 | CV3: 9.759675471 | CW3: 6.591001756 | CX3: 7.311367655 | CY3: 9.010039267 | CZ3: 7.975205557 | DA3: 8.226329515 | DB3: 9.023901144 | DC3: 11.13647102 | DD3: 9.900566644 | DF3: NA | DI3: 5.924454751 | DJ3: 8.170611234 | DK3: 9.813558623 | DL3: 8.63985215 | DM3: 8.014372471 | DN3: 9.635629536 | DO3: 9.88706262 | DP3: 9.07254657 | DQ3: 7.204312884 | DR3: 8.518690501 | DS3: 11.16686234 | DT3: 9.165795378
A4: Total Risk Based Capital Ratio--32963 | B4: Total Risk Based Capital Ratio | C4: 2 | D4: 1990-03-31 | E4: 0 | F4: 0 | G4: 0 | H4: 0 | I4: 0 | J4: 0 | K4: 0 | L4: 0 | M4: 0 | N4: 0 | O4: 0 | P4: 0 | Q4: 0 | R4: 0 | S4: 0 | T4: 0 | U4: 0 | V4: 0 | W4: 0 | X4: 0 | Y4: 0 | Z4: 0 | AA4: 0 | AB4: 0 | AC4: 0 | AD4: 0 | AE4: 0 | AF4: 0 | AG4: 0 | AH4: 0 | AI4: 0 | AJ4: 0 | AK4: 0 | AL4: 0 | AM4: 0 | AN4: 0 | AO4: 0 | AP4: 0 | AQ4: 0 | AR4: 0 | AS4: 0 | AT4: 0 | AU4: 0 | AV4: 0 | AW4: 0 | AX4: 0 | AY4: 0 | AZ4: 0 | BA4: 0 | BB4: 0 | BC4: 0 | BD4: 0 | BE4: 0 | BF4: 0 | BG4: 0 | BH4: 0 | BI4: 0 | BJ4: 0 | BK4: 0 | BL4: 0 | BN4: NA | BQ4: 0 | BR4: 0 | BS4: 0 | BT4: 0 | BU4: 0 | BV4: 0 | BW4: 0 | BX4: 0 | BZ4: NA | CC4: 0 | CD4: 0 | CE4: 0 | CF4: 0 | CG4: 0 | CH4: 0 | CI4: 0 | CJ4: 0 | CK4: 0 | CL4: 0 | CM4: 0 | CN4: 0 | CO4: 0 | CP4: 0 | CQ4: 0 | CR4: 0 | CS4: 0 | CT4: 0 | CU4: 0 | CV4: 0 | CW4: 0 | CX4: 0 | CY4: 0 | CZ4: 0 | DA4: 0 | DB4: 0 | DC4: 0 | DD4: 0 | DF4: NA | DI4: 0 | DJ4: 0 | DK4: 0 | DL4: 0 | DM4: 0 | DN4: 0 | DO4: 0 | DP4: 0 | DQ4: 0 | DR4: 0 | DS4: 0 | DT4: 0
A5: Tier 1 Leverage Ratio--32963 | B5: Tier 1 Leverage Ratio | C5: 3 | D5: 1990-03-31 | E5: 0 | F5: 0 | G5: 0 | H5: 0 | I5: 0 | J5: 0 | K5: 0 | L5: 0 | M5: 0 | N5: 0 | O5: 0 | P5: 0 | Q5: 0 | R5: 0 | S5: 0 | T5: 0 | U5: 0 | V5: 0 | W5: 0 | X5: 0 | Y5: 0 | Z5: 0 | AA5: 0 | AB5: 0 | AC5: 0 | AD5: 0 | AE5: 0 | AF5: 0 | AG5: 0 | AH5: 0 | AI5: 0 | AJ5: 0 | AK5: 0 | AL5: 0 | AM5: 0 | AN5: 0 | AO5: 0 | AP5: 0 | AQ5: 0 | AR5: 0 | AS5: 0 | AT5: 0 | AU5: 0 | AV5: 0 | AW5: 0 | AX5: 0 | AY5: 0 | AZ5: 0 | BA5: 0 | BB5: 0 | BC5: 0 | BD5: 0 | BE5: 0 | BF5: 0 | BG5: 0 | BH5: 0 | BI5: 0 | BJ5: 0 | BK5: 0 | BL5: 0 | BN5: NA | BQ5: 0 | BR5: 0 | BS5: 0 | BT5: 0 | BU5: 0 | BV5: 0 | BW5: 0 | BX5: 0 | BZ5: NA | CC5: 0 | CD5: 0 | CE5: 0 | CF5: 0 | CG5: 0 | CH5: 0 | CI5: 0 | CJ5: 0 | CK5: 0 | CL5: 0 | CM5: 0 | CN5: 0 | CO5: 0 | CP5: 0 | CQ5: 0 | CR5: 0 | CS5: 0 | CT5: 0 | CU5: 0 | CV5: 0 | CW5: 0 | CX5: 0 | CY5: 0 | CZ5: 0 | DA5: 0 | DB5: 0 | DC5: 0 | DD5: 0 | DF5: NA | DI5: 0 | DJ5: 0 | DK5: 0 | DL5: 0 | DM5: 0 | DN5: 0 | DO5: 0 | DP5: 0 | DQ5: 0 | DR5: 0 | DS5: 0 | DT5: 0
A6: ALLL / Nonaccrual Loans--32963 | B6: ALLL / Nonaccrual Loans | C6: 4 | D6: 1990-03-31 | E6: 62.27548798 | F6: 105.6697481 | G6: 341.7702327 | H6: 828.7894131 | I6: 78.85898779 | J6: 141.3252508 | K6: 337.7044393 | L6: 417.7478653 | M6: 77.62711864 | N6: 151.5272909 | O6: 370.2247191 | P6: 439.1471524 | Q6: 141.1231109 | R6: 235.0649351 | S6: 354.0957447 | T6: 395.3702894 | U6: 84.6004481 | V6: 151.5072011 | W6: 394.437799 | X6: 450.5400896 | Y6: 64.19573643 | Z6: 107.0382091 | AA6: 260.8420473 | AB6: 405.2912409 | AC6: 84.85714286 | AD6: 140.7643312 | AE6: 327.2469922 | AF6: 596.3366048 | AG6: 92.30808447 | AH6: 167.6605505 | AI6: 383.2524272 | AJ6: 824.1379747 | AK6: 57.69230769 | AL6: 97.11111111 | AM6: 171.7647059 | AN6: 197.0882069 | AO6: 82.31511254 | AP6: 150.4155125 | AQ6: 377.7777778 | AR6: 456.6001717 | AS6: 79.78723404 | AT6: 140.7185629 | AU6: 361.7283951 | AV6: 463.0385236 | AW6: 74.75393701 | AX6: 136.7999188 | AY6: 283.4677419 | AZ6: 332.9517752 | BA6: 67.16112318 | BB6: 116.8831169 | BC6: 288.5680258 | BD6: 432.7705155 | BE6: 81.53654485 | BF6: 147.2195386 | BG6: 663.0050505 | BH6: 672.5797043 | BI6: 52.6652452 | BJ6: 74.17840376 | BK6: 104.0682415 | BL6: 120.4428023 | BN6: NA | BQ6: 77.92649728 | BR6: 94.31639944 | BS6: 155.6471641 | BT6: 308.2877741 | BU6: 78.96187683 | BV6: 162.0689655 | BW6: 571.5209828 | BX6: 406.7429921 | BZ6: NA | CC6: 81.69934641 | CD6: 118.9236111 | CE6: 308.3333333 | CF6: 384.953462 | CG6: 83.89057866 | CH6: 144.1405037 | CI6: 625.4301874 | CJ6: 627.9345254 | CK6: 85.54216867 | CL6: 156.0794045 | CM6: 283.3333333 | CN6: 358.6147655 | CO6: 182.4260846 | CP6: 475.1074311 | CQ6: 1390.517241 | CR6: 1040.272091 | CS6: 93.12977099 | CT6: 203.630137 | CU6: 891.4285714 | CV6: 1862.942458 | CW6: 98.86759582 | CX6: 140.7141964 | CY6: 265.786107 | CZ6: 968.4620753 | DA6: 130.8938477 | DB6: 215.0403429 | DC6: 299.1868381 | DD6: 215.0403429 | DF6: NA | DI6: 92.15222416 | DJ6: 194.4936087 | DK6: 276.6666667 | DL6: 343.2076032 | DM6: 73.85444744 | DN6: 105.6047198 | DO6: 177.7777778 | DP6: 207.7560023 | DQ6: 79.54451346 | DR6: 122.4581482 | DS6: 160.2025208 | DT6: 225.2051245
A7: [NCL + OREO] / [Total Loans + OREO]--32963 | B7: [NCL + OREO] / [Total Loans + OREO] | C7: 5 | D7: 1990-03-31 | E7: 1.179424578 | F7: 2.897717945 | G7: 4.776436134 | H7: 3.6183661 | I7: 1.086567528 | J7: 2.367805335 | K7: 4.252759144 | L7: 2.978586011 | M7: 0.8257875977 | N7: 2.037167124 | O7: 4.276645506 | P7: 3.189790837 | Q7: 1.15477604 | R7: 1.777108567 | S7: 2.773407094 | T7: 2.123259942 | U7: 0.9143985906 | V7: 2.076522797 | W7: 3.709770139 | X7: 2.685176659 | Y7: 1.556463186 | Z7: 3.673488635 | AA7: 5.675877521 | AB7: 4.063888686 | AC7: 1.334992181 | AD7: 3.564095779 | AE7: 5.98605199 | AF7: 4.240470727 | AG7: 0.6957715585 | AH7: 2.109576579 | AI7: 3.890772334 | AJ7: 2.490152343 | AK7: 1.332889077 | AL7: 2.153832164 | AM7: 3.701174095 | AN7: 2.640405162 | AO7: 1.179052152 | AP7: 2.690997217 | AQ7: 4.832961762 | AR7: 3.386874034 | AS7: 1.092807496 | AT7: 2.206633789 | AU7: 3.892353604 | AV7: 2.744943311 | AW7: 1.046902375 | AX7: 1.996289644 | AY7: 3.710337667 | AZ7: 2.573144441 | BA7: 1.257947012 | BB7: 2.428494334 | BC7: 4.199081877 | BD7: 3.039831405 | BE7: 0.6201239205 | BF7: 1.495033441 | BG7: 2.878937324 | BH7: 2.125559757 | BI7: 3.958772546 | BJ7: 5.772394198 | BK7: 6.876272337 | BL7: 5.55402368 | BN7: NA | BQ7: 1.04769202 | BR7: 1.995503092 | BS7: 3.316568918 | BT7: 2.306466482 | BU7: 1.047394606 | BV7: 2.748309383 | BW7: 4.521109011 | BX7: 2.814031478 | BZ7: NA | CC7: 0.9981959248 | CD7: 1.90878039 | CE7: 2.964170231 | CF7: 2.152699304 | CG7: 0.4971638018 | CH7: 1.004069548 | CI7: 1.930205377 | CJ7: 1.128078449 | CK7: 0.9067612852 | CL7: 2.146458024 | CM7: 3.49195481 | CN7: 2.618758132 | CO7: 0.8348351022 | CP7: 1.647037589 | CQ7: 2.013303374 | CR7: 2.214276419 | CS7: 1.029138252 | CT7: 1.488747654 | CU7: 3.723103058 | CV7: 2.759303509 | CW7: 1.269714052 | CX7: 2.20677816 | CY7: 3.612454913 | CZ7: 2.958386219 | DA7: 2.773030614 | DB7: 2.897717945 | DC7: 3.289473859 | DD7: 3.075763667 | DF7: NA | DI7: 1.150900648 | DJ7: 1.64993772 | DK7: 2.380448631 | DL7: 1.920460628 | DM7: 1.766048616 | DN7: 2.526018333 | DO7: 3.254786451 | DP7: 2.961959979 | DQ7: 1.15913785 | DR7: 1.537382263 | DS7: 2.454651099 | DT7: 1.865622912
A8: [Noncurrent + Delinquent Loans] / [Capital + ALLL]--32963 | B8: [Noncurrent + Delinquent Loans] / [Capital + ALLL] | C8: 6 | D8: 1990-03-31 | E8: 11.36813745 | F8: 21.24481328 | G8: 35.37909904 | H8: 27.40634542 | I8: 10.11159476 | J8: 19.91552403 | K8: 33.70238736 | L8: 24.90365117 | M8: 9.461996195 | N8: 19.84076456 | O8: 35.44101589 | P8: 26.51491725 | Q8: 13.50901472 | R8: 18.07967934 | S8: 34.04137252 | T8: 26.09217277 | U8: 9.95610083 | V8: 19.34885163 | W8: 32.14686015 | X8: 24.5429803 | Y8: 12.57166642 | Z8: 25.23933015 | AA8: 41.00444675 | AB8: 29.53147995 | AC8: 9.384340275 | AD8: 21.93759913 | AE8: 37.94097675 | AF8: 27.18035419 | AG8: 7.152722968 | AH8: 14.00127005 | AI8: 25.33037662 | AJ8: 17.96648303 | AK8: 14.48103985 | AL8: 21.86738533 | AM8: 37.46252938 | AN8: 26.18518965 | AO8: 8.079049365 | AP8: 17.20021065 | AQ8: 31.54603675 | AR8: 22.8965713 | AS8: 10.98592287 | AT8: 21.44490922 | AU8: 34.47646255 | AV8: 26.22046358 | AW8: 12.56774472 | AX8: 20.07461674 | AY8: 35.2781857 | AZ8: 25.94874413 | BA8: 13.14516711 | BB8: 23.58554874 | BC8: 38.40014511 | BD8: 28.33420742 | BE8: 10.58868494 | BF8: 20.96979263 | BG8: 31.65123518 | BH8: 25.9486754 | BI8: 21.24481328 | BJ8: 35.78133628 | BK8: 39.1426811 | BL8: 35.02531274 | BN8: NA | BQ8: 11.40987121 | BR8: 14.7995283 | BS8: 26.65514555 | BT8: 18.48858736 | BU8: 13.14516711 | BV8: 24.36241611 | BW8: 38.40014511 | BX8: 35.68901523 | BZ8: NA | CC8: 12.42912848 | CD8: 21.019678 | CE8: 31.65123518 | CF8: 25.70022787 | CG8: 5.192041552 | CH8: 13.10765936 | CI8: 20.14333434 | CJ8: 14.70031361 | CK8: 17.08428246 | CL8: 21.01294637 | CM8: 45.10697306 | CN8: 31.05338557 | CO8: 4.298180943 | CP8: 9.46138501 | CQ8: 18.03664217 | CR8: 10.92352043 | CS8: 13.9359352 | CT8: 27.13659932 | CU8: 50.73982737 | CV8: 33.89892285 | CW8: 22.96940952 | CX8: 30.77152047 | CY8: 37.84996167 | CZ8: 33.26797689 | DA8: 13.92478701 | DB8: 15.03759398 | DC8: 21.59311465 | DD8: 18.66606978 | DF8: NA | DI8: 18.43420443 | DJ8: 23.63938179 | DK8: 45.23689296 | DL8: 39.55789816 | DM8: 19.90875912 | DN8: 23.93034079 | DO8: 28.73254565 | DP8: 28.43991835 | DQ8: 12.23898389 | DR8: 15.91577309 | DS8: 20.68992286 | DT8: 18.53826499
A9: Ag [NCL+DQ] / [Capital + ALLL]--32963 | B9: Ag [NCL+DQ] / [Capital + ALLL] | C9: 7 | D9: 1990-03-31 | E9: 0 | F9: 0.6558204061 | G9: 5.716301311 | H9: 6.450935523 | I9: 0 | J9: 0.6465946328 | K9: 6.198359121 | L9: 4.83317238 | M9: 0 | N9: 0 | O9: 0.5166064577 | P9: 1.627648174 | Q9: 0 | R9: 0 | S9: 0 | T9: 0.06238127435 | U9: 0 | V9: 0.04336526491 | W9: 4.302972199 | X9: 3.671848435 | Y9: 0 | Z9: 0.01950838861 | AA9: 6.107153928 | AB9: 5.314819905 | AC9: 1.499258112 | AD9: 6.400345181 | AE9: 18.959842 | AF9: 12.54790798 | AG9: 0.4386982556 | AH9: 3.143438121 | AI9: 8.465522784 | AJ9: 5.938434745 | AK9: 0 | AL9: 0 | AM9: 3.274155445 | AN9: 2.225039043 | AO9: 0.5943220562 | AP9: 4.865691609 | AQ9: 12.71937004 | AR9: 8.890465268 | AS9: 0 | AT9: 0.512635221 | AU9: 5.795950761 | AV9: 4.251593377 | AW9: 0 | AX9: 0 | AY9: 0.9385745034 | AZ9: 1.478229933 | BA9: 0 | BB9: 0 | BC9: 1.113430759 | BD9: 1.873415764 | BE9: 0 | BF9: 0 | BG9: 1.215446653 | BH9: 1.291710193 | BI9: 0 | BJ9: 0 | BK9: 1.997962861 | BL9: 1.336173715 | BN9: NA | BQ9: 0 | BR9: 0.3212255992 | BS9: 1.836091909 | BT9: 1.221747564 | BU9: 0 | BV9: 0 | BW9: 0 | BX9: 0 | BZ9: NA | CC9: 0 | CD9: 0 | CE9: 0 | CF9: 0.3956424545 | CG9: 0 | CH9: 0.02073742275 | CI9: 0.4918380846 | CJ9: 0.2273808456 | CK9: 0 | CL9: 0 | CM9: 3.863845446 | CN9: 3.469994293 | CO9: 0 | CP9: 0 | CQ9: 0.2623688156 | CR9: 2.348681167 | CS9: 2.16723146 | CT9: 10.82603254 | CU9: 16.89272503 | CV9: 14.14652569 | CW9: 0 | CX9: 6.974026009 | CY9: 21.86718959 | CZ9: 11.71782417 | DA9: 0 | DB9: 0 | DC9: 7.453007519 | DD9: 4.968671679 | DF9: NA | DI9: 0.1639551015 | DJ9: 1.318688791 | DK9: 1.983522192 | DL9: 2.538504239 | DM9: 0 | DN9: 0 | DO9: 0 | DP9: 1.035040371 | DQ9: 0 | DR9: 1.23886332 | DS9: 2.883215991 | DT9: 2.024744032
A10: CLD [NCL+DQ] / [Capital + ALLL]--32963 | B10: CLD [NCL+DQ] / [Capital + ALLL] | C10: 8 | D10: 1990-03-31 | E10: 0 | F10: 0 | G10: 0 | H10: 0 | I10: 0 | J10: 0 | K10: 0 | L10: 0 | M10: 0 | N10: 0 | O10: 0 | P10: 0 | Q10: 0 | R10: 0 | S10: 0 | T10: 0 | U10: 0 | V10: 0 | W10: 0 | X10: 0 | Y10: 0 | Z10: 0 | AA10: 0 | AB10: 0 | AC10: 0 | AD10: 0 | AE10: 0 | AF10: 0 | AG10: 0 | AH10: 0 | AI10: 0 | AJ10: 0 | AK10: 0 | AL10: 0 | AM10: 0 | AN10: 0 | AO10: 0 | AP10: 0 | AQ10: 0 | AR10: 0 | AS10: 0 | AT10: 0 | AU10: 0 | AV10: 0 | AW10: 0 | AX10: 0 | AY10: 0 | AZ10: 0 | BA10: 0 | BB10: 0 | BC10: 0 | BD10: 0 | BE10: 0 | BF10: 0 | BG10: 0 | BH10: 0 | BI10: 0 | BJ10: 0 | BK10: 0 | BL10: 0 | BN10: NA | BQ10: 0 | BR10: 0 | BS10: 0 | BT10: 0 | BU10: 0 | BV10: 0 | BW10: 0 | BX10: 0 | BZ10: NA | CC10: 0 | CD10: 0 | CE10: 0 | CF10: 0 | CG10: 0 | CH10: 0 | CI10: 0 | CJ10: 0 | CK10: 0 | CL10: 0 | CM10: 0 | CN10: 0 | CO10: 0 | CP10: 0 | CQ10: 0 | CR10: 0 | CS10: 0 | CT10: 0 | CU10: 0 | CV10: 0 | CW10: 0 | CX10: 0 | CY10: 0 | CZ10: 0 | DA10: 0 | DB10: 0 | DC10: 0 | DD10: 0 | DF10: NA | DI10: 0 | DJ10: 0 | DK10: 0 | DL10: 0 | DM10: 0 | DN10: 0 | DO10: 0 | DP10: 0 | DQ10: 0 | DR10: 0 | DS10: 0 | DT10: 0
A11: CRE [NCL+DQ] / [Capital + ALLL]--32963 | B11: CRE [NCL+DQ] / [Capital + ALLL] | C11: 9 | D11: 1990-03-31 | E11: 0 | F11: 0 | G11: 0 | H11: 0 | I11: 0 | J11: 0 | K11: 0 | L11: 0 | M11: 0 | N11: 0 | O11: 0 | P11: 0 | Q11: 0 | R11: 0 | S11: 0 | T11: 0 | U11: 0 | V11: 0 | W11: 0 | X11: 0 | Y11: 0 | Z11: 0 | AA11: 0 | AB11: 0 | AC11: 0 | AD11: 0 | AE11: 0 | AF11: 0 | AG11: 0 | AH11: 0 | AI11: 0 | AJ11: 0 | AK11: 0 | AL11: 0 | AM11: 0 | AN11: 0 | AO11: 0 | AP11: 0 | AQ11: 0 | AR11: 0 | AS11: 0 | AT11: 0 | AU11: 0 | AV11: 0 | AW11: 0 | AX11: 0 | AY11: 0 | AZ11: 0 | BA11: 0 | BB11: 0 | BC11: 0 | BD11: 0 | BE11: 0 | BF11: 0 | BG11: 0 | BH11: 0 | BI11: 0 | BJ11: 0 | BK11: 0 | BL11: 0 | BN11: NA | BQ11: 0 | BR11: 0 | BS11: 0 | BT11: 0 | BU11: 0 | BV11: 0 | BW11: 0 | BX11: 0 | BZ11: NA | CC11: 0 | CD11: 0 | CE11: 0 | CF11: 0 | CG11: 0 | CH11: 0 | CI11: 0 | CJ11: 0 | CK11: 0 | CL11: 0 | CM11: 0 | CN11: 0 | CO11: 0 | CP11: 0 | CQ11: 0 | CR11: 0 | CS11: 0 | CT11: 0 | CU11: 0 | CV11: 0 | CW11: 0 | CX11: 0 | CY11: 0 | CZ11: 0 | DA11: 0 | DB11: 0 | DC11: 0 | DD11: 0 | DF11: NA | DI11: 0 | DJ11: 0 | DK11: 0 | DL11: 0 | DM11: 0 | DN11: 0 | DO11: 0 | DP11: 0 | DQ11: 0 | DR11: 0 | DS11: 0 | DT11: 0
A12: Res RE [NCL+DQ] / [Capital + ALLL]--32963 | B12: Res RE [NCL+DQ] / [Capital + ALLL] | C12: 10 | D12: 1990-03-31 | E12: 0 | F12: 0 | G12: 0 | H12: 0 | I12: 0 | J12: 0 | K12: 0 | L12: 0 | M12: 0 | N12: 0 | O12: 0 | P12: 0 | Q12: 0 | R12: 0 | S12: 0 | T12: 0 | U12: 0 | V12: 0 | W12: 0 | X12: 0 | Y12: 0 | Z12: 0 | AA12: 0 | AB12: 0 | AC12: 0 | AD12: 0 | AE12: 0 | AF12: 0 | AG12: 0 | AH12: 0 | AI12: 0 | AJ12: 0 | AK12: 0 | AL12: 0 | AM12: 0 | AN12: 0 | AO12: 0 | AP12: 0 | AQ12: 0 | AR12: 0 | AS12: 0 | AT12: 0 | AU12: 0 | AV12: 0 | AW12: 0 | AX12: 0 | AY12: 0 | AZ12: 0 | BA12: 0 | BB12: 0 | BC12: 0 | BD12: 0 | BE12: 0 | BF12: 0 | BG12: 0 | BH12: 0 | BI12: 0 | BJ12: 0 | BK12: 0 | BL12: 0 | BN12: NA | BQ12: 0 | BR12: 0 | BS12: 0 | BT12: 0 | BU12: 0 | BV12: 0 | BW12: 0 | BX12: 0 | BZ12: NA | CC12: 0 | CD12: 0 | CE12: 0 | CF12: 0 | CG12: 0 | CH12: 0 | CI12: 0 | CJ12: 0 | CK12: 0 | CL12: 0 | CM12: 0 | CN12: 0 | CO12: 0 | CP12: 0 | CQ12: 0 | CR12: 0 | CS12: 0 | CT12: 0 | CU12: 0 | CV12: 0 | CW12: 0 | CX12: 0 | CY12: 0 | CZ12: 0 | DA12: 0 | DB12: 0 | DC12: 0 | DD12: 0 | DF12: NA | DI12: 0 | DJ12: 0 | DK12: 0 | DL12: 0 | DM12: 0 | DN12: 0 | DO12: 0 | DP12: 0 | DQ12: 0 | DR12: 0 | DS12: 0 | DT12: 0
A13: C&I [NCL+DQ] / [Capital + ALLL]--32963 | B13: C&I [NCL+DQ] / [Capital + ALLL] | C13: 11 | D13: 1990-03-31 | E13: 4.483827809 | F13: 10.45045045 | G13: 22.16488549 | H13: 16.2684202 | I13: 2.893745312 | J13: 7.964798752 | K13: 17.9468503 | L13: 12.39730469 | M13: 1.634896882 | N13: 5.886825778 | O13: 13.98716518 | P13: 10.47860823 | Q13: 1.723553286 | R13: 4.862582761 | S13: 10.49472194 | T13: 8.690989542 | U13: 2.327406867 | V13: 7.139249656 | W13: 14.5029153 | X13: 11.13258807 | Y13: 5.512638697 | Z13: 14.93105791 | AA13: 23.41270363 | AB13: 18.63903887 | AC13: 5.383023572 | AD13: 12.96255368 | AE13: 24.90503002 | AF13: 17.08104719 | AG13: 2.408888832 | AH13: 7.539049518 | AI13: 16.85492293 | AJ13: 10.83295986 | AK13: 1.839118655 | AL13: 5.482996765 | AM13: 13.97641051 | AN13: 9.109500911 | AO13: 3.278281537 | AP13: 8.83197087 | AQ13: 19.74567887 | AR13: 13.51706433 | AS13: 3.240524987 | AT13: 7.870502895 | AU13: 17.67236584 | AV13: 12.41026496 | AW13: 1.430106592 | AX13: 5.451656322 | AY13: 12.2616911 | AZ13: 8.748708831 | BA13: 4.612595477 | BB13: 11.46306634 | BC13: 22.16298553 | BD13: 16.03844975 | BE13: 2.747687285 | BF13: 6.922705949 | BG13: 14.16013329 | BH13: 10.37448912 | BI13: 16.28143853 | BJ13: 19.05260012 | BK13: 22.80167491 | BL13: 23.97944053 | BN13: NA | BQ13: 5.617369589 | BR13: 8.821349148 | BS13: 13.65159529 | BT13: 10.14888918 | BU13: 3.291705768 | BV13: 7.309442548 | BW13: 17.07317073 | BX13: 14.47157456 | BZ13: NA | CC13: 2.204048583 | CD13: 7.112375533 | CE13: 15.44579583 | CF13: 10.67957445 | CG13: 0.170212766 | CH13: 2.64672327 | CI13: 11.60990365 | CJ13: 5.561735599 | CK13: 3.497085762 | CL13: 6.260869565 | CM13: 10.88295688 | CN13: 10.81627669 | CO13: 2.04930538 | CP13: 5.614135081 | CQ13: 11.44844724 | CR13: 7.001165025 | CS13: 5.303806447 | CT13: 13.87895584 | CU13: 35.9432799 | CV13: 20.65044777 | CW13: 12.22545626 | CX13: 21.7860071 | CY13: 25.96882459 | CZ13: 20.90620395 | DA13: 7.563933753 | DB13: 14.90601504 | DC13: 19.14324099 | DD13: 12.83611149 | DF13: NA | DI13: 4.901570544 | DJ13: 9.871018668 | DK13: 21.88652332 | DL13: 13.55933189 | DM13: 6.485512686 | DN13: 13.75912409 | DO13: 16.43803767 | DP13: 12.84928367 | DQ13: 2.963823815 | DR13: 4.78614044 | DS13: 8.566102209 | DT13: 5.765419586
A14: Ind [NCL+DQ] / [Capital + ALLL]--32963 | B14: Ind [NCL+DQ] / [Capital + ALLL] | C14: 12 | D14: 1990-03-31 | E14: 0.7613930714 | F14: 1.953125 | G14: 4.389837587 | H14: 3.983741941 | I14: 0.6514076461 | J14: 1.880170743 | K14: 3.97380111 | L14: 2.962807948 | M14: 0.4150615847 | N14: 1.794671302 | O14: 4.472356571 | P14: 3.339524665 | Q14: 2.388620983 | R14: 3.915308095 | S14: 7.133402951 | T14: 5.615573103 | U14: 0.7162563938 | V14: 1.966000096 | W14: 4.219917801 | X14: 3.140137874 | Y14: 0.8968670163 | Z14: 2.110692411 | AA14: 4.628169738 | AB14: 3.643641807 | AC14: 0.3501557279 | AD14: 0.9698637996 | AE14: 2.515265185 | AF14: 1.650798449 | AG14: 0.2923205049 | AH14: 0.9918016962 | AI14: 3.021682533 | AJ14: 2.732391109 | AK14: 1.358556636 | AL14: 2.170333589 | AM14: 4.066032643 | AN14: 3.080539896 | AO14: 0.4348927579 | AP14: 1.222641095 | AQ14: 2.747066715 | AR14: 2.029910572 | AS14: 0.7234778166 | AT14: 1.956715879 | AU14: 4.112251997 | AV14: 3.127995256 | AW14: 1.247300452 | AX14: 2.401438226 | AY14: 4.707990774 | AZ14: 3.927979322 | BA14: 0.8210430287 | BB14: 2.191413238 | BC14: 4.590818363 | BD14: 3.405454561 | BE14: 1.684555377 | BF14: 3.932038835 | BG14: 6.065036727 | BH14: 6.191657945 | BI14: 0.08298755187 | BJ14: 2.28123936 | BK14: 3.427265804 | BL14: 2.535949231 | BN14: NA | BQ14: 1.875062736 | BR14: 3.360513961 | BS14: 5.170312838 | BT14: 3.739668601 | BU14: 1.987722888 | BV14: 3.834196891 | BW14: 9.530201342 | BX14: 7.693565415 | BZ14: NA | CC14: 0.9483870501 | CD14: 2.14677983 | CE14: 4.809288657 | CF14: 3.491098753 | CG14: 0.03771687201 | CH14: 0.2881997015 | CI14: 3.58697423 | CJ14: 2.26179947 | CK14: 0.7386888273 | CL14: 2.617637893 | CM14: 6.748263315 | CN14: 6.988627268 | CO14: 0.2671755725 | CP14: 0.7936507937 | CQ14: 0.8787751633 | CR14: 0.5995685747 | CS14: 2.409261577 | CT14: 2.695247852 | CU14: 3.676197549 | CV14: 3.454784319 | CW14: 0.2879755642 | CX14: 2.158661061 | CY14: 3.557352686 | CZ14: 2.22502836 | DA14: 0.1767157077 | DB14: 0.2218524681 | DC14: 2.495010417 | DD14: 1.707199927 | DF14: NA | DI14: 0.5046618992 | DJ14: 3.614531335 | DK14: 4.305057962 | DL14: 10.31027187 | DM14: 1.619047619 | DN14: 5.240793201 | DO14: 6.350397838 | DP14: 4.084638458 | DQ14: 1.329225126 | DR14: 1.968486086 | DS14: 3.213717055 | DT14: 2.400815975
A15: OREO / [Capital + ALLL]--32963 | B15: OREO / [Capital + ALLL] | C15: 13 | D15: 1990-03-31 | E15: 0.180677699 | F15: 2.132352941 | G15: 6.301771488 | H15: 6.34175392 | I15: 0 | J15: 2.051359068 | K15: 6.34819788 | L15: 4.553803592 | M15: 0 | N15: 1.613569086 | O15: 7.217287542 | P15: 7.083917108 | Q15: 0.5615631337 | R15: 1.947707182 | S15: 3.821302389 | T15: 3.178640272 | U15: 0 | V15: 1.990348482 | W15: 6.47259005 | X15: 4.947485159 | Y15: 0.02617801047 | Z15: 3.156107787 | AA15: 7.618923889 | AB15: 5.489815075 | AC15: 0 | AD15: 2.292289095 | AE15: 6.169773889 | AF15: 4.460166514 | AG15: 0 | AH15: 0.5722477407 | AI15: 3.593008112 | AJ15: 3.01349337 | AK15: 0.4811664213 | AL15: 2.19126391 | AM15: 6.867769407 | AN15: 4.508104983 | AO15: 0 | AP15: 1.952584992 | AQ15: 6.56774974 | AR15: 4.756443576 | AS15: 0 | AT15: 1.755440469 | AU15: 5.644593038 | AV15: 4.665233053 | AW15: 0.278600764 | AX15: 2.187781064 | AY15: 6.223526076 | AZ15: 4.523625557 | BA15: 0.2125775022 | BB15: 2.407558961 | BC15: 6.713132795 | BD15: 5.123095818 | BE15: 0 | BF15: 1.017878116 | BG15: 3.678584144 | BH15: 2.446577008 | BI15: 3.033472803 | BJ15: 6.26142596 | BK15: 21.80705924 | BL15: 10.34734043 | BN15: NA | BQ15: 0.303216734 | BR15: 1.950680898 | BS15: 2.326369206 | BT15: 2.242916974 | BU15: 0.1985129575 | BV15: 1.469254489 | BW15: 4.746100232 | BX15: 8.835030979 | BZ15: NA | CC15: 0 | CD15: 1.492938803 | CE15: 4.937274992 | CF15: 3.206862224 | CG15: 0 | CH15: 0 | CI15: 0.5536891875 | CJ15: 0.3954784154 | CK15: 0.505651398 | CL15: 2.538949798 | CM15: 7.628905501 | CN15: 5.366864163 | CO15: 0 | CP15: 2.351485149 | CQ15: 5.115889215 | CR15: 4.223912938 | CS15: 0 | CT15: 0.07426661716 | CU15: 0.961022707 | CV15: 1.088685485 | CW15: 0.9049422294 | CX15: 2.507792806 | CY15: 3.264658607 | CZ15: 3.521450339 | DA15: 0 | DB15: 0 | DC15: 3.91014975 | DD15: 2.6067665 | DF15: NA | DI15: 0.009052231375 | DJ15: 0.2720696755 | DK15: 2.621318556 | DL15: 1.745121864 | DM15: 1.813531737 | DN15: 3.795202291 | DO15: 5.673523557 | DP15: 4.552260962 | DQ15: 0 | DR15: 0.4596789721 | DS15: 1.276800206 | DT15: 1.3753455
A16: ROAA--32963 | B16: ROAA | C16: 14 | D16: 1990-03-31 | E16: 0.61 | F16: 0.89 | G16: 1.27 | H16: 0.8665656566 | I16: 0.68 | J16: 0.99 | K16: 1.3 | L16: 0.9403511706 | M16: 0.5825 | N16: 0.97 | O16: 1.31 | P16: 0.8189865303 | Q16: 0.7 | R16: 0.925 | S16: 1.165 | T16: 0.9055882353 | U16: 0.6175 | V16: 0.97 | W16: 1.26 | X16: 0.866516129 | Y16: 0.7525 | Z16: 1.05 | AA16: 1.29 | AB16: 1.0375 | AC16: 0.62 | AD16: 0.965 | AE16: 1.3 | AF16: 0.8778 | AG16: 0.83 | AH16: 1.205 | AI16: 1.495 | AJ16: 1.167419355 | AK16: 0.8325 | AL16: 0.98 | AM16: 1.2325 | AN16: 0.9925 | AO16: 0.69 | AP16: 1.025 | AQ16: 1.36 | AR16: 0.9514677419 | AS16: 0.7025 | AT16: 0.995 | AU16: 1.24 | AV16: 0.9516960352 | AW16: 0.64 | AX16: 0.94 | AY16: 1.2425 | AZ16: 0.8940740741 | BA16: 0.68 | BB16: 0.95 | BC16: 1.24 | BD16: 0.9493594306 | BE16: 0.82 | BF16: 1.09 | BG16: 1.345 | BH16: -0.4003389831 | BI16: 0.68 | BJ16: 0.87 | BK16: 1.25 | BL16: 0.9746153846 | BN16: NA | BQ16: 0.925 | BR16: 1.08 | BS16: 1.375 | BT16: 1.334285714 | BU16: 0.43 | BV16: 0.74 | BW16: 1.15 | BX16: 0.6644827586 | BZ16: NA | CC16: 0.615 | CD16: 0.92 | CE16: 1.255 | CF16: 0.872885906 | CG16: 0.6975 | CH16: 0.845 | CI16: 1.285 | CJ16: 0.9633333333 | CK16: 0.49 | CL16: 0.99 | CM16: 1.13 | CN16: 0.8439393939 | CO16: 1.035 | CP16: 1.3 | CQ16: 1.365 | CR16: 1.195714286 | CS16: 0.8 | CT16: 1.05 | CU16: 1.36 | CV16: 0.742 | CW16: 0.7 | CX16: 0.94 | CY16: 1.1175 | CZ16: 0.9172727273 | DA16: 0.9 | DB16: 1.17 | DC16: 1.265 | DD16: 1.053333333 | DF16: NA | DI16: 0.655 | DJ16: 1.015 | DK16: 1.7925 | DL16: 1.626 | DM16: 0.94 | DN16: 0.97 | DO16: 1.17 | DP16: 1.118888889 | DQ16: 1.045 | DR16: 1.135 | DS16: 1.34 | DT16: 1.1625
A17: NIM--32963 | B17: NIM | C17: 15 | D17: 1990-03-31 | E17: 4.02 | F17: 4.74 | G17: 5.36 | H17: 4.73979798 | I17: 4.0475 | J17: 4.435 | K17: 4.92 | L17: 4.513252508 | M17: 3.96 | N17: 4.44 | O17: 5 | P17: 4.543755274 | Q17: 4.1125 | R17: 4.345 | S17: 4.685 | T17: 4.431470588 | U17: 4.0375 | V17: 4.425 | W17: 4.8825 | X17: 4.48483871 | Y17: 4.27 | Z17: 4.79 | AA17: 5.57 | AB17: 4.92724359 | AC17: 3.85 | AD17: 4.26 | AE17: 4.6725 | AF17: 4.259066667 | AG17: 3.9925 | AH17: 4.46 | AI17: 4.9975 | AJ17: 4.656451613 | AK17: 4.135 | AL17: 4.43 | AM17: 4.7825 | AN17: 4.450689655 | AO17: 3.91 | AP17: 4.29 | AQ17: 4.7025 | AR17: 4.331919355 | AS17: 4.0825 | AT17: 4.46 | AU17: 4.9775 | AV17: 4.569977974 | AW17: 4.11 | AX17: 4.5 | AY17: 4.8925 | AZ17: 4.544470899 | BA17: 4.21 | BB17: 4.69 | BC17: 5.27 | BD17: 4.747046263 | BE17: 4.375 | BF17: 4.74 | BG17: 5.385 | BH17: 5.061355932 | BI17: 4.31 | BJ17: 4.54 | BK17: 5.37 | BL17: 4.886923077 | BN17: NA | BQ17: 4.625 | BR17: 5.26 | BS17: 5.715 | BT17: 5.188571429 | BU17: 4.36 | BV17: 4.69 | BW17: 4.94 | BX17: 4.662068966 | BZ17: NA | CC17: 4.35 | CD17: 4.88 | CE17: 5.385 | CF17: 4.886510067 | CG17: 4.475 | CH17: 4.63 | CI17: 4.935 | CJ17: 5.606666667 | CK17: 4.02 | CL17: 4.3 | CM17: 4.71 | CN17: 4.454848485 | CO17: 4.4 | CP17: 4.83 | CQ17: 5.32 | CR17: 4.878571429 | CS17: 4.38 | CT17: 4.6 | CU17: 4.8 | CV17: 4.696 | CW17: 4.175 | CX17: 4.36 | CY17: 4.6175 | CZ17: 4.345 | DA17: 5.445 | DB17: 5.52 | DC17: 5.535 | DD17: 5.48 | DF17: NA | DI17: 3.9725 | DJ17: 4.345 | DK17: 7.0175 | DL17: 5.796 | DM17: 4.01 | DN17: 4.26 | DO17: 4.75 | DP17: 4.338888889 | DQ17: 4.1275 | DR17: 4.4 | DS17: 4.835 | DT17: 4.5375
A18: Provisions / Avg Assets--32963 | B18: Provisions / Avg Assets | C18: 16 | D18: 1990-03-31 | E18: 0 | F18: 0.22 | G18: 0.41 | H18: 0.3184848485 | I18: 0 | J18: 0.13 | K18: 0.33 | L18: 0.2364882943 | M18: 0 | N18: 0.17 | O18: 0.38 | P18: 0.3143321973 | Q18: 0.08 | R18: 0.125 | S18: 0.2725 | T18: 0.2 | U18: 0 | V18: 0.12 | W18: 0.31 | X18: 0.2392903226 | Y18: 0 | Z18: 0.125 | AA18: 0.39 | AB18: 0.2140384615 | AC18: 0 | AD18: 0.215 | AE18: 0.4025 | AF18: 0.2852 | AG18: 0 | AH18: 0.055 | AI18: 0.32 | AJ18: 0.3163709677 | AK18: 0.05 | AL18: 0.145 | AM18: 0.24 | AN18: 0.1776724138 | AO18: 0 | AP18: 0.07 | AQ18: 0.31 | AR18: 0.2159032258 | AS18: 0 | AT18: 0.13 | AU18: 0.3075 | AV18: 0.2352202643 | AW18: 0 | AX18: 0.13 | AY18: 0.27 | AZ18: 0.2048148148 | BA18: 0.02 | BB18: 0.2 | BC18: 0.35 | BD18: 0.2603558719 | BE18: 0.065 | BF18: 0.22 | BG18: 0.38 | BH18: 0.5293220339 | BI18: 0 | BJ18: 0.11 | BK18: 0.53 | BL18: 0.1046153846 | BN18: NA | BQ18: 0 | BR18: 0.29 | BS18: 0.385 | BT18: 0.02571428571 | BU18: 0 | BV18: 0.09 | BW18: 0.31 | BX18: 0.1520689655 | BZ18: NA | CC18: 0.06 | CD18: 0.18 | CE18: 0.365 | CF18: 0.346442953 | CG18: 0 | CH18: 0.155 | CI18: 0.52 | CJ18: 0.3116666667 | CK18: 0.06 | CL18: 0.21 | CM18: 0.36 | CN18: 0.3412121212 | CO18: 0 | CP18: 0.04 | CQ18: 0.275 | CR18: 0.1728571429 | CS18: 0.21 | CT18: 0.31 | CU18: 0.33 | CV18: 0.652 | CW18: 0 | CX18: 0.235 | CY18: 0.325 | CZ18: 0.2468181818 | DA18: 0.325 | DB18: 0.33 | DC18: 0.39 | DD18: 0.3666666667 | DF18: NA | DI18: 0.1475 | DJ18: 0.265 | DK18: 1.7875 | DL18: 1.582 | DM18: 0 | DN18: 0 | DO18: 0.23 | DP18: 0.1511111111 | DQ18: 0.0525 | DR18: 0.15 | DS18: 0.2425 | DT18: 0.165
A19: Negative Earners (last 4 qtrs)--32963 | B19: Negative Earners (last 4 qtrs) | C19: 17 | D19: 1990-03-31 | F19: 12.12121212 | H19: 12 | J19: 6.475409836 | L19: 79 | N19: 11.88166057 | P19: 1494 | R19: 5.882352941 | T19: 2 | V19: 6.962025316 | X19: 44 | Z19: 6.329113924 | AB19: 10 | AD19: 9.868421053 | AF19: 15 | AH19: 3.174603175 | AJ19: 4 | AL19: 3.389830508 | AN19: 4 | AP19: 6.64556962 | AR19: 42 | AT19: 6.493506494 | AV19: 30 | AX19: 5.989583333 | AZ19: 23 | BB19: 7.01754386 | BD19: 20 | BF19: 1.694915254 | BH19: 1 | BJ19: 7.692307692 | BL19: 1 | BN19: NaN | BP19: 0 | BR19: 0 | BT19: 0 | BV19: 10.34482759 | BX19: 3 | BZ19: NaN | CB19: 0 | CD19: 7.947019868 | CF19: 12 | CH19: 0 | CJ19: 0 | CL19: 15.15151515 | CN19: 5 | CP19: 0 | CR19: 0 | CT19: 0 | CV19: 0 | CX19: 4.545454545 | CZ19: 1 | DB19: 0 | DD19: 0 | DF19: NaN | DH19: 0 | DJ19: 0 | DL19: 0 | DN19: 0 | DP19: 0 | DR19: 0 | DT19: 0
A20: Noncore Funding / Liab--32963 | B20: Noncore Funding / Liab | C20: 18 | D20: 1990-03-31 | E20: 4.801385283 | F20: 7.337874509 | G20: 12.72545483 | H20: 8.94025425 | I20: 4.671179703 | J20: 7.440685861 | K20: 11.36435541 | L20: 8.770674219 | M20: 7.741219784 | N20: 12.7134149 | O20: 19.6929211 | P20: 15.03436294 | Q20: 4.714608287 | R20: 7.177306847 | S20: 10.56384835 | T20: 7.863774961 | U20: 4.212151072 | V20: 6.881307558 | W20: 10.57196683 | X20: 8.106677096 | Y20: 5.946061588 | Z20: 9.651976504 | AA20: 14.57575463 | AB20: 11.05685394 | AC20: 5.891974043 | AD20: 8.79592578 | AE20: 12.55213318 | AF20: 9.902890494 | AG20: 5.033525226 | AH20: 7.404199459 | AI20: 9.852745962 | AJ20: 10.03475952 | AK20: 4.522558423 | AL20: 7.315318141 | AM20: 11.2448956 | AN20: 8.320564882 | AO20: 4.508805436 | AP20: 6.92767731 | AQ20: 9.963405937 | AR20: 7.875280259 | AS20: 4.907454058 | AT20: 7.790430857 | AU20: 12.28084734 | AV20: 9.305105254 | AW20: 4.17318998 | AX20: 6.775442878 | AY20: 10.21863352 | AZ20: 7.707410709 | BA20: 5.658763719 | BB20: 9.323474027 | BC20: 15.24112905 | BD20: 11.14749664 | BE20: 5.200082819 | BF20: 8.390986361 | BG20: 12.25813536 | BH20: 12.42631423 | BI20: 6.449803702 | BJ20: 9.773597712 | BK20: 17.74993011 | BL20: 10.65606994 | BN20: NA | BQ20: 6.051844068 | BR20: 10.04927345 | BS20: 14.58934784 | BT20: 10.40910825 | BU20: 4.456285393 | BV20: 6.836498379 | BW20: 9.323474027 | BX20: 8.182427904 | BZ20: NA | CC20: 4.732134271 | CD20: 8.144234656 | CE20: 13.24709188 | CF20: 11.3490208 | CG20: 5.985057046 | CH20: 8.210586184 | CI20: 9.535840895 | CJ20: 8.938291239 | CK20: 4.790347629 | CL20: 8.852913294 | CM20: 11.59352323 | CN20: 9.071279166 | CO20: 7.77565781 | CP20: 9.881066795 | CQ20: 14.53603207 | CR20: 10.87158003 | CS20: 5.299374816 | CT20: 6.073117935 | CU20: 9.309650681 | CV20: 7.222365103 | CW20: 5.654595964 | CX20: 10.94024151 | CY20: 15.2569183 | CZ20: 10.81516497 | DA20: 10.61301975 | DB20: 11.35471816 | DC20: 13.58917908 | DD20: 12.34989316 | DF20: NA | DI20: 10.12023673 | DJ20: 24.94874994 | DK20: 81.73330958 | DL20: 42.00975329 | DM20: 4.53869969 | DN20: 7.172308743 | DO20: 10.80937482 | DP20: 8.995932487 | DQ20: 4.974778797 | DR20: 6.818209506 | DS20: 13.46396219 | DT20: 10.00133648
A21: Brokered Dep / Liab--32963 | B21: Brokered Dep / Liab | C21: 19 | D21: 1990-03-31 | E21: 0 | F21: 0 | G21: 0 | H21: 0.05186228121 | I21: 0 | J21: 0 | K21: 0 | L21: 0.003895292901 | M21: 0 | N21: 0 | O21: 0 | P21: 0.1319655644 | Q21: 0 | R21: 0 | S21: 0 | T21: 0 | U21: 0 | V21: 0 | W21: 0 | X21: 0.005933627848 | Y21: 0 | Z21: 0 | AA21: 0 | AB21: 0 | AC21: 0 | AD21: 0 | AE21: 0 | AF21: 0.006230238462 | AG21: 0 | AH21: 0 | AI21: 0 | AJ21: 0.05848024905 | AK21: 0 | AL21: 0 | AM21: 0 | AN21: 0.002385821729 | AO21: 0 | AP21: 0 | AQ21: 0 | AR21: 0.005419890553 | AS21: 0 | AT21: 0 | AU21: 0 | AV21: 0.0109492082 | AW21: 0 | AX21: 0 | AY21: 0 | AZ21: 0.007976745075 | BA21: 0 | BB21: 0 | BC21: 0 | BD21: 0.003325750069 | BE21: 0 | BF21: 0 | BG21: 0 | BH21: 0.2888530569 | BI21: 0 | BJ21: 0 | BK21: 0 | BL21: 0 | BN21: NA | BQ21: 0 | BR21: 0 | BS21: 0 | BT21: 0 | BU21: 0 | BV21: 0 | BW21: 0 | BX21: 0 | BZ21: NA | CC21: 0 | CD21: 0 | CE21: 0 | CF21: 0.05670191363 | CG21: 0 | CH21: 0 | CI21: 0 | CJ21: 0 | CK21: 0 | CL21: 0 | CM21: 0 | CN21: 0.05590235722 | CO21: 0 | CP21: 0 | CQ21: 0 | CR21: 0 | CS21: 0 | CT21: 0 | CU21: 0 | CV21: 0 | CW21: 0 | CX21: 0 | CY21: 0 | CZ21: 0 | DA21: 0 | DB21: 0 | DC21: 0 | DD21: 0 | DF21: NA | DI21: 0 | DJ21: 0 | DK21: 0 | DL21: 1.712577551 | DM21: 0 | DN21: 0 | DO21: 0 | DP21: 0.2030972328 | DQ21: 0 | DR21: 0 | DS21: 0 | DT21: 0
A22: Liquid Assets / Assets--32963 | B22: Liquid Assets / Assets | C22: 20 | D22: 1990-03-31 | F22: NA | J22: NA | N22: NA | R22: NA | V22: NA | Z22: NA | AD22: NA | AH22: NA | AL22: NA | AP22: NA | AT22: NA | AX22: NA | BB22: NA | BF22: NA | BJ22: NA | BN22: NA | BR22: NA | BV22: NA | BZ22: NA | CD22: NA | CH22: NA | CL22: NA | CP22: NA | CT22: NA | CX22: NA | DB22: NA | DF22: NA | DJ22: NA | DN22: NA | DR22: NA
A23: Net Loan Growth (last 4 qtrs)--32963 | B23: Net Loan Growth (last 4 qtrs) | C23: 21 | D23: 1990-03-31 | E23: -0.95 | F23: 4.5 | G23: 11.15 | H23: 5.360808081 | I23: 0.2325 | J23: 6.56 | K23: 12.8825 | L23: 7.342211055 | M23: -0.55 | N23: 6.95 | O23: 15.35 | P23: 9.72448683 | Q23: 3.39 | R23: 7.3 | S23: 11.7925 | T23: 11.03617647 | U23: 0.6725 | V23: 6.28 | W23: 11.95 | X23: 6.835612903 | Y23: -2.36 | Z23: 5.11 | AA23: 15.7 | AB23: 6.793701299 | AC23: -0.6825 | AD23: 5.75 | AE23: 11.2475 | AF23: 5.927866667 | AG23: 0.505 | AH23: 9.45 | AI23: 16.685 | AJ23: 10.11040323 | AK23: 2.0425 | AL23: 9.02 | AM23: 14.865 | AN23: 9.561982759 | AO23: -0.265 | AP23: 5.93 | AQ23: 12.675 | AR23: 6.598836834 | AS23: 1.935 | AT23: 8.09 | AU23: 15.0125 | AV23: 10.34887665 | AW23: 0.35 | AX23: 6.56 | AY23: 12.7325 | AZ23: 7.229365079 | BA23: 0.2625 | BB23: 7.105 | BC23: 14.0125 | BD23: 8.774214286 | BE23: 1.4025 | BF23: 7.06 | BG23: 11.8375 | BH23: 13.59396552 | BI23: -5.48 | BJ23: -2.04 | BK23: 5.19 | BL23: 22.07461538 | BN23: NA | BQ23: 6.51 | BR23: 9.25 | BS23: 16.78 | BT23: 10.14285714 | BU23: 1.5 | BV23: 7.11 | BW23: 13.35 | BX23: 9.047586207 | BZ23: NA | CC23: 0.015 | CD23: 5.8 | CE23: 11.28 | CF23: 5.841946309 | CG23: 9.71 | CH23: 11.865 | CI23: 14.1025 | CJ23: 11.14166667 | CK23: 1.32 | CL23: 6.66 | CM23: 10.58 | CN23: 6.020606061 | CO23: 7.635 | CP23: 11.15 | CQ23: 15.245 | CR23: 12.40714286 | CS23: -1.36 | CT23: 0.72 | CU23: 6 | CV23: 1.686 | CW23: 0.685 | CX23: 5.64 | CY23: 11.4125 | CZ23: 8.28 | DA23: 14.38 | DB23: 22.83 | DC23: 25.175 | DD23: 18.76 | DF23: NA | DI23: 1.485 | DJ23: 12.48 | DK23: 25.0275 | DL23: 16.571 | DM23: 8.8 | DN23: 9.08 | DO23: 12.32 | DP23: 10.15111111 | DQ23: 3.555 | DR23: 8.575 | DS23: 13.7325 | DT23: 8.053333333
A24: Banks w/ Loan Growth (last 4 qtrs)--32963 | B24: Banks w/ Loan Growth (last 4 qtrs) | C24: 22 | D24: 1990-03-31 | F24: 67.67676768 | J24: 75.98360656 | N24: 72.24431366 | R24: 82.35294118 | V24: 77.37341772 | Z24: 66.4556962 | AD24: 71.71052632 | AH24: 77.77777778 | AL24: 83.05084746 | AP24: 74.36708861 | AT24: 82.9004329 | AX24: 76.82291667 | BB24: 76.49122807 | BF24: 79.66101695 | BJ24: 38.46153846 | BN24: NaN | BR24: 85.71428571 | BV24: 79.31034483 | BZ24: NaN | CD24: 74.83443709 | CH24: 100 | CL24: 78.78787879 | CP24: 85.71428571 | CT24: 60 | CX24: 81.81818182 | DB24: 100 | DF24: NaN | DJ24: 70 | DN24: 100 | DR24: 75
A25: Equity / Assets--33054 | B25: Equity / Assets | C25: 1 | D25: 1990-06-30 | E25: 7.803320232 | F25: 9.028431755 | G25: 11.14911682 | H25: 9.68189984 | I25: 7.448523001 | J25: 8.521890396 | K25: 10.30602968 | L25: 9.116650777 | M25: 6.941767041 | N25: 8.232632371 | O25: 10.14727982 | P25: 8.950570486 | Q25: 7.398331183 | R25: 7.988969161 | S25: 9.353716308 | T25: 8.599741994 | U25: 7.319748424 | V25: 8.359431716 | W25: 10.10270546 | X25: 8.923958067 | Y25: 7.585767573 | Z25: 8.696389728 | AA25: 10.32841183 | AB25: 9.188815222 | AC25: 7.857027432 | AD25: 9.172915346 | AE25: 10.99599326 | AF25: 9.62742268 | AG25: 7.890057093 | AH25: 9.069676917 | AI25: 11.49193548 | AJ25: 9.932828946 | AK25: 7.503261521 | AL25: 8.200493803 | AM25: 9.517234812 | AN25: 8.801088766 | AO25: 7.890057093 | AP25: 9.173397148 | AQ25: 11.19027356 | AR25: 9.783926303 | AS25: 7.349988232 | AT25: 8.343440435 | AU25: 9.907726833 | AV25: 8.760354065 | AW25: 7.360362863 | AX25: 8.240971523 | AY25: 9.59581227 | AZ25: 8.672440273 | BA25: 7.044250779 | BB25: 8.128126597 | BC25: 9.599733547 | BD25: 8.566001292 | BE25: 7.463510848 | BF25: 8.200493803 | BG25: 9.36370978 | BH25: 8.637020147 | BI25: 7.139318401 | BJ25: 7.643905849 | BK25: 11.27805066 | BL25: 8.772001805 | BN25: NA | BQ25: 7.919532339 | BR25: 9.777969597 | BS25: 10.38474414 | BT25: 9.693841739 | BU25: 6.505128952 | BV25: 8.042302017 | BW25: 9.625978545 | BX25: 8.180409294 | BZ25: NA | CC25: 7.211467415 | CD25: 8.147318416 | CE25: 9.365608662 | CF25: 8.526131355 | CG25: 5.565126226 | CH25: 7.571863439 | CI25: 12.78779561 | CJ25: 9.336658729 | CK25: 7.373691127 | CL25: 7.662344889 | CM25: 9.094189498 | CN25: 8.346553295 | CO25: 7.93204969 | CP25: 9.045554016 | CQ25: 9.649424535 | CR25: 8.689998848 | CS25: 8.294333286 | CT25: 9.939477715 | CU25: 11.23150888 | CV25: 10.03650177 | CW25: 6.547803494 | CX25: 7.508538139 | CY25: 8.724278419 | CZ25: 8.019848409 | DA25: 7.849207382 | DB25: 8.781782906 | DC25: 11.07071555 | DD25: 9.686020986 | DF25: NA | DI25: 5.562861842 | DJ25: 7.203391904 | DK25: 9.870300658 | DL25: 8.418171846 | DM25: 7.914550712 | DN25: 9.427680476 | DO25: 9.783752404 | DP25: 8.97581215 | DQ25: 7.340089834 | DR25: 8.256899647 | DS25: 10.96561834 | DT25: 9.14557739
A26: Total Risk Based Capital Ratio--33054 | B26: Total Risk Based Capital Ratio | C26: 2 | D26: 1990-06-30 | E26: 0 | F26: 0 | G26: 0 | H26: 0 | I26: 0 | J26: 0 | K26: 0 | L26: 0 | M26: 0 | N26: 0 | O26: 0 | P26: 0 | Q26: 0 | R26: 0 | S26: 0 | T26: 0 | U26: 0 | V26: 0 | W26: 0 | X26: 0 | Y26: 0 | Z26: 0 | AA26: 0 | AB26: 0 | AC26: 0 | AD26: 0 | AE26: 0 | AF26: 0 | AG26: 0 | AH26: 0 | AI26: 0 | AJ26: 0 | AK26: 0 | AL26: 0 | AM26: 0 | AN26: 0 | AO26: 0 | AP26: 0 | AQ26: 0 | AR26: 0 | AS26: 0 | AT26: 0 | AU26: 0 | AV26: 0 | AW26: 0 | AX26: 0 | AY26: 0 | AZ26: 0 | BA26: 0 | BB26: 0 | BC26: 0 | BD26: 0 | BE26: 0 | BF26: 0 | BG26: 0 | BH26: 0 | BI26: 0 | BJ26: 0 | BK26: 0 | BL26: 0 | BN26: NA | BQ26: 0 | BR26: 0 | BS26: 0 | BT26: 0 | BU26: 0 | BV26: 0 | BW26: 0 | BX26: 0 | BZ26: NA | CC26: 0 | CD26: 0 | CE26: 0 | CF26: 0 | CG26: 0 | CH26: 0 | CI26: 0 | CJ26: 0 | CK26: 0 | CL26: 0 | CM26: 0 | CN26: 0 | CO26: 0 | CP26: 0 | CQ26: 0 | CR26: 0 | CS26: 0 | CT26: 0 | CU26: 0 | CV26: 0 | CW26: 0 | CX26: 0 | CY26: 0 | CZ26: 0 | DA26: 0 | DB26: 0 | DC26: 0 | DD26: 0 | DF26: NA | DI26: 0 | DJ26: 0 | DK26: 0 | DL26: 0 | DM26: 0 | DN26: 0 | DO26: 0 | DP26: 0 | DQ26: 0 | DR26: 0 | DS26: 0 | DT26: 0
A27: Tier 1 Leverage Ratio--33054 | B27: Tier 1 Leverage Ratio | C27: 3 | D27: 1990-06-30 | E27: 0 | F27: 0 | G27: 0 | H27: 0 | I27: 0 | J27: 0 | K27: 0 | L27: 0 | M27: 0 | N27: 0 | O27: 0 | P27: 0 | Q27: 0 | R27: 0 | S27: 0 | T27: 0 | U27: 0 | V27: 0 | W27: 0 | X27: 0 | Y27: 0 | Z27: 0 | AA27: 0 | AB27: 0 | AC27: 0 | AD27: 0 | AE27: 0 | AF27: 0 | AG27: 0 | AH27: 0 | AI27: 0 | AJ27: 0 | AK27: 0 | AL27: 0 | AM27: 0 | AN27: 0 | AO27: 0 | AP27: 0 | AQ27: 0 | AR27: 0 | AS27: 0 | AT27: 0 | AU27: 0 | AV27: 0 | AW27: 0 | AX27: 0 | AY27: 0 | AZ27: 0 | BA27: 0 | BB27: 0 | BC27: 0 | BD27: 0 | BE27: 0 | BF27: 0 | BG27: 0 | BH27: 0 | BI27: 0 | BJ27: 0 | BK27: 0 | BL27: 0 | BN27: NA | BQ27: 0 | BR27: 0 | BS27: 0 | BT27: 0 | BU27: 0 | BV27: 0 | BW27: 0 | BX27: 0 | BZ27: NA | CC27: 0 | CD27: 0 | CE27: 0 | CF27: 0 | CG27: 0 | CH27: 0 | CI27: 0 | CJ27: 0 | CK27: 0 | CL27: 0 | CM27: 0 | CN27: 0 | CO27: 0 | CP27: 0 | CQ27: 0 | CR27: 0 | CS27: 0 | CT27: 0 | CU27: 0 | CV27: 0 | CW27: 0 | CX27: 0 | CY27: 0 | CZ27: 0 | DA27: 0 | DB27: 0 | DC27: 0 | DD27: 0 | DF27: NA | DI27: 0 | DJ27: 0 | DK27: 0 | DL27: 0 | DM27: 0 | DN27: 0 | DO27: 0 | DP27: 0 | DQ27: 0 | DR27: 0 | DS27: 0 | DT27: 0
A28: ALLL / Nonaccrual Loans--33054 | B28: ALLL / Nonaccrual Loans | C28: 4 | D28: 1990-06-30 | E28: 64.46636699 | F28: 129.3940571 | G28: 309.0702948 | H28: 961.9012434 | I28: 81.94233687 | J28: 153.9622642 | K28: 366.1290323 | L28: 450.3450851 | M28: 77.52026883 | N28: 154.00491 | O28: 380.6517535 | P28: 464.0621155 | Q28: 137.5259138 | R28: 228.5714286 | S28: 408.8002637 | T28: 339.1257871 | U28: 85.80845918 | V28: 169.8680664 | W28: 442.724359 | X28: 577.3129792 | Y28: 64.98447205 | Z28: 131.0248948 | AA28: 272.0789474 | AB28: 339.048488 | AC28: 87.44797473 | AD28: 162.870521 | AE28: 346.7592593 | AF28: 503.2616932 | AG28: 117.6938197 | AH28: 158.3710407 | AI28: 470.3030303 | AJ28: 754.1597002 | AK28: 58.12133072 | AL28: 105.7471264 | AM28: 213.1782946 | AN28: 199.7022201 | AO28: 88.46911149 | AP28: 159.2592593 | AQ28: 435.8856683 | AR28: 491.2085489 | AS28: 85.55555556 | AT28: 155.3235908 | AU28: 396.969697 | AV28: 465.3749089 | AW28: 76.53053369 | AX28: 152.1645566 | AY28: 311.1663653 | AZ28: 458.0404471 | BA28: 69.2556366 | BB28: 145.3416149 | BC28: 307.8810493 | BD28: 471.4413896 | BE28: 108.8461538 | BF28: 149.3150685 | BG28: 279.5454545 | BH28: 431.2776151 | BI28: 49.32304472 | BJ28: 80.6010929 | BK28: 153.3450227 | BL28: 118.2186376 | BN28: NA | BQ28: 89.60591133 | BR28: 120.6703911 | BS28: 859.5103578 | BT28: 544.9198062 | BU28: 77.94718118 | BV28: 181.0684647 | BW28: 512.1234319 | BX28: 865.2739352 | BZ28: NA | CC28: 73.46519566 | CD28: 133.2566119 | CE28: 337.0381098 | CF28: 503.3003263 | CG28: 79.81651376 | CH28: 196.7741935 | CI28: 244.1896024 | CJ28: 256.7030354 | CK28: 103.9067802 | CL28: 206.9611762 | CM28: 330.4060872 | CN28: 262.6126908 | CO28: 129.5022796 | CP28: 151.6568866 | CQ28: 2228.374036 | CR28: 1631.358255 | CS28: 116.3194444 | CT28: 221.6783217 | CU28: 373.0666667 | CV28: 312.2339194 | CW28: 134.1891406 | CX28: 190.4551329 | CY28: 308.7027915 | CZ28: 858.4293337 | DA28: 215.6515152 | DB28: 297.3030303 | DC28: 378.9545455 | DD28: 297.3030303 | DF28: NA | DI28: 141.6827853 | DJ28: 237.1987952 | DK28: 324.5614035 | DL28: 345.7650325 | DM28: 60.42780749 | DN28: 175.7894737 | DO28: 219.2307692 | DP28: 242.1835843 | DQ28: 105.7905052 | DR28: 111.3689033 | DS28: 177.5351725 | DT28: 153.8626163
A29: [NCL + OREO] / [Total Loans + OREO]--33054 | B29: [NCL + OREO] / [Total Loans + OREO] | C29: 5 | D29: 1990-06-30 | E29: 1.283285292 | F29: 2.845042447 | G29: 4.20471341 | H29: 3.388914175 | I29: 0.8837039414 | J29: 2.017363057 | K29: 3.765020504 | L29: 2.657241526 | M29: 0.8019218063 | N29: 1.958317454 | O29: 4.099773915 | P29: 3.04256705 | Q29: 1.102907542 | R29: 1.816036249 | S29: 2.459616858 | T29: 1.901396292 | U29: 0.8008881824 | V29: 1.874033994 | W29: 3.40431733 | X29: 2.402899166 | Y29: 1.431058786 | Z29: 3.290362032 | AA29: 5.078608978 | AB29: 3.652720793 | AC29: 1.000064946 | AD29: 2.496218839 | AE29: 5.531111887 | AF29: 3.561328157 | AG29: 0.834952476 | AH29: 1.726722226 | AI29: 3.151458137 | AJ29: 2.30996799 | AK29: 1.12017612 | AL29: 1.87866253 | AM29: 3.220965754 | AN29: 2.343741033 | AO29: 0.8428358949 | AP29: 2.198697068 | AQ29: 4.192355117 | AR29: 2.935595699 | AS29: 0.844137571 | AT29: 1.82728545 | AU29: 3.42307976 | AV29: 2.482937817 | AW29: 0.875539882 | AX29: 1.878723404 | AY29: 3.368605664 | AZ29: 2.403362351 | BA29: 0.9895176316 | BB29: 2.083288694 | BC29: 3.789476923 | BD29: 2.766198459 | BE29: 0.7574536664 | BF29: 1.713392385 | BG29: 2.248316768 | BH29: 1.984731786 | BI29: 3.767560664 | BJ29: 3.899721448 | BK29: 5.578077472 | BL29: 4.451806418 | BN29: NA | BQ29: 0.7943373728 | BR29: 2.348529702 | BS29: 2.976283146 | BT29: 2.040311875 | BU29: 1.161194975 | BV29: 2.067768834 | BW29: 4.628464442 | BX29: 2.62165427 | BZ29: NA | CC29: 0.8641674781 | CD29: 1.81759394 | CE29: 2.979158464 | CF29: 2.147792804 | CG29: 0.4993968941 | CH29: 1.072916595 | CI29: 1.596571516 | CJ29: 0.9940748659 | CK29: 1.145425213 | CL29: 1.736364893 | CM29: 3.123555099 | CN29: 2.365205761 | CO29: 1.151904948 | CP29: 1.609500742 | CQ29: 1.857824872 | CR29: 2.41416554 | CS29: 0.9160949059 | CT29: 1.208628691 | CU29: 6.930944667 | CV29: 3.345631776 | CW29: 0.9553795981 | CX29: 1.506128778 | CY29: 2.926808089 | CZ29: 2.443859999 | DA29: 1.058628823 | DB29: 1.184684685 | DC29: 2.151353507 | DD29: 1.745093325 | DF29: NA | DI29: 1.334078564 | DJ29: 1.523315907 | DK29: 1.650338728 | DL29: 1.80503019 | DM29: 1.684972541 | DN29: 2.369135324 | DO29: 2.545553812 | DP29: 2.111638293 | DQ29: 1.150009513 | DR29: 1.381511113 | DS29: 1.652218194 | DT29: 1.486895472
A30: [Noncurrent + Delinquent Loans] / [Capital + ALLL]--33054 | B30: [Noncurrent + Delinquent Loans] / [Capital + ALLL] | C30: 6 | D30: 1990-06-30 | E30: 10.47271175 | F30: 19.77109444 | G30: 29.38897332 | H30: 24.71239665 | I30: 8.642402387 | J30: 17.13066278 | K30: 29.17008128 | L30: 21.3223867 | M30: 8.483126247 | N30: 17.91745955 | O30: 32.2245523 | P30: 24.06065639 | Q30: 13.14514898 | R30: 21.05223303 | S30: 30.49465794 | T30: 24.15939811 | U30: 7.990314444 | V30: 16.56170382 | W30: 29.33427335 | X30: 21.02359564 | Y30: 11.26317644 | Z30: 22.15494495 | AA30: 32.12623287 | AB30: 25.52133878 | AC30: 6.718955351 | AD30: 16.48885075 | AE30: 27.56121428 | AF30: 20.34435847 | AG30: 5.137844612 | AH30: 10.87373322 | AI30: 20.97191426 | AJ30: 15.11312209 | AK30: 14.46896812 | AL30: 20.85268746 | AM30: 34.37553685 | AN30: 25.63922223 | AO30: 6.07495069 | AP30: 14.03336605 | AQ30: 25.46462341 | AR30: 18.09234126 | AS30: 10.00992774 | AT30: 19.4198663 | AU30: 29.97122727 | AV30: 22.72620053 | AW30: 10.89785078 | AX30: 19.678828 | AY30: 34.01744411 | AZ30: 23.96090094 | BA30: 10.4276131 | BB30: 21.29212674 | BC30: 35.57307287 | BD30: 26.236452 | BE30: 12.37206502 | BF30: 16.1429558 | BG30: 26.03626943 | BH30: 21.44364665 | BI30: 19.81130248 | BJ30: 26.13372093 | BK30: 29.65116279 | BL30: 27.44129712 | BN30: NA | BQ30: 12.84242139 | BR30: 17.21572795 | BS30: 22.56540062 | BT30: 20.50790806 | BU30: 12.67893661 | BV30: 28.92223738 | BW30: 38.93229167 | BX30: 36.69785812 | BZ30: NA | CC30: 10.41876047 | CD30: 19.06713505 | CE30: 33.33333333 | CF30: 22.86443641 | CG30: 4.263182046 | CH30: 11.41932984 | CI30: 26.59747472 | CJ30: 15.69199149 | CK30: 12.83627978 | CL30: 24.55752212 | CM30: 32.24011131 | CN30: 26.41401891 | CO30: 5.203265178 | CP30: 15.03160209 | CQ30: 17.96444649 | CR30: 12.78209641 | CS30: 12.37145117 | CT30: 14.77263984 | CU30: 31.76156584 | CV30: 26.62835942 | CW30: 13.2595306 | CX30: 21.53767456 | CY30: 30.22228531 | CZ30: 24.80501925 | DA30: 7.172544546 | DB30: 9.536166072 | DC30: 16.81402321 | DD30: 12.81232314 | DF30: NA | DI30: 18.00574133 | DJ30: 27.42294745 | DK30: 39.27847889 | DL30: 35.26103375 | DM30: 16.76343606 | DN30: 24.56909361 | DO30: 27.01834862 | DP30: 32.50681333 | DQ30: 14.47443471 | DR30: 17.12603896 | DS30: 20.51901276 | DT30: 17.26122324
A31: Ag [NCL+DQ] / [Capital + ALLL]--33054 | B31: Ag [NCL+DQ] / [Capital + ALLL] | C31: 7 | D31: 1990-06-30 | E31: 0 | F31: 0.7931550532 | G31: 5.13573293 | H31: 5.594598662 | I31: 0 | J31: 0.1938115953 | K31: 3.837833677 | L31: 3.082662417 | M31: 0 | N31: 0 | O31: 0.2214292517 | P31: 1.153359336 | Q31: 0 | R31: 0 | S31: 0 | T31: 0.0165124197 | U31: 0 | V31: 0 | W31: 2.549015993 | X31: 2.306058098 | Y31: 0 | Z31: 0 | AA31: 5.13573293 | AB31: 3.496563751 | AC31: 0.3124817669 | AD31: 2.848014433 | AE31: 11.52571303 | AF31: 7.664359924 | AG31: 0.08077544426 | AH31: 1.367419738 | AI31: 6.695015823 | AJ31: 4.002561676 | AK31: 0 | AL31: 0 | AM31: 2.53411306 | AN31: 1.667240897 | AO31: 0.1396648045 | AP31: 2.408256881 | AQ31: 8.699878493 | AR31: 5.579286733 | AS31: 0 | AT31: 0.3411971319 | AU31: 3.833337271 | AV31: 2.7212736 | AW31: 0 | AX31: 0 | AY31: 0.3939224559 | AZ31: 0.9461438723 | BA31: 0 | BB31: 0 | BC31: 0.5862911403 | BD31: 1.171078333 | BE31: 0 | BF31: 0 | BG31: 0.7317073171 | BH31: 0.7048795578 | BI31: 0 | BJ31: 0 | BK31: 2.028401496 | BL31: 1.181913108 | BN31: NA | BQ31: 0 | BR31: 0 | BS31: 1.058237809 | BT31: 1.041801128 | BU31: 0 | BV31: 0 | BW31: 0 | BX31: 0 | BZ31: NA | CC31: 0 | CD31: 0 | CE31: 0 | CF31: 0.2582415518 | CG31: 0 | CH31: 0 | CI31: 0.09626492106 | CJ31: 0.3931340394 | CK31: 0 | CL31: 0 | CM31: 2.238122972 | CN31: 2.598136967 | CO31: 0 | CP31: 0 | CQ31: 0.426372139 | CR31: 2.335842751 | CS31: 1.037180276 | CT31: 2.062014311 | CU31: 9.134045077 | CV31: 9.11077007 | CW31: 0 | CX31: 2.35990273 | CY31: 5.899084062 | CZ31: 5.772892547 | DA31: 0 | DB31: 0 | DC31: 2.40446151 | DD31: 1.60297434 | DF31: NA | DI31: 0.06430800371 | DJ31: 0.7610714928 | DK31: 2.027585407 | DL31: 1.496400895 | DM31: 0 | DN31: 0 | DO31: 0.2820874471 | DP31: 0.5984932122 | DQ31: 0 | DR31: 0.9832765586 | DS31: 2.925182567 | DT31: 2.376841558
A32: CLD [NCL+DQ] / [Capital + ALLL]--33054 | B32: CLD [NCL+DQ] / [Capital + ALLL] | C32: 8 | D32: 1990-06-30 | E32: 0 | F32: 0 | G32: 0 | H32: 0 | I32: 0 | J32: 0 | K32: 0 | L32: 0 | M32: 0 | N32: 0 | O32: 0 | P32: 0 | Q32: 0 | R32: 0 | S32: 0 | T32: 0 | U32: 0 | V32: 0 | W32: 0 | X32: 0 | Y32: 0 | Z32: 0 | AA32: 0 | AB32: 0 | AC32: 0 | AD32: 0 | AE32: 0 | AF32: 0 | AG32: 0 | AH32: 0 | AI32: 0 | AJ32: 0 | AK32: 0 | AL32: 0 | AM32: 0 | AN32: 0 | AO32: 0 | AP32: 0 | AQ32: 0 | AR32: 0 | AS32: 0 | AT32: 0 | AU32: 0 | AV32: 0 | AW32: 0 | AX32: 0 | AY32: 0 | AZ32: 0 | BA32: 0 | BB32: 0 | BC32: 0 | BD32: 0 | BE32: 0 | BF32: 0 | BG32: 0 | BH32: 0 | BI32: 0 | BJ32: 0 | BK32: 0 | BL32: 0 | BN32: NA | BQ32: 0 | BR32: 0 | BS32: 0 | BT32: 0 | BU32: 0 | BV32: 0 | BW32: 0 | BX32: 0 | BZ32: NA | CC32: 0 | CD32: 0 | CE32: 0 | CF32: 0 | CG32: 0 | CH32: 0 | CI32: 0 | CJ32: 0 | CK32: 0 | CL32: 0 | CM32: 0 | CN32: 0 | CO32: 0 | CP32: 0 | CQ32: 0 | CR32: 0 | CS32: 0 | CT32: 0 | CU32: 0 | CV32: 0 | CW32: 0 | CX32: 0 | CY32: 0 | CZ32: 0 | DA32: 0 | DB32: 0 | DC32: 0 | DD32: 0 | DF32: NA | DI32: 0 | DJ32: 0 | DK32: 0 | DL32: 0 | DM32: 0 | DN32: 0 | DO32: 0 | DP32: 0 | DQ32: 0 | DR32: 0 | DS32: 0 | DT32: 0
A33: CRE [NCL+DQ] / [Capital + ALLL]--33054 | B33: CRE [NCL+DQ] / [Capital + ALLL] | C33: 9 | D33: 1990-06-30 | E33: 0 | F33: 0 | G33: 0 | H33: 0 | I33: 0 | J33: 0 | K33: 0 | L33: 0 | M33: 0 | N33: 0 | O33: 0 | P33: 0 | Q33: 0 | R33: 0 | S33: 0 | T33: 0 | U33: 0 | V33: 0 | W33: 0 | X33: 0 | Y33: 0 | Z33: 0 | AA33: 0 | AB33: 0 | AC33: 0 | AD33: 0 | AE33: 0 | AF33: 0 | AG33: 0 | AH33: 0 | AI33: 0 | AJ33: 0 | AK33: 0 | AL33: 0 | AM33: 0 | AN33: 0 | AO33: 0 | AP33: 0 | AQ33: 0 | AR33: 0 | AS33: 0 | AT33: 0 | AU33: 0 | AV33: 0 | AW33: 0 | AX33: 0 | AY33: 0 | AZ33: 0 | BA33: 0 | BB33: 0 | BC33: 0 | BD33: 0 | BE33: 0 | BF33: 0 | BG33: 0 | BH33: 0 | BI33: 0 | BJ33: 0 | BK33: 0 | BL33: 0 | BN33: NA | BQ33: 0 | BR33: 0 | BS33: 0 | BT33: 0 | BU33: 0 | BV33: 0 | BW33: 0 | BX33: 0 | BZ33: NA | CC33: 0 | CD33: 0 | CE33: 0 | CF33: 0 | CG33: 0 | CH33: 0 | CI33: 0 | CJ33: 0 | CK33: 0 | CL33: 0 | CM33: 0 | CN33: 0 | CO33: 0 | CP33: 0 | CQ33: 0 | CR33: 0 | CS33: 0 | CT33: 0 | CU33: 0 | CV33: 0 | CW33: 0 | CX33: 0 | CY33: 0 | CZ33: 0 | DA33: 0 | DB33: 0 | DC33: 0 | DD33: 0 | DF33: NA | DI33: 0 | DJ33: 0 | DK33: 0 | DL33: 0 | DM33: 0 | DN33: 0 | DO33: 0 | DP33: 0 | DQ33: 0 | DR33: 0 | DS33: 0 | DT33: 0
A34: Res RE [NCL+DQ] / [Capital + ALLL]--33054 | B34: Res RE [NCL+DQ] / [Capital + ALLL] | C34: 10 | D34: 1990-06-30 | E34: 0 | F34: 0 | G34: 0 | H34: 0 | I34: 0 | J34: 0 | K34: 0 | L34: 0 | M34: 0 | N34: 0 | O34: 0 | P34: 0 | Q34: 0 | R34: 0 | S34: 0 | T34: 0 | U34: 0 | V34: 0 | W34: 0 | X34: 0 | Y34: 0 | Z34: 0 | AA34: 0 | AB34: 0 | AC34: 0 | AD34: 0 | AE34: 0 | AF34: 0 | AG34: 0 | AH34: 0 | AI34: 0 | AJ34: 0 | AK34: 0 | AL34: 0 | AM34: 0 | AN34: 0 | AO34: 0 | AP34: 0 | AQ34: 0 | AR34: 0 | AS34: 0 | AT34: 0 | AU34: 0 | AV34: 0 | AW34: 0 | AX34: 0 | AY34: 0 | AZ34: 0 | BA34: 0 | BB34: 0 | BC34: 0 | BD34: 0 | BE34: 0 | BF34: 0 | BG34: 0 | BH34: 0 | BI34: 0 | BJ34: 0 | BK34: 0 | BL34: 0 | BN34: NA | BQ34: 0 | BR34: 0 | BS34: 0 | BT34: 0 | BU34: 0 | BV34: 0 | BW34: 0 | BX34: 0 | BZ34: NA | CC34: 0 | CD34: 0 | CE34: 0 | CF34: 0 | CG34: 0 | CH34: 0 | CI34: 0 | CJ34: 0 | CK34: 0 | CL34: 0 | CM34: 0 | CN34: 0 | CO34: 0 | CP34: 0 | CQ34: 0 | CR34: 0 | CS34: 0 | CT34: 0 | CU34: 0 | CV34: 0 | CW34: 0 | CX34: 0 | CY34: 0 | CZ34: 0 | DA34: 0 | DB34: 0 | DC34: 0 | DD34: 0 | DF34: NA | DI34: 0 | DJ34: 0 | DK34: 0 | DL34: 0 | DM34: 0 | DN34: 0 | DO34: 0 | DP34: 0 | DQ34: 0 | DR34: 0 | DS34: 0 | DT34: 0
A35: C&I [NCL+DQ] / [Capital + ALLL]--33054 | B35: C&I [NCL+DQ] / [Capital + ALLL] | C35: 11 | D35: 1990-06-30 | E35: 3.673657957 | F35: 9.378063251 | G35: 19.77601507 | H35: 14.11762964 | I35: 2.319651605 | J35: 6.660529845 | K35: 14.77385554 | L35: 10.156419 | M35: 1.39964135 | N35: 5.171912881 | O35: 12.50455317 | P35: 9.247268789 | Q35: 1.883002669 | R35: 5.486334708 | S35: 11.16834444 | T35: 7.884762133 | U35: 1.911273813 | V35: 5.3934588 | W35: 13.05591052 | X35: 9.23776702 | Y35: 5.169850925 | Z35: 11.52696277 | AA35: 20.31594475 | AB35: 15.59160183 | AC35: 3.150606382 | AD35: 8.775329062 | AE35: 17.87370145 | AF35: 11.9534086 | AG35: 1.52979066 | AH35: 5.166289958 | AI35: 12.01949107 | AJ35: 8.347695422 | AK35: 2.829796088 | AL35: 6.811769448 | AM35: 12.37777522 | AN35: 9.484741263 | AO35: 2.21574344 | AP35: 5.979685452 | AQ35: 15.19308943 | AR35: 9.935188853 | AS35: 2.86899326 | AT35: 8.105658704 | AU35: 15.66102043 | AV35: 11.03137587 | AW35: 1.804312923 | AX35: 5.199849643 | AY35: 11.56798502 | AZ35: 8.555507242 | BA35: 3.763481213 | BB35: 9.901536454 | BC35: 20.20999707 | BD35: 14.43747778 | BE35: 2.557544757 | BF35: 6.242405832 | BG35: 10.83767156 | BH35: 8.605426669 | BI35: 7.375477072 | BJ35: 15.15490053 | BK35: 20.99334357 | BL35: 17.25789256 | BN35: NA | BQ35: 5.30154025 | BR35: 7.489336375 | BS35: 17.26753082 | BT35: 12.75009178 | BU35: 2.924164524 | BV35: 8.308126638 | BW35: 22.30066445 | BX35: 18.32928219 | BZ35: NA | CC35: 2.094240838 | CD35: 6.156775627 | CE35: 13.95139514 | CF35: 9.571830193 | CG35: 0 | CH35: 3.688078389 | CI35: 9.266580925 | CJ35: 4.96098777 | CK35: 3.806706114 | CL35: 6.242405832 | CM35: 14.51973194 | CN35: 10.47158742 | CO35: 2.934287653 | CP35: 7.442922374 | CQ35: 10.3629601 | CR35: 7.075867694 | CS35: 2.839061264 | CT35: 10.25621297 | CU35: 18.47568209 | CV35: 13.75402023 | CW35: 7.652095426 | CX35: 14.22487029 | CY35: 20.61413173 | CZ35: 15.0489112 | DA35: 2.671555527 | DB35: 4.808923021 | DC35: 5.875106986 | DD35: 4.094800668 | DF35: NA | DI35: 5.114254361 | DJ35: 11.89203908 | DK35: 19.2897119 | DL35: 12.74410044 | DM35: 6.008287293 | DN35: 9.873060649 | DO35: 12.84546805 | DP35: 13.23329963 | DQ35: 3.086648512 | DR35: 6.205884724 | DS35: 8.499771917 | DT35: 6.261944443
A36: Ind [NCL+DQ] / [Capital + ALLL]--33054 | B36: Ind [NCL+DQ] / [Capital + ALLL] | C36: 12 | D36: 1990-06-30 | E36: 0.8949403316 | F36: 2.082534399 | G36: 4.189877919 | H36: 3.413909786 | I36: 0.6069527305 | J36: 1.738786869 | K36: 3.697545551 | L36: 2.786771256 | M36: 0.365212863 | N36: 1.665804491 | O36: 4.174228675 | P36: 3.138425082 | Q36: 2.135182949 | R36: 3.821367134 | S36: 7.085648164 | T36: 5.412170919 | U36: 0.6427092719 | V36: 1.78062881 | W36: 3.933350848 | X36: 2.802531767 | Y36: 0.7403983357 | Z36: 1.959365521 | AA36: 4.319348729 | AB36: 3.331254928 | AC36: 0.2928126318 | AD36: 1.003977344 | AE36: 2.270123892 | AF36: 1.77197729 | AG36: 0.306372549 | AH36: 1.25588697 | AI36: 2.926541284 | AJ36: 2.805489605 | AK36: 1.291079812 | AL36: 2.213279678 | AM36: 4.098031338 | AN36: 3.154178213 | AO36: 0.3791795932 | AP36: 1.150793651 | AQ36: 2.608267717 | AR36: 1.949721231 | AS36: 0.6027195404 | AT36: 1.707263922 | AU36: 3.60878631 | AV36: 2.787445913 | AW36: 1.167194456 | AX36: 2.126813755 | AY36: 4.700671123 | AZ36: 3.604177642 | BA36: 0.7124935398 | BB36: 1.979229724 | BC36: 4.809832197 | BD36: 3.446570851 | BE36: 2.037292818 | BF36: 4.028132992 | BG36: 5.552097597 | BH36: 4.333903957 | BI36: 0.1768346596 | BJ36: 1.962209302 | BK36: 2.987197724 | BL36: 2.847814082 | BN36: NA | BQ36: 2.020676398 | BR36: 3.918262077 | BS36: 4.798428589 | BT36: 3.792919659 | BU36: 1.472556894 | BV36: 2.700490998 | BW36: 9.622641509 | BX36: 5.972396099 | BZ36: NA | CC36: 0.5983623767 | CD36: 1.849257495 | CE36: 3.929430634 | CF36: 3.040654122 | CG36: 0 | CH36: 0.2463054187 | CI36: 3.139279547 | CJ36: 1.760844784 | CK36: 0.8849557522 | CL36: 1.949740035 | CM36: 4.657264677 | CN36: 5.088796476 | CO36: 0.07818160373 | CP36: 0.2257336343 | CQ36: 0.9765987239 | CR36: 0.6312633685 | CS36: 2.026017404 | CT36: 2.362083558 | CU36: 5.877862595 | CV36: 3.798946929 | CW36: 0.3202695148 | CX36: 1.737663855 | CY36: 3.110277017 | CZ36: 2.061115028 | DA36: 1.167693805 | DB36: 2.335387609 | DC36: 2.476454488 | DD36: 1.650969659 | DF36: NA | DI36: 0.3129959443 | DJ36: 3.274061477 | DK36: 6.238648667 | DL36: 9.61530257 | DM36: 2.037292818 | DN36: 4.936530324 | DO36: 6.803632574 | DP36: 5.985311108 | DQ36: 1.070270398 | DR36: 2.539401205 | DS36: 3.534540087 | DT36: 2.517629279
A37: OREO / [Capital + ALLL]--33054 | B37: OREO / [Capital + ALLL] | C37: 13 | D37: 1990-06-30 | E37: 0.1485855027 | F37: 1.560017967 | G37: 5.194930288 | H37: 5.582208827 | I37: 0 | J37: 1.745325188 | K37: 5.821497112 | L37: 4.133085064 | M37: 0 | N37: 1.547774053 | O37: 7.19280282 | P37: 6.796490193 | Q37: 0.459224703 | R37: 2.218073254 | S37: 4.490410584 | T37: 3.025469241 | U37: 0 | V37: 1.79750187 | W37: 5.852639371 | X37: 4.442778563 | Y37: 0.1599153066 | Z37: 2.618003933 | AA37: 7.182243487 | AB37: 4.856075787 | AC37: 0 | AD37: 1.747223902 | AE37: 5.97300146 | AF37: 4.229837628 | AG37: 0 | AH37: 0.4174852652 | AI37: 3.423566879 | AJ37: 2.758010765 | AK37: 0.05659309564 | AL37: 1.777868601 | AM37: 7.03098967 | AN37: 4.047746407 | AO37: 0 | AP37: 1.422070535 | AQ37: 5.965082444 | AR37: 4.238730582 | AS37: 0 | AT37: 1.594125286 | AU37: 5.535600192 | AV37: 4.253028862 | AW37: 0.03423563288 | AX37: 2.290426019 | AY37: 6.016191038 | AZ37: 4.209662896 | BA37: 0.1480924791 | BB37: 2.356995991 | BC37: 6.03981493 | BD37: 4.842096126 | BE37: 0.04006142752 | BF37: 1.433947882 | BG37: 4.051515965 | BH37: 2.813277007 | BI37: 2.761627907 | BJ37: 5.923961096 | BK37: 16.4923572 | BL37: 9.709711141 | BN37: NA | BQ37: 0 | BR37: 0.1594048884 | BS37: 0.6839996902 | BT37: 0.5725055873 | BU37: 0.1141552511 | BV37: 0.8921933086 | BW37: 4.294478528 | BX37: 8.988914299 | BZ37: NA | CC37: 0 | CD37: 1.765339074 | CE37: 5.066709022 | CF37: 3.392575937 | CG37: 0 | CH37: 0 | CI37: 1.228049874 | CJ37: 0.6408458925 | CK37: 0 | CL37: 1.743703294 | CM37: 6.509640231 | CN37: 4.494855098 | CO37: 0 | CP37: 2.237926973 | CQ37: 4.900425665 | CR37: 3.869669608 | CS37: 0.534351145 | CT37: 1.099680738 | CU37: 2.562186868 | CV37: 1.687405079 | CW37: 0.2293290956 | CX37: 1.266112371 | CY37: 2.741341645 | CZ37: 3.091975565 | DA37: 1.135257866 | DB37: 2.270515731 | DC37: 5.168377524 | DD37: 3.445585016 | DF37: NA | DI37: 0.008816787163 | DJ37: 0.4849599212 | DK37: 1.297555804 | DL37: 1.166523604 | DM37: 1.009174312 | DN37: 3.245496501 | DO37: 5.374216947 | DP37: 3.760502489 | DQ37: 0 | DR37: 0.2249487465 | DS37: 1.251173316 | DT37: 0.7714344548
A38: ROAA--33054 | B38: ROAA | C38: 14 | D38: 1990-06-30 | E38: 0.7325 | F38: 0.995 | G38: 1.2775 | H38: 0.8879591837 | I38: 0.74 | J38: 1.03 | K38: 1.31 | L38: 0.9715294118 | M38: 0.6 | N38: 0.99 | O38: 1.32 | P38: 0.8152141573 | Q38: 0.72 | R38: 0.935 | S38: 1.1925 | T38: 0.9391176471 | U38: 0.6775 | V38: 0.99 | W38: 1.29 | X38: 0.9302597403 | Y38: 0.87 | Z38: 1.09 | AA38: 1.3 | AB38: 1.046346154 | AC38: 0.63 | AD38: 1.03 | AE38: 1.2975 | AF38: 0.8784 | AG38: 0.88 | AH38: 1.2 | AI38: 1.45 | AJ38: 1.137398374 | AK38: 0.83 | AL38: 1.03 | AM38: 1.31 | AN38: 0.9888695652 | AO38: 0.75 | AP38: 1.05 | AQ38: 1.35 | AR38: 0.9851669316 | AS38: 0.7325 | AT38: 1.02 | AU38: 1.31 | AV38: 0.9747695853 | AW38: 0.7 | AX38: 0.99 | AY38: 1.265 | AZ38: 0.9237801609 | BA38: 0.71 | BB38: 1 | BC38: 1.27 | BD38: 0.9252054795 | BE38: 0.92 | BF38: 1.2 | BG38: 1.32 | BH38: 1.178648649 | BI38: 0.8 | BJ38: 0.95 | BK38: 1.28 | BL38: 1.046153846 | BN38: NA | BQ38: 0.925 | BR38: 1.24 | BS38: 1.275 | BT38: 1.13 | BU38: 0.5 | BV38: 0.78 | BW38: 1.06 | BX38: 0.7582758621 | BZ38: NA | CC38: 0.6 | CD38: 0.99 | CE38: 1.3 | CF38: 0.9080272109 | CG38: 0.8825 | CH38: 1.085 | CI38: 1.235 | CJ38: 0.945 | CK38: 0.51 | CL38: 0.89 | CM38: 1.12 | CN38: 0.8584848485 | CO38: 1.095 | CP38: 1.2 | CQ38: 1.43 | CR38: 1.361428571 | CS38: 0.86 | CT38: 0.91 | CU38: 1.1 | CV38: 0.968 | CW38: 0.57 | CX38: 0.865 | CY38: 1.1325 | CZ38: 0.8559090909 | DA38: 0.95 | DB38: 1.15 | DC38: 1.285 | DD38: 1.106666667 | DF38: NA | DI38: 0.6875 | DJ38: 1.1 | DK38: 1.325 | DL38: 1.407 | DM38: 0.9 | DN38: 0.96 | DO38: 1.31 | DP38: 1.097777778 | DQ38: 0.985 | DR38: 1.255 | DS38: 1.375 | DT38: 1.206666667
A39: NIM--33054 | B39: NIM | C39: 15 | D39: 1990-06-30 | E39: 4.0975 | F39: 4.72 | G39: 5.4125 | H39: 4.775408163 | I39: 4.1 | J39: 4.495 | K39: 4.95 | L39: 4.573714286 | M39: 4.01 | N39: 4.48 | O39: 5.04 | P39: 4.581874285 | Q39: 4.195 | R39: 4.44 | S39: 4.72 | T39: 4.491764706 | U39: 4.09 | V39: 4.49 | W39: 4.9225 | X39: 4.549772727 | Y39: 4.3425 | Z39: 4.81 | AA39: 5.5375 | AB39: 4.974230769 | AC39: 3.895 | AD39: 4.37 | AE39: 4.795 | AF39: 4.3562 | AG39: 3.98 | AH39: 4.45 | AI39: 5.02 | AJ39: 4.67902439 | AK39: 4.19 | AL39: 4.46 | AM39: 4.77 | AN39: 4.48826087 | AO39: 3.98 | AP39: 4.34 | AQ39: 4.73 | AR39: 4.387265501 | AS39: 4.13 | AT39: 4.53 | AU39: 5.065 | AV39: 4.63437788 | AW39: 4.165 | AX39: 4.57 | AY39: 4.92 | AZ39: 4.599356568 | BA39: 4.22 | BB39: 4.74 | BC39: 5.3325 | BD39: 4.804178082 | BE39: 4.46 | BF39: 4.83 | BG39: 5.09 | BH39: 4.937297297 | BI39: 4.48 | BJ39: 4.75 | BK39: 5.35 | BL39: 5.062307692 | BN39: NA | BQ39: 4.75 | BR39: 5.23 | BS39: 5.61 | BT39: 5.257142857 | BU39: 4.39 | BV39: 4.84 | BW39: 5.09 | BX39: 4.775517241 | BZ39: NA | CC39: 4.47 | CD39: 4.97 | CE39: 5.54 | CF39: 5.009931973 | CG39: 4.4475 | CH39: 4.63 | CI39: 5.0525 | CJ39: 5.473333333 | CK39: 4.1 | CL39: 4.34 | CM39: 4.7 | CN39: 4.523030303 | CO39: 4.625 | CP39: 4.89 | CQ39: 5.47 | CR39: 5.027142857 | CS39: 4.42 | CT39: 5.05 | CU39: 5.12 | CV39: 4.754 | CW39: 4.1825 | CX39: 4.48 | CY39: 4.8125 | CZ39: 4.474545455 | DA39: 5.46 | DB39: 5.51 | DC39: 5.565 | DD39: 5.513333333 | DF39: NA | DI39: 3.9325 | DJ39: 4.395 | DK39: 7.225 | DL39: 5.662 | DM39: 4.23 | DN39: 4.5 | DO39: 4.7 | DP39: 4.492222222 | DQ39: 4.18 | DR39: 4.44 | DS39: 4.925 | DT39: 4.55
A40: Provisions / Avg Assets--33054 | B40: Provisions / Avg Assets | C40: 16 | D40: 1990-06-30 | E40: 0.0725 | F40: 0.26 | G40: 0.4175 | H40: 0.3426530612 | I40: 0 | J40: 0.15 | K40: 0.34 | L40: 0.2642941176 | M40: 0.04 | N40: 0.19 | O40: 0.42 | P40: 0.3570590159 | Q40: 0.09 | R40: 0.18 | S40: 0.29 | T40: 0.2073529412 | U40: 0 | V40: 0.15 | W40: 0.34 | X40: 0.2495454545 | Y40: 0 | Z40: 0.16 | AA40: 0.38 | AB40: 0.2319230769 | AC40: 0.0175 | AD40: 0.21 | AE40: 0.4525 | AF40: 0.408 | AG40: 0 | AH40: 0.11 | AI40: 0.33 | AJ40: 0.3969105691 | AK40: 0.06 | AL40: 0.16 | AM40: 0.26 | AN40: 0.2077391304 | AO40: 0 | AP40: 0.1 | AQ40: 0.32 | AR40: 0.2558664547 | AS40: 0 | AT40: 0.15 | AU40: 0.33 | AV40: 0.2369585253 | AW40: 0.035 | AX40: 0.15 | AY40: 0.285 | AZ40: 0.2266219839 | BA40: 0.05 | BB40: 0.2 | BC40: 0.3825 | BD40: 0.2780479452 | BE40: 0.16 | BF40: 0.24 | BG40: 0.42 | BH40: 0.3910810811 | BI40: 0.04 | BJ40: 0.19 | BK40: 0.44 | BL40: 0.1784615385 | BN40: NA | BQ40: 0 | BR40: 0.29 | BS40: 0.385 | BT40: 0.1828571429 | BU40: 0 | BV40: 0.13 | BW40: 0.31 | BX40: 0.1672413793 | BZ40: NA | CC40: 0.07 | CD40: 0.21 | CE40: 0.44 | CF40: 0.3862585034 | CG40: 0 | CH40: 0.24 | CI40: 0.765 | CJ40: 0.36 | CK40: 0.05 | CL40: 0.24 | CM40: 0.39 | CN40: 0.3306060606 | CO40: 0.02 | CP40: 0.16 | CQ40: 0.27 | CR40: 0.1928571429 | CS40: 0.2 | CT40: 0.29 | CU40: 0.31 | CV40: 0.42 | CW40: 0.0675 | CX40: 0.215 | CY40: 0.4075 | CZ40: 0.2927272727 | DA40: 0.27 | DB40: 0.32 | DC40: 0.39 | DD40: 0.3333333333 | DF40: NA | DI40: 0.1475 | DJ40: 0.26 | DK40: 2.14 | DL40: 1.659 | DM40: 0 | DN40: 0 | DO40: 0.3 | DP40: 0.15 | DQ40: 0.0525 | DR40: 0.115 | DS40: 0.19 | DT40: 0.1516666667
A41: Negative Earners (last 4 qtrs)--33054 | B41: Negative Earners (last 4 qtrs) | C41: 17 | D41: 1990-06-30 | F41: 14.28571429 | H41: 14 | J41: 6.836902801 | L41: 83 | N41: 12.59413556 | P41: 1572 | R41: 5.882352941 | T41: 2 | V41: 6.52866242 | X41: 41 | Z41: 6.962025316 | AB41: 11 | AD41: 10.52631579 | AF41: 16 | AH41: 6.4 | AJ41: 8 | AL41: 4.273504274 | AN41: 5 | AP41: 6.864274571 | AR41: 44 | AT41: 6.787330317 | AV41: 30 | AX41: 7.124010554 | AZ41: 27 | BB41: 7.094594595 | BD41: 21 | BF41: 0 | BH41: 0 | BJ41: 7.692307692 | BL41: 1 | BN41: NaN | BP41: 0 | BR41: 0 | BT41: 0 | BV41: 10.34482759 | BX41: 3 | BZ41: NaN | CB41: 0 | CD41: 8.053691275 | CF41: 12 | CH41: 0 | CJ41: 0 | CL41: 12.12121212 | CN41: 4 | CP41: 0 | CR41: 0 | CT41: 0 | CV41: 0 | CX41: 0 | CZ41: 0 | DB41: 0 | DD41: 0 | DF41: NaN | DH41: 0 | DJ41: 0 | DL41: 0 | DN41: 0 | DP41: 0 | DR41: 0 | DT41: 0
A42: Noncore Funding / Liab--33054 | B42: Noncore Funding / Liab | C42: 18 | D42: 1990-06-30 | E42: 5.398414404 | F42: 7.659126978 | G42: 12.48449481 | H42: 9.65137999 | I42: 4.785757117 | J42: 7.636776404 | K42: 11.81582373 | L42: 9.194987372 | M42: 7.668458133 | N42: 12.56387336 | O42: 19.46354766 | P42: 14.80564911 | Q42: 5.220120344 | R42: 7.363052312 | S42: 10.22563686 | T42: 7.952312171 | U42: 4.205957261 | V42: 7.125499649 | W42: 11.11381132 | X42: 8.512439133 | Y42: 6.04702089 | Z42: 9.746631845 | AA42: 16.55618302 | AB42: 11.54582286 | AC42: 6.587912566 | AD42: 9.689420775 | AE42: 14.6249685 | AF42: 10.89901118 | AG42: 6.004098361 | AH42: 7.642606609 | AI42: 11.47782079 | AJ42: 10.98747468 | AK42: 4.112254827 | AL42: 6.59122431 | AM42: 9.593562159 | AN42: 7.359346382 | AO42: 4.732762138 | AP42: 7.390859665 | AQ42: 11.32644272 | AR42: 8.673776507 | AS42: 5.336057598 | AT42: 8.579110876 | AU42: 12.89310876 | AV42: 9.82863193 | AW42: 4.162837227 | AX42: 6.595264938 | AY42: 9.835816791 | AZ42: 7.521905144 | BA42: 5.762766571 | BB42: 9.714039122 | BC42: 15.8974482 | BD42: 11.46493821 | BE42: 5.197406065 | BF42: 7.874574409 | BG42: 11.30728549 | BH42: 11.58157908 | BI42: 5.274725275 | BJ42: 10.50553078 | BK42: 15.05095843 | BL42: 10.34725053 | BN42: NA | BQ42: 6.798651552 | BR42: 8.790158083 | BS42: 15.95092673 | BT42: 11.036115 | BU42: 4.30389817 | BV42: 7.123116698 | BW42: 10.1017802 | BX42: 8.024747998 | BZ42: NA | CC42: 4.666701019 | CD42: 7.874574409 | CE42: 13.34059892 | CF42: 11.44507245 | CG42: 5.018625222 | CH42: 8.137100745 | CI42: 10.26612115 | CJ42: 8.451013357 | CK42: 4.683733211 | CL42: 7.755705232 | CM42: 11.98242658 | CN42: 9.343185983 | CO42: 7.787043083 | CP42: 9.375 | CQ42: 14.70281056 | CR42: 11.51513561 | CS42: 7.069165497 | CT42: 7.147714091 | CU42: 7.503228763 | CV42: 7.516697449 | CW42: 7.102551762 | CX42: 13.44907054 | CY42: 15.77953301 | CZ42: 12.63030496 | DA42: 12.04997813 | DB42: 13.36448105 | DC42: 13.4166848 | DD42: 12.52294827 | DF42: NA | DI42: 9.554871567 | DJ42: 25.1232399 | DK42: 82.43593612 | DL42: 42.21047293 | DM42: 3.560805277 | DN42: 5.711654828 | DO42: 8.726914129 | DP42: 7.976235022 | DQ42: 4.66309226 | DR42: 6.100652987 | DS42: 11.79836859 | DT42: 10.28180673
A43: Brokered Dep / Liab--33054 | B43: Brokered Dep / Liab | C43: 19 | D43: 1990-06-30 | E43: 0 | F43: 0 | G43: 0 | H43: 0 | I43: 0 | J43: 0 | K43: 0 | L43: 0.00177869112 | M43: 0 | N43: 0 | O43: 0 | P43: 0.1341609727 | Q43: 0 | R43: 0 | S43: 0 | T43: 0 | U43: 0 | V43: 0 | W43: 0 | X43: 0.003302938057 | Y43: 0 | Z43: 0 | AA43: 0 | AB43: 0 | AC43: 0 | AD43: 0 | AE43: 0 | AF43: 0.006277759468 | AG43: 0 | AH43: 0 | AI43: 0 | AJ43: 0.09822879396 | AK43: 0 | AL43: 0 | AM43: 0 | AN43: 0.002327280852 | AO43: 0 | AP43: 0 | AQ43: 0 | AR43: 0.003445705593 | AS43: 0 | AT43: 0 | AU43: 0 | AV43: 0.005043153774 | AW43: 0 | AX43: 0 | AY43: 0 | AZ43: 0.002432550175 | BA43: 0 | BB43: 0 | BC43: 0 | BD43: 0.003224876439 | BE43: 0 | BF43: 0 | BG43: 0 | BH43: 0.5402490937 | BI43: 0 | BJ43: 0 | BK43: 0 | BL43: 0 | BN43: NA | BQ43: 0 | BR43: 0 | BS43: 0 | BT43: 0 | BU43: 0 | BV43: 0 | BW43: 0 | BX43: 0 | BZ43: NA | CC43: 0 | CD43: 0 | CE43: 0 | CF43: 0.04989447251 | CG43: 0 | CH43: 0 | CI43: 0 | CJ43: 0 | CK43: 0 | CL43: 0 | CM43: 0 | CN43: 0.02749518834 | CO43: 0 | CP43: 0 | CQ43: 0 | CR43: 0 | CS43: 0 | CT43: 0 | CU43: 0 | CV43: 0 | CW43: 0 | CX43: 0 | CY43: 0 | CZ43: 0 | DA43: 0 | DB43: 0 | DC43: 0 | DD43: 0 | DF43: NA | DI43: 0 | DJ43: 0 | DK43: 0 | DL43: 1.998921647 | DM43: 0 | DN43: 0 | DO43: 0 | DP43: 0.1423763914 | DQ43: 0 | DR43: 0 | DS43: 0 | DT43: 0
A44: Liquid Assets / Assets--33054 | B44: Liquid Assets / Assets | C44: 20 | D44: 1990-06-30 | F44: NA | J44: NA | N44: NA | R44: NA | V44: NA | Z44: NA | AD44: NA | AH44: NA | AL44: NA | AP44: NA | AT44: NA | AX44: NA | BB44: NA | BF44: NA | BJ44: NA | BN44: NA | BR44: NA | BV44: NA | BZ44: NA | CD44: NA | CH44: NA | CL44: NA | CP44: NA | CT44: NA | CX44: NA | DB44: NA | DF44: NA | DJ44: NA | DN44: NA | DR44: NA
A45: Net Loan Growth (last 4 qtrs)--33054 | B45: Net Loan Growth (last 4 qtrs) | C45: 21 | D45: 1990-06-30 | E45: 0.0325 | F45: 6.735 | G45: 12.65 | H45: 6.660714286 | I45: 0.03 | J45: 6.12 | K45: 12.365 | L45: 6.913560606 | M45: -0.56 | N45: 6.8 | O45: 15.11 | P45: 10.03587029 | Q45: 3.7175 | R45: 6.39 | S45: 14.555 | T45: 12.11382353 | U45: 0.43 | V45: 6.05 | W45: 12.04 | X45: 6.52699187 | Y45: -1.49 | Z45: 4.71 | AA45: 13.55 | AB45: 7.057419355 | AC45: -1.6825 | AD45: 4.34 | AE45: 9.64 | AF45: 5.0224 | AG45: 0.26 | AH45: 7.85 | AI45: 15.8 | AJ45: 8.729430894 | AK45: 1.74 | AL45: 8.52 | AM45: 13.03 | AN45: 8.904956522 | AO45: -0.26 | AP45: 4.94 | AQ45: 11.4 | AR45: 5.88863275 | AS45: 2.315 | AT45: 8.34 | AU45: 15.4925 | AV45: 10.45700461 | AW45: 1.2 | AX45: 6.55 | AY45: 12.545 | AZ45: 7.403592493 | BA45: 0.055 | BB45: 6.735 | BC45: 15.7525 | BD45: 9.230172414 | BE45: 1.14 | BF45: 4.22 | BG45: 11.11 | BH45: 4.414324324 | BI45: -8.04 | BJ45: -0.43 | BK45: 7.42 | BL45: 22.10846154 | BN45: NA | BQ45: 5.52 | BR45: 10.27 | BS45: 18.935 | BT45: 13.65714286 | BU45: -0.47 | BV45: 6.3 | BW45: 12.78 | BX45: 9.216206897 | BZ45: NA | CC45: 0.9875 | CD45: 5.38 | CE45: 11.9075 | CF45: 6.079520548 | CG45: 1.27 | CH45: 7.895 | CI45: 12.18 | CJ45: 8.268333333 | CK45: 1.33 | CL45: 6.24 | CM45: 11.28 | CN45: 5.857575758 | CO45: 8.605 | CP45: 16.62 | CQ45: 20.14 | CR45: 17.20857143 | CS45: -0.63 | CT45: 5.97 | CU45: 9.45 | CV45: 5.22 | CW45: -3.995 | CX45: 2.935 | CY45: 7.1 | CZ45: 5.859090909 | DA45: 12.845 | DB45: 16.16 | DC45: 31.21 | DD45: 23.98333333 | DF45: NA | DI45: -2.09 | DJ45: 8.485 | DK45: 19.5975 | DL45: 11.376 | DM45: -0.63 | DN45: 11.28 | DO45: 14.71 | DP45: 8.627777778 | DQ45: 1.62 | DR45: 8.825 | DS45: 12.7 | DT45: 8
A46: Banks w/ Loan Growth (last 4 qtrs)--33054 | B46: Banks w/ Loan Growth (last 4 qtrs) | C46: 22 | D46: 1990-06-30 | F46: 75.51020408 | J46: 74.95881384 | N46: 72.13587566 | R46: 85.29411765 | V46: 75.95541401 | Z46: 70.25316456 | AD46: 67.76315789 | AH46: 76 | AL46: 81.1965812 | AP46: 73.47893916 | AT46: 82.35294118 | AX46: 77.57255937 | BB46: 74.66216216 | BF46: 78.37837838 | BJ46: 46.15384615 | BN46: NaN | BR46: 85.71428571 | BV46: 72.4137931 | BZ46: NaN | CD46: 79.19463087 | CH46: 66.66666667 | CL46: 78.78787879 | CP46: 85.71428571 | CT46: 60 | CX46: 63.63636364 | DB46: 100 | DF46: NaN | DJ46: 60 | DN46: 66.66666667 | DR46: 83.33333333
A47: Equity / Assets--33146 | B47: Equity / Assets | C47: 1 | D47: 1990-09-30 | E47: 7.887412698 | F47: 9.226871239 | G47: 11.12601868 | H47: 9.73252203 | I47: 7.493653749 | J47: 8.650811976 | K47: 10.44140306 | L47: 9.204764307 | M47: 6.994816665 | N47: 8.298159531 | O47: 10.23550027 | P47: 9.025250449 | Q47: 7.372868604 | R47: 8.048363499 | S47: 9.272335029 | T47: 8.613524213 | U47: 7.3314694 | V47: 8.461140789 | W47: 10.10698443 | X47: 9.00572012 | Y47: 7.571532258 | Z47: 8.710831388 | AA47: 10.39324765 | AB47: 9.259769664 | AC47: 7.99718632 | AD47: 9.290573962 | AE47: 10.98853986 | AF47: 9.743479154 | AG47: 8.036883457 | AH47: 9.29964001 | AI47: 11.78712799 | AJ47: 10.14456875 | AK47: 7.530094016 | AL47: 8.170856529 | AM47: 9.657046164 | AN47: 8.799314601 | AO47: 7.98017056 | AP47: 9.341126192 | AQ47: 11.27966742 | AR47: 9.911176498 | AS47: 7.384364541 | AT47: 8.434919387 | AU47: 10.03738348 | AV47: 8.884864555 | AW47: 7.396959724 | AX47: 8.373251581 | AY47: 9.689323023 | AZ47: 8.744446345 | BA47: 7.049777975 | BB47: 8.099822771 | BC47: 9.587338795 | BD47: 8.584633667 | BE47: 7.080076013 | BF47: 7.7991418 | BG47: 9.072332462 | BH47: 8.381535137 | BI47: 6.909113628 | BJ47: 7.923148363 | BK47: 11.27154169 | BL47: 8.921997802 | BN47: NA | BQ47: 7.723437401 | BR47: 9.02139256 | BS47: 10.74258516 | BT47: 9.67719303 | BU47: 6.514783602 | BV47: 7.751717265 | BW47: 9.704439911 | BX47: 8.338025412 | BZ47: NA | CC47: 7.355621447 | CD47: 8.08531983 | CE47: 9.524069226 | CF47: 8.552261041 | CG47: 5.570015247 | CH47: 7.488043486 | CI47: 12.25064437 | CJ47: 9.166055316 | CK47: 7.213088545 | CL47: 7.765798018 | CM47: 9.402373169 | CN47: 8.41027013 | CO47: 8.302226478 | CP47: 9.035814866 | CQ47: 9.916727989 | CR47: 8.868425515 | CS47: 8.355081508 | CT47: 9.971380959 | CU47: 11.33769481 | CV47: 9.875579757 | CW47: 6.719002329 | CX47: 7.538528119 | CY47: 9.062236526 | CZ47: 8.13882013 | DA47: 7.573453505 | DB47: 8.466491772 | DC47: 10.51043128 | DD47: 9.233759267 | DF47: NA | DI47: 6.233480723 | DJ47: 7.779611281 | DK47: 9.975053542 | DL47: 9.033634976 | DM47: 8.055262952 | DN47: 9.524469707 | DO47: 9.926374145 | DP47: 9.065452637 | DQ47: 7.661576193 | DR47: 8.248712815 | DS47: 10.32099144 | DT47: 8.767838652
A48: Total Risk Based Capital Ratio--33146 | B48: Total Risk Based Capital Ratio | C48: 2 | D48: 1990-09-30 | E48: 0 | F48: 0 | G48: 0 | H48: 0 | I48: 0 | J48: 0 | K48: 0 | L48: 0 | M48: 0 | N48: 0 | O48: 0 | P48: 0 | Q48: 0 | R48: 0 | S48: 0 | T48: 0 | U48: 0 | V48: 0 | W48: 0 | X48: 0 | Y48: 0 | Z48: 0 | AA48: 0 | AB48: 0 | AC48: 0 | AD48: 0 | AE48: 0 | AF48: 0 | AG48: 0 | AH48: 0 | AI48: 0 | AJ48: 0 | AK48: 0 | AL48: 0 | AM48: 0 | AN48: 0 | AO48: 0 | AP48: 0 | AQ48: 0 | AR48: 0 | AS48: 0 | AT48: 0 | AU48: 0 | AV48: 0 | AW48: 0 | AX48: 0 | AY48: 0 | AZ48: 0 | BA48: 0 | BB48: 0 | BC48: 0 | BD48: 0 | BE48: 0 | BF48: 0 | BG48: 0 | BH48: 0 | BI48: 0 | BJ48: 0 | BK48: 0 | BL48: 0 | BN48: NA | BQ48: 0 | BR48: 0 | BS48: 0 | BT48: 0 | BU48: 0 | BV48: 0 | BW48: 0 | BX48: 0 | BZ48: NA | CC48: 0 | CD48: 0 | CE48: 0 | CF48: 0 | CG48: 0 | CH48: 0 | CI48: 0 | CJ48: 0 | CK48: 0 | CL48: 0 | CM48: 0 | CN48: 0 | CO48: 0 | CP48: 0 | CQ48: 0 | CR48: 0 | CS48: 0 | CT48: 0 | CU48: 0 | CV48: 0 | CW48: 0 | CX48: 0 | CY48: 0 | CZ48: 0 | DA48: 0 | DB48: 0 | DC48: 0 | DD48: 0 | DF48: NA | DI48: 0 | DJ48: 0 | DK48: 0 | DL48: 0 | DM48: 0 | DN48: 0 | DO48: 0 | DP48: 0 | DQ48: 0 | DR48: 0 | DS48: 0 | DT48: 0
A49: Tier 1 Leverage Ratio--33146 | B49: Tier 1 Leverage Ratio | C49: 3 | D49: 1990-09-30 | E49: 0 | F49: 0 | G49: 0 | H49: 0 | I49: 0 | J49: 0 | K49: 0 | L49: 0 | M49: 0 | N49: 0 | O49: 0 | P49: 0 | Q49: 0 | R49: 0 | S49: 0 | T49: 0 | U49: 0 | V49: 0 | W49: 0 | X49: 0 | Y49: 0 | Z49: 0 | AA49: 0 | AB49: 0 | AC49: 0 | AD49: 0 | AE49: 0 | AF49: 0 | AG49: 0 | AH49: 0 | AI49: 0 | AJ49: 0 | AK49: 0 | AL49: 0 | AM49: 0 | AN49: 0 | AO49: 0 | AP49: 0 | AQ49: 0 | AR49: 0 | AS49: 0 | AT49: 0 | AU49: 0 | AV49: 0 | AW49: 0 | AX49: 0 | AY49: 0 | AZ49: 0 | BA49: 0 | BB49: 0 | BC49: 0 | BD49: 0 | BE49: 0 | BF49: 0 | BG49: 0 | BH49: 0 | BI49: 0 | BJ49: 0 | BK49: 0 | BL49: 0 | BN49: NA | BQ49: 0 | BR49: 0 | BS49: 0 | BT49: 0 | BU49: 0 | BV49: 0 | BW49: 0 | BX49: 0 | BZ49: NA | CC49: 0 | CD49: 0 | CE49: 0 | CF49: 0 | CG49: 0 | CH49: 0 | CI49: 0 | CJ49: 0 | CK49: 0 | CL49: 0 | CM49: 0 | CN49: 0 | CO49: 0 | CP49: 0 | CQ49: 0 | CR49: 0 | CS49: 0 | CT49: 0 | CU49: 0 | CV49: 0 | CW49: 0 | CX49: 0 | CY49: 0 | CZ49: 0 | DA49: 0 | DB49: 0 | DC49: 0 | DD49: 0 | DF49: NA | DI49: 0 | DJ49: 0 | DK49: 0 | DL49: 0 | DM49: 0 | DN49: 0 | DO49: 0 | DP49: 0 | DQ49: 0 | DR49: 0 | DS49: 0 | DT49: 0
A50: ALLL / Nonaccrual Loans--33146 | B50: ALLL / Nonaccrual Loans | C50: 4 | D50: 1990-09-30 | E50: 81.28033367 | F50: 133.2038835 | G50: 236.1231582 | H50: 901.7391777 | I50: 85.21991501 | J50: 156.9686637 | K50: 359.8051948 | L50: 428.8548733 | M50: 77.89738164 | N50: 150.4066628 | O50: 358.7276215 | P50: 440.7140289 | Q50: 124.2404917 | R50: 191.1710733 | S50: 369.9928083 | T50: 398.1982507 | U50: 88.32128175 | V50: 172.3932986 | W50: 402.4912587 | X50: 490.1075061 | Y50: 79.26145373 | Z50: 143.7830688 | AA50: 256.3425926 | AB50: 475.5179046 | AC50: 91.44087319 | AD50: 173.9837398 | AE50: 377.8449821 | AF50: 385.9133206 | AG50: 106.3492063 | AH50: 161.9771863 | AI50: 436.7787255 | AJ50: 866.8207671 | AK50: 54.36471192 | AL50: 109.1596639 | AM50: 199.1234784 | AN50: 227.194251 | AO50: 88.81928891 | AP50: 162.1255441 | AQ50: 369.8924731 | AR50: 413.0138968 | AS50: 84.16924645 | AT50: 168.4049774 | AU50: 396.6208134 | AV50: 511.5139377 | AW50: 84.49395432 | AX50: 148.9495798 | AY50: 317.143402 | AZ50: 397.663792 | BA50: 72.23888724 | BB50: 132.4939015 | BC50: 279.9923722 | BD50: 434.4739938 | BE50: 134.1760593 | BF50: 199.7103387 | BG50: 518.2842772 | BH50: 646.4064964 | BI50: 43.40026061 | BJ50: 104.9167211 | BK50: 178.5964874 | BL50: 188.7902211 | BN50: NA | BQ50: 117.1568627 | BR50: 161.627907 | BS50: 189.2857143 | BT50: 503.0505255 | BU50: 89.47341721 | BV50: 201.754386 | BW50: 615.6111111 | BX50: 485.1146591 | BZ50: NA | CC50: 71.68083184 | CD50: 146.7625899 | CE50: 314.3573219 | CF50: 562.8647531 | CG50: 300.9758606 | CH50: 599.5861298 | CI50: 743.1904762 | CJ50: 693.617367 | CK50: 99.42528736 | CL50: 141.9533041 | CM50: 290.3846154 | CN50: 333.126399 | CO50: 167.4130512 | CP50: 209.9786325 | CQ50: 759.0384615 | CR50: 716.4728803 | CS50: 284.2592593 | CT50: 385 | CU50: 405.625 | CV50: 594.5819668 | CW50: 142.3572744 | CX50: 206.7858325 | CY50: 250 | CZ50: 422.0737231 | DA50: 134.5600217 | DB50: 161.9771863 | DC50: 190.6182228 | DD50: 162.7931009 | DF50: NA | DI50: 142.6589129 | DJ50: 295.9262106 | DK50: 364.5907473 | DL50: 394.3078619 | DM50: 50.60728745 | DN50: 173.7472767 | DO50: 352.173913 | DP50: 390.8209979 | DQ50: 104.1052496 | DR50: 149.859944 | DS50: 186.1882532 | DT50: 182.086765
A51: [NCL + OREO] / [Total Loans + OREO]--33146 | B51: [NCL + OREO] / [Total Loans + OREO] | C51: 5 | D51: 1990-09-30 | E51: 1.429924883 | F51: 3.191892404 | G51: 4.233220552 | H51: 3.240271864 | I51: 0.8565113281 | J51: 2.001731227 | K51: 3.744246797 | L51: 2.597315671 | M51: 0.8311546772 | N51: 1.989023725 | O51: 4.13754514 | P51: 3.051851801 | Q51: 1.223976347 | R51: 1.848385589 | S51: 2.462550745 | T51: 1.974678706 | U51: 0.7683863886 | V51: 1.840768171 | W51: 3.429558352 | X51: 2.356493486 | Y51: 1.292212359 | Z51: 3.184383099 | AA51: 4.518242403 | AB51: 3.427717712 | AC51: 0.8546521471 | AD51: 2.670957187 | AE51: 5.416259833 | AF51: 3.472919234 | AG51: 0.6797307603 | AH51: 1.579192598 | AI51: 3.070885455 | AJ51: 2.232794049 | AK51: 1.036446469 | AL51: 1.946173832 | AM51: 3.517831209 | AN51: 2.402131592 | AO51: 0.8454585433 | AP51: 2.1531744 | AQ51: 4.061382234 | AR51: 2.842880077 | AS51: 0.7727820153 | AT51: 1.666723242 | AU51: 3.387226571 | AV51: 2.308780503 | AW51: 0.9941156387 | AX51: 1.91682911 | AY51: 3.478650343 | AZ51: 2.386327055 | BA51: 1.075927165 | BB51: 2.191403769 | BC51: 4.1447038 | BD51: 2.875317683 | BE51: 0.5792978658 | BF51: 1.38162239 | BG51: 2.318020586 | BH51: 1.883094693 | BI51: 3.191892404 | BJ51: 3.866766426 | BK51: 4.375481881 | BL51: 4.145429295 | BN51: NA | BQ51: 0.62601033 | BR51: 1.736073628 | BS51: 3.456199909 | BT51: 2.23599591 | BU51: 1.030064789 | BV51: 2.074709245 | BW51: 4.528617517 | BX51: 2.761642479 | BZ51: NA | CC51: 0.8192416763 | CD51: 1.741240581 | CE51: 3.364463602 | CF51: 2.229864975 | CG51: 0.5140779488 | CH51: 0.9820934936 | CI51: 1.300191637 | CJ51: 1.047538691 | CK51: 0.8267220286 | CL51: 1.741417014 | CM51: 2.688088182 | CN51: 2.143382954 | CO51: 0.006617257808 | CP51: 1.240860361 | CQ51: 1.595864184 | CR51: 2.304456593 | CS51: 0.6846060815 | CT51: 1.007528398 | CU51: 3.836869521 | CV51: 2.900039986 | CW51: 0.8459600658 | CX51: 1.461565334 | CY51: 2.357821426 | CZ51: 2.372388499 | DA51: 0.9548974179 | DB51: 1.230064076 | DC51: 2.695415867 | DD51: 2.023520831 | DF51: NA | DI51: 1.433475531 | DJ51: 1.679860395 | DK51: 1.91888642 | DL51: 1.797907417 | DM51: 1.38162239 | DN51: 2.039092201 | DO51: 3.517831209 | DP51: 2.377537016 | DQ51: 0.9837806235 | DR51: 1.343717801 | DS51: 1.893872971 | DT51: 1.59535208
A52: [Noncurrent + Delinquent Loans] / [Capital + ALLL]--33146 | B52: [Noncurrent + Delinquent Loans] / [Capital + ALLL] | C52: 6 | D52: 1990-09-30 | E52: 10.59183228 | F52: 19.57831325 | G52: 28.9009498 | H52: 22.93964759 | I52: 7.864164433 | J52: 16.16314199 | K52: 27.61399788 | L52: 20.26137442 | M52: 8.697589669 | N52: 18.17920635 | O52: 33.04728826 | P52: 24.57231206 | Q52: 12.50824345 | R52: 18.67147193 | S52: 30.30575725 | T52: 25.0435934 | U52: 7.474048443 | V52: 15.68434032 | W52: 27.37321196 | X52: 19.98941225 | Y52: 10.54917854 | Z52: 20.19592731 | AA52: 30.83725926 | AB52: 24.27645336 | AC52: 6.280231372 | AD52: 13.50747417 | AE52: 23.76440564 | AF52: 18.04568509 | AG52: 4.929706043 | AH52: 11.53278333 | AI52: 22.43371856 | AJ52: 15.99116395 | AK52: 12.02657807 | AL52: 20.22199098 | AM52: 32.62228761 | AN52: 24.03083829 | AO52: 5.510296505 | AP52: 12.70173171 | AQ52: 22.92503925 | AR52: 16.99233522 | AS52: 7.978311387 | AT52: 16.50710763 | AU52: 27.4332472 | AV52: 20.78140183 | AW52: 10.24632227 | AX52: 18.6085299 | AY52: 31.06336489 | AZ52: 23.23158326 | BA52: 11.70510964 | BB52: 21.68421053 | BC52: 36.81118005 | BD52: 26.73326616 | BE52: 11.66416496 | BF52: 16.67731629 | BG52: 31.58981757 | BH52: 22.25617196 | BI52: 20.12922465 | BJ52: 24.14772727 | BK52: 31.09898675 | BL52: 28.49437608 | BN52: NA | BQ52: 10.32171063 | BR52: 16.49822553 | BS52: 19.15943434 | BT52: 19.37897004 | BU52: 15.12638231 | BV52: 23.11141437 | BW52: 38.19829569 | BX52: 33.38113176 | BZ52: NA | CC52: 10.36296686 | CD52: 18.95504253 | CE52: 30.67288503 | CF52: 22.6083064 | CG52: 4.450101529 | CH52: 10.17549563 | CI52: 34.24913321 | CJ52: 18.46687729 | CK52: 9.793977813 | CL52: 21.31868132 | CM52: 34.42229162 | CN52: 24.19812166 | CO52: 3.502013094 | CP52: 5.96354589 | CQ52: 19.29994536 | CR52: 9.874842803 | CS52: 12.10637735 | CT52: 13.17911235 | CU52: 23.73380448 | CV52: 22.92905493 | CW52: 9.170398633 | CX52: 21.68585722 | CY52: 31.33636772 | CZ52: 23.18902899 | DA52: 7.324871896 | DB52: 9.720037748 | DC52: 23.05589516 | DD52: 17.01383212 | DF52: NA | DI52: 17.7269787 | DJ52: 27.85970729 | DK52: 43.57198928 | DL52: 34.60075622 | DM52: 15.93201345 | DN52: 19.80698529 | DO52: 22.52929858 | DP52: 21.84164712 | DQ52: 10.54985533 | DR52: 16.95409923 | DS52: 22.03283223 | DT52: 18.12822488
A53: Ag [NCL+DQ] / [Capital + ALLL]--33146 | B53: Ag [NCL+DQ] / [Capital + ALLL] | C53: 7 | D53: 1990-09-30 | E53: 0 | F53: 0.3230543319 | G53: 3.524598762 | H53: 4.314558635 | I53: 0 | J53: 0.05534034311 | K53: 3.257790368 | L53: 2.816937883 | M53: 0 | N53: 0 | O53: 0.1524279632 | P53: 1.056244351 | Q53: 0 | R53: 0 | S53: 0 | T53: 0.01332916955 | U53: 0 | V53: 0 | W53: 2.146892655 | X53: 2.094345444 | Y53: 0 | Z53: 0 | AA53: 3.572196488 | AB53: 2.898295814 | AC53: 0.04271656701 | AD53: 2.483131361 | AE53: 8.073477949 | AF53: 6.178186998 | AG53: 0 | AH53: 1.244974711 | AI53: 6.004140787 | AJ53: 4.961935356 | AK53: 0 | AL53: 0 | AM53: 3.068592058 | AN53: 1.594245005 | AO53: 0 | AP53: 1.860552369 | AQ53: 7.055227896 | AR53: 5.101899996 | AS53: 0 | AT53: 0.06273525721 | AU53: 3.355921265 | AV53: 2.612510697 | AW53: 0 | AX53: 0 | AY53: 0.6046355391 | AZ53: 0.9107913446 | BA53: 0 | BB53: 0 | BC53: 0.6196427287 | BD53: 1.084774942 | BE53: 0 | BF53: 0 | BG53: 0.4042755164 | BH53: 0.5819228616 | BI53: 0 | BJ53: 0 | BK53: 3.026819923 | BL53: 2.615102515 | BN53: NA | BQ53: 0 | BR53: 0 | BS53: 0.4411764706 | BT53: 1.118205289 | BU53: 0 | BV53: 0 | BW53: 0 | BX53: 0 | BZ53: NA | CC53: 0 | CD53: 0 | CE53: 0 | CF53: 0.2492067189 | CG53: 0 | CH53: 0 | CI53: 0.01566088954 | CJ53: 0.1822569168 | CK53: 0 | CL53: 0 | CM53: 2.054351343 | CN53: 1.928663397 | CO53: 0 | CP53: 0 | CQ53: 0 | CR53: 2.40619137 | CS53: 0.1808454525 | CT53: 0.9879156743 | CU53: 3.386336867 | CV53: 7.063702894 | CW53: 0 | CX53: 1.601185707 | CY53: 5.11086883 | CZ53: 5.072397595 | DA53: 0 | DB53: 0 | DC53: 2.400949425 | DD53: 1.60063295 | DF53: NA | DI53: 0.08549096238 | DJ53: 0.3569936608 | DK53: 1.067811183 | DL53: 0.8745428838 | DM53: 0 | DN53: 0 | DO53: 0 | DP53: 0.5185221973 | DQ53: 0 | DR53: 0.8858841357 | DS53: 3.01914441 | DT53: 1.784552581
A54: CLD [NCL+DQ] / [Capital + ALLL]--33146 | B54: CLD [NCL+DQ] / [Capital + ALLL] | C54: 8 | D54: 1990-09-30 | E54: 0 | F54: 0 | G54: 0 | H54: 0 | I54: 0 | J54: 0 | K54: 0 | L54: 0 | M54: 0 | N54: 0 | O54: 0 | P54: 0 | Q54: 0 | R54: 0 | S54: 0 | T54: 0 | U54: 0 | V54: 0 | W54: 0 | X54: 0 | Y54: 0 | Z54: 0 | AA54: 0 | AB54: 0 | AC54: 0 | AD54: 0 | AE54: 0 | AF54: 0 | AG54: 0 | AH54: 0 | AI54: 0 | AJ54: 0 | AK54: 0 | AL54: 0 | AM54: 0 | AN54: 0 | AO54: 0 | AP54: 0 | AQ54: 0 | AR54: 0 | AS54: 0 | AT54: 0 | AU54: 0 | AV54: 0 | AW54: 0 | AX54: 0 | AY54: 0 | AZ54: 0 | BA54: 0 | BB54: 0 | BC54: 0 | BD54: 0 | BE54: 0 | BF54: 0 | BG54: 0 | BH54: 0 | BI54: 0 | BJ54: 0 | BK54: 0 | BL54: 0 | BN54: NA | BQ54: 0 | BR54: 0 | BS54: 0 | BT54: 0 | BU54: 0 | BV54: 0 | BW54: 0 | BX54: 0 | BZ54: NA | CC54: 0 | CD54: 0 | CE54: 0 | CF54: 0 | CG54: 0 | CH54: 0 | CI54: 0 | CJ54: 0 | CK54: 0 | CL54: 0 | CM54: 0 | CN54: 0 | CO54: 0 | CP54: 0 | CQ54: 0 | CR54: 0 | CS54: 0 | CT54: 0 | CU54: 0 | CV54: 0 | CW54: 0 | CX54: 0 | CY54: 0 | CZ54: 0 | DA54: 0 | DB54: 0 | DC54: 0 | DD54: 0 | DF54: NA | DI54: 0 | DJ54: 0 | DK54: 0 | DL54: 0 | DM54: 0 | DN54: 0 | DO54: 0 | DP54: 0 | DQ54: 0 | DR54: 0 | DS54: 0 | DT54: 0
A55: CRE [NCL+DQ] / [Capital + ALLL]--33146 | B55: CRE [NCL+DQ] / [Capital + ALLL] | C55: 9 | D55: 1990-09-30 | E55: 0 | F55: 0 | G55: 0 | H55: 0 | I55: 0 | J55: 0 | K55: 0 | L55: 0 | M55: 0 | N55: 0 | O55: 0 | P55: 0 | Q55: 0 | R55: 0 | S55: 0 | T55: 0 | U55: 0 | V55: 0 | W55: 0 | X55: 0 | Y55: 0 | Z55: 0 | AA55: 0 | AB55: 0 | AC55: 0 | AD55: 0 | AE55: 0 | AF55: 0 | AG55: 0 | AH55: 0 | AI55: 0 | AJ55: 0 | AK55: 0 | AL55: 0 | AM55: 0 | AN55: 0 | AO55: 0 | AP55: 0 | AQ55: 0 | AR55: 0 | AS55: 0 | AT55: 0 | AU55: 0 | AV55: 0 | AW55: 0 | AX55: 0 | AY55: 0 | AZ55: 0 | BA55: 0 | BB55: 0 | BC55: 0 | BD55: 0 | BE55: 0 | BF55: 0 | BG55: 0 | BH55: 0 | BI55: 0 | BJ55: 0 | BK55: 0 | BL55: 0 | BN55: NA | BQ55: 0 | BR55: 0 | BS55: 0 | BT55: 0 | BU55: 0 | BV55: 0 | BW55: 0 | BX55: 0 | BZ55: NA | CC55: 0 | CD55: 0 | CE55: 0 | CF55: 0 | CG55: 0 | CH55: 0 | CI55: 0 | CJ55: 0 | CK55: 0 | CL55: 0 | CM55: 0 | CN55: 0 | CO55: 0 | CP55: 0 | CQ55: 0 | CR55: 0 | CS55: 0 | CT55: 0 | CU55: 0 | CV55: 0 | CW55: 0 | CX55: 0 | CY55: 0 | CZ55: 0 | DA55: 0 | DB55: 0 | DC55: 0 | DD55: 0 | DF55: NA | DI55: 0 | DJ55: 0 | DK55: 0 | DL55: 0 | DM55: 0 | DN55: 0 | DO55: 0 | DP55: 0 | DQ55: 0 | DR55: 0 | DS55: 0 | DT55: 0
A56: Res RE [NCL+DQ] / [Capital + ALLL]--33146 | B56: Res RE [NCL+DQ] / [Capital + ALLL] | C56: 10 | D56: 1990-09-30 | E56: 0 | F56: 0 | G56: 0 | H56: 0 | I56: 0 | J56: 0 | K56: 0 | L56: 0 | M56: 0 | N56: 0 | O56: 0 | P56: 0 | Q56: 0 | R56: 0 | S56: 0 | T56: 0 | U56: 0 | V56: 0 | W56: 0 | X56: 0 | Y56: 0 | Z56: 0 | AA56: 0 | AB56: 0 | AC56: 0 | AD56: 0 | AE56: 0 | AF56: 0 | AG56: 0 | AH56: 0 | AI56: 0 | AJ56: 0 | AK56: 0 | AL56: 0 | AM56: 0 | AN56: 0 | AO56: 0 | AP56: 0 | AQ56: 0 | AR56: 0 | AS56: 0 | AT56: 0 | AU56: 0 | AV56: 0 | AW56: 0 | AX56: 0 | AY56: 0 | AZ56: 0 | BA56: 0 | BB56: 0 | BC56: 0 | BD56: 0 | BE56: 0 | BF56: 0 | BG56: 0 | BH56: 0 | BI56: 0 | BJ56: 0 | BK56: 0 | BL56: 0 | BN56: NA | BQ56: 0 | BR56: 0 | BS56: 0 | BT56: 0 | BU56: 0 | BV56: 0 | BW56: 0 | BX56: 0 | BZ56: NA | CC56: 0 | CD56: 0 | CE56: 0 | CF56: 0 | CG56: 0 | CH56: 0 | CI56: 0 | CJ56: 0 | CK56: 0 | CL56: 0 | CM56: 0 | CN56: 0 | CO56: 0 | CP56: 0 | CQ56: 0 | CR56: 0 | CS56: 0 | CT56: 0 | CU56: 0 | CV56: 0 | CW56: 0 | CX56: 0 | CY56: 0 | CZ56: 0 | DA56: 0 | DB56: 0 | DC56: 0 | DD56: 0 | DF56: NA | DI56: 0 | DJ56: 0 | DK56: 0 | DL56: 0 | DM56: 0 | DN56: 0 | DO56: 0 | DP56: 0 | DQ56: 0 | DR56: 0 | DS56: 0 | DT56: 0
A57: C&I [NCL+DQ] / [Capital + ALLL]--33146 | B57: C&I [NCL+DQ] / [Capital + ALLL] | C57: 11 | D57: 1990-09-30 | E57: 3.889943074 | F57: 8.919123205 | G57: 17.48612213 | H57: 12.91721824 | I57: 1.694915254 | J57: 6.00230858 | K57: 13.336714 | L57: 9.256527212 | M57: 1.383789616 | N57: 5.09512012 | O57: 12.39758377 | P57: 9.210533724 | Q57: 1.855523985 | R57: 4.880101985 | S57: 9.009740832 | T57: 8.409713531 | U57: 1.405451448 | V57: 5.135241082 | W57: 12.17150761 | X57: 8.348689111 | Y57: 4.066930115 | Z57: 10.53979439 | AA57: 18.16214879 | AB57: 14.55046189 | AC57: 2.15170774 | AD57: 7.431961936 | AE57: 14.57484183 | AF57: 10.317729 | AG57: 1.725941423 | AH57: 4.512635379 | AI57: 13.87137453 | AJ57: 8.502893294 | AK57: 2.035098068 | AL57: 6.293706294 | AM57: 10.7773386 | AN57: 8.558981329 | AO57: 1.611603273 | AP57: 5.715592428 | AQ57: 13.27785268 | AR57: 9.184030582 | AS57: 1.655512504 | AT57: 6.293706294 | AU57: 13.42405914 | AV57: 9.611404507 | AW57: 1.109688434 | AX57: 4.709219858 | AY57: 10.46396841 | AZ57: 7.85954381 | BA57: 4.629669799 | BB57: 10.15151515 | BC57: 20.35881159 | BD57: 14.20075727 | BE57: 3.108318368 | BF57: 7.053941909 | BG57: 12.48127999 | BH57: 8.356572981 | BI57: 6.875 | BJ57: 14.54932576 | BK57: 20.42145594 | BL57: 18.10053218 | BN57: NA | BQ57: 5.024366757 | BR57: 6.122890894 | BS57: 6.490191724 | BT57: 9.405545892 | BU57: 2.691576947 | BV57: 7.558448459 | BW57: 15.84210526 | BX57: 14.84953666 | BZ57: NA | CC57: 1.280878317 | CD57: 5.625104323 | CE57: 13.35985567 | CF57: 9.077731044 | CG57: 0 | CH57: 2.746549983 | CI57: 9.882949394 | CJ57: 5.88583432 | CK57: 1.102506891 | CL57: 5.020632737 | CM57: 10.85697312 | CN57: 7.662574424 | CO57: 1.453105758 | CP57: 3.064717636 | CQ57: 11.79185144 | CR57: 5.75448578 | CS57: 3.68263209 | CT57: 7.746213548 | CU57: 9.481743227 | CV57: 10.6032717 | CW57: 6.353299256 | CX57: 14.27889579 | CY57: 19.78635927 | CZ57: 13.9495175 | DA57: 6.433925187 | DB57: 7.93814433 | DC57: 7.995495569 | DD57: 6.973565727 | DF57: NA | DI57: 2.537523857 | DJ57: 8.19878534 | DK57: 12.80766702 | DL57: 8.393015333 | DM57: 2.53081808 | DN57: 7.304618117 | DO57: 10.24816176 | DP57: 10.04493565 | DQ57: 2.873734569 | DR57: 4.984260231 | DS57: 8.550384573 | DT57: 6.861500866
A58: Ind [NCL+DQ] / [Capital + ALLL]--33146 | B58: Ind [NCL+DQ] / [Capital + ALLL] | C58: 12 | D58: 1990-09-30 | E58: 0.7352941176 | F58: 1.780151313 | G58: 4.052863436 | H58: 3.169515692 | I58: 0.6650544135 | J58: 1.82320442 | K58: 3.952057013 | L58: 2.859355432 | M58: 0.3976853616 | N58: 1.782557493 | O58: 4.467606413 | P58: 3.30430982 | Q58: 2.267494382 | R58: 3.320694702 | S58: 6.825825618 | T58: 5.592365213 | U58: 0.8002286368 | V58: 2.033815241 | W58: 4.070939137 | X58: 2.962940807 | Y58: 0.6562234421 | Z58: 1.889112853 | AA58: 4.578795044 | AB58: 3.378498744 | AC58: 0.2208600574 | AD58: 0.8728269618 | AE58: 2.066117965 | AF58: 1.659618565 | AG58: 0.29296875 | AH58: 1.254734848 | AI58: 3.373387719 | AJ58: 2.983173296 | AK58: 1.5625 | AL58: 2.231866088 | AM58: 4.092660229 | AN58: 3.050026183 | AO58: 0.4086894787 | AP58: 1.195737766 | AQ58: 2.789204598 | AR58: 2.040613319 | AS58: 0.6816740647 | AT58: 1.815904822 | AU58: 4.021164021 | AV58: 2.954788912 | AW58: 1.280683031 | AX58: 2.466555184 | AY58: 4.761904762 | AZ58: 3.642588915 | BA58: 0.8013370925 | BB58: 2.182662539 | BC58: 4.917976463 | BD58: 3.534488665 | BE58: 1.556882632 | BF58: 3.706070288 | BG58: 5.449649147 | BH58: 3.971255474 | BI58: 0.2565198803 | BJ58: 1.325019486 | BK58: 3.522727273 | BL58: 2.520131173 | BN58: NA | BQ58: 2.659147304 | BR58: 4.455424159 | BS58: 5.079973706 | BT58: 4.193017589 | BU58: 2.042079208 | BV58: 2.914014726 | BW58: 10.22280472 | BX58: 6.318715467 | BZ58: NA | CC58: 1.103628881 | CD58: 2.168861348 | CE58: 3.976058145 | CF58: 3.150428771 | CG58: 0.1161937378 | CH58: 0.4727720909 | CI58: 3.709892745 | CJ58: 2.533976854 | CK58: 1.01010101 | CL58: 2.356020942 | CM58: 4.995539697 | CN58: 4.769112701 | CO58: 0 | CP58: 0.7552660754 | CQ58: 1.623198644 | CR58: 0.9185668356 | CS58: 1.896445268 | CT58: 2.22289202 | CU58: 5.74452003 | CV58: 3.73139724 | CW58: 0.37020052 | CX58: 1.825265522 | CY58: 3.935985072 | CZ58: 2.442053926 | DA58: 0.8335954703 | DB58: 1.667190941 | DC58: 4.879987223 | DD58: 3.253324815 | DF58: NA | DI58: 0.5058619192 | DJ58: 4.361405312 | DK58: 9.048431535 | DL58: 11.64097062 | DM58: 1.694078947 | DN58: 4.828165857 | DO58: 6.269791007 | DP58: 4.021562053 | DQ58: 1.193666541 | DR58: 2.360248447 | DS58: 2.80882601 | DT58: 2.491202115
A59: OREO / [Capital + ALLL]--33146 | B59: OREO / [Capital + ALLL] | C59: 13 | D59: 1990-09-30 | E59: 0.04755865568 | F59: 2.06405694 | G59: 6.108673642 | H59: 4.455866037 | I59: 0 | J59: 1.697892272 | K59: 5.472263868 | L59: 3.886730481 | M59: 0 | N59: 1.567296089 | O59: 7.095293644 | P59: 6.728424834 | Q59: 0.4845467256 | R59: 2.147680109 | S59: 3.928272887 | T59: 3.021700105 | U59: 0 | V59: 1.860465116 | W59: 5.830444374 | X59: 4.315789251 | Y59: 0 | Z59: 2.397528771 | AA59: 6.823119787 | AB59: 4.49097051 | AC59: 0 | AD59: 1.809534455 | AE59: 5.390332953 | AF59: 3.465511384 | AG59: 0 | AH59: 0.6927263731 | AI59: 3.244005642 | AJ59: 2.51667329 | AK59: 0.2001300846 | AL59: 1.716610439 | AM59: 5.41632983 | AN59: 3.836837261 | AO59: 0 | AP59: 1.546485796 | AQ59: 5.504879866 | AR59: 4.011100332 | AS59: 0 | AT59: 1.335113485 | AU59: 5.014326648 | AV59: 3.789755884 | AW59: 0.2184359983 | AX59: 2.13303396 | AY59: 5.5613851 | AZ59: 3.887550563 | BA59: 0 | BB59: 2.252150294 | BC59: 6.131234136 | BD59: 4.59747185 | BE59: 0 | BF59: 1.146245059 | BG59: 3.706288047 | BH59: 3.435101696 | BI59: 2.69694819 | BJ59: 5.795454545 | BK59: 10.12256015 | BL59: 8.077314673 | BN59: NA | BQ59: 0.3497292419 | BR59: 1.731486954 | BS59: 2.333661294 | BT59: 1.493641549 | BU59: 0 | BV59: 0.4776293986 | BW59: 4.204204204 | BX59: 10.7354904 | BZ59: NA | CC59: 0 | CD59: 1.972448341 | CE59: 4.802259887 | CF59: 3.372777768 | CG59: 0 | CH59: 0 | CI59: 1.115771322 | CJ59: 0.7595382409 | CK59: 0.6725918809 | CL59: 2.140672783 | CM59: 5.29436982 | CN59: 4.307140986 | CO59: 0 | CP59: 0.46875 | CQ59: 3.956021209 | CR59: 2.849372952 | CS59: 0 | CT59: 1.662887377 | CU59: 2.178706889 | CV59: 2.246528512 | CW59: 0.07131303967 | CX59: 1.409304288 | CY59: 2.75261324 | CZ59: 2.823928382 | DA59: 1.100975149 | DB59: 2.201950299 | DC59: 6.332933912 | DD59: 4.221955942 | DF59: NA | DI59: 0 | DJ59: 0.1518658177 | DK59: 1.067988919 | DL59: 0.958903713 | DM59: 3.008570929 | DN59: 3.436682854 | DO59: 5.147639349 | DP59: 4.173333445 | DQ59: 0 | DR59: 0.03924390084 | DS59: 1.255013731 | DT59: 0.639229356
A60: ROAA--33146 | B60: ROAA | C60: 14 | D60: 1990-09-30 | E60: 0.68 | F60: 1.05 | G60: 1.25 | H60: 0.9314141414 | I60: 0.76 | J60: 1.05 | K60: 1.31 | L60: 0.9964606266 | M60: 0.59 | N60: 0.99 | O60: 1.31 | P60: 0.8097051557 | Q60: 0.745 | R60: 1.02 | S60: 1.2275 | T60: 0.9741176471 | U60: 0.68 | V60: 1.01 | W60: 1.27 | X60: 0.9507830343 | Y60: 0.8675 | Z60: 1.12 | AA60: 1.35 | AB60: 1.090454545 | AC60: 0.7475 | AD60: 1.04 | AE60: 1.35 | AF60: 0.9400666667 | AG60: 0.9 | AH60: 1.23 | AI60: 1.44 | AJ60: 1.16699187 | AK60: 0.78 | AL60: 1.07 | AM60: 1.3 | AN60: 0.9864864865 | AO60: 0.8 | AP60: 1.06 | AQ60: 1.35 | AR60: 1.018519108 | AS60: 0.76 | AT60: 1.06 | AU60: 1.33 | AV60: 1.019833729 | AW60: 0.73 | AX60: 1.02 | AY60: 1.28 | AZ60: 0.9727704485 | BA60: 0.695 | BB60: 0.97 | BC60: 1.275 | BD60: 0.9092114695 | BE60: 0.945 | BF60: 1.1 | BG60: 1.29 | BH60: 1.129302326 | BI60: 0.9 | BJ60: 1.11 | BK60: 1.26 | BL60: 1.113846154 | BN60: NA | BQ60: 0.9675 | BR60: 1.11 | BS60: 1.2975 | BT60: 1.135 | BU60: 0.54 | BV60: 0.9 | BW60: 1.1 | BX60: 0.8003448276 | BZ60: NA | CC60: 0.58 | CD60: 0.98 | CE60: 1.22 | CF60: 0.8219727891 | CG60: 0.7925 | CH60: 0.94 | CI60: 1.1325 | CJ60: 0.8983333333 | CK60: 0.58 | CL60: 0.93 | CM60: 1.19 | CN60: 0.9203030303 | CO60: 1.0525 | CP60: 1.205 | CQ60: 1.3675 | CR60: 1.1 | CS60: 0.84 | CT60: 0.89 | CU60: 1.13 | CV60: 1.016 | CW60: 0.635 | CX60: 0.9 | CY60: 1.0525 | CZ60: 0.8868181818 | DA60: 0.92 | DB60: 1.13 | DC60: 1.3 | DD60: 1.103333333 | DF60: NA | DI60: 0.8825 | DJ60: 1.355 | DK60: 2.7725 | DL60: 1.783 | DM60: 0.92 | DN60: 1.1 | DO60: 1.23 | DP60: 1.15 | DQ60: 1.02 | DR60: 1.18 | DS60: 1.35 | DT60: 1.210909091
A61: NIM--33146 | B61: NIM | C61: 15 | D61: 1990-09-30 | E61: 4.03 | F61: 4.71 | G61: 5.38 | H61: 4.747272727 | I61: 4.12 | J61: 4.52 | K61: 4.98 | L61: 4.597239627 | M61: 4.02 | N61: 4.49 | O61: 5.04 | P61: 4.59353072 | Q61: 4.2475 | R61: 4.52 | S61: 4.675 | T61: 4.527647059 | U61: 4.11 | V61: 4.54 | W61: 4.96 | X61: 4.573115824 | Y61: 4.3775 | Z61: 4.83 | AA61: 5.55 | AB61: 5.016298701 | AC61: 3.975 | AD61: 4.345 | AE61: 4.795 | AF61: 4.389333333 | AG61: 3.99 | AH61: 4.47 | AI61: 4.96 | AJ61: 4.67902439 | AK61: 4.23 | AL61: 4.47 | AM61: 4.8 | AN61: 4.520540541 | AO61: 4.02 | AP61: 4.38 | AQ61: 4.77 | AR61: 4.414347134 | AS61: 4.15 | AT61: 4.57 | AU61: 5.03 | AV61: 4.645106888 | AW61: 4.21 | AX61: 4.61 | AY61: 5 | AZ61: 4.649868074 | BA61: 4.26 | BB61: 4.73 | BC61: 5.39 | BD61: 4.844946237 | BE61: 4.435 | BF61: 4.75 | BG61: 5.15 | BH61: 4.953255814 | BI61: 4.44 | BJ61: 4.85 | BK61: 5.37 | BL61: 5.093076923 | BN61: NA | BQ61: 4.905 | BR61: 5.03 | BS61: 5.56 | BT61: 5.323333333 | BU61: 4.42 | BV61: 4.87 | BW61: 5.05 | BX61: 4.812068966 | BZ61: NA | CC61: 4.53 | CD61: 4.95 | CE61: 5.57 | CF61: 5 | CG61: 4.365 | CH61: 4.675 | CI61: 4.925 | CJ61: 5.393333333 | CK61: 4.14 | CL61: 4.38 | CM61: 4.73 | CN61: 4.590909091 | CO61: 3.6075 | CP61: 4.885 | CQ61: 5.575 | CR61: 4.32125 | CS61: 4.52 | CT61: 4.96 | CU61: 5.33 | CV61: 4.868 | CW61: 4.2275 | CX61: 4.53 | CY61: 4.795 | CZ61: 4.496363636 | DA61: 5.52 | DB61: 5.55 | DC61: 5.58 | DD61: 5.55 | DF61: NA | DI61: 3.935 | DJ61: 4.365 | DK61: 7.3575 | DL61: 5.752 | DM61: 4.31 | DN61: 4.4 | DO61: 4.66 | DP61: 4.481111111 | DQ61: 4.15 | DR61: 4.33 | DS61: 4.9 | DT61: 4.51
A62: Provisions / Avg Assets--33146 | B62: Provisions / Avg Assets | C62: 16 | D62: 1990-09-30 | E62: 0.07 | F62: 0.24 | G62: 0.37 | H62: 0.3050505051 | I62: 0.02 | J62: 0.16 | K62: 0.34 | L62: 0.2619729043 | M62: 0.06 | N62: 0.2 | O62: 0.45 | P62: 0.3743996047 | Q62: 0.09 | R62: 0.195 | S62: 0.315 | T62: 0.2102941176 | U62: 0.01 | V62: 0.16 | W62: 0.34 | X62: 0.2564437194 | Y62: 0.01 | Z62: 0.14 | AA62: 0.37 | AB62: 0.2255844156 | AC62: 0.05 | AD62: 0.185 | AE62: 0.44 | AF62: 0.3578 | AG62: 0 | AH62: 0.11 | AI62: 0.31 | AJ62: 0.3814634146 | AK62: 0.06 | AL62: 0.16 | AM62: 0.24 | AN62: 0.2151351351 | AO62: 0 | AP62: 0.12 | AQ62: 0.32 | AR62: 0.2439649682 | AS62: 0 | AT62: 0.15 | AU62: 0.32 | AV62: 0.2398337292 | AW62: 0.05 | AX62: 0.17 | AY62: 0.3 | AZ62: 0.2373350923 | BA62: 0.06 | BB62: 0.21 | BC62: 0.395 | BD62: 0.2703942652 | BE62: 0.14 | BF62: 0.26 | BG62: 0.38 | BH62: 0.39 | BI62: 0.03 | BJ62: 0.2 | BK62: 0.34 | BL62: 0.1730769231 | BN62: NA | BQ62: 0 | BR62: 0.02 | BS62: 0.2275 | BT62: 0.1016666667 | BU62: 0 | BV62: 0.15 | BW62: 0.26 | BX62: 0.1689655172 | BZ62: NA | CC62: 0.09 | CD62: 0.25 | CE62: 0.48 | CF62: 0.4319047619 | CG62: 0.015 | CH62: 0.265 | CI62: 0.7775 | CJ62: 0.34 | CK62: 0.06 | CL62: 0.24 | CM62: 0.44 | CN62: 0.3127272727 | CO62: 0 | CP62: 0.12 | CQ62: 0.2525 | CR62: 0.1525 | CS62: 0.2 | CT62: 0.27 | CU62: 0.31 | CV62: 0.342 | CW62: 0.0825 | CX62: 0.26 | CY62: 0.335 | CZ62: 0.2759090909 | DA62: 0.225 | DB62: 0.31 | DC62: 0.375 | DD62: 0.2966666667 | DF62: NA | DI62: 0.1475 | DJ62: 0.24 | DK62: 2.76 | DL62: 1.184 | DM62: 0 | DN62: 0 | DO62: 0.3 | DP62: 0.1588888889 | DQ62: 0.035 | DR62: 0.15 | DS62: 0.205 | DT62: 0.1418181818
A63: Negative Earners (last 4 qtrs)--33146 | B63: Negative Earners (last 4 qtrs) | C63: 17 | D63: 1990-09-30 | F63: 9.900990099 | H63: 10 | J63: 6.473029046 | L63: 78 | N63: 12.58475944 | P63: 1559 | R63: 2.941176471 | T63: 1 | V63: 6.24 | X63: 39 | Z63: 6.41025641 | AB63: 10 | AD63: 9.868421053 | AF63: 15 | AH63: 6.4 | AJ63: 8 | AL63: 4.424778761 | AN63: 5 | AP63: 6.71875 | AR63: 43 | AT63: 5.361305361 | AV63: 23 | AX63: 5.454545455 | AZ63: 21 | BB63: 7.067137809 | BD63: 20 | BF63: 2.325581395 | BH63: 1 | BJ63: 0 | BL63: 0 | BN63: NaN | BP63: 0 | BR63: 0 | BT63: 0 | BV63: 10.34482759 | BX63: 3 | BZ63: NaN | CB63: 0 | CD63: 9.395973154 | CF63: 14 | CH63: 0 | CJ63: 0 | CL63: 6.060606061 | CN63: 2 | CP63: 12.5 | CR63: 1 | CT63: 0 | CV63: 0 | CX63: 0 | CZ63: 0 | DB63: 0 | DD63: 0 | DF63: NaN | DH63: 0 | DJ63: 0 | DL63: 0 | DN63: 0 | DP63: 0 | DR63: 0 | DT63: 0
A64: Noncore Funding / Liab--33146 | B64: Noncore Funding / Liab | C64: 18 | D64: 1990-09-30 | E64: 4.810011377 | F64: 7.751788131 | G64: 12.25369458 | H64: 9.230929376 | I64: 4.907241173 | J64: 7.791767828 | K64: 11.9360637 | L64: 9.193026073 | M64: 7.793843854 | N64: 12.63314462 | O64: 19.24708222 | P64: 14.79098035 | Q64: 5.979897025 | R64: 7.944108921 | S64: 10.11136445 | T64: 8.263059301 | U64: 4.371791635 | V64: 7.132966448 | W64: 11.25819621 | X64: 8.502764176 | Y64: 6.099038987 | Z64: 9.949502668 | AA64: 14.85419368 | AB64: 11.58606268 | AC64: 6.512618466 | AD64: 9.246479104 | AE64: 14.67852508 | AF64: 10.82777706 | AG64: 5.131578947 | AH64: 7.805127622 | AI64: 11.34847665 | AJ64: 10.70756681 | AK64: 4.410517388 | AL64: 6.442850473 | AM64: 10.35919596 | AN64: 7.560036844 | AO64: 4.828635836 | AP64: 7.56919271 | AQ64: 11.42076222 | AR64: 8.761490267 | AS64: 5.646217987 | AT64: 8.522779567 | AU64: 13.18155054 | AV64: 10.1239208 | AW64: 4.300288583 | AX64: 6.889476384 | AY64: 10.16380879 | AZ64: 7.662640307 | BA64: 5.800235204 | BB64: 9.071552364 | BC64: 15.71227174 | BD64: 11.1444293 | BE64: 5.657518102 | BF64: 7.524518093 | BG64: 10.86524556 | BH64: 11.13927244 | BI64: 5.026858013 | BJ64: 7.461835945 | BK64: 15.89038241 | BL64: 10.06640855 | BN64: NA | BQ64: 6.827050866 | BR64: 10.9747851 | BS64: 14.81849866 | BT64: 11.03897002 | BU64: 4.300288583 | BV64: 6.190436029 | BW64: 8.457823206 | BX64: 7.323596889 | BZ64: NA | CC64: 4.391423859 | CD64: 7.702282158 | CE64: 12.82487815 | CF64: 10.76244512 | CG64: 6.402338117 | CH64: 8.146593117 | CI64: 10.12294386 | CJ64: 9.336576812 | CK64: 5.908503071 | CL64: 8.45057124 | CM64: 11.53802238 | CN64: 9.462812555 | CO64: 7.528459586 | CP64: 9.075633512 | CQ64: 13.61865651 | CR64: 10.19174109 | CS64: 5.304205627 | CT64: 7.773244802 | CU64: 7.812628972 | CV64: 7.5377639 | CW64: 7.378026217 | CX64: 11.88885379 | CY64: 16.65436439 | CZ64: 12.32818479 | DA64: 10.06622606 | DB64: 10.90046046 | DC64: 11.8207357 | DD64: 10.95782102 | DF64: NA | DI64: 11.73097724 | DJ64: 21.18811713 | DK64: 81.95655817 | DL64: 41.21979244 | DM64: 3.886736215 | DN64: 5.976095618 | DO64: 10.58538006 | DP64: 8.487051472 | DQ64: 4.11616597 | DR64: 6.203769983 | DS64: 13.46869283 | DT64: 11.25071904
A65: Brokered Dep / Liab--33146 | B65: Brokered Dep / Liab | C65: 19 | D65: 1990-09-30 | E65: 0 | F65: 0 | G65: 0 | H65: 0 | I65: 0 | J65: 0 | K65: 0 | L65: 0.004811273974 | M65: 0 | N65: 0 | O65: 0 | P65: 0.1209183856 | Q65: 0 | R65: 0 | S65: 0 | T65: 0 | U65: 0 | V65: 0 | W65: 0 | X65: 0.008151787833 | Y65: 0 | Z65: 0 | AA65: 0 | AB65: 0 | AC65: 0 | AD65: 0 | AE65: 0 | AF65: 0.01270573267 | AG65: 0 | AH65: 0 | AI65: 0 | AJ65: 0.06542000388 | AK65: 0 | AL65: 0 | AM65: 0 | AN65: 0 | AO65: 0 | AP65: 0 | AQ65: 0 | AR65: 0.007677547475 | AS65: 0 | AT65: 0 | AU65: 0 | AV65: 0.00565058097 | AW65: 0 | AX65: 0 | AY65: 0 | AZ65: 0.002275975606 | BA65: 0 | BB65: 0 | BC65: 0 | BD65: 0.003346931918 | BE65: 0 | BF65: 0 | BG65: 0 | BH65: 0.4579608234 | BI65: 0 | BJ65: 0 | BK65: 0 | BL65: 0 | BN65: NA | BQ65: 0 | BR65: 0 | BS65: 0 | BT65: 0 | BU65: 0 | BV65: 0 | BW65: 0 | BX65: 0 | BZ65: NA | CC65: 0 | CD65: 0 | CE65: 0 | CF65: 0.0580884827 | CG65: 0 | CH65: 0 | CI65: 0 | CJ65: 0 | CK65: 0 | CL65: 0 | CM65: 0 | CN65: 0.02613923499 | CO65: 0 | CP65: 0 | CQ65: 0 | CR65: 0 | CS65: 0 | CT65: 0 | CU65: 0 | CV65: 0 | CW65: 0 | CX65: 0 | CY65: 0 | CZ65: 0 | DA65: 0 | DB65: 0 | DC65: 0 | DD65: 0 | DF65: NA | DI65: 0 | DJ65: 0 | DK65: 0 | DL65: 1.969231541 | DM65: 0 | DN65: 0 | DO65: 0 | DP65: 0.1388503194 | DQ65: 0 | DR65: 0 | DS65: 0 | DT65: 0
A66: Liquid Assets / Assets--33146 | B66: Liquid Assets / Assets | C66: 20 | D66: 1990-09-30 | F66: NA | J66: NA | N66: NA | R66: NA | V66: NA | Z66: NA | AD66: NA | AH66: NA | AL66: NA | AP66: NA | AT66: NA | AX66: NA | BB66: NA | BF66: NA | BJ66: NA | BN66: NA | BR66: NA | BV66: NA | BZ66: NA | CD66: NA | CH66: NA | CL66: NA | CP66: NA | CT66: NA | CX66: NA | DB66: NA | DF66: NA | DJ66: NA | DN66: NA | DR66: NA
A67: =B67&"--"&D67 -> Net Loan Growth (last 4 qtrs)--33146 | B67: =VLOOKUP(C67,labels,2,FALSE) -> Net Loan Growth (last 4 qtrs) | C67: 21 | D67: 1990-09-30 | E67: 0.13 | F67: 5.96 | G67: 11.71 | H67: 6.061616162 | I67: 0.31 | J67: 6.37 | K67: 12.6 | L67: 7.549005947 | M67: -0.56 | N67: 6.8 | O67: 15.15 | P67: 10.14761973 | Q67: 4.4925 | R67: 9.15 | S67: 12.105 | T67: 12.73588235 | U67: 0.435 | V67: 6.29 | W67: 11.59 | X67: 6.95792144 | Y67: -2.355 | Z67: 5.67 | AA67: 12.865 | AB67: 8.05745098 | AC67: -0.695 | AD67: 5.02 | AE67: 10.36 | AF67: 6.088724832 | AG67: 2.28 | AH67: 8.18 | AI67: 16.9 | AJ67: 9.682113821 | AK67: 1.46 | AL67: 7.98 | AM67: 13.15 | AN67: 9.811711712 | AO67: 0.25 | AP67: 5.415 | AQ67: 11.905 | AR67: 6.387834395 | AS67: 3.64 | AT67: 8.95 | AU67: 16.13 | AV67: 11.91232779 | AW67: 0.8025 | AX67: 6.635 | AY67: 12.3225 | AZ67: 8.154867725 | BA67: 0.55 | BB67: 7.65 | BC67: 15.13 | BD67: 10.98592058 | BE67: -0.285 | BF67: 6.21 | BG67: 11.89 | BH67: 5.071395349 | BI67: -5.49 | BJ67: 1.68 | BK67: 10.78 | BL67: 21.41461538 | BN67: NA | BQ67: -4.43 | BR67: 3.19 | BS67: 22.6 | BT67: 12.64833333 | BU67: -1.86 | BV67: 3.63 | BW67: 10.02 | BX67: 7.229655172 | BZ67: NA | CC67: -0.2425 | CD67: 5.85 | CE67: 11.3725 | CF67: 6.454726027 | CG67: -1.1325 | CH67: 8.26 | CI67: 14.0675 | CJ67: 7.395 | CK67: 2.54 | CL67: 6.17 | CM67: 10.4 | CN67: 5.333030303 | CO67: 15.255 | CP67: 22.48 | CQ67: 23.78 | CR67: 18.11 | CS67: -1.22 | CT67: 7.63 | CU67: 9.38 | CV67: 6.536 | CW67: -4.71 | CX67: 2.95 | CY67: 5.19 | CZ67: 4.347272727 | DA67: 14.495 | DB67: 14.8 | DC67: 31.55 | DD67: 25.76333333 | DF67: NA | DI67: -2.8925 | DJ67: 7.61 | DK67: 14.195 | DL67: 7.549 | DM67: 1.4 | DN67: 9.86 | DO67: 12.45 | DP67: 8.777777778 | DQ67: 1.26 | DR67: 7.91 | DS67: 11.69 | DT67: 7.293636364
A68: Banks w/ Loan Growth (last 4 qtrs)--33146 | B68: Banks w/ Loan Growth (last 4 qtrs) | C68: 22 | D68: 1990-09-30 | F68: 75.24752475 | J68: 75.6846473 | N68: 72.14239587 | R68: 88.23529412 | V68: 75.84 | Z68: 67.30769231 | AD68: 73.02631579 | AH68: 80.8 | AL68: 80.53097345 | AP68: 76.09375 | AT68: 85.08158508 | AX68: 76.36363636 | BB68: 75.97173145 | BF68: 69.76744186 | BJ68: 53.84615385 | BN68: NaN | BR68: 66.66666667 | BV68: 62.06896552 | BZ68: NaN | CD68: 72.48322148 | CH68: 66.66666667 | CL68: 78.78787879 | CP68: 75 | CT68: 60 | CX68: 68.18181818 | DB68: 100 | DF68: NaN | DJ68: 60 | DN68: 77.77777778 | DR68: 81.81818182
A69: Equity / Assets--33238 | B69: Equity / Assets | C69: 1 | D69: 1990-12-31 | E69: 7.63744028 | F69: 8.949668784 | G69: 10.67331887 | H69: 9.322490611 | I69: 7.280826345 | J69: 8.37200904 | K69: 10.07978732 | L69: 8.8908918 | M69: 6.823193829 | N69: 8.074545372 | O69: 9.943532054 | P69: 8.764023472 | Q69: 7.385792343 | R69: 8.128858846 | S69: 9.43665749 | T69: 8.597761428 | U69: 7.152214445 | V69: 8.208576254 | W69: 9.902059115 | X69: 8.74264683 | Y69: 7.378029637 | Z69: 8.387380544 | AA69: 9.96413618 | AB69: 8.792200101 | AC69: 7.478848901 | AD69: 8.781824762 | AE69: 10.47273762 | AF69: 9.260309339 | AG69: 7.800616004 | AH69: 8.942340683 | AI69: 11.1282991 | AJ69: 9.823479915 | AK69: 7.354485395 | AL69: 8.071902418 | AM69: 9.22654002 | AN69: 8.549064439 | AO69: 7.657767544 | AP69: 8.892039527 | AQ69: 10.83607162 | AR69: 9.496516217 | AS69: 7.118613461 | AT69: 8.131305954 | AU69: 9.747572816 | AV69: 8.579695097 | AW69: 7.2817326 | AX69: 8.156920395 | AY69: 9.439850925 | AZ69: 8.591305201 | BA69: 6.784689366 | BB69: 7.956100173 | BC69: 9.18269538 | BD69: 8.258387426 | BE69: 7.130853842 | BF69: 7.956625355 | BG69: 9.525119958 | BH69: 10.2906039 | BI69: 6.687094564 | BJ69: 7.529491449 | BK69: 9.51478705 | BL69: 8.258376401 | BN69: NA | BQ69: 7.415359152 | BR69: 9.045152873 | BS69: 10.78801191 | BT69: 9.471016602 | BU69: 6.338716239 | BV69: 7.85483871 | BW69: 9.450266944 | BX69: 8.294132395 | BZ69: NA | CC69: 7.015168502 | CD69: 7.831305061 | CE69: 9.312904347 | CF69: 8.331869151 | CG69: 5.872141489 | CH69: 7.171362201 | CI69: 10.80850084 | CJ69: 8.810969306 | CK69: 6.897616605 | CL69: 8.12193857 | CM69: 9.474393173 | CN69: 8.395265521 | CO69: 7.890810897 | CP69: 8.272583597 | CQ69: 10.11424931 | CR69: 8.924857167 | CS69: 8.052222749 | CT69: 8.868652203 | CU69: 10.42340695 | CV69: 9.119307882 | CW69: 6.422892606 | CX69: 7.165042926 | CY69: 8.660977022 | CZ69: 7.771465819 | DA69: 7.215518346 | DB69: 8.093396362 | DC69: 10.60475895 | DD69: 9.182386074 | DF69: NA | DI69: 6.347882733 | DJ69: 8.113147428 | DK69: 9.809887385 | DL69: 9.029348097 | DM69: 7.042548732 | DN69: 8.984339225 | DO69: 9.226992266 | DP69: 8.04378078 | DQ69: 6.602120564 | DR69: 8.211792895 | DS69: 10.48611155 | DT69: 8.433293539
A70: Total Risk Based Capital Ratio--33238 | B70: Total Risk Based Capital Ratio | C70: 2 | D70: 1990-12-31 | E70: 0 | F70: 0 | G70: 0 | H70: 0 | I70: 0 | J70: 0 | K70: 0 | L70: 0 | M70: 0 | N70: 0 | O70: 0 | P70: 0 | Q70: 0 | R70: 0 | S70: 0 | T70: 0 | U70: 0 | V70: 0 | W70: 0 | X70: 0 | Y70: 0 | Z70: 0 | AA70: 0 | AB70: 0 | AC70: 0 | AD70: 0 | AE70: 0 | AF70: 0 | AG70: 0 | AH70: 0 | AI70: 0 | AJ70: 0 | AK70: 0 | AL70: 0 | AM70: 0 | AN70: 0 | AO70: 0 | AP70: 0 | AQ70: 0 | AR70: 0 | AS70: 0 | AT70: 0 | AU70: 0 | AV70: 0 | AW70: 0 | AX70: 0 | AY70: 0 | AZ70: 0 | BA70: 0 | BB70: 0 | BC70: 0 | BD70: 0 | BE70: 0 | BF70: 0 | BG70: 0 | BH70: 0 | BI70: 0 | BJ70: 0 | BK70: 0 | BL70: 0 | BN70: NA | BQ70: 0 | BR70: 0 | BS70: 0 | BT70: 0 | BU70: 0 | BV70: 0 | BW70: 0 | BX70: 0 | BZ70: NA | CC70: 0 | CD70: 0 | CE70: 0 | CF70: 0 | CG70: 0 | CH70: 0 | CI70: 0 | CJ70: 0 | CK70: 0 | CL70: 0 | CM70: 0 | CN70: 0 | CO70: 0 | CP70: 0 | CQ70: 0 | CR70: 0 | CS70: 0 | CT70: 0 | CU70: 0 | CV70: 0 | CW70: 0 | CX70: 0 | CY70: 0 | CZ70: 0 | DA70: 0 | DB70: 0 | DC70: 0 | DD70: 0 | DF70: NA | DI70: 0 | DJ70: 0 | DK70: 0 | DL70: 0 | DM70: 0 | DN70: 0 | DO70: 0 | DP70: 0 | DQ70: 0 | DR70: 0 | DS70: 0 | DT70: 0
A71: Tier 1 Leverage Ratio--33238 | B71: Tier 1 Leverage Ratio | C71: 3 | D71: 1990-12-31 | E71: 0 | F71: 0 | G71: 0 | H71: 0 | I71: 0 | J71: 0 | K71: 0 | L71: 0 | M71: 0 | N71: 0 | O71: 0 | P71: 0 | Q71: 0 | R71: 0 | S71: 0 | T71: 0 | U71: 0 | V71: 0 | W71: 0 | X71: 0 | Y71: 0 | Z71: 0 | AA71: 0 | AB71: 0 | AC71: 0 | AD71: 0 | AE71: 0 | AF71: 0 | AG71: 0 | AH71: 0 | AI71: 0 | AJ71: 0 | AK71: 0 | AL71: 0 | AM71: 0 | AN71: 0 | AO71: 0 | AP71: 0 | AQ71: 0 | AR71: 0 | AS71: 0 | AT71: 0 | AU71: 0 | AV71: 0 | AW71: 0 | AX71: 0 | AY71: 0 | AZ71: 0 | BA71: 0 | BB71: 0 | BC71: 0 | BD71: 0 | BE71: 0 | BF71: 0 | BG71: 0 | BH71: 0 | BI71: 0 | BJ71: 0 | BK71: 0 | BL71: 0 | BN71: NA | BQ71: 0 | BR71: 0 | BS71: 0 | BT71: 0 | BU71: 0 | BV71: 0 | BW71: 0 | BX71: 0 | BZ71: NA | CC71: 0 | CD71: 0 | CE71: 0 | CF71: 0 | CG71: 0 | CH71: 0 | CI71: 0 | CJ71: 0 | CK71: 0 | CL71: 0 | CM71: 0 | CN71: 0 | CO71: 0 | CP71: 0 | CQ71: 0 | CR71: 0 | CS71: 0 | CT71: 0 | CU71: 0 | CV71: 0 | CW71: 0 | CX71: 0 | CY71: 0 | CZ71: 0 | DA71: 0 | DB71: 0 | DC71: 0 | DD71: 0 | DF71: NA | DI71: 0 | DJ71: 0 | DK71: 0 | DL71: 0 | DM71: 0 | DN71: 0 | DO71: 0 | DP71: 0 | DQ71: 0 | DR71: 0 | DS71: 0 | DT71: 0
A72: ALLL / Nonaccrual Loans--33238 | B72: ALLL / Nonaccrual Loans | C72: 4 | D72: 1990-12-31 | E72: 83.93419925 | F72: 148.2916667 | G72: 378.2133719 | H72: 641.6911791 | I72: 87.69602408 | J72: 167.1388102 | K72: 432.6666667 | L72: 512.3577127 | M72: 80.55175038 | N72: 153.4482759 | O72: 377.9884643 | P72: 466.5085455 | Q72: 110.1986249 | R72: 220.4701509 | S72: 542.23693 | T72: 585.3092625 | U72: 93.76072637 | V72: 181.8181818 | W72: 469.4122604 | X72: 610.2096764 | Y72: 80.84415584 | Z72: 151.0791367 | AA72: 316.6666667 | AB72: 472.6980815 | AC72: 84.43792669 | AD72: 182.9313429 | AE72: 420.4793341 | AF72: 362.4860376 | AG72: 112.1929035 | AH72: 176 | AI72: 503.3692722 | AJ72: 745.2927838 | AK72: 65.6788473 | AL72: 107.1098429 | AM72: 186.6635546 | AN72: 214.5302297 | AO72: 95.10057471 | AP72: 174.2745098 | AQ72: 454.5794025 | AR72: 582.0250007 | AS72: 89.12361288 | AT72: 175.5686275 | AU72: 469.2101904 | AV72: 727.6721482 | AW72: 80.78796204 | AX72: 151.7746946 | AY72: 348.1666667 | AZ72: 480.3512439 | BA72: 83.97151039 | BB72: 151.8127054 | BC72: 342.6747788 | BD72: 408.9635512 | BE72: 88.27360662 | BF72: 193.7190647 | BG72: 474.0643879 | BH72: 567.1579205 | BI72: 74.78005865 | BJ72: 144.5833333 | BK72: 200 | BL72: 171.2854459 | BN72: NA | BQ72: 130.6635659 | BR72: 179.7470978 | BS72: 295.3125 | BT72: 246.2289681 | BU72: 79.09059431 | BV72: 154.4802378 | BW72: 271.2343049 | BX72: 313.9915669 | BZ72: NA | CC72: 72.80716032 | CD72: 139.781746 | CE72: 435.9047619 | CF72: 539.0360471 | CG72: 241.8410265 | CH72: 280.3997066 | CI72: 690.2901366 | CJ72: 651.7314564 | CK72: 84.18693196 | CL72: 161.4456815 | CM72: 321.5062112 | CN72: 252.4899327 | CO72: 122.0649682 | CP72: 177.5725594 | CQ72: 187.7314274 | CR72: 147.3400773 | CS72: 291.2568306 | CT72: 339.5631068 | CU72: 389.2857143 | CV72: 462.4170113 | CW72: 127.1891961 | CX72: 220.1991696 | CY72: 290.1699717 | CZ72: 276.0647269 | DA72: 158.9998786 | DB72: 200.4672897 | DC72: 223.3105679 | DD72: 188.0512011 | DF72: NA | DI72: 203.6324786 | DJ72: 261.9580217 | DK72: 466.2817552 | DL72: 1307.446974 | DM72: 80.48780488 | DN72: 89.43089431 | DO72: 201.532567 | DP72: 136.8576953 | DQ72: 83.90567268 | DR72: 117.1875 | DS72: 152.1310046 | DT72: 153.236675
A73: [NCL + OREO] / [Total Loans + OREO]--33238 | B73: [NCL + OREO] / [Total Loans + OREO] | C73: 5 | D73: 1990-12-31 | E73: 1.383499241 | F73: 2.541869972 | G73: 4.316069057 | H73: 3.02476716 | I73: 0.7499601085 | J73: 1.834304095 | K73: 3.44578748 | L73: 2.419706596 | M73: 0.7834028204 | N73: 1.956118152 | O73: 4.109324553 | P73: 3.021995274 | Q73: 1.119215696 | R73: 1.81251001 | S73: 2.757404034 | T73: 2.072991255 | U73: 0.7298424467 | V73: 1.763878368 | W73: 3.200276995 | X73: 2.20659094 | Y73: 1.247055568 | Z73: 2.682241366 | AA73: 4.549120523 | AB73: 3.29070661 | AC73: 0.7655809146 | AD73: 1.842995806 | AE73: 4.259074701 | AF73: 2.977439079 | AG73: 0.5290248785 | AH73: 1.507386192 | AI73: 3.062583222 | AJ73: 2.024001836 | AK73: 1.112963907 | AL73: 1.885947229 | AM73: 3.366025425 | AN73: 2.381444033 | AO73: 0.6933815546 | AP73: 1.866010037 | AQ73: 3.759977359 | AR73: 2.586374216 | AS73: 0.6283206283 | AT73: 1.673457509 | AU73: 3.017944535 | AV73: 2.172405165 | AW73: 0.901056662 | AX73: 1.886547029 | AY73: 3.266114186 | AZ73: 2.303071041 | BA73: 0.867512917 | BB73: 1.902511078 | BC73: 3.781467951 | BD73: 2.585664336 | BE73: 1.121223494 | BF73: 2.400619515 | BG73: 3.285305937 | BH73: 2.460420155 | BI73: 2.549376663 | BJ73: 3.076923077 | BK73: 4.860657796 | BL73: 3.787199529 | BN73: NA | BQ73: 0.5043286008 | BR73: 1.267121747 | BS73: 2.635044339 | BT73: 2.711648213 | BU73: 0.826692691 | BV73: 2.277678748 | BW73: 3.689015861 | BX73: 2.651479636 | BZ73: NA | CC73: 0.799157159 | CD73: 1.935581 | CE73: 3.514685171 | CF73: 2.359316813 | CG73: 0.1457883369 | CH73: 0.3938749289 | CI73: 0.9223278113 | CJ73: 0.5259378572 | CK73: 0.7204453662 | CL73: 1.634117178 | CM73: 3.015440509 | CN73: 2.033703211 | CO73: 0.1476099892 | CP73: 1.14311928 | CQ73: 1.659898766 | CR73: 1.769078895 | CS73: 0.3377249954 | CT73: 0.9788725511 | CU73: 3.962250558 | CV73: 2.390247973 | CW73: 0.8368350457 | CX73: 1.328489263 | CY73: 2.846815581 | CZ73: 1.788662328 | DA73: 1.126297043 | DB73: 1.638086643 | DC73: 2.8753285 | DD73: 2.121721481 | DF73: NA | DI73: 1.332696568 | DJ73: 1.812315819 | DK73: 2.357166175 | DL73: 1.82300849 | DM73: 1.373160332 | DN73: 2.127332179 | DO73: 2.339537576 | DP73: 2.080174432 | DQ73: 0.8886710337 | DR73: 1.376035071 | DS73: 2.25226878 | DT73: 1.735029169
A74: [Noncurrent + Delinquent Loans] / [Capital + ALLL]--33238 | B74: [Noncurrent + Delinquent Loans] / [Capital + ALLL] | C74: 6 | D74: 1990-12-31 | E74: 9.909031839 | F74: 19.03914591 | G74: 33.39540658 | H74: 23.60034924 | I74: 7.826899644 | J74: 16.37998074 | K74: 29.01693881 | L74: 20.85651435 | M74: 8.978723523 | N74: 19.09871366 | O74: 35.34720212 | P74: 26.17272244 | Q74: 15.17747098 | R74: 19.26147932 | S74: 36.2284122 | T74: 29.34781915 | U74: 7.327786761 | V74: 16.00813083 | W74: 29.24152112 | X74: 20.291323 | Y74: 9.80950912 | Z74: 19.64563694 | AA74: 35.06185855 | AB74: 25.83952714 | AC74: 7.223993743 | AD74: 15.05203058 | AE74: 26.25089936 | AF74: 19.00046352 | AG74: 4.929859719 | AH74: 10.94527363 | AI74: 19.94517687 | AJ74: 15.18215253 | AK74: 13.50843374 | AL74: 19.32465419 | AM74: 34.55597409 | AN74: 24.78420051 | AO74: 5.514056127 | AP74: 13.18954847 | AQ74: 25.00726553 | AR74: 17.90263321 | AS74: 8.365019011 | AT74: 16.60210293 | AU74: 28.80886427 | AV74: 21.39999997 | AW74: 11.04027261 | AX74: 18.85832712 | AY74: 33.43781611 | AZ74: 24.27514533 | BA74: 9.909031839 | BB74: 18.7662579 | BC74: 33.9198436 | BD74: 24.70739437 | BE74: 14.24659867 | BF74: 20.90493132 | BG74: 32.72017045 | BH74: 25.14185392 | BI74: 15.73587385 | BJ74: 19.27312775 | BK74: 34.95353824 | BL74: 27.65898731 | BN74: NA | BQ74: 11.11762019 | BR74: 19.25249614 | BS74: 28.73239674 | BT74: 23.01686504 | BU74: 15.52830257 | BV74: 25.72132701 | BW74: 41.1280691 | BX74: 29.60929844 | BZ74: NA | CC74: 10.68511509 | CD74: 20.038743 | CE74: 31.91945133 | CF74: 23.4443644 | CG74: 1.069198925 | CH74: 8.993902439 | CI74: 26.63829827 | CJ74: 15.49982872 | CK74: 9.819639279 | CL74: 21.41230068 | CM74: 33.85581927 | CN74: 24.31304167 | CO74: 7.718758939 | CP74: 9.764517251 | CQ74: 14.90708983 | CR74: 11.95032394 | CS74: 10.40201911 | CT74: 13.07574765 | CU74: 19.21647126 | CV74: 18.77231568 | CW74: 12.00764938 | CX74: 18.51021267 | CY74: 28.00558628 | CZ74: 20.42360345 | DA74: 10.43768585 | DB74: 10.65821256 | DC74: 18.33550287 | DD74: 15.62938829 | DF74: NA | DI74: 15.27638479 | DJ74: 24.23568898 | DK74: 43.55312751 | DL74: 33.31088507 | DM74: 15.90530793 | DN74: 19.4364852 | DO74: 31.36626042 | DP74: 22.08926512 | DQ74: 11.12433502 | DR74: 18.88949374 | DS74: 23.08709072 | DT74: 20.11662216
A75: Ag [NCL+DQ] / [Capital + ALLL]--33238 | B75: Ag [NCL+DQ] / [Capital + ALLL] | C75: 7 | D75: 1990-12-31 | E75: 0 | F75: 0.853485064 | G75: 6.573569482 | H75: 5.150161798 | I75: 0 | J75: 0.1763717805 | K75: 3.755725716 | L75: 3.211388679 | M75: 0 | N75: 0 | O75: 0.2611258462 | P75: 1.119724236 | Q75: 0 | R75: 0 | S75: 0 | T75: 0 | U75: 0 | V75: 0 | W75: 2.23666628 | X75: 2.22648097 | Y75: 0 | Z75: 0.0968054211 | AA75: 6.125775023 | AB75: 4.952201478 | AC75: 0.4463830269 | AD75: 3.153064699 | AE75: 9.97465071 | AF75: 7.854087807 | AG75: 0 | AH75: 1.246105919 | AI75: 5.180334278 | AJ75: 4.399378683 | AK75: 0 | AL75: 0 | AM75: 1.67410509 | AN75: 1.606922848 | AO75: 0.1202990589 | AP75: 2.680876849 | AQ75: 8.853015854 | AR75: 5.99490438 | AS75: 0 | AT75: 0.1442307692 | AU75: 3.317811409 | AV75: 2.549834239 | AW75: 0 | AX75: 0 | AY75: 0.6616936691 | AZ75: 1.080882521 | BA75: 0 | BB75: 0 | BC75: 0.7273811298 | BD75: 1.304237632 | BE75: 0 | BF75: 0 | BG75: 0.5188956779 | BH75: 0.8657286451 | BI75: 0 | BJ75: 0 | BK75: 1.71203561 | BL75: 2.796560699 | BN75: NA | BQ75: 0 | BR75: 0.6302323394 | BS75: 3.977427036 | BT75: 2.180514912 | BU75: 0 | BV75: 0 | BW75: 0 | BX75: 0 | BZ75: NA | CC75: 0 | CD75: 0 | CE75: 0 | CF75: 0.2558717465 | CG75: 0 | CH75: 0 | CI75: 0.2966101695 | CJ75: 0.1886573527 | CK75: 0 | CL75: 0 | CM75: 0.5449591281 | CN75: 1.322767474 | CO75: 0 | CP75: 0 | CQ75: 0.2280042918 | CR75: 1.076550273 | CS75: 0.4515012416 | CT75: 2.01702685 | CU75: 12.21046611 | CV75: 7.547772234 | CW75: 0 | CX75: 2.242937595 | CY75: 4.94338669 | CZ75: 3.875403564 | DA75: 0 | DB75: 0 | DC75: 1.904592382 | DD75: 1.269728254 | DF75: NA | DI75: 0.2116528893 | DJ75: 1.222523036 | DK75: 3.280160295 | DL75: 1.687405334 | DM75: 0 | DN75: 0 | DO75: 0 | DP75: 1.02572286 | DQ75: 0 | DR75: 0.9798584649 | DS75: 4.67061731 | DT75: 2.597786507
A76: CLD [NCL+DQ] / [Capital + ALLL]--33238 | B76: CLD [NCL+DQ] / [Capital + ALLL] | C76: 8 | D76: 1990-12-31 | E76: 0 | F76: 0 | G76: 0 | H76: 0 | I76: 0 | J76: 0 | K76: 0 | L76: 0 | M76: 0 | N76: 0 | O76: 0 | P76: 0 | Q76: 0 | R76: 0 | S76: 0 | T76: 0 | U76: 0 | V76: 0 | W76: 0 | X76: 0 | Y76: 0 | Z76: 0 | AA76: 0 | AB76: 0 | AC76: 0 | AD76: 0 | AE76: 0 | AF76: 0 | AG76: 0 | AH76: 0 | AI76: 0 | AJ76: 0 | AK76: 0 | AL76: 0 | AM76: 0 | AN76: 0 | AO76: 0 | AP76: 0 | AQ76: 0 | AR76: 0 | AS76: 0 | AT76: 0 | AU76: 0 | AV76: 0 | AW76: 0 | AX76: 0 | AY76: 0 | AZ76: 0 | BA76: 0 | BB76: 0 | BC76: 0 | BD76: 0 | BE76: 0 | BF76: 0 | BG76: 0 | BH76: 0 | BI76: 0 | BJ76: 0 | BK76: 0 | BL76: 0 | BN76: NA | BQ76: 0 | BR76: 0 | BS76: 0 | BT76: 0 | BU76: 0 | BV76: 0 | BW76: 0 | BX76: 0 | BZ76: NA | CC76: 0 | CD76: 0 | CE76: 0 | CF76: 0 | CG76: 0 | CH76: 0 | CI76: 0 | CJ76: 0 | CK76: 0 | CL76: 0 | CM76: 0 | CN76: 0 | CO76: 0 | CP76: 0 | CQ76: 0 | CR76: 0 | CS76: 0 | CT76: 0 | CU76: 0 | CV76: 0 | CW76: 0 | CX76: 0 | CY76: 0 | CZ76: 0 | DA76: 0 | DB76: 0 | DC76: 0 | DD76: 0 | DF76: NA | DI76: 0 | DJ76: 0 | DK76: 0 | DL76: 0 | DM76: 0 | DN76: 0 | DO76: 0 | DP76: 0 | DQ76: 0 | DR76: 0 | DS76: 0 | DT76: 0
A77: CRE [NCL+DQ] / [Capital + ALLL]--33238 | B77: CRE [NCL+DQ] / [Capital + ALLL] | C77: 9 | D77: 1990-12-31 | E77: 0 | F77: 0 | G77: 0 | H77: 0 | I77: 0 | J77: 0 | K77: 0 | L77: 0 | M77: 0 | N77: 0 | O77: 0 | P77: 0 | Q77: 0 | R77: 0 | S77: 0 | T77: 0 | U77: 0 | V77: 0 | W77: 0 | X77: 0 | Y77: 0 | Z77: 0 | AA77: 0 | AB77: 0 | AC77: 0 | AD77: 0 | AE77: 0 | AF77: 0 | AG77: 0 | AH77: 0 | AI77: 0 | AJ77: 0 | AK77: 0 | AL77: 0 | AM77: 0 | AN77: 0 | AO77: 0 | AP77: 0 | AQ77: 0 | AR77: 0 | AS77: 0 | AT77: 0 | AU77: 0 | AV77: 0 | AW77: 0 | AX77: 0 | AY77: 0 | AZ77: 0 | BA77: 0 | BB77: 0 | BC77: 0 | BD77: 0 | BE77: 0 | BF77: 0 | BG77: 0 | BH77: 0 | BI77: 0 | BJ77: 0 | BK77: 0 | BL77: 0 | BN77: NA | BQ77: 0 | BR77: 0 | BS77: 0 | BT77: 0 | BU77: 0 | BV77: 0 | BW77: 0 | BX77: 0 | BZ77: NA | CC77: 0 | CD77: 0 | CE77: 0 | CF77: 0 | CG77: 0 | CH77: 0 | CI77: 0 | CJ77: 0 | CK77: 0 | CL77: 0 | CM77: 0 | CN77: 0 | CO77: 0 | CP77: 0 | CQ77: 0 | CR77: 0 | CS77: 0 | CT77: 0 | CU77: 0 | CV77: 0 | CW77: 0 | CX77: 0 | CY77: 0 | CZ77: 0 | DA77: 0 | DB77: 0 | DC77: 0 | DD77: 0 | DF77: NA | DI77: 0 | DJ77: 0 | DK77: 0 | DL77: 0 | DM77: 0 | DN77: 0 | DO77: 0 | DP77: 0 | DQ77: 0 | DR77: 0 | DS77: 0 | DT77: 0
A78: Res RE [NCL+DQ] / [Capital + ALLL]--33238 | B78: Res RE [NCL+DQ] / [Capital + ALLL] | C78: 10 | D78: 1990-12-31 | E78: 0 | F78: 0 | G78: 0 | H78: 0 | I78: 0 | J78: 0 | K78: 0 | L78: 0 | M78: 0 | N78: 0 | O78: 0 | P78: 0 | Q78: 0 | R78: 0 | S78: 0 | T78: 0 | U78: 0 | V78: 0 | W78: 0 | X78: 0 | Y78: 0 | Z78: 0 | AA78: 0 | AB78: 0 | AC78: 0 | AD78: 0 | AE78: 0 | AF78: 0 | AG78: 0 | AH78: 0 | AI78: 0 | AJ78: 0 | AK78: 0 | AL78: 0 | AM78: 0 | AN78: 0 | AO78: 0 | AP78: 0 | AQ78: 0 | AR78: 0 | AS78: 0 | AT78: 0 | AU78: 0 | AV78: 0 | AW78: 0 | AX78: 0 | AY78: 0 | AZ78: 0 | BA78: 0 | BB78: 0 | BC78: 0 | BD78: 0 | BE78: 0 | BF78: 0 | BG78: 0 | BH78: 0 | BI78: 0 | BJ78: 0 | BK78: 0 | BL78: 0 | BN78: NA | BQ78: 0 | BR78: 0 | BS78: 0 | BT78: 0 | BU78: 0 | BV78: 0 | BW78: 0 | BX78: 0 | BZ78: NA | CC78: 0 | CD78: 0 | CE78: 0 | CF78: 0 | CG78: 0 | CH78: 0 | CI78: 0 | CJ78: 0 | CK78: 0 | CL78: 0 | CM78: 0 | CN78: 0 | CO78: 0 | CP78: 0 | CQ78: 0 | CR78: 0 | CS78: 0 | CT78: 0 | CU78: 0 | CV78: 0 | CW78: 0 | CX78: 0 | CY78: 0 | CZ78: 0 | DA78: 0 | DB78: 0 | DC78: 0 | DD78: 0 | DF78: NA | DI78: 0 | DJ78: 0 | DK78: 0 | DL78: 0 | DM78: 0 | DN78: 0 | DO78: 0 | DP78: 0 | DQ78: 0 | DR78: 0 | DS78: 0 | DT78: 0
A79: C&I [NCL+DQ] / [Capital + ALLL]--33238 | B79: C&I [NCL+DQ] / [Capital + ALLL] | C79: 11 | D79: 1990-12-31 | E79: 3.929016559 | F79: 10.115267 | G79: 16.43646409 | H79: 12.89217685 | I79: 1.932794481 | J79: 5.602675819 | K79: 12.942129 | L79: 9.234270116 | M79: 1.34869981 | N79: 5.006980626 | O79: 12.50080417 | P79: 9.359451893 | Q79: 1.409106099 | R79: 3.566867201 | S79: 10.00662982 | T79: 8.305307565 | U79: 1.460458016 | V79: 4.879696926 | W79: 10.87494658 | X79: 7.771273712 | Y79: 4.560431285 | Z79: 10.834582 | AA79: 19.5051128 | AB79: 15.68528356 | AC79: 3.459528312 | AD79: 7.626324632 | AE79: 14.71373732 | AF79: 11.11779894 | AG79: 1.493043773 | AH79: 5.063554907 | AI79: 10.64676617 | AJ79: 8.40726953 | AK79: 2.061810585 | AL79: 5.385880838 | AM79: 11.48707241 | AN79: 8.839744724 | AO79: 1.932210012 | AP79: 5.681614404 | AQ79: 13.55651095 | AR79: 9.758198399 | AS79: 2.024584237 | AT79: 5.97133758 | AU79: 13.1661442 | AV79: 9.701513802 | AW79: 1.560281972 | AX79: 4.678773602 | AY79: 10.565548 | AZ79: 7.716987542 | BA79: 3.584370225 | BB79: 9.076109076 | BC79: 16.71087533 | BD79: 12.54725864 | BE79: 2.826155992 | BF79: 6.929057489 | BG79: 10.12769291 | BH79: 8.274667602 | BI79: 7.711546478 | BJ79: 15.2349486 | BK79: 23.21948297 | BL79: 18.13809488 | BN79: NA | BQ79: 5.272800394 | BR79: 8.943465685 | BS79: 11.58780551 | BT79: 13.24835191 | BU79: 2.364066194 | BV79: 7.524303028 | BW79: 12.64226406 | BX79: 10.57786897 | BZ79: NA | CC79: 1.104250583 | CD79: 4.989154013 | CE79: 13.1175565 | CF79: 8.622534014 | CG79: 0 | CH79: 0 | CI79: 6.87812446 | CJ79: 3.945913231 | CK79: 1.442672741 | CL79: 3.355155483 | CM79: 8.192664044 | CN79: 6.561576647 | CO79: 4.155604026 | CP79: 7.244899268 | CQ79: 12.67618752 | CR79: 8.757215493 | CS79: 3.118802957 | CT79: 3.584370225 | CU79: 14.22764228 | CV79: 7.56468435 | CW79: 6.7225199 | CX79: 8.385582311 | CY79: 13.86044101 | CZ79: 10.32550224 | DA79: 6.80825299 | DB79: 6.823027719 | DC79: 8.164094849 | DD79: 7.707222653 | DF79: NA | DI79: 5.183729136 | DJ79: 7.990662995 | DK79: 9.717987194 | DL79: 7.419317965 | DM79: 3.963705826 | DN79: 5.385880838 | DO79: 8.770383429 | DP79: 7.025512332 | DQ79: 2.014148223 | DR79: 4.491017964 | DS79: 6.364122742 | DT79: 6.033996211
A80: Ind [NCL+DQ] / [Capital + ALLL]--33238 | B80: Ind [NCL+DQ] / [Capital + ALLL] | C80: 12 | D80: 1990-12-31 | E80: 0.7580543272 | F80: 2.000833681 | G80: 4.210773936 | H80: 3.099918614 | I80: 0.6807926697 | J80: 1.999407759 | K80: 3.946240336 | L80: 2.981938898 | M80: 0.4462555371 | N80: 1.949559936 | O80: 4.919315684 | P80: 3.646594524 | Q80: 2.446473841 | R80: 4.024253608 | S80: 8.641400716 | T80: 7.029113423 | U80: 0.7375896233 | V80: 2.070750709 | W80: 4.097955041 | X80: 3.025617527 | Y80: 0.9888576891 | Z80: 2.302749545 | AA80: 5.066263445 | AB80: 3.816208348 | AC80: 0.1923677625 | AD80: 0.986443523 | AE80: 2.426460725 | AF80: 1.638401852 | AG80: 0.2135991456 | AH80: 1.230628988 | AI80: 2.949774116 | AJ80: 2.52524305 | AK80: 1.600620317 | AL80: 2.703525235 | AM80: 4.17438629 | AN80: 3.382220967 | AO80: 0.3753440708 | AP80: 1.22053094 | AQ80: 2.958561977 | AR80: 2.040325288 | AS80: 0.7002116919 | AT80: 1.996867659 | AU80: 3.946441156 | AV80: 3.029322991 | AW80: 1.490576205 | AX80: 2.722587646 | AY80: 4.828300089 | AZ80: 3.933659178 | BA80: 1.006036217 | BB80: 2.303735182 | BC80: 4.796292304 | BD80: 3.588022004 | BE80: 1.992187131 | BF80: 4.097403383 | BG80: 7.179989972 | BH80: 6.154863535 | BI80: 0.4386585538 | BJ80: 1.215153681 | BK80: 4.724409449 | BL80: 2.826108929 | BN80: NA | BQ80: 2.275454287 | BR80: 3.265632152 | BS80: 5.440803728 | BT80: 4.219613686 | BU80: 2.016716488 | BV80: 3.424329502 | BW80: 10.22441422 | BX80: 6.905994383 | BZ80: NA | CC80: 0.8227448832 | CD80: 2.068601583 | CE80: 4.068480231 | CF80: 3.126621702 | CG80: 0 | CH80: 0 | CI80: 2.157183364 | CJ80: 1.824961797 | CK80: 1.316448451 | CL80: 2.872062663 | CM80: 4.603729604 | CN80: 5.680187601 | CO80: 0.0787539377 | CP80: 0.8589183457 | CQ80: 1.790043995 | CR80: 1.041554248 | CS80: 2.632612967 | CT80: 3.190608774 | CU80: 5.358462676 | CV80: 3.685273078 | CW80: 0.74221011 | CX80: 2.310298757 | CY80: 3.660915574 | CZ80: 2.291795284 | DA80: 0.5332388052 | DB80: 0.8528784648 | DC80: 1.815328121 | DD80: 1.281418463 | DF80: NA | DI80: 0.4424602384 | DJ80: 3.324105324 | DK80: 11.72047358 | DL80: 12.29400972 | DM80: 1.924310455 | DN80: 3.581661891 | DO80: 6.676950198 | DP80: 4.685225013 | DQ80: 1.90860332 | DR80: 2.552260574 | DS80: 3.241345286 | DT80: 3.102536497
A81: OREO / [Capital + ALLL]--33238 | B81: OREO / [Capital + ALLL] | C81: 13 | D81: 1990-12-31 | E81: 0 | F81: 1.71914236 | G81: 6.009941256 | H81: 4.344585929 | I81: 0 | J81: 1.669009988 | K81: 5.484461816 | L81: 3.777264146 | M81: 0 | N81: 1.746951354 | O81: 7.666247091 | P81: 7.133570851 | Q81: 0.2730606601 | R81: 1.942183162 | S81: 3.725018122 | T81: 2.949840586 | U81: 0 | V81: 1.71935954 | W81: 5.844097492 | X81: 4.202376807 | Y81: 0 | Z81: 2.323068751 | AA81: 6.766293899 | AB81: 4.358170937 | AC81: 0 | AD81: 1.608309653 | AE81: 5.395130381 | AF81: 3.291819234 | AG81: 0 | AH81: 0.6369426752 | AI81: 3.196535368 | AJ81: 2.400723623 | AK81: 0.2570418501 | AL81: 2.131578947 | AM81: 5.578641479 | AN81: 3.841247452 | AO81: 0 | AP81: 1.386093419 | AQ81: 5.680827887 | AR81: 3.844369207 | AS81: 0 | AT81: 1.32306016 | AU81: 5.068087626 | AV81: 3.860023898 | AW81: 0 | AX81: 2.090912765 | AY81: 5.725889082 | AZ81: 3.790466332 | BA81: 0 | BB81: 1.853975535 | BC81: 6.000451162 | BD81: 4.124100083 | BE81: 0.1519244385 | BF81: 2.418718619 | BG81: 4.161038191 | BH81: 3.857584184 | BI81: 1.101321586 | BJ81: 3.863025329 | BK81: 14.81299213 | BL81: 7.348152444 | BN81: NA | BQ81: 0 | BR81: 0.3721541156 | BS81: 2.003296536 | BT81: 1.019278414 | BU81: 0.05171394799 | BV81: 0.8653846154 | BW81: 4.073942798 | BX81: 2.530670024 | BZ81: NA | CC81: 0 | CD81: 2.150537634 | CE81: 4.836038431 | CF81: 4.023632234 | CG81: 0 | CH81: 0 | CI81: 0.7780593233 | CJ81: 0.5939207289 | CK81: 0.4349086692 | CL81: 1.706238585 | CM81: 5.772223303 | CN81: 4.420340742 | CO81: 0 | CP81: 0.4565578307 | CQ81: 2.159044207 | CR81: 2.416811988 | CS81: 0 | CT81: 0.8869179601 | CU81: 1.554245798 | CV81: 1.889433781 | CW81: 0.3217038554 | CX81: 1.815714353 | CY81: 5.585407722 | CZ81: 3.060942146 | DA81: 0.9661835749 | DB81: 1.93236715 | DC81: 6.376631336 | DD81: 4.251087557 | DF81: NA | DI81: 0.02684139891 | DJ81: 0.4732099954 | DK81: 1.284802071 | DL81: 1.068304596 | DM81: 2.095272206 | DN81: 3.796005942 | DO81: 5.461293743 | DP81: 4.418127043 | DQ81: 0 | DR81: 0 | DS81: 0.9252656758 | DT81: 0.55480677
A82: ROAA--33238 | B82: ROAA | C82: 14 | D82: 1990-12-31 | E82: 0.58 | F82: 0.95 | G82: 1.23 | H82: 0.8387878788 | I82: 0.66 | J82: 0.98 | K82: 1.23 | L82: 0.8970967742 | M82: 0.49 | N82: 0.92 | O82: 1.23 | P82: 0.6818394898 | Q82: 0.815 | R82: 0.98 | S82: 1.1975 | T82: 0.9426470588 | U82: 0.6025 | V82: 0.91 | W82: 1.17 | X82: 0.8285016287 | Y82: 0.85 | Z82: 1.11 | AA82: 1.3725 | AB82: 1.074675325 | AC82: 0.5925 | AD82: 0.96 | AE82: 1.1575 | AF82: 0.8259459459 | AG82: 0.8 | AH82: 1.13 | AI82: 1.35 | AJ82: 1.060894309 | AK82: 0.675 | AL82: 1.03 | AM82: 1.21 | AN82: 0.912293578 | AO82: 0.67 | AP82: 0.98 | AQ82: 1.23 | AR82: 0.892980456 | AS82: 0.66 | AT82: 0.98 | AU82: 1.25 | AV82: 0.9148267898 | AW82: 0.65 | AX82: 0.965 | AY82: 1.21 | AZ82: 0.9008823529 | BA82: 0.62 | BB82: 0.94 | BC82: 1.22 | BD82: 0.8680586081 | BE82: 0.84 | BF82: 1.07 | BG82: 1.2825 | BH82: -11.29238095 | BI82: 0.73 | BJ82: 0.96 | BK82: 1.19 | BL82: 0.9923076923 | BN82: NA | BQ82: 1.0275 | BR82: 1.17 | BS82: 1.3275 | BT82: 1.115 | BU82: 0.49 | BV82: 0.81 | BW82: 1.055 | BX82: 0.7281481481 | BZ82: NA | CC82: 0.48 | CD82: 0.88 | CE82: 1.16 | CF82: 0.6981879195 | CG82: 0.595 | CH82: 0.88 | CI82: 1.165 | CJ82: 0.8771428571 | CK82: 0.59 | CL82: 0.86 | CM82: 1.07 | CN82: 0.86 | CO82: 0.825 | CP82: 1.04 | CQ82: 1.39 | CR82: 0.93625 | CS82: 0.86 | CT82: 1.13 | CU82: 1.39 | CV82: 1.028 | CW82: 0.5975 | CX82: 0.82 | CY82: 1.025 | CZ82: 0.7754545455 | DA82: 0.825 | DB82: 0.88 | DC82: 1.165 | DD82: 1.033333333 | DF82: NA | DI82: 0.9375 | DJ82: 1.39 | DK82: 2.97 | DL82: 1.791 | DM82: 0.68 | DN82: 0.97 | DO82: 1.09 | DP82: 0.9877777778 | DQ82: 0.93 | DR82: 1.13 | DS82: 1.275 | DT82: 1.139090909
A83: NIM--33238 | B83: NIM | C83: 15 | D83: 1990-12-31 | E83: 4.12 | F83: 4.62 | G83: 5.41 | H83: 4.75010101 | I83: 4.14 | J83: 4.525 | K83: 4.98 | L83: 4.597945671 | M83: 4.0275 | N83: 4.49 | O83: 5.05 | P83: 4.582178234 | Q83: 4.2525 | R83: 4.53 | S83: 4.7225 | T83: 4.570588235 | U83: 4.12 | V83: 4.53 | W83: 4.9675 | X83: 4.572850163 | Y83: 4.34 | Z83: 4.8 | AA83: 5.525 | AB83: 5.005584416 | AC83: 4 | AD83: 4.355 | AE83: 4.8 | AF83: 4.38027027 | AG83: 3.99 | AH83: 4.48 | AI83: 4.96 | AJ83: 4.692439024 | AK83: 4.21 | AL83: 4.46 | AM83: 4.8 | AN83: 4.517798165 | AO83: 4.0225 | AP83: 4.37 | AQ83: 4.7675 | AR83: 4.412247557 | AS83: 4.15 | AT83: 4.54 | AU83: 5.03 | AV83: 4.652886836 | AW83: 4.21 | AX83: 4.6 | AY83: 4.99 | AZ83: 4.659144385 | BA83: 4.31 | BB83: 4.76 | BC83: 5.4 | BD83: 4.852124542 | BE83: 4.405 | BF83: 4.77 | BG83: 5.24 | BH83: 5.06952381 | BI83: 4.4 | BJ83: 4.74 | BK83: 5.38 | BL83: 5.046923077 | BN83: NA | BQ83: 4.865 | BR83: 4.94 | BS83: 5.5175 | BT83: 5.283333333 | BU83: 4.42 | BV83: 4.93 | BW83: 5.09 | BX83: 4.790740741 | BZ83: NA | CC83: 4.495 | CD83: 4.94 | CE83: 5.52 | CF83: 4.950805369 | CG83: 3.925 | CH83: 4.56 | CI83: 4.875 | CJ83: 4.672857143 | CK83: 4.15 | CL83: 4.38 | CM83: 4.74 | CN83: 4.564242424 | CO83: 3.7 | CP83: 4.9 | CQ83: 5.535 | CR83: 4.465 | CS83: 4.53 | CT83: 4.8 | CU83: 4.86 | CV83: 4.798 | CW83: 4.2125 | CX83: 4.57 | CY83: 4.805 | CZ83: 4.511818182 | DA83: 5.445 | DB83: 5.45 | DC83: 5.48 | DD83: 5.466666667 | DF83: NA | DI83: 3.9875 | DJ83: 4.41 | DK83: 7.54 | DL83: 5.775 | DM83: 4.31 | DN83: 4.36 | DO83: 4.68 | DP83: 4.513333333 | DQ83: 4.175 | DR83: 4.29 | DS83: 4.94 | DT83: 4.517272727
A84: Provisions / Avg Assets--33238 | B84: Provisions / Avg Assets | C84: 16 | D84: 1990-12-31 | E84: 0.09 | F84: 0.27 | G84: 0.49 | H84: 0.3464646465 | I84: 0.04 | J84: 0.18 | K84: 0.39 | L84: 0.3007894737 | M84: 0.09 | N84: 0.25 | O84: 0.56 | P84: 0.4576751698 | Q84: 0.1225 | R84: 0.225 | S84: 0.325 | T84: 0.2464705882 | U84: 0.04 | V84: 0.185 | W84: 0.3975 | X84: 0.3045765472 | Y84: 0 | Z84: 0.18 | AA84: 0.4225 | AB84: 0.2236363636 | AC84: 0.0425 | AD84: 0.195 | AE84: 0.45 | AF84: 0.3628378378 | AG84: 0 | AH84: 0.15 | AI84: 0.34 | AJ84: 0.4199186992 | AK84: 0.1 | AL84: 0.2 | AM84: 0.32 | AN84: 0.2768807339 | AO84: 0 | AP84: 0.14 | AQ84: 0.34 | AR84: 0.2668892508 | AS84: 0.06 | AT84: 0.19 | AU84: 0.36 | AV84: 0.2955196305 | AW84: 0.07 | AX84: 0.19 | AY84: 0.34 | AZ84: 0.2711764706 | BA84: 0.09 | BB84: 0.25 | BC84: 0.46 | BD84: 0.3317948718 | BE84: 0.1525 | BF84: 0.31 | BG84: 0.485 | BH84: 0.5866666667 | BI84: 0.18 | BJ84: 0.25 | BK84: 0.43 | BL84: 0.2261538462 | BN84: NA | BQ84: 0.0175 | BR84: 0.095 | BS84: 0.24 | BT84: 0.1633333333 | BU84: 0 | BV84: 0.17 | BW84: 0.295 | BX84: 0.2114814815 | BZ84: NA | CC84: 0.115 | CD84: 0.29 | CE84: 0.63 | CF84: 0.5056375839 | CG84: 0.01 | CH84: 0.09 | CI84: 0.69 | CJ84: 0.2214285714 | CK84: 0.12 | CL84: 0.31 | CM84: 0.43 | CN84: 0.3451515152 | CO84: 0 | CP84: 0.15 | CQ84: 0.26 | CR84: 0.15125 | CS84: 0.22 | CT84: 0.27 | CU84: 0.33 | CV84: 0.494 | CW84: 0.0875 | CX84: 0.215 | CY84: 0.3925 | CZ84: 0.27 | DA84: 0.205 | DB84: 0.3 | DC84: 0.365 | DD84: 0.28 | DF84: NA | DI84: 0.1275 | DJ84: 0.225 | DK84: 2.865 | DL84: 1.294 | DM84: 0.11 | DN84: 0.35 | DO84: 0.47 | DP84: 0.3777777778 | DQ84: 0.05 | DR84: 0.14 | DS84: 0.185 | DT84: 0.1927272727
A85: Negative Earners (last 4 qtrs)--33238 | B85: Negative Earners (last 4 qtrs) | C85: 17 | D85: 1990-12-31 | F85: 6.930693069 | H85: 7 | J85: 6.15640599 | L85: 74 | N85: 13.37662338 | P85: 1648 | R85: 2.941176471 | T85: 1 | V85: 6.709265176 | X85: 42 | Z85: 3.846153846 | AB85: 6 | AD85: 8 | AF85: 12 | AH85: 5.6 | AJ85: 7 | AL85: 5.405405405 | AN85: 6 | AP85: 5.591054313 | AR85: 35 | AT85: 5.66893424 | AV85: 25 | AX85: 5.263157895 | AZ85: 20 | BB85: 6.498194946 | BD85: 18 | BF85: 7.142857143 | BH85: 3 | BJ85: 0 | BL85: 0 | BN85: NaN | BP85: 0 | BR85: 0 | BT85: 0 | BV85: 11.11111111 | BX85: 3 | BZ85: NaN | CB85: 0 | CD85: 11.25827815 | CF85: 17 | CH85: 14.28571429 | CJ85: 1 | CL85: 3.03030303 | CN85: 1 | CP85: 12.5 | CR85: 1 | CT85: 0 | CV85: 0 | CX85: 4.545454545 | CZ85: 1 | DB85: 0 | DD85: 0 | DF85: NaN | DH85: 0 | DJ85: 0 | DL85: 0 | DN85: 0 | DP85: 0 | DR85: 0 | DT85: 0
A86: Noncore Funding / Liab--33238 | B86: Noncore Funding / Liab | C86: 18 | D86: 1990-12-31 | E86: 4.623932002 | F86: 7.281119714 | G86: 11.78074177 | H86: 8.712755552 | I86: 4.607193174 | J86: 7.247138726 | K86: 10.93372081 | L86: 8.54493779 | M86: 7.508030429 | N86: 12.05521197 | O86: 18.65050012 | P86: 14.22545074 | Q86: 5.537554266 | R86: 7.228612217 | S86: 10.54764248 | T86: 7.983439085 | U86: 4.129949529 | V86: 6.713342885 | W86: 10.29062384 | X86: 7.986540569 | Y86: 5.602915431 | Z86: 9.356625656 | AA86: 14.44159967 | AB86: 10.96608151 | AC86: 5.979037741 | AD86: 7.917808867 | AE86: 11.17355314 | AF86: 9.240897942 | AG86: 5.235774499 | AH86: 7.474747475 | AI86: 10.54321769 | AJ86: 10.08931684 | AK86: 3.851792452 | AL86: 6.288 | AM86: 9.589282519 | AN86: 7.23087493 | AO86: 4.498907421 | AP86: 6.872397756 | AQ86: 10.19330206 | AR86: 7.885299039 | AS86: 5.172637514 | AT86: 7.740931754 | AU86: 11.71027275 | AV86: 9.112471774 | AW86: 4.030893199 | AX86: 6.299768342 | AY86: 9.632148757 | AZ86: 7.258059216 | BA86: 5.672983479 | BB86: 8.663839307 | BC86: 13.84768135 | BD86: 10.59189532 | BE86: 5.167511334 | BF86: 7.433632838 | BG86: 10.81946974 | BH86: 11.81857718 | BI86: 5.297117925 | BJ86: 10.91587764 | BK86: 17.18930761 | BL86: 10.95215917 | BN86: NA | BQ86: 5.418875591 | BR86: 7.765151823 | BS86: 12.60632427 | BT86: 9.505246954 | BU86: 4.430368767 | BV86: 6.655384994 | BW86: 8.597237834 | BX86: 7.544870486 | BZ86: NA | CC86: 4.528258971 | CD86: 7.250076955 | CE86: 11.71119972 | CF86: 10.24565353 | CG86: 4.644050729 | CH86: 5.78369906 | CI86: 10.02305109 | CJ86: 7.815224408 | CK86: 4.847593179 | CL86: 8.391720769 | CM86: 11.98092262 | CN86: 8.823522001 | CO86: 7.918136841 | CP86: 8.589553129 | CQ86: 11.0248132 | CR86: 9.844756041 | CS86: 5.111494975 | CT86: 7.90861857 | CU86: 8.352679482 | CV86: 7.725468758 | CW86: 6.036608815 | CX86: 8.543297161 | CY86: 14.72057257 | CZ86: 9.971983185 | DA86: 10.83062797 | DB86: 11.11803824 | DC86: 11.49536451 | DD86: 11.17798224 | DF86: NA | DI86: 10.67157186 | DJ86: 19.73545924 | DK86: 76.01244751 | DL86: 39.42011355 | DM86: 3.894143691 | DN86: 7.92018154 | DO86: 11.36941907 | DP86: 8.64606827 | DQ86: 4.692183852 | DR86: 6.532605967 | DS86: 14.21738455 | DT86: 11.75204511
A87: Brokered Dep / Liab--33238 | B87: Brokered Dep / Liab | C87: 19 | D87: 1990-12-31 | E87: 0 | F87: 0 | G87: 0 | H87: 0 | I87: 0 | J87: 0 | K87: 0 | L87: 0.001964909277 | M87: 0 | N87: 0 | O87: 0 | P87: 0.1098022365 | Q87: 0 | R87: 0 | S87: 0 | T87: 0 | U87: 0 | V87: 0 | W87: 0 | X87: 0.003725068618 | Y87: 0 | Z87: 0 | AA87: 0 | AB87: 0 | AC87: 0 | AD87: 0 | AE87: 0 | AF87: 0.005812013898 | AG87: 0 | AH87: 0 | AI87: 0 | AJ87: 0.0352827621 | AK87: 0 | AL87: 0 | AM87: 0 | AN87: 0.002346131323 | AO87: 0 | AP87: 0 | AQ87: 0 | AR87: 0.002509548713 | AS87: 0 | AT87: 0 | AU87: 0 | AV87: 0.006253322508 | AW87: 0 | AX87: 0 | AY87: 0 | AZ87: 0.005716062503 | BA87: 0 | BB87: 0 | BC87: 0 | BD87: 0.003150835373 | BE87: 0 | BF87: 0 | BG87: 0 | BH87: 0.4095666857 | BI87: 0 | BJ87: 0 | BK87: 0 | BL87: 0 | BN87: NA | BQ87: 0 | BR87: 0 | BS87: 0 | BT87: 0 | BU87: 0 | BV87: 0 | BW87: 0 | BX87: 0 | BZ87: NA | CC87: 0 | CD87: 0 | CE87: 0 | CF87: 0.04043022824 | CG87: 0 | CH87: 0 | CI87: 0 | CJ87: 0 | CK87: 0 | CL87: 0 | CM87: 0 | CN87: 0.02344849148 | CO87: 0 | CP87: 0 | CQ87: 0 | CR87: 0 | CS87: 0 | CT87: 0 | CU87: 0 | CV87: 0 | CW87: 0 | CX87: 0 | CY87: 0 | CZ87: 0 | DA87: 0 | DB87: 0 | DC87: 0 | DD87: 0 | DF87: NA | DI87: 0 | DJ87: 0 | DK87: 0 | DL87: 1.72018008 | DM87: 0 | DN87: 0 | DO87: 0 | DP87: 0.1356617828 | DQ87: 0 | DR87: 0 | DS87: 0 | DT87: 0
A88: Liquid Assets / Assets--33238 | B88: Liquid Assets / Assets | C88: 20 | D88: 1990-12-31 | F88: NA | J88: NA | N88: NA | R88: NA | V88: NA | Z88: NA | AD88: NA | AH88: NA | AL88: NA | AP88: NA | AT88: NA | AX88: NA | BB88: NA | BF88: NA | BJ88: NA | BN88: NA | BR88: NA | BV88: NA | BZ88: NA | CD88: NA | CH88: NA | CL88: NA | CP88: NA | CT88: NA | CX88: NA | DB88: NA | DF88: NA | DJ88: NA | DN88: NA | DR88: NA
A89: Net Loan Growth (last 4 qtrs)--33238 | B89: Net Loan Growth (last 4 qtrs) | C89: 21 | D89: 1990-12-31 | E89: -1.08 | F89: 5.41 | G89: 11.84 | H89: 5.908888889 | I89: 0.6025 | J89: 7.07 | K89: 13.7125 | L89: 8.131663823 | M89: -0.295 | N89: 6.92 | O89: 15.24 | P89: 10.00199343 | Q89: 3.4625 | R89: 8.905 | S89: 14.825 | T89: 10.10794118 | U89: 1.575 | V89: 7.95 | W89: 13.8625 | X89: 8.744786184 | Y89: -4.235 | Z89: 3.06 | AA89: 10.435 | AB89: 4.773137255 | AC89: -1.64 | AD89: 3.21 | AE89: 10.53 | AF89: 5.640272109 | AG89: 4.52 | AH89: 10.95 | AI89: 18 | AJ89: 10.59804878 | AK89: 2.855 | AL89: 8.08 | AM89: 15.01 | AN89: 9.897522936 | AO89: 0.225 | AP89: 6.33 | AQ89: 13.0375 | AR89: 6.9847557 | AS89: 3.79 | AT89: 9.97 | AU89: 17.15 | AV89: 12.43466513 | AW89: 1.2275 | AX89: 8.115 | AY89: 14.4275 | AZ89: 8.784865591 | BA89: 0.8575 | BB89: 7.045 | BC89: 13.505 | BD89: 9.609227941 | BE89: -3.99 | BF89: 4.7 | BG89: 12.75 | BH89: 4.32 | BI89: -6.63 | BJ89: -0.72 | BK89: 7.39 | BL89: 20.22076923 | BN89: NA | BQ89: -3.22 | BR89: 0.705 | BS89: 10.4425 | BT89: 6.955 | BU89: -3.76 | BV89: 6.81 | BW89: 15.4 | BX89: 9.205185185 | BZ89: NA | CC89: 0.575 | CD89: 7.05 | CE89: 12.825 | CF89: 7.853835616 | CG89: -1.755 | CH89: 8.335 | CI89: 28.3775 | CJ89: 14.93666667 | CK89: 0.54 | CL89: 6.27 | CM89: 10.08 | CN89: 6.542121212 | CO89: 11.73 | CP89: 15.44 | CQ89: 24.495 | CR89: 16.58571429 | CS89: 1.26 | CT89: 5.41 | CU89: 11.13 | CV89: 6.212 | CW89: -4.4925 | CX89: 2.205 | CY89: 6.0325 | CZ89: 4.185 | DA89: 14.365 | DB89: 20.06 | DC89: 29.625 | DD89: 22.64 | DF89: NA | DI89: -7.4775 | DJ89: 9.705 | DK89: 14.9825 | DL89: 7.446 | DM89: 3.73 | DN89: 12.92 | DO89: 18.66 | DP89: 12.71555556 | DQ89: 3.415 | DR89: 10.75 | DS89: 11.96 | DT89: 7.815454545
A90: Banks w/ Loan Growth (last 4 qtrs)--33238 | B90: Banks w/ Loan Growth (last 4 qtrs) | C90: 22 | D90: 1990-12-31 | F90: 70.2970297 | J90: 76.95507488 | N90: 72.94642857 | R90: 88.23529412 | V90: 79.07348243 | Z90: 62.82051282 | AD90: 68 | AH90: 84.8 | AL90: 84.68468468 | AP90: 76.19808307 | AT90: 83.90022676 | AX90: 80.52631579 | BB90: 77.97833935 | BF90: 57.14285714 | BJ90: 46.15384615 | BN90: NaN | BR90: 66.66666667 | BV90: 59.25925926 | BZ90: NaN | CD90: 75.49668874 | CH90: 57.14285714 | CL90: 75.75757576 | CP90: 75 | CT90: 80 | CX90: 54.54545455 | DB90: 100 | DF90: NaN | DJ90: 70 | DN90: 77.77777778 | DR90: 81.81818182
A91: Equity / Assets--33328 | B91: Equity / Assets | C91: 1 | D91: 1991-03-31 | E91: 7.703091322 | F91: 9.092413138 | G91: 10.9834916 | H91: 9.611514002 | I91: 7.400248726 | J91: 8.545706143 | K91: 10.29293989 | L91: 9.071779819 | M91: 6.952826178 | N91: 8.180945145 | O91: 10.06684242 | P91: 8.872681556 | Q91: 7.42117241 | R91: 8.25299941 | S91: 9.485867907 | T91: 8.643671858 | U91: 7.235477178 | V91: 8.353742538 | W91: 10.17699115 | X91: 8.87479329 | Y91: 7.627201041 | Z91: 8.708778726 | AA91: 10.24238697 | AB91: 9.181700811 | AC91: 7.677962363 | AD91: 8.909629234 | AE91: 10.56731742 | AF91: 9.35939167 | AG91: 8.105070937 | AH91: 9.196993671 | AI91: 11.17708145 | AJ91: 10.04165213 | AK91: 7.510285871 | AL91: 8.389889144 | AM91: 9.790059334 | AN91: 8.839342353 | AO91: 7.799723592 | AP91: 9.108342749 | AQ91: 11.12420252 | AR91: 9.731246115 | AS91: 7.173455311 | AT91: 8.313852563 | AU91: 9.802821149 | AV91: 8.716079271 | AW91: 7.376943127 | AX91: 8.327546533 | AY91: 9.632691695 | AZ91: 8.712266787 | BA91: 7.15794523 | BB91: 8.173574995 | BC91: 9.518462139 | BD91: 8.640384209 | BE91: 6.848061601 | BF91: 7.788250718 | BG91: 9.274478716 | BH91: 8.139011435 | BI91: 6.991289664 | BJ91: 7.507752571 | BK91: 9.457484309 | BL91: 8.678315245 | BN91: NA | BQ91: 7.789942459 | BR91: 9.013345108 | BS91: 10.95693102 | BT91: 9.797558323 | BU91: 6.57254874 | BV91: 8.097589102 | BW91: 9.791640875 | BX91: 8.486246262 | BZ91: NA | CC91: 7.022048679 | CD91: 7.896494157 | CE91: 9.190805656 | CF91: 8.372734914 | CG91: 5.868637233 | CH91: 7.204399633 | CI91: 10.59956393 | CJ91: 8.707178498 | CK91: 7.204312786 | CL91: 8.025055476 | CM91: 9.728424864 | CN91: 8.474554158 | CO91: 8.202403533 | CP91: 8.702636737 | CQ91: 9.954646638 | CR91: 8.781013229 | CS91: 8.719003542 | CT91: 9.171497339 | CU91: 10.60297387 | CV91: 9.387155174 | CW91: 6.621306166 | CX91: 7.47304511 | CY91: 8.901971973 | CZ91: 7.927321286 | DA91: 7.474905141 | DB91: 8.5595814 | DC91: 10.84875003 | DD91: 9.362576312 | DF91: NA | DI91: 6.37633981 | DJ91: 9.193368623 | DK91: 10.48218391 | DL91: 8.944851946 | DM91: 7.967873745 | DN91: 9.391690693 | DO91: 9.723302589 | DP91: 8.876197165 | DQ91: 6.870907213 | DR91: 8.63868058 | DS91: 10.58558385 | DT91: 8.795508868
A92: Total Risk Based Capital Ratio--33328 | B92: Total Risk Based Capital Ratio | C92: 2 | D92: 1991-03-31 | E92: 0 | F92: 0 | G92: 0 | H92: 0 | I92: 0 | J92: 0 | K92: 0 | L92: 0 | M92: 0 | N92: 0 | O92: 0 | P92: 0 | Q92: 0 | R92: 0 | S92: 0 | T92: 0 | U92: 0 | V92: 0 | W92: 0 | X92: 0 | Y92: 0 | Z92: 0 | AA92: 0 | AB92: 0 | AC92: 0 | AD92: 0 | AE92: 0 | AF92: 0 | AG92: 0 | AH92: 0 | AI92: 0 | AJ92: 0 | AK92: 0 | AL92: 0 | AM92: 0 | AN92: 0 | AO92: 0 | AP92: 0 | AQ92: 0 | AR92: 0 | AS92: 0 | AT92: 0 | AU92: 0 | AV92: 0 | AW92: 0 | AX92: 0 | AY92: 0 | AZ92: 0 | BA92: 0 | BB92: 0 | BC92: 0 | BD92: 0 | BE92: 0 | BF92: 0 | BG92: 0 | BH92: 0 | BI92: 0 | BJ92: 0 | BK92: 0 | BL92: 0 | BN92: NA | BQ92: 0 | BR92: 0 | BS92: 0 | BT92: 0 | BU92: 0 | BV92: 0 | BW92: 0 | BX92: 0 | BZ92: NA | CC92: 0 | CD92: 0 | CE92: 0 | CF92: 0 | CG92: 0 | CH92: 0 | CI92: 0 | CJ92: 0 | CK92: 0 | CL92: 0 | CM92: 0 | CN92: 0 | CO92: 0 | CP92: 0 | CQ92: 0 | CR92: 0 | CS92: 0 | CT92: 0 | CU92: 0 | CV92: 0 | CW92: 0 | CX92: 0 | CY92: 0 | CZ92: 0 | DA92: 0 | DB92: 0 | DC92: 0 | DD92: 0 | DF92: NA | DI92: 0 | DJ92: 0 | DK92: 0 | DL92: 0 | DM92: 0 | DN92: 0 | DO92: 0 | DP92: 0 | DQ92: 0 | DR92: 0 | DS92: 0 | DT92: 0
A93: Tier 1 Leverage Ratio--33328 | B93: Tier 1 Leverage Ratio | C93: 3 | D93: 1991-03-31 | E93: 0 | F93: 0 | G93: 0 | H93: 0 | I93: 0 | J93: 0 | K93: 0 | L93: 0 | M93: 0 | N93: 0 | O93: 0 | P93: 0 | Q93: 0 | R93: 0 | S93: 0 | T93: 0 | U93: 0 | V93: 0 | W93: 0 | X93: 0 | Y93: 0 | Z93: 0 | AA93: 0 | AB93: 0 | AC93: 0 | AD93: 0 | AE93: 0 | AF93: 0 | AG93: 0 | AH93: 0 | AI93: 0 | AJ93: 0 | AK93: 0 | AL93: 0 | AM93: 0 | AN93: 0 | AO93: 0 | AP93: 0 | AQ93: 0 | AR93: 0 | AS93: 0 | AT93: 0 | AU93: 0 | AV93: 0 | AW93: 0 | AX93: 0 | AY93: 0 | AZ93: 0 | BA93: 0 | BB93: 0 | BC93: 0 | BD93: 0 | BE93: 0 | BF93: 0 | BG93: 0 | BH93: 0 | BI93: 0 | BJ93: 0 | BK93: 0 | BL93: 0 | BN93: NA | BQ93: 0 | BR93: 0 | BS93: 0 | BT93: 0 | BU93: 0 | BV93: 0 | BW93: 0 | BX93: 0 | BZ93: NA | CC93: 0 | CD93: 0 | CE93: 0 | CF93: 0 | CG93: 0 | CH93: 0 | CI93: 0 | CJ93: 0 | CK93: 0 | CL93: 0 | CM93: 0 | CN93: 0 | CO93: 0 | CP93: 0 | CQ93: 0 | CR93: 0 | CS93: 0 | CT93: 0 | CU93: 0 | CV93: 0 | CW93: 0 | CX93: 0 | CY93: 0 | CZ93: 0 | DA93: 0 | DB93: 0 | DC93: 0 | DD93: 0 | DF93: NA | DI93: 0 | DJ93: 0 | DK93: 0 | DL93: 0 | DM93: 0 | DN93: 0 | DO93: 0 | DP93: 0 | DQ93: 0 | DR93: 0 | DS93: 0 | DT93: 0
A94: ALLL / Nonaccrual Loans--33328 | B94: ALLL / Nonaccrual Loans | C94: 4 | D94: 1991-03-31 | E94: 73.15472779 | F94: 131.586706 | G94: 262.1334586 | H94: 465.7808404 | I94: 84.57801447 | J94: 148.8235294 | K94: 366.2714097 | L94: 441.4760606 | M94: 76.89045658 | N94: 145.9022428 | O94: 352.623903 | P94: 435.0674967 | Q94: 93.18181818 | R94: 163.4146341 | S94: 473.1707317 | T94: 751.4617211 | U94: 89.92248062 | V94: 158.2781457 | W94: 386.1759425 | X94: 546.4673372 | Y94: 80.18867925 | Z94: 146.25 | AA94: 329.5454545 | AB94: 395.4583534 | AC94: 84.87804878 | AD94: 164.3233743 | AE94: 425.755965 | AF94: 361.5344506 | AG94: 96.6341626 | AH94: 185.2212447 | AI94: 467.5710594 | AJ94: 444.9201098 | AK94: 60.60606061 | AL94: 108.8983051 | AM94: 158.7982833 | AN94: 200.270525 | AO94: 88.41800248 | AP94: 172.1974856 | AQ94: 418.0555556 | AR94: 445.8270402 | AS94: 86.29550321 | AT94: 151.5957447 | AU94: 388 | AV94: 526.7636882 | AW94: 77.93789431 | AX94: 128.0339481 | AY94: 298.4337827 | AZ94: 448.8969761 | BA94: 72.81323877 | BB94: 131.6326531 | BC94: 264.7058824 | BD94: 367.5402778 | BE94: 92.89940828 | BF94: 173.880941 | BG94: 483.2460733 | BH94: 443.915345 | BI94: 75.48387097 | BJ94: 137.804878 | BK94: 193.1034483 | BL94: 191.5702946 | BN94: NA | BQ94: 179.389313 | BR94: 223.0769231 | BS94: 690.4761905 | BT94: 743.355055 | BU94: 82.81931743 | BV94: 173.4006734 | BW94: 349.5901639 | BX94: 340.9193164 | BZ94: NA | CC94: 78.75774419 | CD94: 126.3672815 | CE94: 354.3478261 | CF94: 451.0107069 | CG94: 209.1812865 | CH94: 226.4705882 | CI94: 323.3679525 | CJ94: 305.6616371 | CK94: 72.93625914 | CL94: 117.1717172 | CM94: 288.6075949 | CN94: 262.8383158 | CO94: 165.2733119 | CP94: 201.4326648 | CQ94: 2150 | CR94: 978.6449336 | CS94: 134.7540984 | CT94: 377.0833333 | CU94: 383.3333333 | CV94: 452.3974393 | CW94: 90.67460317 | CX94: 241.6666667 | CY94: 292.4074308 | CZ94: 246.8632232 | DA94: 126.4611272 | DB94: 165.0190286 | DC94: 203.57693 | DD94: 165.0190286 | DF94: NA | DI94: 136.9024386 | DJ94: 228.830336 | DK94: 600.0181734 | DL94: 485.2371283 | DM94: 84.10757946 | DN94: 116.7315175 | DO94: 225.7575758 | DP94: 142.8231849 | DQ94: 60.2277134 | DR94: 126.7038414 | DS94: 148.3417527 | DT94: 118.5877956
A95: [NCL + OREO] / [Total Loans + OREO]--33328 | B95: [NCL + OREO] / [Total Loans + OREO] | C95: 5 | D95: 1991-03-31 | E95: 1.193857103 | F95: 2.768746784 | G95: 4.884385268 | H95: 3.291586812 | I95: 0.9184044523 | J95: 2.104795946 | K95: 3.885071987 | L95: 2.711795545 | M95: 0.8894001459 | N95: 2.145173062 | O95: 4.35811196 | P95: 3.196201519 | Q95: 1.279855703 | R95: 2.011150637 | S95: 2.766864465 | T95: 2.172977742 | U95: 0.804422944 | V95: 1.904271745 | W95: 3.541162228 | X95: 2.425639222 | Y95: 1.131452193 | Z95: 2.802692078 | AA95: 4.951285294 | AB95: 3.552013218 | AC95: 1.175507724 | AD95: 2.851095956 | AE95: 5.642861245 | AF95: 3.854537327 | AG95: 0.6885773528 | AH95: 1.522214823 | AI95: 3.554637726 | AJ95: 2.312086187 | AK95: 1.294979916 | AL95: 2.145535838 | AM95: 3.426028533 | AN95: 2.561261592 | AO95: 0.9002634977 | AP95: 2.210179135 | AQ95: 4.374667336 | AR95: 3.042274626 | AS95: 0.873304371 | AT95: 1.994615089 | AU95: 3.741721854 | AV95: 2.576666099 | AW95: 1.029079695 | AX95: 2.075218267 | AY95: 3.462836545 | AZ95: 2.466052604 | BA95: 1.014857059 | BB95: 2.266452648 | BC95: 4.136736043 | BD95: 2.866970187 | BE95: 1.005509169 | BF95: 1.894990154 | BG95: 3.617949253 | BH95: 2.329397526 | BI95: 2.426308402 | BJ95: 3.03410423 | BK95: 4.938085171 | BL95: 3.679198645 | BN95: NA | BQ95: 0.1871893159 | BR95: 0.6005409296 | BS95: 2.941684835 | BT95: 1.842943665 | BU95: 0.7768055069 | BV95: 1.994641809 | BW95: 3.594170372 | BX95: 2.511845751 | BZ95: NA | CC95: 0.9235726974 | CD95: 2.154276748 | CE95: 3.726815451 | CF95: 2.485720847 | CG95: 0.1746814632 | CH95: 0.7915567282 | CI95: 1.120549024 | CJ95: 0.691535553 | CK95: 0.5550871276 | CL95: 1.784274194 | CM95: 3.628023353 | CN95: 2.278279523 | CO95: 0.4001290162 | CP95: 0.9546536383 | CQ95: 1.44614504 | CR95: 2.174223532 | CS95: 0.6003878282 | CT95: 1.76804869 | CU95: 4.706569722 | CV95: 2.81712055 | CW95: 0.9648191196 | CX95: 1.922656813 | CY95: 4.320159472 | CZ95: 2.557869287 | DA95: 1.143501391 | DB95: 1.410098707 | DC95: 3.298644302 | DD95: 2.49139756 | DF95: NA | DI95: 1.062904573 | DJ95: 2.229091323 | DK95: 3.520336839 | DL95: 2.258279467 | DM95: 1.851431683 | DN95: 2.165636137 | DO95: 3.309494827 | DP95: 2.575733005 | DQ95: 0.9609226274 | DR95: 1.279116247 | DS95: 2.621296893 | DT95: 1.937666646
A96: [Noncurrent + Delinquent Loans] / [Capital + ALLL]--33328 | B96: [Noncurrent + Delinquent Loans] / [Capital + ALLL] | C96: 6 | D96: 1991-03-31 | E96: 9.623379105 | F96: 19.52797907 | G96: 36.940508 | H96: 25.48341707 | I96: 9.539113272 | J96: 19.36131355 | K96: 32.47044424 | L96: 23.59234992 | M96: 9.775504662 | N96: 20.37111881 | O96: 36.49958496 | P96: 27.11060634 | Q96: 14.04009944 | R96: 21.10570125 | S96: 32.7239986 | T96: 26.30620093 | U96: 9.058089925 | V96: 18.69865975 | W96: 32.12851406 | X96: 22.84253408 | Y96: 11.63290499 | Z96: 21.60854214 | AA96: 35.6324228 | AB96: 26.95590154 | AC96: 10.48270806 | AD96: 20.43248809 | AE96: 32.65117874 | AF96: 25.62944014 | AG96: 5.771504068 | AH96: 12.87362349 | AI96: 24.76635514 | AJ96: 18.14445544 | AK96: 15.82630053 | AL96: 24.93647109 | AM96: 37.01001701 | AN96: 27.58236752 | AO96: 7.763213603 | AP96: 17.23992384 | AQ96: 29.80520475 | AR96: 22.32429376 | AS96: 9.706959707 | AT96: 20.50039093 | AU96: 34.02239449 | AV96: 25.17610246 | AW96: 11.98089257 | AX96: 20.99176172 | AY96: 34.6410789 | AZ96: 25.07327678 | BA96: 12.91323855 | BB96: 22.7868611 | BC96: 36.23721995 | BD96: 27.6353344 | BE96: 14.13629807 | BF96: 20.63649771 | BG96: 28.12108254 | BH96: 25.14832197 | BI96: 17.80708986 | BJ96: 21.89119171 | BK96: 27.58813654 | BL96: 25.88251591 | BN96: NA | BQ96: 16.82638282 | BR96: 21.63587642 | BS96: 25.49972188 | BT96: 23.81900916 | BU96: 12.11132767 | BV96: 21.65401518 | BW96: 32.20826904 | BX96: 26.57196109 | BZ96: NA | CC96: 11.9822113 | CD96: 22.56902761 | CE96: 35.05484945 | CF96: 24.48106495 | CG96: 1.353503185 | CH96: 7.709580838 | CI96: 16.80465422 | CJ96: 11.76326744 | CK96: 13.20366721 | CL96: 23.21428571 | CM96: 33.67943548 | CN96: 26.3391135 | CO96: 4.448514718 | CP96: 8.360486199 | CQ96: 17.06487722 | CR96: 10.56272155 | CS96: 11.3805647 | CT96: 31.52601662 | CU96: 40.74597344 | CV96: 34.29564149 | CW96: 18.48775594 | CX96: 26.06108462 | CY96: 39.01104437 | CZ96: 29.56838417 | DA96: 18.24926619 | DB96: 19.84155564 | DC96: 19.87412152 | DD96: 18.80173993 | DF96: NA | DI96: 18.80454745 | DJ96: 35.18080912 | DK96: 42.85725097 | DL96: 37.16509491 | DM96: 18.03163445 | DN96: 18.47313855 | DO96: 32.56587884 | DP96: 23.51852858 | DQ96: 17.10119268 | DR96: 20.01797349 | DS96: 28.34204575 | DT96: 24.401313
A97: Ag [NCL+DQ] / [Capital + ALLL]--33328 | B97: Ag [NCL+DQ] / [Capital + ALLL] | C97: 7 | D97: 1991-03-31 | E97: 0 | F97: 1.598904739 | G97: 7.345158871 | H97: 7.254474627 | I97: 0 | J97: 1.418145998 | K97: 8.181782062 | L97: 6.065818987 | M97: 0 | N97: 0 | O97: 2.199615566 | P97: 2.525557351 | Q97: 0 | R97: 0 | S97: 0 | T97: 0.005545901579 | U97: 0 | V97: 0.5948553055 | W97: 6.108897742 | X97: 4.643711435 | Y97: 0 | Z97: 1.114959022 | AA97: 8.918495166 | AB97: 6.752032934 | AC97: 4.218846247 | AD97: 9.178563327 | AE97: 20.53801676 | AF97: 15.33351774 | AG97: 0.2715546504 | AH97: 2.564102564 | AI97: 7.131332688 | AJ97: 6.379233416 | AK97: 0 | AL97: 0.7391105046 | AM97: 6.255363868 | AN97: 3.782907936 | AO97: 1.199239234 | AP97: 6.526107342 | AQ97: 14.43252762 | AR97: 10.97534001 | AS97: 0 | AT97: 1.166781057 | AU97: 7.680491551 | AV97: 5.837713093 | AW97: 0 | AX97: 0 | AY97: 2.934932981 | AZ97: 2.477970396 | BA97: 0 | BB97: 0 | BC97: 2.564102564 | BD97: 3.061501994 | BE97: 0 | BF97: 0.1093028387 | BG97: 2.132499754 | BH97: 1.990049174 | BI97: 0 | BJ97: 0 | BK97: 1.546936312 | BL97: 1.143914002 | BN97: NA | BQ97: 0 | BR97: 0.1188082617 | BS97: 5.350500021 | BT97: 2.677185528 | BU97: 0 | BV97: 0 | BW97: 0 | BX97: 1.009760933 | BZ97: NA | CC97: 0 | CD97: 0 | CE97: 0 | CF97: 0.7230530726 | CG97: 0 | CH97: 0 | CI97: 0.481690701 | CJ97: 0.4447232758 | CK97: 0 | CL97: 1.108870968 | CM97: 5.21978022 | CN97: 3.297192251 | CO97: 0 | CP97: 0.2640684757 | CQ97: 3.103959665 | CR97: 3.823023542 | CS97: 1.601292787 | CT97: 11.36860516 | CU97: 29.0477536 | CV97: 26.94082213 | CW97: 0.5280309382 | CX97: 5.656937786 | CY97: 20.40402744 | CZ97: 13.48748392 | DA97: 0 | DB97: 0 | DC97: 9.380626575 | DD97: 6.25375105 | DF97: NA | DI97: 0.1902030784 | DJ97: 1.044999221 | DK97: 2.600674454 | DL97: 1.785953482 | DM97: 0 | DN97: 0 | DO97: 1.38997345 | DP97: 1.594337045 | DQ97: 0 | DR97: 3.566675539 | DS97: 5.699726416 | DT97: 7.435969559
A98: CLD [NCL+DQ] / [Capital + ALLL]--33328 | B98: CLD [NCL+DQ] / [Capital + ALLL] | C98: 8 | D98: 1991-03-31 | E98: 0 | F98: 0 | G98: 0 | H98: 0.201222268 | I98: 0 | J98: 0 | K98: 0 | L98: 0.3015100874 | M98: 0 | N98: 0 | O98: 0 | P98: 1.25850257 | Q98: 0 | R98: 0 | S98: 0 | T98: 0.07089347747 | U98: 0 | V98: 0 | W98: 0 | X98: 0.5000066157 | Y98: 0 | Z98: 0 | AA98: 0 | AB98: 0.1604959776 | AC98: 0 | AD98: 0 | AE98: 0 | AF98: 0.06307362899 | AG98: 0 | AH98: 0 | AI98: 0 | AJ98: 0.0286580456 | AK98: 0 | AL98: 0 | AM98: 0 | AN98: 0.3955356474 | AO98: 0 | AP98: 0 | AQ98: 0 | AR98: 0.08226195989 | AS98: 0 | AT98: 0 | AU98: 0 | AV98: 0.5143410556 | AW98: 0 | AX98: 0 | AY98: 0 | AZ98: 0.4274975076 | BA98: 0 | BB98: 0 | BC98: 0 | BD98: 0.4962446058 | BE98: 0 | BF98: 0 | BG98: 0 | BH98: 0.465834601 | BI98: 0 | BJ98: 0 | BK98: 0 | BL98: 0.06991233953 | BN98: NA | BQ98: 0 | BR98: 0 | BS98: 0 | BT98: 0.04566210046 | BU98: 0 | BV98: 0 | BW98: 0 | BX98: 0.5966217619 | BZ98: NA | CC98: 0 | CD98: 0 | CE98: 1.358751592 | CF98: 1.462639653 | CG98: 0 | CH98: 0 | CI98: 0.9694836381 | CJ98: 0.5963198726 | CK98: 0 | CL98: 0 | CM98: 0 | CN98: 0.2696130931 | CO98: 0 | CP98: 0 | CQ98: 0 | CR98: 0.0580495356 | CS98: 0 | CT98: 0 | CU98: 0.4066462615 | CV98: 1.624137955 | CW98: 0 | CX98: 0 | CY98: 0 | CZ98: 0.1555391412 | DA98: 0 | DB98: 0 | DC98: 0 | DD98: 0 | DF98: NA | DI98: 0 | DJ98: 0 | DK98: 0.1978564566 | DL98: 0.2124221858 | DM98: 0 | DN98: 0 | DO98: 0 | DP98: 1.067531945 | DQ98: 0 | DR98: 0 | DS98: 0.2270737579 | DT98: 0.5177592504
A99: CRE [NCL+DQ] / [Capital + ALLL]--33328 | B99: CRE [NCL+DQ] / [Capital + ALLL] | C99: 9 | D99: 1991-03-31 | E99: 0 | F99: 0.276527307 | G99: 2.889676726 | H99: 2.031581301 | I99: 0 | J99: 0.8043126685 | K99: 4.897738524 | L99: 3.326951526 | M99: 0 | N99: 1.709688671 | O99: 8.419520154 | P99: 6.504455495 | Q99: 0.9024268513 | R99: 2.827592482 | S99: 7.46470018 | T99: 4.404341887 | U99: 0 | V99: 1.108433735 | W99: 5.701357466 | X99: 3.792698479 | Y99: 0 | Z99: 0.04120862631 | AA99: 2.20966243 | AB99: 1.774447591 | AC99: 0 | AD99: 0 | AE99: 3.123252204 | AF99: 2.193385194 | AG99: 0 | AH99: 0 | AI99: 0.988372093 | AJ99: 1.461606488 | AK99: 1.039351852 | AL99: 4.212693101 | AM99: 10.2769715 | AN99: 6.725791502 | AO99: 0 | AP99: 0 | AQ99: 2.433277217 | AR99: 1.94195265 | AS99: 0 | AT99: 1.404494382 | AU99: 5.922165821 | AV99: 4.030619777 | AW99: 0 | AX99: 2.177009156 | AY99: 6.91734371 | AZ99: 4.661209261 | BA99: 0 | BB99: 1.374141162 | BC99: 6.706201453 | BD99: 4.542860304 | BE99: 0 | BF99: 1.568085829 | BG99: 6.735406171 | BH99: 4.97123355 | BI99: 0 | BJ99: 1.376462491 | BK99: 2.988902541 | BL99: 2.505732504 | BN99: NA | BQ99: 0 | BR99: 0.009139097057 | BS99: 1.494295576 | BT99: 0.8083987478 | BU99: 0 | BV99: 1.985047693 | BW99: 4.386270012 | BX99: 3.523981447 | BZ99: NA | CC99: 0 | CD99: 4.333652091 | CE99: 9.046836828 | CF99: 5.827332217 | CG99: 0 | CH99: 0 | CI99: 4.460390259 | CJ99: 3.796333116 | CK99: 0 | CL99: 2.689117869 | CM99: 6.751054852 | CN99: 4.521545651 | CO99: 0 | CP99: 0 | CQ99: 0.3638054932 | CR99: 0.6850099768 | CS99: 0 | CT99: 1.194786387 | CU99: 6.908613905 | CV99: 3.163488761 | CW99: 0 | CX99: 0.1107072983 | CY99: 3.266069489 | CZ99: 2.738553945 | DA99: 0.8092742712 | DB99: 0.988372093 | DC99: 4.874694082 | DD99: 3.459854871 | DF99: NA | DI99: 0 | DJ99: 0.1815509639 | DK99: 4.720795626 | DL99: 4.637470142 | DM99: 2.274168705 | DN99: 5.682800346 | DO99: 8.246134624 | DP99: 5.364042393 | DQ99: 2.123544677 | DR99: 3.867860637 | DS99: 6.528747612 | DT99: 6.414144744
A100: Res RE [NCL+DQ] / [Capital + ALLL]--33328 | B100: Res RE [NCL+DQ] / [Capital + ALLL] | C100: 10 | D100: 1991-03-31 | E100: 0 | F100: 1.618683959 | G100: 5.296038494 | H100: 3.425416908 | I100: 0.1984168425 | J100: 2.200851036 | K100: 5.994698651 | L100: 4.043783403 | M100: 0.43733093 | N100: 2.872293139 | O100: 7.466668109 | P100: 5.274727104 | Q100: 4.51262049 | R100: 6.2239722 | S100: 11.48069382 | T100: 9.511058412 | U100: 0.4807692308 | V100: 2.758943184 | W100: 6.379100851 | X100: 4.446116628 | Y100: 0.191567795 | Z100: 2.211212168 | AA100: 6.764597102 | AB100: 4.514582327 | AC100: 0 | AD100: 0.8087359592 | AE100: 2.379923031 | AF100: 1.652243146 | AG100: 0 | AH100: 0.05834305718 | AI100: 1.477005707 | AJ100: 1.288625448 | AK100: 2.923382863 | AL100: 5.247502625 | AM100: 9.068852257 | AN100: 6.4844967 | AO100: 0 | AP100: 1.079113645 | AQ100: 3.517127585 | AR100: 2.492839606 | AS100: 0.2721088435 | AT100: 2.276452377 | AU100: 6.110986295 | AV100: 4.281238136 | AW100: 2.846675275 | AX100: 5.795991319 | AY100: 11.36249115 | AZ100: 7.720997147 | BA100: 0.27059158 | BB100: 2.069536424 | BC100: 5.684226785 | BD100: 3.923941319 | BE100: 0.9202725566 | BF100: 2.42837443 | BG100: 4.702933863 | BH100: 4.002352775 | BI100: 1.230569948 | BJ100: 2.33269118 | BK100: 5.985748219 | BL100: 4.364539082 | BN100: NA | BQ100: 1.067179846 | BR100: 4.771345993 | BS100: 6.167631082 | BT100: 4.736517172 | BU100: 1.797725656 | BV100: 3.794525684 | BW100: 8.613162803 | BX100: 6.033865639 | BZ100: NA | CC100: 0.927010632 | CD100: 3.843936191 | CE100: 8.076541556 | CF100: 5.32025696 | CG100: 0 | CH100: 0.3184713376 | CI100: 2.598608707 | CJ100: 1.288474255 | CK100: 2.392164249 | CL100: 3.756260434 | CM100: 8.376362593 | CN100: 5.927789373 | CO100: 0 | CP100: 0.2388915432 | CQ100: 1.614984654 | CR100: 1.012272244 | CS100: 0 | CT100: 1.593048516 | CU100: 1.961216395 | CV100: 1.915925129 | CW100: 0.3119088425 | CX100: 1.730810813 | CY100: 3.957482077 | CZ100: 2.881122834 | DA100: 0.1710478934 | DB100: 0.3420957868 | DC100: 0.7524432422 | DD100: 0.5016288282 | DF100: NA | DI100: 0.01458576429 | DJ100: 0.9485148155 | DK100: 2.880935034 | DL100: 1.647128478 | DM100: 3.09314587 | DN100: 5.388471178 | DO100: 5.644649814 | DP100: 4.881116716 | DQ100: 1.386265838 | DR100: 6.01556971 | DS100: 7.456651869 | DT100: 5.208767942
A101: C&I [NCL+DQ] / [Capital + ALLL]--33328 | B101: C&I [NCL+DQ] / [Capital + ALLL] | C101: 11 | D101: 1991-03-31 | E101: 4.04670294 | F101: 8.850597069 | G101: 18.63728466 | H101: 14.73127711 | I101: 2.697392874 | J101: 7.242359736 | K101: 15.18744909 | L101: 10.88519828 | M101: 1.581111868 | N101: 5.501686752 | O101: 13.1646988 | P101: 9.722126567 | Q101: 1.274956852 | R101: 4.320923821 | S101: 8.379187202 | T101: 7.477623833 | U101: 1.937984496 | V101: 6.190041115 | W101: 13.37579618 | X101: 9.459990904 | Y101: 4.117648723 | Z101: 11.05233315 | AA101: 20.33078796 | AB101: 15.39611032 | AC101: 4.523766283 | AD101: 11.32828833 | AE101: 19.76757326 | AF101: 15.93157054 | AG101: 2.054403652 | AH101: 5.708460754 | AI101: 14.66289486 | AJ101: 10.20508528 | AK101: 3.031254419 | AL101: 6.353146056 | AM101: 13.14725177 | AN101: 9.424559179 | AO101: 2.758566613 | AP101: 7.815293083 | AQ101: 16.72689909 | AR101: 12.55774127 | AS101: 3.06898775 | AT101: 7.898571845 | AU101: 16.11502984 | AV101: 11.87731669 | AW101: 1.715266767 | AX101: 5.22840828 | AY101: 11.60267647 | AZ101: 8.15373305 | BA101: 4.441392653 | BB101: 10.70122964 | BC101: 19.31112616 | BD101: 14.63691226 | BE101: 1.841441846 | BF101: 4.135494745 | BG101: 8.528304262 | BH101: 6.570977468 | BI101: 6.709521896 | BJ101: 11.28699243 | BK101: 16.5704864 | BL101: 14.98472156 | BN101: NA | BQ101: 3.867850534 | BR101: 8.115256062 | BS101: 15.33339887 | BT101: 12.93269663 | BU101: 2.018879732 | BV101: 5.683563748 | BW101: 14.1041257 | BX101: 10.73203269 | BZ101: NA | CC101: 1.356364537 | CD101: 6.756756757 | CE101: 13.62196608 | CF101: 9.239668577 | CG101: 0 | CH101: 0.2388535032 | CI101: 7.080465268 | CJ101: 3.695219744 | CK101: 2.648719062 | CL101: 6.190041115 | CM101: 11.35955375 | CN101: 8.076110615 | CO101: 2.141542287 | CP101: 3.466804679 | CQ101: 13.10619302 | CR101: 7.084466969 | CS101: 4.429263993 | CT101: 15.44381286 | CU101: 30.99745691 | CV101: 19.41935728 | CW101: 8.13754625 | CX101: 15.20626918 | CY101: 23.33599121 | CZ101: 17.21670682 | DA101: 10.65764133 | DB101: 12.76162791 | DC101: 15.7074254 | DD101: 13.32283518 | DF101: NA | DI101: 1.686021868 | DJ101: 5.759645386 | DK101: 10.61973147 | DL101: 8.034961378 | DM101: 7.01142132 | DN101: 8.199281587 | DO101: 11.47785928 | DP101: 10.40659468 | DQ101: 2.934970826 | DR101: 4.373706004 | DS101: 7.170284117 | DT101: 6.419868198
